Workbook

Sheet Présentation

Sheet Évolution
C3: Choisir dans la liste déroulante une municipalité et défiler la page pour voir les indicateurs ou cliquer directement sur l'indicateur ou le tableau.
C4: Choisir une municipalité : | I4: Choisir un indicateur : | M4: Choisir un tableau :
C5: TOUT LE QUÉBEC | I5: → Quantité d'eau distribuée | M5: → Indicateurs par région administrative | BV5: Municipalité exemptées? | CD5: Bilan approuvé? | CL5: Quantité d'eau distribuée | CT5: % équivalent du réseau ausculté | DC5: nombre de fuites réparée | DJ5: Conduite | DK5: Privé | DL5: Public
I6: → Consommation résidentielle | M6: → Indicateurs par classe de population | BV6: 2011 | BW6: 2012 | BX6: 2013 | BY6: 2014 | BZ6: 2015 | CA6: 2016 | CB6: 2017 | CC6: 2018 | CD6: 2011 | CE6: 2012 | CF6: 2013 | CG6: 2014 | CH6: 2015 | CI6: 2016 | CJ6: 2017 | CK6: 2018 | CL6: 2011 | CM6: 2012 | CN6: 2013 | CO6: 2014 | CP6: 2015 | CQ6: 2016 | CR6: 2017 | CS6: 2018 | CT6: 2011 | CU6: 2012 | CV6: 2013 | CW6: 2014 | CX6: 2015 | CY6: 2016 | CZ6: 2017 | DA6: 2018 | DB6: 2019 (prévu) | DC6: 2011 | DD6: 2012 | DE6: 2013 | DF6: 2014 | DG6: 2015 | DH6: 2016 | DI6: 2017 | DJ6: 2018 | DK6: 2018 | DL6: 2018
I7: → Indice de fuites dans les infrastructures | BT7: TOUT LE QUÉBEC | CL7: 620.2056373 | CM7: 612.340892 | CN7: 596.0865808 | CO7: 589.1008665 | CP7: 573.3776759 | CQ7: 550.8217594 | CR7: 529.5924 | CS7: =SUM('Audit de l''eau'!J4:J1111)*1000000/365/SUM('Audit de l''eau'!H4:H1111) -> 536.3201867 | CT7: ND | CU7: 0.54 | CV7: 0.56 | CW7: 0.74 | CX7: 0.78 | CY7: 0.85 | CZ7: 0.9019886698 | DA7: =SUM('État & Plan d''action'!$S$4:$S$1111,'État & Plan d''action'!$U$4:$U$1111)/SUM('Audit de l''eau'!$I$4:$I$1111) -> 0.8807061573 | DB7: =SUM('État & Plan d''action'!$T$4:$T$1111,'État & Plan d''action'!$V$4:$V$1111)/SUM('Audit de l''eau'!$I$4:$I$1111) -> 1.006822127 | DC7: ND | DD7: 9068 | DE7: 8859 | DF7: 9915 | DG7: 10153 | DH7: 8768 | DI7: 8358 | DJ7: =SUM(DJ8:DJ1115) -> 5694 | DK7: 1275 | DL7: 2517
I8: → Recherche et réparation de fuites | BS8: 46005 | BT8: ABERCORN | BU8: 16 | BV8: non | BW8: non | BX8: non | BY8: non | BZ8: non | CA8: non | CB8: non | CC8: non | CD8: oui | CE8: oui | CF8: oui | CG8: oui | CH8: non | CI8: non | CJ8: non | CK8: non | CL8: 330.1897977 | CM8: 339.4282231 | CN8: 278.0088973 | CO8: 361.1506685 | CS8: =IF(VLOOKUP(BS8,Indicateurs!$B$4:$E$1111,4,FALSE)="","",VLOOKUP(BS8,Indicateurs!$B$4:$E$1111,4,FALSE)) ->  | CT8: ND | CU8: 0 | CV8: 0 | CW8: 0 | DA8: =IFERROR(SUM(VLOOKUP($BS8,'État & Plan d''action'!$B$4:$AA$1111,18,FALSE),VLOOKUP($BS8,'État & Plan d''action'!$B$4:$AA$1111,20,FALSE))/(VLOOKUP($BS8,'Audit de l''eau'!$B$3:$I$1111,8,FALSE)),"") ->  | DB8: =IFERROR(SUM(VLOOKUP($BS8,'État & Plan d''action'!$B$4:$AA$1111,19,FALSE),VLOOKUP($BS8,'État & Plan d''action'!$B$4:$AA$1111,21,FALSE))/(VLOOKUP($BS8,'Audit de l''eau'!$B$3:$I$1111,8,FALSE)),"") ->  | DC8: ND | DD8: 0 | DE8: 0 | DF8: 2 | DG8: 0 | DJ8: =IF(VLOOKUP($BS8,'État & Plan d''action'!$B$4:$AR$1111,36,FALSE)="","",VLOOKUP($BS8,'État & Plan d''action'!$B$4:$AR$1111,36,FALSE)) ->  | DK8: =IF(VLOOKUP($BS8,'État & Plan d''action'!$B$4:$AR$1111,38,FALSE)="","",VLOOKUP($BS8,'État & Plan d''action'!$B$4:$AR$1111,38,FALSE)) ->  | DL8: =IF(VLOOKUP($BS8,'État & Plan d''action'!$B$4:$AR$1111,37,FALSE)="","",VLOOKUP($BS8,'État & Plan d''action'!$B$4:$AR$1111,37,FALSE)) -> 
I9: → Installation des compteurs d'eau | BS9: 48028 | BT9: ACTON VALE | BU9: 16 | BV9: non | BW9: non | BX9: non | BY9: non | BZ9: non | CA9: non | CB9: non | CC9: non | CD9: oui | CE9: oui | CF9: oui | CG9: oui | CH9: oui | CI9: oui | CJ9: oui | CK9: oui | CL9: 897.2204945 | CM9: 776.1723779 | CN9: 725.2448445 | CO9: 806.2090013 | CP9: 446.7434453 | CQ9: 448.9974914 | CR9: 513.7650781 | CS9: =IF(VLOOKUP(BS9,Indicateurs!$B$4:$E$1111,4,FALSE)="","",VLOOKUP(BS9,Indicateurs!$B$4:$E$1111,4,FALSE)) -> 505 | CT9: ND | CU9: 0 | CV9: 0 | CW9: 0 | CX9: 0 | CY9: 0.05 | CZ9: 0.05 | DA9: =IFERROR(SUM(VLOOKUP($BS9,'État & Plan d''action'!$B$4:$AA$1111,18,FALSE),VLOOKUP($BS9,'État & Plan d''action'!$B$4:$AA$1111,20,FALSE))/(VLOOKUP($BS9,'Audit de l''eau'!$B$3:$I$1111,8,FALSE)),"") -> 0.099909991 | DB9: =IFERROR(SUM(VLOOKUP($BS9,'État & Plan d''action'!$B$4:$AA$1111,19,FALSE),VLOOKUP($BS9,'État & Plan d''action'!$B$4:$AA$1111,21,FALSE))/(VLOOKUP($BS9,'Audit de l''eau'!$B$3:$I$1111,8,FALSE)),"") -> 0 | DC9: ND | DD9: 5 | DE9: 8 | DF9: 12 | DG9: 11 | DH9: 7 | DI9: 9 | DJ9: =IF(VLOOKUP($BS9,'État & Plan d''action'!$B$4:$AR$1111,36,FALSE)="","",VLOOKUP($BS9,'État & Plan d''action'!$B$4:$AR$1111,36,FALSE)) -> 4 | DK9: =IF(VLOOKUP($BS9,'État & Plan d''action'!$B$4:$AR$1111,38,FALSE)="","",VLOOKUP($BS9,'État & Plan d''action'!$B$4:$AR$1111,38,FALSE)) -> 0 | DL9: =IF(VLOOKUP($BS9,'État & Plan d''action'!$B$4:$AR$1111,37,FALSE)="","",VLOOKUP($BS9,'État & Plan d''action'!$B$4:$AR$1111,37,FALSE)) -> 10
I10: → Résultat de validité des données | BS10: 31056 | BT10: ADSTOCK | BU10: 12 | BV10: non | BW10: non | BX10: non | BY10: non | BZ10: non | CA10: non | CB10: non | CC10: non | CD10: oui | CE10: oui | CF10: oui | CG10: oui | CH10: oui | CI10: oui | CJ10: oui | CK10: oui | CL10: 844.6409854 | CM10: 764.2244209 | CN10: 562.8779567 | CO10: 384.5338299 | CP10: 338.5359951 | CQ10: 340.6543113 | CR10: 288.6805926 | CS10: =IF(VLOOKUP(BS10,Indicateurs!$B$4:$E$1111,4,FALSE)="","",VLOOKUP(BS10,Indicateurs!$B$4:$E$1111,4,FALSE)) -> 313 | CT10: ND | CU10: 0.1 | CV10: 0.05 | CW10: 0.1 | CX10: 0.25 | CY10: 0 | CZ10: 0 | DA10: =IFERROR(SUM(VLOOKUP($BS10,'État & Plan d''action'!$B$4:$AA$1111,18,FALSE),VLOOKUP($BS10,'État & Plan d''action'!$B$4:$AA$1111,20,FALSE))/(VLOOKUP($BS10,'Audit de l''eau'!$B$3:$I$1111,8,FALSE)),"") -> 0 | DB10: =IFERROR(SUM(VLOOKUP($BS10,'État & Plan d''action'!$B$4:$AA$1111,19,FALSE),VLOOKUP($BS10,'État & Plan d''action'!$B$4:$AA$1111,21,FALSE))/(VLOOKUP($BS10,'Audit de l''eau'!$B$3:$I$1111,8,FALSE)),"") -> 0 | DC10: ND | DD10: 3 | DE10: 4 | DF10: 4 | DG10: 8 | DH10: 3 | DI10: 2 | DJ10: =IF(VLOOKUP($BS10,'État & Plan d''action'!$B$4:$AR$1111,36,FALSE)="","",VLOOKUP($BS10,'État & Plan d''action'!$B$4:$AR$1111,36,FALSE)) -> 0 | DK10: =IF(VLOOKUP($BS10,'État & Plan d''action'!$B$4:$AR$1111,38,FALSE)="","",VLOOKUP($BS10,'État & Plan d''action'!$B$4:$AR$1111,38,FALSE)) -> 0 | DL10: =IF(VLOOKUP($BS10,'État & Plan d''action'!$B$4:$AR$1111,37,FALSE)="","",VLOOKUP($BS10,'État & Plan d''action'!$B$4:$AR$1111,37,FALSE)) -> 0
BS11: 98030 | BT11: AGUANISH | BU11: 9 | BV11: non | BW11: non | BX11: non | BY11: non | BZ11: non | CA11: non | CB11: non | CC11: non | CD11: oui | CE11: oui | CF11: non | CG11: oui | CH11: oui | CI11: oui | CJ11: oui | CK11: oui | CL11: 241.616418 | CM11: 241.286792 | CO11: 208.8802799 | CP11: 217.1948415 | CQ11: 211.9987925 | CR11: 191.994079 | CS11: =IF(VLOOKUP(BS11,Indicateurs!$B$4:$E$1111,4,FALSE)="","",VLOOKUP(BS11,Indicateurs!$B$4:$E$1111,4,FALSE)) -> 201 | CT11: ND | CY11: 0 | CZ11: 0 | DA11: =IFERROR(SUM(VLOOKUP($BS11,'État & Plan d''action'!$B$4:$AA$1111,18,FALSE),VLOOKUP($BS11,'État & Plan d''action'!$B$4:$AA$1111,20,FALSE))/(VLOOKUP($BS11,'Audit de l''eau'!$B$3:$I$1111,8,FALSE)),"") -> 0 | DB11: =IFERROR(SUM(VLOOKUP($BS11,'État & Plan d''action'!$B$4:$AA$1111,19,FALSE),VLOOKUP($BS11,'État & Plan d''action'!$B$4:$AA$1111,21,FALSE))/(VLOOKUP($BS11,'Audit de l''eau'!$B$3:$I$1111,8,FALSE)),"") -> 0 | DC11: ND | DF11: 0 | DG11: 0 | DH11: 1 | DI11: 2 | DJ11: =IF(VLOOKUP($BS11,'État & Plan d''action'!$B$4:$AR$1111,36,FALSE)="","",VLOOKUP($BS11,'État & Plan d''action'!$B$4:$AR$1111,36,FALSE)) -> 0 | DK11: =IF(VLOOKUP($BS11,'État & Plan d''action'!$B$4:$AR$1111,38,FALSE)="","",VLOOKUP($BS11,'État & Plan d''action'!$B$4:$AR$1111,38,FALSE)) -> 0 | DL11: =IF(VLOOKUP($BS11,'État & Plan d''action'!$B$4:$AR$1111,37,FALSE)="","",VLOOKUP($BS11,'État & Plan d''action'!$B$4:$AR$1111,37,FALSE)) -> 0
BS12: 92030 | BT12: ALBANEL | BU12: 2 | BV12: non | BW12: non | BX12: non | BY12: non | BZ12: non | CA12: non | CB12: non | CC12: non | CD12: oui | CE12: oui | CF12: oui | CG12: oui | CH12: oui | CI12: non | CJ12: oui | CK12: oui | CL12: 610.7391767 | CM12: 593.6651584 | CN12: 539.6369485 | CO12: 577.4918348 | CP12: 536.8374188 | CR12: 539 | CS12: =IF(VLOOKUP(BS12,Indicateurs!$B$4:$E$1111,4,FALSE)="","",VLOOKUP(BS12,Indicateurs!$B$4:$E$1111,4,FALSE)) -> 551 | CT12: ND | CU12: 1 | CV12: 1 | CW12: 0.3 | CX12: 0.5 | CY12: 0 | CZ12: 0 | DA12: =IFERROR(SUM(VLOOKUP($BS12,'État & Plan d''action'!$B$4:$AA$1111,18,FALSE),VLOOKUP($BS12,'État & Plan d''action'!$B$4:$AA$1111,20,FALSE))/(VLOOKUP($BS12,'Audit de l''eau'!$B$3:$I$1111,8,FALSE)),"") -> 0 | DB12: =IFERROR(SUM(VLOOKUP($BS12,'État & Plan d''action'!$B$4:$AA$1111,19,FALSE),VLOOKUP($BS12,'État & Plan d''action'!$B$4:$AA$1111,21,FALSE))/(VLOOKUP($BS12,'Audit de l''eau'!$B$3:$I$1111,8,FALSE)),"") -> 1 | DC12: ND | DD12: 14 | DE12: 25 | DF12: 25 | DG12: 27 | DI12: 2 | DJ12: =IF(VLOOKUP($BS12,'État & Plan d''action'!$B$4:$AR$1111,36,FALSE)="","",VLOOKUP($BS12,'État & Plan d''action'!$B$4:$AR$1111,36,FALSE)) -> 3 | DK12: =IF(VLOOKUP($BS12,'État & Plan d''action'!$B$4:$AR$1111,38,FALSE)="","",VLOOKUP($BS12,'État & Plan d''action'!$B$4:$AR$1111,38,FALSE)) -> 1 | DL12: =IF(VLOOKUP($BS12,'État & Plan d''action'!$B$4:$AR$1111,37,FALSE)="","",VLOOKUP($BS12,'État & Plan d''action'!$B$4:$AR$1111,37,FALSE)) -> 0
BS13: 07025 | BT13: ALBERTVILLE | BU13: 1 | BV13: oui | BW13: oui | BX13: oui | BY13: oui | BZ13: oui | CA13: oui | CB13: oui | CC13: oui | CD13: oui | CE13: oui | CF13: oui | CG13: oui | CH13: oui | CI13: non | CJ13: non | CK13: non | CL13: 507.8286152 | CM13: 506.4411053 | CN13: 601.5147262 | CO13: 611.3302224 | CP13: 641.425658 | CS13: =IF(VLOOKUP(BS13,Indicateurs!$B$4:$E$1111,4,FALSE)="","",VLOOKUP(BS13,Indicateurs!$B$4:$E$1111,4,FALSE)) ->  | CT13: ND | CU13: 0.05 | CV13: 1 | CW13: 1 | CX13: 1 | DA13: =IFERROR(SUM(VLOOKUP($BS13,'État & Plan d''action'!$B$4:$AA$1111,18,FALSE),VLOOKUP($BS13,'État & Plan d''action'!$B$4:$AA$1111,20,FALSE))/(VLOOKUP($BS13,'Audit de l''eau'!$B$3:$I$1111,8,FALSE)),"") ->  | DB13: =IFERROR(SUM(VLOOKUP($BS13,'État & Plan d''action'!$B$4:$AA$1111,19,FALSE),VLOOKUP($BS13,'État & Plan d''action'!$B$4:$AA$1111,21,FALSE))/(VLOOKUP($BS13,'Audit de l''eau'!$B$3:$I$1111,8,FALSE)),"") ->  | DC13: ND | DD13: 1 | DE13: 1 | DF13: 4 | DG13: 3 | DJ13: =IF(VLOOKUP($BS13,'État & Plan d''action'!$B$4:$AR$1111,36,FALSE)="","",VLOOKUP($BS13,'État & Plan d''action'!$B$4:$AR$1111,36,FALSE)) ->  | DK13: =IF(VLOOKUP($BS13,'État & Plan d''action'!$B$4:$AR$1111,38,FALSE)="","",VLOOKUP($BS13,'État & Plan d''action'!$B$4:$AR$1111,38,FALSE)) ->  | DL13: =IF(VLOOKUP($BS13,'État & Plan d''action'!$B$4:$AR$1111,37,FALSE)="","",VLOOKUP($BS13,'État & Plan d''action'!$B$4:$AR$1111,37,FALSE)) -> 
BS14: 84050 | BT14: ALLEYN-ET-CAWOOD | BU14: 7 | BV14: oui | BW14: oui | BX14: oui | BY14: oui | BZ14: oui | CA14: oui | CB14: oui | CC14: oui | CD14: oui | CE14: oui | CF14: non | CG14: oui | CH14: oui | CI14: non | CJ14: non | CK14: non | CL14: 719.2898177 | CM14: 719.2898177 | CO14: 553.1288247 | CP14: 500.8312719 | CS14: =IF(VLOOKUP(BS14,Indicateurs!$B$4:$E$1111,4,FALSE)="","",VLOOKUP(BS14,Indicateurs!$B$4:$E$1111,4,FALSE)) ->  | CT14: ND | DA14: =IFERROR(SUM(VLOOKUP($BS14,'État & Plan d''action'!$B$4:$AA$1111,18,FALSE),VLOOKUP($BS14,'État & Plan d''action'!$B$4:$AA$1111,20,FALSE))/(VLOOKUP($BS14,'Audit de l''eau'!$B$3:$I$1111,8,FALSE)),"") ->  | DB14: =IFERROR(SUM(VLOOKUP($BS14,'État & Plan d''action'!$B$4:$AA$1111,19,FALSE),VLOOKUP($BS14,'État & Plan d''action'!$B$4:$AA$1111,21,FALSE))/(VLOOKUP($BS14,'Audit de l''eau'!$B$3:$I$1111,8,FALSE)),"") ->  | DC14: ND | DF14: 0 | DG14: 0 | DJ14: =IF(VLOOKUP($BS14,'État & Plan d''action'!$B$4:$AR$1111,36,FALSE)="","",VLOOKUP($BS14,'État & Plan d''action'!$B$4:$AR$1111,36,FALSE)) ->  | DK14: =IF(VLOOKUP($BS14,'État & Plan d''action'!$B$4:$AR$1111,38,FALSE)="","",VLOOKUP($BS14,'État & Plan d''action'!$B$4:$AR$1111,38,FALSE)) ->  | DL14: =IF(VLOOKUP($BS14,'État & Plan d''action'!$B$4:$AR$1111,37,FALSE)="","",VLOOKUP($BS14,'État & Plan d''action'!$B$4:$AR$1111,37,FALSE)) -> 
BS15: 93042 | BT15: ALMA | BU15: 2 | BV15: non | BW15: non | BX15: non | BY15: non | BZ15: non | CA15: non | CB15: non | CC15: non | CD15: oui | CE15: oui | CF15: oui | CG15: oui | CH15: oui | CI15: oui | CJ15: oui | CK15: oui | CL15: 477.2860499 | CM15: 498.0146779 | CN15: 492.1423262 | CO15: 451.5197374 | CP15: 441.8145897 | CQ15: 397.905454 | CR15: 392.8088706 | CS15: =IF(VLOOKUP(BS15,Indicateurs!$B$4:$E$1111,4,FALSE)="","",VLOOKUP(BS15,Indicateurs!$B$4:$E$1111,4,FALSE)) -> 399 | CT15: ND | CY15: 0.5 | CZ15: 0.5 | DA15: =IFERROR(SUM(VLOOKUP($BS15,'État & Plan d''action'!$B$4:$AA$1111,18,FALSE),VLOOKUP($BS15,'État & Plan d''action'!$B$4:$AA$1111,20,FALSE))/(VLOOKUP($BS15,'Audit de l''eau'!$B$3:$I$1111,8,FALSE)),"") -> 1 | DB15: =IFERROR(SUM(VLOOKUP($BS15,'État & Plan d''action'!$B$4:$AA$1111,19,FALSE),VLOOKUP($BS15,'État & Plan d''action'!$B$4:$AA$1111,21,FALSE))/(VLOOKUP($BS15,'Audit de l''eau'!$B$3:$I$1111,8,FALSE)),"") -> 1 | DC15: ND | DF15: 0 | DG15: 0 | DH15: 39 | DI15: 69 | DJ15: =IF(VLOOKUP($BS15,'État & Plan d''action'!$B$4:$AR$1111,36,FALSE)="","",VLOOKUP($BS15,'État & Plan d''action'!$B$4:$AR$1111,36,FALSE)) -> 34 | DK15: =IF(VLOOKUP($BS15,'État & Plan d''action'!$B$4:$AR$1111,38,FALSE)="","",VLOOKUP($BS15,'État & Plan d''action'!$B$4:$AR$1111,38,FALSE)) -> 0 | DL15: =IF(VLOOKUP($BS15,'État & Plan d''action'!$B$4:$AR$1111,37,FALSE)="","",VLOOKUP($BS15,'État & Plan d''action'!$B$4:$AR$1111,37,FALSE)) -> 2
BS16: 78070 | BT16: AMHERST | BU16: 15 | BV16: non | BW16: non | BX16: non | BY16: non | BZ16: non | CA16: non | CB16: non | CC16: non | CD16: oui | CE16: oui | CF16: oui | CG16: oui | CH16: oui | CI16: oui | CJ16: oui | CK16: oui | CL16: 513.8034961 | CM16: 452.2809206 | CN16: 488.7784914 | CO16: 388.621723 | CP16: 337.5527698 | CQ16: 208.044993 | CR16: 198.8250239 | CS16: =IF(VLOOKUP(BS16,Indicateurs!$B$4:$E$1111,4,FALSE)="","",VLOOKUP(BS16,Indicateurs!$B$4:$E$1111,4,FALSE)) -> 244 | CT16: ND | CU16: 0.5 | CV16: 0 | CW16: 0 | CX16: 0 | CY16: 0 | CZ16: 0 | DA16: =IFERROR(SUM(VLOOKUP($BS16,'État & Plan d''action'!$B$4:$AA$1111,18,FALSE),VLOOKUP($BS16,'État & Plan d''action'!$B$4:$AA$1111,20,FALSE))/(VLOOKUP($BS16,'Audit de l''eau'!$B$3:$I$1111,8,FALSE)),"") -> 0 | DB16: =IFERROR(SUM(VLOOKUP($BS16,'État & Plan d''action'!$B$4:$AA$1111,19,FALSE),VLOOKUP($BS16,'État & Plan d''action'!$B$4:$AA$1111,21,FALSE))/(VLOOKUP($BS16,'Audit de l''eau'!$B$3:$I$1111,8,FALSE)),"") -> 0 | DC16: ND | DD16: 0 | DE16: 0 | DF16: 1 | DG16: 2 | DH16: 2 | DI16: 0 | DJ16: =IF(VLOOKUP($BS16,'État & Plan d''action'!$B$4:$AR$1111,36,FALSE)="","",VLOOKUP($BS16,'État & Plan d''action'!$B$4:$AR$1111,36,FALSE)) -> 0 | DK16: =IF(VLOOKUP($BS16,'État & Plan d''action'!$B$4:$AR$1111,38,FALSE)="","",VLOOKUP($BS16,'État & Plan d''action'!$B$4:$AR$1111,38,FALSE)) -> 1 | DL16: =IF(VLOOKUP($BS16,'État & Plan d''action'!$B$4:$AR$1111,37,FALSE)="","",VLOOKUP($BS16,'État & Plan d''action'!$B$4:$AR$1111,37,FALSE)) -> 1
BS17: 88055 | BT17: AMOS | BU17: 8 | BV17: non | BW17: non | BX17: non | BY17: non | BZ17: non | CA17: non | CB17: non | CC17: non | CD17: oui | CE17: oui | CF17: oui | CG17: oui | CH17: oui | CI17: oui | CJ17: oui | CK17: oui | CL17: 603.8033952 | CM17: 466.0457248 | CN17: 424.0781628 | CO17: 404.890079 | CP17: 444.8717339 | CQ17: 387.976034 | CR17: 367.1509458 | CS17: =IF(VLOOKUP(BS17,Indicateurs!$B$4:$E$1111,4,FALSE)="","",VLOOKUP(BS17,Indicateurs!$B$4:$E$1111,4,FALSE)) -> 429 | CT17: ND | CY17: 0 | CZ17: 0 | DA17: =IFERROR(SUM(VLOOKUP($BS17,'État & Plan d''action'!$B$4:$AA$1111,18,FALSE),VLOOKUP($BS17,'État & Plan d''action'!$B$4:$AA$1111,20,FALSE))/(VLOOKUP($BS17,'Audit de l''eau'!$B$3:$I$1111,8,FALSE)),"") -> 0 | DB17: =IFERROR(SUM(VLOOKUP($BS17,'État & Plan d''action'!$B$4:$AA$1111,19,FALSE),VLOOKUP($BS17,'État & Plan d''action'!$B$4:$AA$1111,21,FALSE))/(VLOOKUP($BS17,'Audit de l''eau'!$B$3:$I$1111,8,FALSE)),"") -> 0 | DC17: ND | DF17: 0 | DG17: 0 | DH17: 8 | DI17: 11 | DJ17: =IF(VLOOKUP($BS17,'État & Plan d''action'!$B$4:$AR$1111,36,FALSE)="","",VLOOKUP($BS17,'État & Plan d''action'!$B$4:$AR$1111,36,FALSE)) -> 9 | DK17: =IF(VLOOKUP($BS17,'État & Plan d''action'!$B$4:$AR$1111,38,FALSE)="","",VLOOKUP($BS17,'État & Plan d''action'!$B$4:$AR$1111,38,FALSE)) -> 2 | DL17: =IF(VLOOKUP($BS17,'État & Plan d''action'!$B$4:$AR$1111,37,FALSE)="","",VLOOKUP($BS17,'État & Plan d''action'!$B$4:$AR$1111,37,FALSE)) -> 3
BS18: 07047 | BT18: AMQUI | BU18: 1 | BV18: non | BW18: non | BX18: non | BY18: non | BZ18: non | CA18: non | CB18: non | CC18: non | CD18: oui | CE18: non | CF18: non | CG18: non | CH18: non | CI18: oui | CJ18: oui | CK18: non | CL18: 199.2656648 | CQ18: 508.6403646 | CR18: 523.4754104 | CS18: =IF(VLOOKUP(BS18,Indicateurs!$B$4:$E$1111,4,FALSE)="","",VLOOKUP(BS18,Indicateurs!$B$4:$E$1111,4,FALSE)) ->  | CT18: ND | CY18: 0 | CZ18: 0 | DA18: =IFERROR(SUM(VLOOKUP($BS18,'État & Plan d''action'!$B$4:$AA$1111,18,FALSE),VLOOKUP($BS18,'État & Plan d''action'!$B$4:$AA$1111,20,FALSE))/(VLOOKUP($BS18,'Audit de l''eau'!$B$3:$I$1111,8,FALSE)),"") ->  | DB18: =IFERROR(SUM(VLOOKUP($BS18,'État & Plan d''action'!$B$4:$AA$1111,19,FALSE),VLOOKUP($BS18,'État & Plan d''action'!$B$4:$AA$1111,21,FALSE))/(VLOOKUP($BS18,'Audit de l''eau'!$B$3:$I$1111,8,FALSE)),"") ->  | DC18: ND | DF18: 0 | DG18: 0 | DH18: 1 | DI18: 1 | DJ18: =IF(VLOOKUP($BS18,'État & Plan d''action'!$B$4:$AR$1111,36,FALSE)="","",VLOOKUP($BS18,'État & Plan d''action'!$B$4:$AR$1111,36,FALSE)) ->  | DK18: =IF(VLOOKUP($BS18,'État & Plan d''action'!$B$4:$AR$1111,38,FALSE)="","",VLOOKUP($BS18,'État & Plan d''action'!$B$4:$AR$1111,38,FALSE)) ->  | DL18: =IF(VLOOKUP($BS18,'État & Plan d''action'!$B$4:$AR$1111,37,FALSE)="","",VLOOKUP($BS18,'État & Plan d''action'!$B$4:$AR$1111,37,FALSE)) -> 
W19: Évolution 2011 à 2018 | BS19: 55008 | BT19: ANGE-GARDIEN | BU19: 16 | BV19: non | BW19: non | BX19: non | BY19: non | BZ19: non | CA19: non | CB19: non | CC19: non | CD19: oui | CE19: oui | CF19: non | CG19: oui | CH19: oui | CI19: oui | CJ19: oui | CK19: oui | CL19: 1137.74979 | CM19: 1119.014689 | CO19: 1089.114684 | CP19: 1111.09821 | CQ19: 1094.921913 | CR19: 1050.443598 | CS19: =IF(VLOOKUP(BS19,Indicateurs!$B$4:$E$1111,4,FALSE)="","",VLOOKUP(BS19,Indicateurs!$B$4:$E$1111,4,FALSE)) -> 1012 | CT19: ND | CU19: 0 | CW19: 0 | CX19: 0 | CY19: 0 | CZ19: 0 | DA19: =IFERROR(SUM(VLOOKUP($BS19,'État & Plan d''action'!$B$4:$AA$1111,18,FALSE),VLOOKUP($BS19,'État & Plan d''action'!$B$4:$AA$1111,20,FALSE))/(VLOOKUP($BS19,'Audit de l''eau'!$B$3:$I$1111,8,FALSE)),"") -> 0 | DB19: =IFERROR(SUM(VLOOKUP($BS19,'État & Plan d''action'!$B$4:$AA$1111,19,FALSE),VLOOKUP($BS19,'État & Plan d''action'!$B$4:$AA$1111,21,FALSE))/(VLOOKUP($BS19,'Audit de l''eau'!$B$3:$I$1111,8,FALSE)),"") -> 0 | DC19: ND | DD19: 1 | DF19: 4 | DG19: 3 | DH19: 2 | DI19: 3 | DJ19: =IF(VLOOKUP($BS19,'État & Plan d''action'!$B$4:$AR$1111,36,FALSE)="","",VLOOKUP($BS19,'État & Plan d''action'!$B$4:$AR$1111,36,FALSE)) -> 1 | DK19: =IF(VLOOKUP($BS19,'État & Plan d''action'!$B$4:$AR$1111,38,FALSE)="","",VLOOKUP($BS19,'État & Plan d''action'!$B$4:$AR$1111,38,FALSE)) -> 1 | DL19: =IF(VLOOKUP($BS19,'État & Plan d''action'!$B$4:$AR$1111,37,FALSE)="","",VLOOKUP($BS19,'État & Plan d''action'!$B$4:$AR$1111,37,FALSE)) -> 0
W20: =NM -> TOUT LE QUÉBEC | X20: Année | BS20: 19037 | BT20: ARMAGH | BU20: 12 | BV20: non | BW20: non | BX20: non | BY20: non | BZ20: non | CA20: non | CB20: non | CC20: non | CD20: oui | CE20: oui | CF20: oui | CG20: oui | CH20: oui | CI20: oui | CJ20: oui | CK20: oui | CL20: 330.8893256 | CM20: 345.0339 | CN20: 354.1952055 | CO20: 340.1820078 | CP20: 352.1497042 | CQ20: 360.5236351 | CR20: 336.1624897 | CS20: =IF(VLOOKUP(BS20,Indicateurs!$B$4:$E$1111,4,FALSE)="","",VLOOKUP(BS20,Indicateurs!$B$4:$E$1111,4,FALSE)) -> 290 | CT20: ND | CU20: 0 | CV20: 1 | CW20: 1 | CX20: 0 | CY20: 0 | CZ20: 0 | DA20: =IFERROR(SUM(VLOOKUP($BS20,'État & Plan d''action'!$B$4:$AA$1111,18,FALSE),VLOOKUP($BS20,'État & Plan d''action'!$B$4:$AA$1111,20,FALSE))/(VLOOKUP($BS20,'Audit de l''eau'!$B$3:$I$1111,8,FALSE)),"") -> 0 | DB20: =IFERROR(SUM(VLOOKUP($BS20,'État & Plan d''action'!$B$4:$AA$1111,19,FALSE),VLOOKUP($BS20,'État & Plan d''action'!$B$4:$AA$1111,21,FALSE))/(VLOOKUP($BS20,'Audit de l''eau'!$B$3:$I$1111,8,FALSE)),"") -> 0 | DC20: ND | DD20: 0 | DE20: 0 | DF20: 2 | DG20: 3 | DH20: 2 | DI20: 0 | DJ20: =IF(VLOOKUP($BS20,'État & Plan d''action'!$B$4:$AR$1111,36,FALSE)="","",VLOOKUP($BS20,'État & Plan d''action'!$B$4:$AR$1111,36,FALSE)) -> 0 | DK20: =IF(VLOOKUP($BS20,'État & Plan d''action'!$B$4:$AR$1111,38,FALSE)="","",VLOOKUP($BS20,'État & Plan d''action'!$B$4:$AR$1111,38,FALSE)) -> 0 | DL20: =IF(VLOOKUP($BS20,'État & Plan d''action'!$B$4:$AR$1111,37,FALSE)="","",VLOOKUP($BS20,'État & Plan d''action'!$B$4:$AR$1111,37,FALSE)) -> 0
W21: =IF(W20="TOUT LE QUÉBEC","",INDEX(Indicateurs!$B$4:$C$1111,MATCH(W20,Indicateurs!$C$4:$C$1111,0),1)) ->  | X21: 2011 | Y21: 2012 | Z21: 2013 | AA21: 2014 | AB21: 2015 | AC21: 2016 | AD21: 2017 | AE21: 2018 | AF21: Objectifs 2025 | BS21: 78060 | BT21: ARUNDEL | BU21: 15 | BV21: oui | BW21: oui | BX21: oui | BY21: oui | BZ21: oui | CA21: oui | CB21: oui | CC21: oui | CD21: oui | CE21: oui | CF21: oui | CG21: oui | CH21: oui | CI21: non | CJ21: non | CK21: non | CL21: 293.3242764 | CM21: 312.5293295 | CN21: 304.3610528 | CO21: 307.5832697 | CP21: 495.8325761 | CS21: =IF(VLOOKUP(BS21,Indicateurs!$B$4:$E$1111,4,FALSE)="","",VLOOKUP(BS21,Indicateurs!$B$4:$E$1111,4,FALSE)) ->  | CT21: ND | DA21: =IFERROR(SUM(VLOOKUP($BS21,'État & Plan d''action'!$B$4:$AA$1111,18,FALSE),VLOOKUP($BS21,'État & Plan d''action'!$B$4:$AA$1111,20,FALSE))/(VLOOKUP($BS21,'Audit de l''eau'!$B$3:$I$1111,8,FALSE)),"") ->  | DB21: =IFERROR(SUM(VLOOKUP($BS21,'État & Plan d''action'!$B$4:$AA$1111,19,FALSE),VLOOKUP($BS21,'État & Plan d''action'!$B$4:$AA$1111,21,FALSE))/(VLOOKUP($BS21,'Audit de l''eau'!$B$3:$I$1111,8,FALSE)),"") ->  | DC21: ND | DF21: 0 | DG21: 0 | DJ21: =IF(VLOOKUP($BS21,'État & Plan d''action'!$B$4:$AR$1111,36,FALSE)="","",VLOOKUP($BS21,'État & Plan d''action'!$B$4:$AR$1111,36,FALSE)) ->  | DK21: =IF(VLOOKUP($BS21,'État & Plan d''action'!$B$4:$AR$1111,38,FALSE)="","",VLOOKUP($BS21,'État & Plan d''action'!$B$4:$AR$1111,38,FALSE)) ->  | DL21: =IF(VLOOKUP($BS21,'État & Plan d''action'!$B$4:$AR$1111,37,FALSE)="","",VLOOKUP($BS21,'État & Plan d''action'!$B$4:$AR$1111,37,FALSE)) -> 
W22: Quantité d'eau distribuée par personne (l/pers/d) | X22: =IF($W$21="",CL7,IF(X$25="non","ND",IF(VLOOKUP($W$21,$BS$8:$CS$1115,20,FALSE)=0,"ND",VLOOKUP($W$21,$BS$8:$CS$1115,20,FALSE)))) -> 620.2056373 | Y22: =IF($W$21="",CM7,IF(Y$25="non","ND",IF(VLOOKUP($W$21,$BS$8:$CS$1115,21,FALSE)=0,"ND",VLOOKUP($W$21,$BS$8:$CS$1115,21,FALSE)))) -> 612.340892 | Z22: =IF($W$21="",CN7,IF(Z$25="non","ND",IF(VLOOKUP($W$21,$BS$8:$CS$1115,22,FALSE)=0,"ND",VLOOKUP($W$21,$BS$8:$CS$1115,22,FALSE)))) -> 596.0865808 | AA22: =IF($W$21="",CO7,IF(AA$25="non","ND",IF(VLOOKUP($W$21,$BS$8:$CS$1115,23,FALSE)=0,"ND",VLOOKUP($W$21,$BS$8:$CS$1115,23,FALSE)))) -> 589.1008665 | AB22: =IF($W$21="",CP7,IF(AB$25="non","ND",IF(VLOOKUP($W$21,$BS$8:$CS$1115,24,FALSE)=0,"ND",VLOOKUP($W$21,$BS$8:$CS$1115,24,FALSE)))) -> 573.3776759 | AC22: =IF($W$21="",CQ7,IF(AC$25="non","ND",IF(VLOOKUP($W$21,$BS$8:$CS$1115,25,FALSE)=0,"ND",VLOOKUP($W$21,$BS$8:$CS$1115,25,FALSE)))) -> 550.8217594 | AD22: =IF($W$21="",CR7,IF(AD$25="non","ND",IF(VLOOKUP($W$21,$BS$8:$CS$1115,26,FALSE)=0,"ND",VLOOKUP($W$21,$BS$8:$CS$1115,26,FALSE)))) -> 529.5924 | AE22: =IF($W$21="",CS7,IF(AE$25="non","ND",IF(VLOOKUP($W$21,$BS$8:$CS$1115,27,FALSE)=0,"ND",VLOOKUP($W$21,$BS$8:$CS$1115,27,FALSE)))) -> 536.3201867 | AF22: =IF(NM="Choisir une municipalité","",458) -> 458 | BS22: 40043 | BT22: ASBESTOS | BU22: 5 | BV22: non | BW22: non | BX22: non | BY22: non | BZ22: non | CA22: non | CB22: non | CC22: non | CD22: oui | CE22: oui | CF22: oui | CG22: oui | CH22: oui | CI22: oui | CJ22: oui | CK22: oui | CL22: 583.2514758 | CM22: 721.6998821 | CN22: 617.0447524 | CO22: 545.5950553 | CP22: 544.4265566 | CQ22: 496.3607436 | CR22: 529.8294331 | CS22: =IF(VLOOKUP(BS22,Indicateurs!$B$4:$E$1111,4,FALSE)="","",VLOOKUP(BS22,Indicateurs!$B$4:$E$1111,4,FALSE)) -> 540 | CT22: ND | CU22: 0.5 | CV22: 0.5 | CW22: 0.5 | CX22: 0.5 | CY22: 1 | CZ22: 1 | DA22: =IFERROR(SUM(VLOOKUP($BS22,'État & Plan d''action'!$B$4:$AA$1111,18,FALSE),VLOOKUP($BS22,'État & Plan d''action'!$B$4:$AA$1111,20,FALSE))/(VLOOKUP($BS22,'Audit de l''eau'!$B$3:$I$1111,8,FALSE)),"") -> 1 | DB22: =IFERROR(SUM(VLOOKUP($BS22,'État & Plan d''action'!$B$4:$AA$1111,19,FALSE),VLOOKUP($BS22,'État & Plan d''action'!$B$4:$AA$1111,21,FALSE))/(VLOOKUP($BS22,'Audit de l''eau'!$B$3:$I$1111,8,FALSE)),"") -> 1.50000765 | DC22: ND | DD22: 3 | DE22: 11 | DF22: 5 | DG22: 3 | DH22: 5 | DI22: 7 | DJ22: =IF(VLOOKUP($BS22,'État & Plan d''action'!$B$4:$AR$1111,36,FALSE)="","",VLOOKUP($BS22,'État & Plan d''action'!$B$4:$AR$1111,36,FALSE)) -> 6 | DK22: =IF(VLOOKUP($BS22,'État & Plan d''action'!$B$4:$AR$1111,38,FALSE)="","",VLOOKUP($BS22,'État & Plan d''action'!$B$4:$AR$1111,38,FALSE)) -> 10 | DL22: =IF(VLOOKUP($BS22,'État & Plan d''action'!$B$4:$AR$1111,37,FALSE)="","",VLOOKUP($BS22,'État & Plan d''action'!$B$4:$AR$1111,37,FALSE)) -> 2
W23: =IF(NM="Tout le Québec","Objectif 2025 pour l'ensemble du Québec : 458","") -> Objectif 2025 pour l'ensemble du Québec : 458 | X23: =IF(NM="Tout le Québec",458,"") -> 458 | Y23: 458 | Z23: 458 | AA23: 458 | AB23: 458 | AC23: 458 | AD23: 458 | AE23: 458 | AF23: 458 | BS23: 41055 | BT23: ASCOT CORNER | BU23: 5 | BV23: non | BW23: non | BX23: non | BY23: non | BZ23: non | CA23: non | CB23: non | CC23: non | CD23: oui | CE23: oui | CF23: oui | CG23: oui | CH23: oui | CI23: oui | CJ23: oui | CK23: oui | CL23: 350.7481085 | CM23: 277.3905347 | CN23: 302.3028761 | CO23: 388.5714838 | CP23: 380.0087906 | CQ23: 369.9651361 | CR23: 326.0781516 | CS23: =IF(VLOOKUP(BS23,Indicateurs!$B$4:$E$1111,4,FALSE)="","",VLOOKUP(BS23,Indicateurs!$B$4:$E$1111,4,FALSE)) -> 367 | CT23: ND | CU23: 0 | CV23: 0 | CW23: 0 | CX23: 0 | CY23: 1 | CZ23: 1 | DA23: =IFERROR(SUM(VLOOKUP($BS23,'État & Plan d''action'!$B$4:$AA$1111,18,FALSE),VLOOKUP($BS23,'État & Plan d''action'!$B$4:$AA$1111,20,FALSE))/(VLOOKUP($BS23,'Audit de l''eau'!$B$3:$I$1111,8,FALSE)),"") -> 0.3596691044 | DB23: =IFERROR(SUM(VLOOKUP($BS23,'État & Plan d''action'!$B$4:$AA$1111,19,FALSE),VLOOKUP($BS23,'État & Plan d''action'!$B$4:$AA$1111,21,FALSE))/(VLOOKUP($BS23,'Audit de l''eau'!$B$3:$I$1111,8,FALSE)),"") -> 0 | DC23: ND | DD23: 0 | DE23: 1 | DF23: 1 | DG23: 0 | DH23: 0 | DI23: 0 | DJ23: =IF(VLOOKUP($BS23,'État & Plan d''action'!$B$4:$AR$1111,36,FALSE)="","",VLOOKUP($BS23,'État & Plan d''action'!$B$4:$AR$1111,36,FALSE)) -> 0 | DK23: =IF(VLOOKUP($BS23,'État & Plan d''action'!$B$4:$AR$1111,38,FALSE)="","",VLOOKUP($BS23,'État & Plan d''action'!$B$4:$AR$1111,38,FALSE)) -> 3 | DL23: =IF(VLOOKUP($BS23,'État & Plan d''action'!$B$4:$AR$1111,37,FALSE)="","",VLOOKUP($BS23,'État & Plan d''action'!$B$4:$AR$1111,37,FALSE)) -> 0
W24: Municipalité exemptée ? | X24: =IF($W$21="","non",VLOOKUP($W$21,$BS$8:$CC$1115,4,FALSE)) -> non | Y24: =IF($W$21="","non",VLOOKUP($W$21,$BS$8:$CC$1115,5,FALSE)) -> non | Z24: =IF($W$21="","non",VLOOKUP($W$21,$BS$8:$CC$1115,6,FALSE)) -> non | AA24: =IF($W$21="","non",VLOOKUP($W$21,$BS$8:$CC$1115,7,FALSE)) -> non | AB24: =IF($W$21="","non",VLOOKUP($W$21,$BS$8:$CC$1115,8,FALSE)) -> non | AC24: =IF($W$21="","non",VLOOKUP($W$21,$BS$8:$CC$1115,9,FALSE)) -> non | AD24: =IF($W$21="","non",VLOOKUP($W$21,$BS$8:$CC$1115,10,FALSE)) -> non | AE24: =IF($W$21="","non",VLOOKUP($W$21,$BS$8:$CC$1115,11,FALSE)) -> non | BS24: 50013 | BT24: ASTON-JONCTION | BU24: 17 | BV24: oui | BW24: oui | BX24: oui | BY24: oui | BZ24: oui | CA24: oui | CB24: oui | CC24: oui | CD24: non | CE24: non | CF24: non | CG24: non | CH24: non | CI24: non | CJ24: non | CK24: non | CS24: =IF(VLOOKUP(BS24,Indicateurs!$B$4:$E$1111,4,FALSE)="","",VLOOKUP(BS24,Indicateurs!$B$4:$E$1111,4,FALSE)) ->  | CT24: ND | DA24: =IFERROR(SUM(VLOOKUP($BS24,'État & Plan d''action'!$B$4:$AA$1111,18,FALSE),VLOOKUP($BS24,'État & Plan d''action'!$B$4:$AA$1111,20,FALSE))/(VLOOKUP($BS24,'Audit de l''eau'!$B$3:$I$1111,8,FALSE)),"") ->  | DB24: =IFERROR(SUM(VLOOKUP($BS24,'État & Plan d''action'!$B$4:$AA$1111,19,FALSE),VLOOKUP($BS24,'État & Plan d''action'!$B$4:$AA$1111,21,FALSE))/(VLOOKUP($BS24,'Audit de l''eau'!$B$3:$I$1111,8,FALSE)),"") ->  | DC24: ND | DF24: 0 | DG24: 0 | DJ24: =IF(VLOOKUP($BS24,'État & Plan d''action'!$B$4:$AR$1111,36,FALSE)="","",VLOOKUP($BS24,'État & Plan d''action'!$B$4:$AR$1111,36,FALSE)) ->  | DK24: =IF(VLOOKUP($BS24,'État & Plan d''action'!$B$4:$AR$1111,38,FALSE)="","",VLOOKUP($BS24,'État & Plan d''action'!$B$4:$AR$1111,38,FALSE)) ->  | DL24: =IF(VLOOKUP($BS24,'État & Plan d''action'!$B$4:$AR$1111,37,FALSE)="","",VLOOKUP($BS24,'État & Plan d''action'!$B$4:$AR$1111,37,FALSE)) -> 
W25: FM approuvé ? | X25: =VLOOKUP($W$21,$BS$8:$CK$1115,12,FALSE) ->  | Y25: =VLOOKUP($W$21,$BS$8:$CK$1115,13,FALSE) ->  | Z25: =VLOOKUP($W$21,$BS$8:$CK$1115,14,FALSE) ->  | AA25: =VLOOKUP($W$21,$BS$8:$CK$1115,15,FALSE) ->  | AB25: =VLOOKUP($W$21,$BS$8:$CK$1115,16,FALSE) ->  | AC25: =VLOOKUP($W$21,$BS$8:$CK$1115,17,FALSE) ->  | AD25: =VLOOKUP($W$21,$BS$8:$CK$1115,18,FALSE) ->  | AE25: =VLOOKUP($W$21,$BS$8:$CK$1115,19,FALSE) ->  | BS25: 13045 | BT25: AUCLAIR | BU25: 1 | BV25: non | BW25: non | BX25: non | BY25: non | BZ25: non | CA25: non | CB25: non | CC25: non | CD25: oui | CE25: oui | CF25: oui | CG25: oui | CH25: oui | CI25: oui | CJ25: non | CK25: oui | CL25: 334.7280335 | CM25: 333.2705631 | CN25: 462.7621587 | CO25: 452.2461213 | CP25: 437.2282417 | CQ25: 416.3413999 | CS25: =IF(VLOOKUP(BS25,Indicateurs!$B$4:$E$1111,4,FALSE)="","",VLOOKUP(BS25,Indicateurs!$B$4:$E$1111,4,FALSE)) -> 296 | CT25: ND | CU25: 0.1 | CV25: 0.1 | CW25: 0.1 | CX25: 0.1 | DA25: =IFERROR(SUM(VLOOKUP($BS25,'État & Plan d''action'!$B$4:$AA$1111,18,FALSE),VLOOKUP($BS25,'État & Plan d''action'!$B$4:$AA$1111,20,FALSE))/(VLOOKUP($BS25,'Audit de l''eau'!$B$3:$I$1111,8,FALSE)),"") -> 0 | DB25: =IFERROR(SUM(VLOOKUP($BS25,'État & Plan d''action'!$B$4:$AA$1111,19,FALSE),VLOOKUP($BS25,'État & Plan d''action'!$B$4:$AA$1111,21,FALSE))/(VLOOKUP($BS25,'Audit de l''eau'!$B$3:$I$1111,8,FALSE)),"") -> 1 | DC25: ND | DD25: 1 | DE25: 0 | DF25: 2 | DG25: 2 | DH25: 0 | DJ25: =IF(VLOOKUP($BS25,'État & Plan d''action'!$B$4:$AR$1111,36,FALSE)="","",VLOOKUP($BS25,'État & Plan d''action'!$B$4:$AR$1111,36,FALSE)) -> 11 | DK25: =IF(VLOOKUP($BS25,'État & Plan d''action'!$B$4:$AR$1111,38,FALSE)="","",VLOOKUP($BS25,'État & Plan d''action'!$B$4:$AR$1111,38,FALSE)) -> 0 | DL25: =IF(VLOOKUP($BS25,'État & Plan d''action'!$B$4:$AR$1111,37,FALSE)="","",VLOOKUP($BS25,'État & Plan d''action'!$B$4:$AR$1111,37,FALSE)) -> 0
BS26: 30055 | BT26: AUDET | BU26: 5 | BV26: non | BW26: non | BX26: non | BY26: non | BZ26: non | CA26: non | CB26: non | CC26: non | CD26: oui | CE26: oui | CF26: non | CG26: oui | CH26: oui | CI26: oui | CJ26: oui | CK26: oui | CL26: 399.8785861 | CM26: 349.2192263 | CO26: 333.5423315 | CP26: 250.866376 | CQ26: 212.6355245 | CR26: 169.9217069 | CS26: =IF(VLOOKUP(BS26,Indicateurs!$B$4:$E$1111,4,FALSE)="","",VLOOKUP(BS26,Indicateurs!$B$4:$E$1111,4,FALSE)) -> 191 | CT26: ND | CU26: 1 | CW26: 0 | CX26: 1 | CY26: 1 | CZ26: 1 | DA26: =IFERROR(SUM(VLOOKUP($BS26,'État & Plan d''action'!$B$4:$AA$1111,18,FALSE),VLOOKUP($BS26,'État & Plan d''action'!$B$4:$AA$1111,20,FALSE))/(VLOOKUP($BS26,'Audit de l''eau'!$B$3:$I$1111,8,FALSE)),"") -> 2.80469738 | DB26: =IFERROR(SUM(VLOOKUP($BS26,'État & Plan d''action'!$B$4:$AA$1111,19,FALSE),VLOOKUP($BS26,'État & Plan d''action'!$B$4:$AA$1111,21,FALSE))/(VLOOKUP($BS26,'Audit de l''eau'!$B$3:$I$1111,8,FALSE)),"") -> 2.80469738 | DC26: ND | DD26: 0 | DF26: 3 | DG26: 8 | DH26: 2 | DI26: 2 | DJ26: =IF(VLOOKUP($BS26,'État & Plan d''action'!$B$4:$AR$1111,36,FALSE)="","",VLOOKUP($BS26,'État & Plan d''action'!$B$4:$AR$1111,36,FALSE)) -> 0 | DK26: =IF(VLOOKUP($BS26,'État & Plan d''action'!$B$4:$AR$1111,38,FALSE)="","",VLOOKUP($BS26,'État & Plan d''action'!$B$4:$AR$1111,38,FALSE)) -> 0 | DL26: =IF(VLOOKUP($BS26,'État & Plan d''action'!$B$4:$AR$1111,37,FALSE)="","",VLOOKUP($BS26,'État & Plan d''action'!$B$4:$AR$1111,37,FALSE)) -> 0
BS27: 83090 | BT27: AUMOND | BU27: 7 | BV27: oui | BW27: oui | BX27: oui | BY27: oui | BZ27: oui | CA27: oui | CB27: oui | CC27: oui | CD27: non | CE27: non | CF27: non | CG27: non | CH27: non | CI27: non | CJ27: non | CK27: non | CS27: =IF(VLOOKUP(BS27,Indicateurs!$B$4:$E$1111,4,FALSE)="","",VLOOKUP(BS27,Indicateurs!$B$4:$E$1111,4,FALSE)) ->  | CT27: ND | DA27: =IFERROR(SUM(VLOOKUP($BS27,'État & Plan d''action'!$B$4:$AA$1111,18,FALSE),VLOOKUP($BS27,'État & Plan d''action'!$B$4:$AA$1111,20,FALSE))/(VLOOKUP($BS27,'Audit de l''eau'!$B$3:$I$1111,8,FALSE)),"") ->  | DB27: =IFERROR(SUM(VLOOKUP($BS27,'État & Plan d''action'!$B$4:$AA$1111,19,FALSE),VLOOKUP($BS27,'État & Plan d''action'!$B$4:$AA$1111,21,FALSE))/(VLOOKUP($BS27,'Audit de l''eau'!$B$3:$I$1111,8,FALSE)),"") ->  | DC27: ND | DF27: 0 | DG27: 0 | DJ27: =IF(VLOOKUP($BS27,'État & Plan d''action'!$B$4:$AR$1111,36,FALSE)="","",VLOOKUP($BS27,'État & Plan d''action'!$B$4:$AR$1111,36,FALSE)) ->  | DK27: =IF(VLOOKUP($BS27,'État & Plan d''action'!$B$4:$AR$1111,38,FALSE)="","",VLOOKUP($BS27,'État & Plan d''action'!$B$4:$AR$1111,38,FALSE)) ->  | DL27: =IF(VLOOKUP($BS27,'État & Plan d''action'!$B$4:$AR$1111,37,FALSE)="","",VLOOKUP($BS27,'État & Plan d''action'!$B$4:$AR$1111,37,FALSE)) -> 
C28: ↑ Haut de page | W28: Population desservie en 2018 | X28: =IF(W21="","",VLOOKUP($W$21,'Audit de l''eau'!$B$4:$H$1111,7,FALSE)) ->  | BS28: 45085 | BT28: AUSTIN | BU28: 5 | BV28: oui | BW28: oui | BX28: oui | BY28: oui | BZ28: oui | CA28: oui | CB28: oui | CC28: oui | CD28: non | CE28: non | CF28: non | CG28: non | CH28: non | CI28: non | CJ28: non | CK28: non | CS28: =IF(VLOOKUP(BS28,Indicateurs!$B$4:$E$1111,4,FALSE)="","",VLOOKUP(BS28,Indicateurs!$B$4:$E$1111,4,FALSE)) ->  | CT28: ND | DA28: =IFERROR(SUM(VLOOKUP($BS28,'État & Plan d''action'!$B$4:$AA$1111,18,FALSE),VLOOKUP($BS28,'État & Plan d''action'!$B$4:$AA$1111,20,FALSE))/(VLOOKUP($BS28,'Audit de l''eau'!$B$3:$I$1111,8,FALSE)),"") ->  | DB28: =IFERROR(SUM(VLOOKUP($BS28,'État & Plan d''action'!$B$4:$AA$1111,19,FALSE),VLOOKUP($BS28,'État & Plan d''action'!$B$4:$AA$1111,21,FALSE))/(VLOOKUP($BS28,'Audit de l''eau'!$B$3:$I$1111,8,FALSE)),"") ->  | DC28: ND | DF28: 0 | DG28: 0 | DJ28: =IF(VLOOKUP($BS28,'État & Plan d''action'!$B$4:$AR$1111,36,FALSE)="","",VLOOKUP($BS28,'État & Plan d''action'!$B$4:$AR$1111,36,FALSE)) ->  | DK28: =IF(VLOOKUP($BS28,'État & Plan d''action'!$B$4:$AR$1111,38,FALSE)="","",VLOOKUP($BS28,'État & Plan d''action'!$B$4:$AR$1111,38,FALSE)) ->  | DL28: =IF(VLOOKUP($BS28,'État & Plan d''action'!$B$4:$AR$1111,37,FALSE)="","",VLOOKUP($BS28,'État & Plan d''action'!$B$4:$AR$1111,37,FALSE)) -> 
W29: Comparaison 2018 | BS29: 87050 | BT29: AUTHIER | BU29: 8 | BV29: oui | BW29: oui | BX29: oui | BY29: oui | BZ29: oui | CA29: oui | CB29: oui | CC29: oui | CD29: non | CE29: non | CF29: non | CG29: non | CH29: non | CI29: non | CJ29: non | CK29: non | CS29: =IF(VLOOKUP(BS29,Indicateurs!$B$4:$E$1111,4,FALSE)="","",VLOOKUP(BS29,Indicateurs!$B$4:$E$1111,4,FALSE)) ->  | CT29: ND | CU29: 0 | CV29: 0 | CW29: 0 | CX29: 0 | DA29: =IFERROR(SUM(VLOOKUP($BS29,'État & Plan d''action'!$B$4:$AA$1111,18,FALSE),VLOOKUP($BS29,'État & Plan d''action'!$B$4:$AA$1111,20,FALSE))/(VLOOKUP($BS29,'Audit de l''eau'!$B$3:$I$1111,8,FALSE)),"") ->  | DB29: =IFERROR(SUM(VLOOKUP($BS29,'État & Plan d''action'!$B$4:$AA$1111,19,FALSE),VLOOKUP($BS29,'État & Plan d''action'!$B$4:$AA$1111,21,FALSE))/(VLOOKUP($BS29,'Audit de l''eau'!$B$3:$I$1111,8,FALSE)),"") ->  | DC29: ND | DD29: 3 | DE29: 4 | DF29: 4 | DG29: 1 | DJ29: =IF(VLOOKUP($BS29,'État & Plan d''action'!$B$4:$AR$1111,36,FALSE)="","",VLOOKUP($BS29,'État & Plan d''action'!$B$4:$AR$1111,36,FALSE)) ->  | DK29: =IF(VLOOKUP($BS29,'État & Plan d''action'!$B$4:$AR$1111,38,FALSE)="","",VLOOKUP($BS29,'État & Plan d''action'!$B$4:$AR$1111,38,FALSE)) ->  | DL29: =IF(VLOOKUP($BS29,'État & Plan d''action'!$B$4:$AR$1111,37,FALSE)="","",VLOOKUP($BS29,'État & Plan d''action'!$B$4:$AR$1111,37,FALSE)) -> 
W30: =W20 -> TOUT LE QUÉBEC | X30: =IF(W20="tout le québec","ND",PROPER(W20)) -> ND | Y30: ="Région : "&IF(W20="Tout le Québec","ND",VLOOKUP(VLOOKUP($W$20,Indicateurs!$C$4:$D$1111,2,FALSE),$T$171:$V$187,3,FALSE)) -> Région : ND | Z30: ="Classe de pop : "&IF(W20="TOUT LE QUÉBEC","ND",VLOOKUP($W$20,B199:N204,4,FALSE)) -> Classe de pop : ND | AA30: Tout le Québec | AB30: Objectif 2025 pour l'ensemble du Québec | BS30: 87100 | BT30: AUTHIER-NORD | BU30: 8 | BV30: oui | BW30: oui | BX30: oui | BY30: oui | BZ30: oui | CA30: oui | CB30: oui | CC30: oui | CD30: non | CE30: non | CF30: non | CG30: non | CH30: non | CI30: non | CJ30: non | CK30: non | CS30: =IF(VLOOKUP(BS30,Indicateurs!$B$4:$E$1111,4,FALSE)="","",VLOOKUP(BS30,Indicateurs!$B$4:$E$1111,4,FALSE)) ->  | CT30: ND | DA30: =IFERROR(SUM(VLOOKUP($BS30,'État & Plan d''action'!$B$4:$AA$1111,18,FALSE),VLOOKUP($BS30,'État & Plan d''action'!$B$4:$AA$1111,20,FALSE))/(VLOOKUP($BS30,'Audit de l''eau'!$B$3:$I$1111,8,FALSE)),"") ->  | DB30: =IFERROR(SUM(VLOOKUP($BS30,'État & Plan d''action'!$B$4:$AA$1111,19,FALSE),VLOOKUP($BS30,'État & Plan d''action'!$B$4:$AA$1111,21,FALSE))/(VLOOKUP($BS30,'Audit de l''eau'!$B$3:$I$1111,8,FALSE)),"") ->  | DC30: ND | DF30: 0 | DG30: 0 | DJ30: =IF(VLOOKUP($BS30,'État & Plan d''action'!$B$4:$AR$1111,36,FALSE)="","",VLOOKUP($BS30,'État & Plan d''action'!$B$4:$AR$1111,36,FALSE)) ->  | DK30: =IF(VLOOKUP($BS30,'État & Plan d''action'!$B$4:$AR$1111,38,FALSE)="","",VLOOKUP($BS30,'État & Plan d''action'!$B$4:$AR$1111,38,FALSE)) ->  | DL30: =IF(VLOOKUP($BS30,'État & Plan d''action'!$B$4:$AR$1111,37,FALSE)="","",VLOOKUP($BS30,'État & Plan d''action'!$B$4:$AR$1111,37,FALSE)) -> 
W31: Quantité d'eau distribuée par personne (l/pers/d) | X31: =IF($W$21="","ND",IF($AE$25="non","ND",IF(VLOOKUP($W$21,Indicateurs!$B$4:$H$1111,4,FALSE)=0,"ND",VLOOKUP($W$21,Indicateurs!$B$4:$H$1111,4,FALSE)))) -> ND | Y31: =IF($W$21="","ND",VLOOKUP(VLOOKUP($W$21,$BS$8:$BU$1115,3,FALSE),$T$171:$AM$187,20,FALSE)) -> ND | Z31: =IF($W$21="","ND",IF(VLOOKUP($W$21,'Audit de l''eau'!B4:$H$1111,7,FALSE)<1000,K199,IF(AND(VLOOKUP($W$21,'Audit de l''eau'!B4:$H$1111,7,FALSE)<5000,VLOOKUP($W$21,'Audit de l''eau'!B4:$H$1111,7,FALSE)>=1000),K200,IF(AND(VLOOKUP($W$21,'Audit de l''eau'!B4:$H$1111,7,FALSE)<10000,VLOOKUP($W$21,'Audit de l''eau'!B4:$H$1111,7,FALSE)>=5000),K201,IF(AND(VLOOKUP($W$21,'Audit de l''eau'!B4:$H$1111,7,FALSE)<50000,VLOOKUP($W$21,'Audit de l''eau'!B4:$H$1111,7,FALSE)>=10000),K202,IF(AND(VLOOKUP($W$21,'Audit de l''eau'!B4:$H$1111,7,FALSE)<100000,VLOOKUP($W$21,'Audit de l''eau'!B4:$H$1111,7,FALSE)>=50000),K203,IF(VLOOKUP($W$21,'Audit de l''eau'!B4:$H$1111,7,FALSE)>=100000,K204))))))) -> ND | AA31: =CS7 -> 536.3201867 | BS31: 45035 | BT31: AYER'S CLIFF | BU31: 5 | BV31: non | BW31: non | BX31: non | BY31: non | BZ31: non | CA31: non | CB31: non | CC31: non | CD31: oui | CE31: oui | CF31: non | CG31: oui | CH31: non | CI31: oui | CJ31: oui | CK31: non | CL31: 758.431692 | CM31: 606.3585282 | CO31: 392.8628336 | CQ31: 544.8057007 | CR31: 582.0422325 | CS31: =IF(VLOOKUP(BS31,Indicateurs!$B$4:$E$1111,4,FALSE)="","",VLOOKUP(BS31,Indicateurs!$B$4:$E$1111,4,FALSE)) ->  | CT31: ND | CU31: 0 | CW31: 0.3 | CY31: 0.3 | CZ31: 0.3 | DA31: =IFERROR(SUM(VLOOKUP($BS31,'État & Plan d''action'!$B$4:$AA$1111,18,FALSE),VLOOKUP($BS31,'État & Plan d''action'!$B$4:$AA$1111,20,FALSE))/(VLOOKUP($BS31,'Audit de l''eau'!$B$3:$I$1111,8,FALSE)),"") ->  | DB31: =IFERROR(SUM(VLOOKUP($BS31,'État & Plan d''action'!$B$4:$AA$1111,19,FALSE),VLOOKUP($BS31,'État & Plan d''action'!$B$4:$AA$1111,21,FALSE))/(VLOOKUP($BS31,'Audit de l''eau'!$B$3:$I$1111,8,FALSE)),"") ->  | DC31: ND | DD31: 0 | DF31: 0 | DG31: 0 | DH31: 0 | DI31: 0 | DJ31: =IF(VLOOKUP($BS31,'État & Plan d''action'!$B$4:$AR$1111,36,FALSE)="","",VLOOKUP($BS31,'État & Plan d''action'!$B$4:$AR$1111,36,FALSE)) ->  | DK31: =IF(VLOOKUP($BS31,'État & Plan d''action'!$B$4:$AR$1111,38,FALSE)="","",VLOOKUP($BS31,'État & Plan d''action'!$B$4:$AR$1111,38,FALSE)) ->  | DL31: =IF(VLOOKUP($BS31,'État & Plan d''action'!$B$4:$AR$1111,37,FALSE)="","",VLOOKUP($BS31,'État & Plan d''action'!$B$4:$AR$1111,37,FALSE)) -> 
W32: =IF(NM="Tout le Québec","Objectif 2025 pour l'ensemble du Québec : 458","") -> Objectif 2025 pour l'ensemble du Québec : 458 | X32: =IF(NM="Tout le Québec",458,"") -> 458 | Y32: =IF(NM="Tout le Québec",458,"") -> 458 | Z32: =IF(NM="Tout le Québec",458,"") -> 458 | AA32: =IF(NM="Tout le Québec",458,"") -> 458 | AB32: =IF(NM="Tout le Québec",458,"") -> 458 | BS32: 96020 | BT32: BAIE-COMEAU | BU32: 9 | BV32: non | BW32: non | BX32: non | BY32: non | BZ32: non | CA32: non | CB32: non | CC32: non | CD32: oui | CE32: oui | CF32: oui | CG32: non | CH32: oui | CI32: oui | CJ32: oui | CK32: oui | CL32: 620.2515619 | CM32: 606.4876072 | CN32: 450.9764134 | CP32: 487.8803568 | CQ32: 484.4174111 | CR32: 533.0176912 | CS32: =IF(VLOOKUP(BS32,Indicateurs!$B$4:$E$1111,4,FALSE)="","",VLOOKUP(BS32,Indicateurs!$B$4:$E$1111,4,FALSE)) -> 472 | CT32: ND | CU32: 1 | CX32: 0 | CY32: 1 | CZ32: 1 | DA32: =IFERROR(SUM(VLOOKUP($BS32,'État & Plan d''action'!$B$4:$AA$1111,18,FALSE),VLOOKUP($BS32,'État & Plan d''action'!$B$4:$AA$1111,20,FALSE))/(VLOOKUP($BS32,'Audit de l''eau'!$B$3:$I$1111,8,FALSE)),"") -> 1 | DB32: =IFERROR(SUM(VLOOKUP($BS32,'État & Plan d''action'!$B$4:$AA$1111,19,FALSE),VLOOKUP($BS32,'État & Plan d''action'!$B$4:$AA$1111,21,FALSE))/(VLOOKUP($BS32,'Audit de l''eau'!$B$3:$I$1111,8,FALSE)),"") -> 1 | DC32: ND | DD32: 0 | DF32: 0 | DG32: 0 | DH32: 19 | DI32: 14 | DJ32: =IF(VLOOKUP($BS32,'État & Plan d''action'!$B$4:$AR$1111,36,FALSE)="","",VLOOKUP($BS32,'État & Plan d''action'!$B$4:$AR$1111,36,FALSE)) -> 12 | DK32: =IF(VLOOKUP($BS32,'État & Plan d''action'!$B$4:$AR$1111,38,FALSE)="","",VLOOKUP($BS32,'État & Plan d''action'!$B$4:$AR$1111,38,FALSE)) -> 5 | DL32: =IF(VLOOKUP($BS32,'État & Plan d''action'!$B$4:$AR$1111,37,FALSE)="","",VLOOKUP($BS32,'État & Plan d''action'!$B$4:$AR$1111,37,FALSE)) -> 28
W33: Consommation résidentielle (l/pers/d) | X33: =IF($W$21="","ND",IF($AE$25="non","ND",IF(VLOOKUP($W$21,Indicateurs!$B$4:$H$1111,5,FALSE)=0,"ND",VLOOKUP($W$21,Indicateurs!$B$4:$H$1111,5,FALSE)))) -> ND | Y33: =IF($W$21="","ND",VLOOKUP(VLOOKUP(VLOOKUP($W$20,Indicateurs!$C$4:$D$1111,2,FALSE),$T$171:$V$187,3,FALSE),$E$171:$AH$188,30,FALSE)) -> ND | Z33: =IF($W$21="","ND",IF(VLOOKUP($W$20,$B$199:$AH$205,33,FALSE)=0,"ND",VLOOKUP($W$20,$B$199:$AH$205,33,FALSE))) -> ND | AA33: =SUM('Audit de l''eau'!K4:K1111)*1000000/365/SUM('Audit de l''eau'!H4:H1111) -> 268.2675218 | BS33: 08080 | BT33: BAIE-DES-SABLES | BU33: 1 | BV33: non | BW33: non | BX33: non | BY33: non | BZ33: non | CA33: non | CB33: non | CC33: non | CD33: oui | CE33: oui | CF33: non | CG33: oui | CH33: non | CI33: oui | CJ33: oui | CK33: oui | CL33: 312.3923584 | CM33: 380.6231556 | CO33: 256.6667557 | CQ33: 165.4058899 | CR33: 159.3294889 | CS33: =IF(VLOOKUP(BS33,Indicateurs!$B$4:$E$1111,4,FALSE)="","",VLOOKUP(BS33,Indicateurs!$B$4:$E$1111,4,FALSE)) -> 186 | CT33: ND | CU33: 0.25 | CW33: 0.25 | CY33: 0 | CZ33: 0 | DA33: =IFERROR(SUM(VLOOKUP($BS33,'État & Plan d''action'!$B$4:$AA$1111,18,FALSE),VLOOKUP($BS33,'État & Plan d''action'!$B$4:$AA$1111,20,FALSE))/(VLOOKUP($BS33,'Audit de l''eau'!$B$3:$I$1111,8,FALSE)),"") -> 0 | DB33: =IFERROR(SUM(VLOOKUP($BS33,'État & Plan d''action'!$B$4:$AA$1111,19,FALSE),VLOOKUP($BS33,'État & Plan d''action'!$B$4:$AA$1111,21,FALSE))/(VLOOKUP($BS33,'Audit de l''eau'!$B$3:$I$1111,8,FALSE)),"") -> 0 | DC33: ND | DD33: 1 | DF33: 2 | DG33: 0 | DH33: 0 | DI33: 0 | DJ33: =IF(VLOOKUP($BS33,'État & Plan d''action'!$B$4:$AR$1111,36,FALSE)="","",VLOOKUP($BS33,'État & Plan d''action'!$B$4:$AR$1111,36,FALSE)) -> 0 | DK33: =IF(VLOOKUP($BS33,'État & Plan d''action'!$B$4:$AR$1111,38,FALSE)="","",VLOOKUP($BS33,'État & Plan d''action'!$B$4:$AR$1111,38,FALSE)) -> 0 | DL33: =IF(VLOOKUP($BS33,'État & Plan d''action'!$B$4:$AR$1111,37,FALSE)="","",VLOOKUP($BS33,'État & Plan d''action'!$B$4:$AR$1111,37,FALSE)) -> 0
W34: Indice de fuites dans les infrastructures moyen | X34: =IF($W$21="","ND",IF($AE$25="non","ND",IF(VLOOKUP($W$21,Indicateurs!$B$4:$H$1111,6,FALSE)=0,"ND",VLOOKUP($W$21,Indicateurs!$B$4:$H$1111,6,FALSE)))) -> ND | Y34: =IF($W$21="","ND",VLOOKUP(VLOOKUP(VLOOKUP($W$20,Indicateurs!$C$4:$D$1111,2,FALSE),$T$171:$V$187,3,FALSE),$E$171:$AI$188,31,FALSE)) -> ND | Z34: =IF($W$21="","ND",IF(VLOOKUP($W$20,$B$199:$AI$205,34,FALSE)=0,"ND",VLOOKUP($W$20,$B$199:$AI$205,34,FALSE))) -> ND | AA34: =SUM('Audit de l''eau'!L4:L1111)/SUM('Audit de l''eau'!M4:M1111) -> 6.035062766 | BS34: 50100 | BT34: BAIE-DU-FEBVRE | BU34: 17 | BV34: non | BW34: non | BX34: non | BY34: non | BZ34: non | CA34: non | CB34: non | CC34: non | CD34: oui | CE34: oui | CF34: oui | CG34: oui | CH34: oui | CI34: oui | CJ34: oui | CK34: oui | CL34: 451.0851588 | CM34: 471.3284675 | CN34: 510.0954363 | CO34: 466.2590498 | CP34: 419.9611215 | CQ34: 436.9630718 | CR34: 438.2966823 | CS34: =IF(VLOOKUP(BS34,Indicateurs!$B$4:$E$1111,4,FALSE)="","",VLOOKUP(BS34,Indicateurs!$B$4:$E$1111,4,FALSE)) -> 556 | CT34: ND | CU34: 0.5 | CV34: 0.5 | CW34: 0.5 | CX34: 0.5 | CY34: 1 | CZ34: 1 | DA34: =IFERROR(SUM(VLOOKUP($BS34,'État & Plan d''action'!$B$4:$AA$1111,18,FALSE),VLOOKUP($BS34,'État & Plan d''action'!$B$4:$AA$1111,20,FALSE))/(VLOOKUP($BS34,'Audit de l''eau'!$B$3:$I$1111,8,FALSE)),"") -> 1 | DB34: =IFERROR(SUM(VLOOKUP($BS34,'État & Plan d''action'!$B$4:$AA$1111,19,FALSE),VLOOKUP($BS34,'État & Plan d''action'!$B$4:$AA$1111,21,FALSE))/(VLOOKUP($BS34,'Audit de l''eau'!$B$3:$I$1111,8,FALSE)),"") -> 1 | DC34: ND | DD34: 1 | DE34: 1 | DF34: 0 | DG34: 0 | DH34: 0 | DI34: 1 | DJ34: =IF(VLOOKUP($BS34,'État & Plan d''action'!$B$4:$AR$1111,36,FALSE)="","",VLOOKUP($BS34,'État & Plan d''action'!$B$4:$AR$1111,36,FALSE)) -> 2 | DK34: =IF(VLOOKUP($BS34,'État & Plan d''action'!$B$4:$AR$1111,38,FALSE)="","",VLOOKUP($BS34,'État & Plan d''action'!$B$4:$AR$1111,38,FALSE)) -> 0 | DL34: =IF(VLOOKUP($BS34,'État & Plan d''action'!$B$4:$AR$1111,37,FALSE)="","",VLOOKUP($BS34,'État & Plan d''action'!$B$4:$AR$1111,37,FALSE)) -> 1
W35: Pression moyenne pondérée | X35: =IF(X34="ND","",IF($W$21="","ND",IF($AE$25="non","ND",IF(VLOOKUP($W$21,'Audit de l''eau'!B4:N1111,13,FALSE)=0,"ND",VLOOKUP($W$21,'Audit de l''eau'!B4:N1111,13,FALSE))))) ->  | Y35: =IF(Y34="ND","",IF($W$21="","ND",VLOOKUP(VLOOKUP(VLOOKUP($W$20,Indicateurs!$C$4:$D$1111,2,FALSE),$T$171:$V$187,3,FALSE),$E$171:$AJ$188,32,FALSE))) ->  | Z35: =IF(Z34="ND","",IF($W$21="","ND",IF(VLOOKUP($W$20,$B$199:$AJ$205,34,FALSE)=0,"ND",VLOOKUP($W$20,$B$199:$AJ$205,35,FALSE)))) ->  | AA35: =IF(AA34="ND","",AJ188) -> 50.09275116 | BS35: 66112 | BT35: BAIE-D'URFÉ | BU35: 6 | BV35: non | BW35: non | BX35: non | BY35: non | BZ35: non | CA35: non | CB35: non | CC35: non | CD35: oui | CE35: oui | CF35: non | CG35: oui | CH35: oui | CI35: oui | CJ35: oui | CK35: oui | CL35: 838.7058484 | CM35: 806.6106545 | CO35: 892 | CP35: 532.1600702 | CQ35: 572 | CR35: 600.3350024 | CS35: =IF(VLOOKUP(BS35,Indicateurs!$B$4:$E$1111,4,FALSE)="","",VLOOKUP(BS35,Indicateurs!$B$4:$E$1111,4,FALSE)) -> 1042 | CT35: ND | CW35: 2 | CX35: 2 | CY35: 1 | CZ35: 1 | DA35: =IFERROR(SUM(VLOOKUP($BS35,'État & Plan d''action'!$B$4:$AA$1111,18,FALSE),VLOOKUP($BS35,'État & Plan d''action'!$B$4:$AA$1111,20,FALSE))/(VLOOKUP($BS35,'Audit de l''eau'!$B$3:$I$1111,8,FALSE)),"") -> 0 | DB35: =IFERROR(SUM(VLOOKUP($BS35,'État & Plan d''action'!$B$4:$AA$1111,19,FALSE),VLOOKUP($BS35,'État & Plan d''action'!$B$4:$AA$1111,21,FALSE))/(VLOOKUP($BS35,'Audit de l''eau'!$B$3:$I$1111,8,FALSE)),"") -> 0 | DC35: ND | DF35: 2 | DG35: 2 | DH35: 3 | DI35: 0 | DJ35: =IF(VLOOKUP($BS35,'État & Plan d''action'!$B$4:$AR$1111,36,FALSE)="","",VLOOKUP($BS35,'État & Plan d''action'!$B$4:$AR$1111,36,FALSE)) -> 0 | DK35: =IF(VLOOKUP($BS35,'État & Plan d''action'!$B$4:$AR$1111,38,FALSE)="","",VLOOKUP($BS35,'État & Plan d''action'!$B$4:$AR$1111,38,FALSE)) -> 0 | DL35: =IF(VLOOKUP($BS35,'État & Plan d''action'!$B$4:$AR$1111,37,FALSE)="","",VLOOKUP($BS35,'État & Plan d''action'!$B$4:$AR$1111,37,FALSE)) -> 0
W36: =W63 -> 0 | X36: =IF($W$21="","ND",IF($AE$25="non","ND",IF(VLOOKUP($W$21,$BS$8:$DL$1115,35,FALSE)="","ND",VLOOKUP($W$21,$BS$8:$DL$1115,35,FALSE)))) -> ND | Y36: =IF($W$21="","ND",VLOOKUP(VLOOKUP($W$21,$BS$8:$BU$1115,3,FALSE),$T$171:$AM$187,14,FALSE)) -> ND | Z36: =IF($W$21="","ND",IF(VLOOKUP($W$20,$B$199:$AH$205,32,FALSE)=0,"ND",VLOOKUP($W$20,$B$199:$AH$205,32,FALSE))) -> ND | AA36: =DA7 -> 0.8807061573 | BS36: 98035 | BT36: BAIE-JOHAN-BEETZ | BU36: 9 | BV36: non | BW36: non | BX36: non | BY36: non | BZ36: non | CA36: non | CB36: non | CC36: non | CD36: oui | CE36: oui | CF36: non | CG36: non | CH36: oui | CI36: non | CJ36: oui | CK36: oui | CL36: 1431.288418 | CM36: 1346.824203 | CP36: 923.6099919 | CR36: 827.3781014 | CS36: =IF(VLOOKUP(BS36,Indicateurs!$B$4:$E$1111,4,FALSE)="","",VLOOKUP(BS36,Indicateurs!$B$4:$E$1111,4,FALSE)) -> 957 | CT36: ND | CU36: 0 | CW36: 0 | CX36: 0 | CY36: 0 | CZ36: 0 | DA36: =IFERROR(SUM(VLOOKUP($BS36,'État & Plan d''action'!$B$4:$AA$1111,18,FALSE),VLOOKUP($BS36,'État & Plan d''action'!$B$4:$AA$1111,20,FALSE))/(VLOOKUP($BS36,'Audit de l''eau'!$B$3:$I$1111,8,FALSE)),"") -> 0 | DB36: =IFERROR(SUM(VLOOKUP($BS36,'État & Plan d''action'!$B$4:$AA$1111,19,FALSE),VLOOKUP($BS36,'État & Plan d''action'!$B$4:$AA$1111,21,FALSE))/(VLOOKUP($BS36,'Audit de l''eau'!$B$3:$I$1111,8,FALSE)),"") -> 0 | DC36: ND | DD36: 1 | DF36: 0 | DG36: 0 | DI36: 1 | DJ36: =IF(VLOOKUP($BS36,'État & Plan d''action'!$B$4:$AR$1111,36,FALSE)="","",VLOOKUP($BS36,'État & Plan d''action'!$B$4:$AR$1111,36,FALSE)) -> 2 | DK36: =IF(VLOOKUP($BS36,'État & Plan d''action'!$B$4:$AR$1111,38,FALSE)="","",VLOOKUP($BS36,'État & Plan d''action'!$B$4:$AR$1111,38,FALSE)) -> 0 | DL36: =IF(VLOOKUP($BS36,'État & Plan d''action'!$B$4:$AR$1111,37,FALSE)="","",VLOOKUP($BS36,'État & Plan d''action'!$B$4:$AR$1111,37,FALSE)) -> 0
W37: =W64 -> 0 | X37: =IF($W$21="","ND",IF($AE$25="non","ND",IF(SUM(VLOOKUP($W$21,$BS$8:$DL$1115,44,FALSE),VLOOKUP($W$21,$BS$8:$DL$1115,45,FALSE),VLOOKUP($W$21,$BS$8:$DL$1115,46,FALSE))="","ND",SUM(VLOOKUP($W$21,$BS$8:$DL$1115,44,FALSE),VLOOKUP($W$21,$BS$8:$DL$1115,45,FALSE),VLOOKUP($W$21,$BS$8:$DL$1115,46,FALSE))))) -> ND | Y37: =IF($W$21="","ND",VLOOKUP(VLOOKUP($W$21,$BS$8:$BU$1115,3,FALSE),$T$171:$AM$187,13,FALSE)) -> ND | Z37: =IF($W$21="","ND",IF(VLOOKUP($W$20,$B$199:$AH$205,31,FALSE)=0,"ND",VLOOKUP($W$20,$B$199:$AH$205,31,FALSE))) -> ND | AA37: =AF188 -> 9486 | BS37: 15065 | BT37: BAIE-SAINTE-CATHERINE | BU37: 3 | BV37: non | BW37: non | BX37: non | BY37: non | BZ37: non | CA37: non | CB37: non | CC37: non | CD37: oui | CE37: oui | CF37: non | CG37: non | CH37: oui | CI37: oui | CJ37: oui | CK37: oui | CL37: 1653.440122 | CM37: 1383.356575 | CP37: 854.2441919 | CQ37: 653.142109 | CR37: 574.0933505 | CS37: =IF(VLOOKUP(BS37,Indicateurs!$B$4:$E$1111,4,FALSE)="","",VLOOKUP(BS37,Indicateurs!$B$4:$E$1111,4,FALSE)) -> 622 | CT37: ND | CU37: 1 | CX37: 0 | CY37: 0 | CZ37: 0 | DA37: =IFERROR(SUM(VLOOKUP($BS37,'État & Plan d''action'!$B$4:$AA$1111,18,FALSE),VLOOKUP($BS37,'État & Plan d''action'!$B$4:$AA$1111,20,FALSE))/(VLOOKUP($BS37,'Audit de l''eau'!$B$3:$I$1111,8,FALSE)),"") -> 0 | DB37: =IFERROR(SUM(VLOOKUP($BS37,'État & Plan d''action'!$B$4:$AA$1111,19,FALSE),VLOOKUP($BS37,'État & Plan d''action'!$B$4:$AA$1111,21,FALSE))/(VLOOKUP($BS37,'Audit de l''eau'!$B$3:$I$1111,8,FALSE)),"") -> 0 | DC37: ND | DD37: 4 | DF37: 0 | DG37: 1 | DH37: 0 | DI37: 0 | DJ37: =IF(VLOOKUP($BS37,'État & Plan d''action'!$B$4:$AR$1111,36,FALSE)="","",VLOOKUP($BS37,'État & Plan d''action'!$B$4:$AR$1111,36,FALSE)) -> 3 | DK37: =IF(VLOOKUP($BS37,'État & Plan d''action'!$B$4:$AR$1111,38,FALSE)="","",VLOOKUP($BS37,'État & Plan d''action'!$B$4:$AR$1111,38,FALSE)) -> 0 | DL37: =IF(VLOOKUP($BS37,'État & Plan d''action'!$B$4:$AR$1111,37,FALSE)="","",VLOOKUP($BS37,'État & Plan d''action'!$B$4:$AR$1111,37,FALSE)) -> 0
W38: dummy 1 | X38: 0 | Y38: 0 | Z38: 0 | AA38: 0 | BS38: 16013 | BT38: BAIE-SAINT-PAUL | BU38: 3 | BV38: non | BW38: non | BX38: non | BY38: non | BZ38: non | CA38: non | CB38: non | CC38: non | CD38: oui | CE38: oui | CF38: non | CG38: oui | CH38: oui | CI38: oui | CJ38: oui | CK38: oui | CL38: 509.6433487 | CM38: 473.1811475 | CO38: 477.5163952 | CP38: 527.8365419 | CQ38: 569.239067 | CR38: 572.8375103 | CS38: =IF(VLOOKUP(BS38,Indicateurs!$B$4:$E$1111,4,FALSE)="","",VLOOKUP(BS38,Indicateurs!$B$4:$E$1111,4,FALSE)) -> 598 | CT38: ND | CU38: 0 | CW38: 0.05 | CX38: 1 | CY38: 0.25 | CZ38: 0.25 | DA38: =IFERROR(SUM(VLOOKUP($BS38,'État & Plan d''action'!$B$4:$AA$1111,18,FALSE),VLOOKUP($BS38,'État & Plan d''action'!$B$4:$AA$1111,20,FALSE))/(VLOOKUP($BS38,'Audit de l''eau'!$B$3:$I$1111,8,FALSE)),"") -> 0 | DB38: =IFERROR(SUM(VLOOKUP($BS38,'État & Plan d''action'!$B$4:$AA$1111,19,FALSE),VLOOKUP($BS38,'État & Plan d''action'!$B$4:$AA$1111,21,FALSE))/(VLOOKUP($BS38,'Audit de l''eau'!$B$3:$I$1111,8,FALSE)),"") -> 0 | DC38: ND | DD38: 6 | DF38: 2 | DG38: 2 | DH38: 1 | DI38: 2 | DJ38: =IF(VLOOKUP($BS38,'État & Plan d''action'!$B$4:$AR$1111,36,FALSE)="","",VLOOKUP($BS38,'État & Plan d''action'!$B$4:$AR$1111,36,FALSE)) -> 5 | DK38: =IF(VLOOKUP($BS38,'État & Plan d''action'!$B$4:$AR$1111,38,FALSE)="","",VLOOKUP($BS38,'État & Plan d''action'!$B$4:$AR$1111,38,FALSE)) -> 0 | DL38: =IF(VLOOKUP($BS38,'État & Plan d''action'!$B$4:$AR$1111,37,FALSE)="","",VLOOKUP($BS38,'État & Plan d''action'!$B$4:$AR$1111,37,FALSE)) -> 0
W39: dummy 2 | X39: 0 | Y39: 0 | Z39: 0 | AA39: 0 | BS39: 96005 | BT39: BAIE-TRINITÉ | BU39: 9 | BV39: non | BW39: non | BX39: non | BY39: non | BZ39: non | CA39: non | CB39: non | CC39: non | CD39: oui | CE39: oui | CF39: non | CG39: non | CH39: non | CI39: non | CJ39: non | CK39: oui | CL39: 917.0550137 | CM39: 832.2838306 | CS39: =IF(VLOOKUP(BS39,Indicateurs!$B$4:$E$1111,4,FALSE)="","",VLOOKUP(BS39,Indicateurs!$B$4:$E$1111,4,FALSE)) -> 1351 | CT39: ND | CU39: 0 | DA39: =IFERROR(SUM(VLOOKUP($BS39,'État & Plan d''action'!$B$4:$AA$1111,18,FALSE),VLOOKUP($BS39,'État & Plan d''action'!$B$4:$AA$1111,20,FALSE))/(VLOOKUP($BS39,'Audit de l''eau'!$B$3:$I$1111,8,FALSE)),"") -> 0 | DB39: =IFERROR(SUM(VLOOKUP($BS39,'État & Plan d''action'!$B$4:$AA$1111,19,FALSE),VLOOKUP($BS39,'État & Plan d''action'!$B$4:$AA$1111,21,FALSE))/(VLOOKUP($BS39,'Audit de l''eau'!$B$3:$I$1111,8,FALSE)),"") -> 0 | DC39: ND | DD39: 0 | DF39: 0 | DG39: 0 | DJ39: =IF(VLOOKUP($BS39,'État & Plan d''action'!$B$4:$AR$1111,36,FALSE)="","",VLOOKUP($BS39,'État & Plan d''action'!$B$4:$AR$1111,36,FALSE)) -> 2 | DK39: =IF(VLOOKUP($BS39,'État & Plan d''action'!$B$4:$AR$1111,38,FALSE)="","",VLOOKUP($BS39,'État & Plan d''action'!$B$4:$AR$1111,38,FALSE)) -> 0 | DL39: =IF(VLOOKUP($BS39,'État & Plan d''action'!$B$4:$AR$1111,37,FALSE)="","",VLOOKUP($BS39,'État & Plan d''action'!$B$4:$AR$1111,37,FALSE)) -> 0
X40: =IF(X37=0,"ND",TEXT(X37,"# ##0")&IF(X37>1," fuites"," fuite")) -> ND fuites | Y40: =IF(Y37=0,"ND",TEXT(Y37,"# ##0")&IF(Y37>1," fuites"," fuite")) -> ND fuites | Z40: ND fuites | AA40: 9 486 fuites | BS40: 78050 | BT40: BARKMERE | BU40: 15 | BV40: oui | BW40: oui | BX40: oui | BY40: oui | BZ40: oui | CA40: oui | CB40: oui | CC40: oui | CD40: non | CE40: non | CF40: non | CG40: non | CH40: non | CI40: non | CJ40: non | CK40: non | CS40: =IF(VLOOKUP(BS40,Indicateurs!$B$4:$E$1111,4,FALSE)="","",VLOOKUP(BS40,Indicateurs!$B$4:$E$1111,4,FALSE)) ->  | CT40: ND | DA40: =IFERROR(SUM(VLOOKUP($BS40,'État & Plan d''action'!$B$4:$AA$1111,18,FALSE),VLOOKUP($BS40,'État & Plan d''action'!$B$4:$AA$1111,20,FALSE))/(VLOOKUP($BS40,'Audit de l''eau'!$B$3:$I$1111,8,FALSE)),"") ->  | DB40: =IFERROR(SUM(VLOOKUP($BS40,'État & Plan d''action'!$B$4:$AA$1111,19,FALSE),VLOOKUP($BS40,'État & Plan d''action'!$B$4:$AA$1111,21,FALSE))/(VLOOKUP($BS40,'Audit de l''eau'!$B$3:$I$1111,8,FALSE)),"") ->  | DC40: ND | DF40: 0 | DG40: 0 | DJ40: =IF(VLOOKUP($BS40,'État & Plan d''action'!$B$4:$AR$1111,36,FALSE)="","",VLOOKUP($BS40,'État & Plan d''action'!$B$4:$AR$1111,36,FALSE)) ->  | DK40: =IF(VLOOKUP($BS40,'État & Plan d''action'!$B$4:$AR$1111,38,FALSE)="","",VLOOKUP($BS40,'État & Plan d''action'!$B$4:$AR$1111,38,FALSE)) ->  | DL40: =IF(VLOOKUP($BS40,'État & Plan d''action'!$B$4:$AR$1111,37,FALSE)="","",VLOOKUP($BS40,'État & Plan d''action'!$B$4:$AR$1111,37,FALSE)) -> 
X41: =IF(X36=0,"ND",X36) -> ND | Y41: =IF(Y36=0,"ND",Y36) -> ND | Z41: ND | AA41: 0.8807061573 | BS41: 44045 | BT41: BARNSTON-OUEST | BU41: 5 | BV41: oui | BW41: oui | BX41: oui | BY41: oui | BZ41: oui | CA41: oui | CB41: oui | CC41: oui | CD41: non | CE41: non | CF41: non | CG41: non | CH41: non | CI41: non | CJ41: non | CK41: non | CS41: =IF(VLOOKUP(BS41,Indicateurs!$B$4:$E$1111,4,FALSE)="","",VLOOKUP(BS41,Indicateurs!$B$4:$E$1111,4,FALSE)) ->  | CT41: ND | DA41: =IFERROR(SUM(VLOOKUP($BS41,'État & Plan d''action'!$B$4:$AA$1111,18,FALSE),VLOOKUP($BS41,'État & Plan d''action'!$B$4:$AA$1111,20,FALSE))/(VLOOKUP($BS41,'Audit de l''eau'!$B$3:$I$1111,8,FALSE)),"") ->  | DB41: =IFERROR(SUM(VLOOKUP($BS41,'État & Plan d''action'!$B$4:$AA$1111,19,FALSE),VLOOKUP($BS41,'État & Plan d''action'!$B$4:$AA$1111,21,FALSE))/(VLOOKUP($BS41,'Audit de l''eau'!$B$3:$I$1111,8,FALSE)),"") ->  | DC41: ND | DF41: 0 | DG41: 0 | DJ41: =IF(VLOOKUP($BS41,'État & Plan d''action'!$B$4:$AR$1111,36,FALSE)="","",VLOOKUP($BS41,'État & Plan d''action'!$B$4:$AR$1111,36,FALSE)) ->  | DK41: =IF(VLOOKUP($BS41,'État & Plan d''action'!$B$4:$AR$1111,38,FALSE)="","",VLOOKUP($BS41,'État & Plan d''action'!$B$4:$AR$1111,38,FALSE)) ->  | DL41: =IF(VLOOKUP($BS41,'État & Plan d''action'!$B$4:$AR$1111,37,FALSE)="","",VLOOKUP($BS41,'État & Plan d''action'!$B$4:$AR$1111,37,FALSE)) -> 
BS42: 88022 | BT42: BARRAUTE | BU42: 8 | BV42: non | BW42: non | BX42: non | BY42: non | BZ42: non | CA42: non | CB42: non | CC42: non | CD42: oui | CE42: oui | CF42: oui | CG42: oui | CH42: oui | CI42: oui | CJ42: oui | CK42: oui | CL42: 267.0096512 | CM42: 339.087999 | CN42: 324.4582491 | CO42: 287.3105524 | CP42: 336.2958323 | CQ42: 341.1102352 | CR42: 362.6599286 | CS42: =IF(VLOOKUP(BS42,Indicateurs!$B$4:$E$1111,4,FALSE)="","",VLOOKUP(BS42,Indicateurs!$B$4:$E$1111,4,FALSE)) -> 342 | CT42: ND | CY42: 0.1 | CZ42: 0.1 | DA42: =IFERROR(SUM(VLOOKUP($BS42,'État & Plan d''action'!$B$4:$AA$1111,18,FALSE),VLOOKUP($BS42,'État & Plan d''action'!$B$4:$AA$1111,20,FALSE))/(VLOOKUP($BS42,'Audit de l''eau'!$B$3:$I$1111,8,FALSE)),"") -> 1 | DB42: =IFERROR(SUM(VLOOKUP($BS42,'État & Plan d''action'!$B$4:$AA$1111,19,FALSE),VLOOKUP($BS42,'État & Plan d''action'!$B$4:$AA$1111,21,FALSE))/(VLOOKUP($BS42,'Audit de l''eau'!$B$3:$I$1111,8,FALSE)),"") -> 0 | DC42: ND | DF42: 0 | DG42: 0 | DH42: 2 | DI42: 1 | DJ42: =IF(VLOOKUP($BS42,'État & Plan d''action'!$B$4:$AR$1111,36,FALSE)="","",VLOOKUP($BS42,'État & Plan d''action'!$B$4:$AR$1111,36,FALSE)) -> 1 | DK42: =IF(VLOOKUP($BS42,'État & Plan d''action'!$B$4:$AR$1111,38,FALSE)="","",VLOOKUP($BS42,'État & Plan d''action'!$B$4:$AR$1111,38,FALSE)) -> 3 | DL42: =IF(VLOOKUP($BS42,'État & Plan d''action'!$B$4:$AR$1111,37,FALSE)="","",VLOOKUP($BS42,'État & Plan d''action'!$B$4:$AR$1111,37,FALSE)) -> 0
BS43: 37210 | BT43: BATISCAN | BU43: 4 | BV43: non | BW43: non | BX43: non | BY43: non | BZ43: non | CA43: non | CB43: non | CC43: non | CD43: oui | CE43: oui | CF43: oui | CG43: oui | CH43: oui | CI43: non | CJ43: oui | CK43: oui | CL43: 603.0435629 | CM43: 652.8668744 | CN43: 468.0277442 | CO43: 435.7914819 | CP43: 453.6860642 | CR43: 778.3411616 | CS43: =IF(VLOOKUP(BS43,Indicateurs!$B$4:$E$1111,4,FALSE)="","",VLOOKUP(BS43,Indicateurs!$B$4:$E$1111,4,FALSE)) -> 496 | CT43: ND | CU43: 0 | CV43: 0 | CW43: 0 | CX43: 0 | CY43: 0 | CZ43: 0 | DA43: =IFERROR(SUM(VLOOKUP($BS43,'État & Plan d''action'!$B$4:$AA$1111,18,FALSE),VLOOKUP($BS43,'État & Plan d''action'!$B$4:$AA$1111,20,FALSE))/(VLOOKUP($BS43,'Audit de l''eau'!$B$3:$I$1111,8,FALSE)),"") -> 0.3752345216 | DB43: =IFERROR(SUM(VLOOKUP($BS43,'État & Plan d''action'!$B$4:$AA$1111,19,FALSE),VLOOKUP($BS43,'État & Plan d''action'!$B$4:$AA$1111,21,FALSE))/(VLOOKUP($BS43,'Audit de l''eau'!$B$3:$I$1111,8,FALSE)),"") -> 0.3752345216 | DC43: ND | DD43: 3 | DE43: 4 | DF43: 2 | DG43: 2 | DI43: 4 | DJ43: =IF(VLOOKUP($BS43,'État & Plan d''action'!$B$4:$AR$1111,36,FALSE)="","",VLOOKUP($BS43,'État & Plan d''action'!$B$4:$AR$1111,36,FALSE)) -> 0 | DK43: =IF(VLOOKUP($BS43,'État & Plan d''action'!$B$4:$AR$1111,38,FALSE)="","",VLOOKUP($BS43,'État & Plan d''action'!$B$4:$AR$1111,38,FALSE)) -> 4 | DL43: =IF(VLOOKUP($BS43,'État & Plan d''action'!$B$4:$AR$1111,37,FALSE)="","",VLOOKUP($BS43,'État & Plan d''action'!$B$4:$AR$1111,37,FALSE)) -> 2
BS44: 66107 | BT44: BEACONSFIELD | BU44: 6 | BV44: non | BW44: non | BX44: non | BY44: non | BZ44: non | CA44: non | CB44: non | CC44: non | CD44: oui | CE44: non | CF44: non | CG44: oui | CH44: oui | CI44: oui | CJ44: oui | CK44: oui | CL44: 1077.821637 | CO44: 1143.00881 | CP44: 548.4040133 | CQ44: 572 | CR44: 600.3350024 | CS44: =IF(VLOOKUP(BS44,Indicateurs!$B$4:$E$1111,4,FALSE)="","",VLOOKUP(BS44,Indicateurs!$B$4:$E$1111,4,FALSE)) -> 388 | CT44: ND | CU44: 2 | CW44: 3 | CX44: 3 | CY44: 3 | CZ44: 3 | DA44: =IFERROR(SUM(VLOOKUP($BS44,'État & Plan d''action'!$B$4:$AA$1111,18,FALSE),VLOOKUP($BS44,'État & Plan d''action'!$B$4:$AA$1111,20,FALSE))/(VLOOKUP($BS44,'Audit de l''eau'!$B$3:$I$1111,8,FALSE)),"") -> 3 | DB44: =IFERROR(SUM(VLOOKUP($BS44,'État & Plan d''action'!$B$4:$AA$1111,19,FALSE),VLOOKUP($BS44,'État & Plan d''action'!$B$4:$AA$1111,21,FALSE))/(VLOOKUP($BS44,'Audit de l''eau'!$B$3:$I$1111,8,FALSE)),"") -> 3 | DC44: ND | DD44: 52 | DF44: 44 | DG44: 41 | DH44: 40 | DI44: 30 | DJ44: =IF(VLOOKUP($BS44,'État & Plan d''action'!$B$4:$AR$1111,36,FALSE)="","",VLOOKUP($BS44,'État & Plan d''action'!$B$4:$AR$1111,36,FALSE)) -> 32 | DK44: =IF(VLOOKUP($BS44,'État & Plan d''action'!$B$4:$AR$1111,38,FALSE)="","",VLOOKUP($BS44,'État & Plan d''action'!$B$4:$AR$1111,38,FALSE)) -> 3 | DL44: =IF(VLOOKUP($BS44,'État & Plan d''action'!$B$4:$AR$1111,37,FALSE)="","",VLOOKUP($BS44,'État & Plan d''action'!$B$4:$AR$1111,37,FALSE)) -> 4
W45: Nombre de réseau | X45: =IF($W$21="","",VLOOKUP($W$21,'Audit de l''eau'!$B$4:$H$1111,4,FALSE)) ->  | BS45: 85020 | BT45: BÉARN | BU45: 8 | BV45: non | BW45: non | BX45: non | BY45: non | BZ45: non | CA45: non | CB45: non | CC45: non | CD45: oui | CE45: oui | CF45: non | CG45: oui | CH45: oui | CI45: oui | CJ45: oui | CK45: oui | CL45: 612.2496747 | CM45: 622.3162008 | CO45: 386.2372643 | CP45: 398.4764146 | CQ45: 989.4678311 | CR45: 1039.365461 | CS45: =IF(VLOOKUP(BS45,Indicateurs!$B$4:$E$1111,4,FALSE)="","",VLOOKUP(BS45,Indicateurs!$B$4:$E$1111,4,FALSE)) -> 869 | CT45: ND | CU45: 1 | CV45: 1 | CW45: 1 | CX45: 0 | CY45: 1 | CZ45: 1 | DA45: =IFERROR(SUM(VLOOKUP($BS45,'État & Plan d''action'!$B$4:$AA$1111,18,FALSE),VLOOKUP($BS45,'État & Plan d''action'!$B$4:$AA$1111,20,FALSE))/(VLOOKUP($BS45,'Audit de l''eau'!$B$3:$I$1111,8,FALSE)),"") -> 1 | DB45: =IFERROR(SUM(VLOOKUP($BS45,'État & Plan d''action'!$B$4:$AA$1111,19,FALSE),VLOOKUP($BS45,'État & Plan d''action'!$B$4:$AA$1111,21,FALSE))/(VLOOKUP($BS45,'Audit de l''eau'!$B$3:$I$1111,8,FALSE)),"") -> 1.553786515 | DC45: ND | DD45: 6 | DE45: 7 | DF45: 7 | DG45: 3 | DH45: 5 | DI45: 5 | DJ45: =IF(VLOOKUP($BS45,'État & Plan d''action'!$B$4:$AR$1111,36,FALSE)="","",VLOOKUP($BS45,'État & Plan d''action'!$B$4:$AR$1111,36,FALSE)) -> 0 | DK45: =IF(VLOOKUP($BS45,'État & Plan d''action'!$B$4:$AR$1111,38,FALSE)="","",VLOOKUP($BS45,'État & Plan d''action'!$B$4:$AR$1111,38,FALSE)) -> 3 | DL45: =IF(VLOOKUP($BS45,'État & Plan d''action'!$B$4:$AR$1111,37,FALSE)="","",VLOOKUP($BS45,'État & Plan d''action'!$B$4:$AR$1111,37,FALSE)) -> 2
W46: Comparaison 2018 | BS46: 27028 | BT46: BEAUCEVILLE | BU46: 12 | BV46: non | BW46: non | BX46: non | BY46: non | BZ46: non | CA46: non | CB46: non | CC46: non | CD46: oui | CE46: oui | CF46: oui | CG46: oui | CH46: oui | CI46: oui | CJ46: oui | CK46: oui | CL46: 521.2423806 | CM46: 560.0930055 | CN46: 608.2496748 | CO46: 527.9831344 | CP46: 526.9606824 | CQ46: 504.7752563 | CR46: 452.2646097 | CS46: =IF(VLOOKUP(BS46,Indicateurs!$B$4:$E$1111,4,FALSE)="","",VLOOKUP(BS46,Indicateurs!$B$4:$E$1111,4,FALSE)) -> 412 | CT46: ND | CU46: 0.02 | CV46: 0 | CW46: 0.25 | CX46: 0.15 | CY46: 1 | CZ46: 1 | DA46: =IFERROR(SUM(VLOOKUP($BS46,'État & Plan d''action'!$B$4:$AA$1111,18,FALSE),VLOOKUP($BS46,'État & Plan d''action'!$B$4:$AA$1111,20,FALSE))/(VLOOKUP($BS46,'Audit de l''eau'!$B$3:$I$1111,8,FALSE)),"") -> 1 | DB46: =IFERROR(SUM(VLOOKUP($BS46,'État & Plan d''action'!$B$4:$AA$1111,19,FALSE),VLOOKUP($BS46,'État & Plan d''action'!$B$4:$AA$1111,21,FALSE))/(VLOOKUP($BS46,'Audit de l''eau'!$B$3:$I$1111,8,FALSE)),"") -> 1 | DC46: ND | DD46: 8 | DE46: 10 | DF46: 8 | DG46: 17 | DH46: 5 | DI46: 16 | DJ46: =IF(VLOOKUP($BS46,'État & Plan d''action'!$B$4:$AR$1111,36,FALSE)="","",VLOOKUP($BS46,'État & Plan d''action'!$B$4:$AR$1111,36,FALSE)) -> 3 | DK46: =IF(VLOOKUP($BS46,'État & Plan d''action'!$B$4:$AR$1111,38,FALSE)="","",VLOOKUP($BS46,'État & Plan d''action'!$B$4:$AR$1111,38,FALSE)) -> 0 | DL46: =IF(VLOOKUP($BS46,'État & Plan d''action'!$B$4:$AR$1111,37,FALSE)="","",VLOOKUP($BS46,'État & Plan d''action'!$B$4:$AR$1111,37,FALSE)) -> 1
W47: =W30 -> TOUT LE QUÉBEC | X47: =PROPER(W20) -> Tout Le Québec | Y47: ="Région : "&IF(W20="Tout le Québec","ND",VLOOKUP(VLOOKUP($W$20,Indicateurs!$C$4:$D$1111,2,FALSE),$T$171:$V$187,3,FALSE)) -> Région : ND | Z47: =Z30 -> Classe de pop : ND | AA47: Tout le Québec | AB47: Objectif 2025 pour l'ensemble du Québec | BS47: 70022 | BT47: BEAUHARNOIS | BU47: 16 | BV47: non | BW47: non | BX47: non | BY47: non | BZ47: non | CA47: non | CB47: non | CC47: non | CD47: non | CE47: non | CF47: non | CG47: non | CH47: non | CI47: oui | CJ47: non | CK47: oui | CQ47: 544.7359982 | CS47: =IF(VLOOKUP(BS47,Indicateurs!$B$4:$E$1111,4,FALSE)="","",VLOOKUP(BS47,Indicateurs!$B$4:$E$1111,4,FALSE)) -> 556 | CT47: ND | CU47: 0.05 | CV47: 0 | CW47: 0.2 | CX47: 1 | DA47: =IFERROR(SUM(VLOOKUP($BS47,'État & Plan d''action'!$B$4:$AA$1111,18,FALSE),VLOOKUP($BS47,'État & Plan d''action'!$B$4:$AA$1111,20,FALSE))/(VLOOKUP($BS47,'Audit de l''eau'!$B$3:$I$1111,8,FALSE)),"") -> 1 | DB47: =IFERROR(SUM(VLOOKUP($BS47,'État & Plan d''action'!$B$4:$AA$1111,19,FALSE),VLOOKUP($BS47,'État & Plan d''action'!$B$4:$AA$1111,21,FALSE))/(VLOOKUP($BS47,'Audit de l''eau'!$B$3:$I$1111,8,FALSE)),"") -> 1.250708251 | DC47: ND | DD47: 15 | DE47: 25 | DF47: 34 | DG47: 12 | DH47: 19 | DJ47: =IF(VLOOKUP($BS47,'État & Plan d''action'!$B$4:$AR$1111,36,FALSE)="","",VLOOKUP($BS47,'État & Plan d''action'!$B$4:$AR$1111,36,FALSE)) -> 39 | DK47: =IF(VLOOKUP($BS47,'État & Plan d''action'!$B$4:$AR$1111,38,FALSE)="","",VLOOKUP($BS47,'État & Plan d''action'!$B$4:$AR$1111,38,FALSE)) -> 0 | DL47: =IF(VLOOKUP($BS47,'État & Plan d''action'!$B$4:$AR$1111,37,FALSE)="","",VLOOKUP($BS47,'État & Plan d''action'!$B$4:$AR$1111,37,FALSE)) -> 4
W48: Indice de fuites moyenne | X48: =IF($W$21="",X15,IF(AE$25="non","ND",IF(VLOOKUP($W$21,'Audit de l''eau'!$B$4:$M$1111,11,FALSE)/VLOOKUP($W$21,'Audit de l''eau'!$B$4:$M$1111,12,FALSE)="","ND",VLOOKUP($W$21,'Audit de l''eau'!$B$4:$M$1111,11,FALSE)/VLOOKUP($W$21,'Audit de l''eau'!$B$4:$M$1111,12,FALSE)))) -> 0 | Y48: =IF($W$21="","ND",IF(AE$25="non","ND",IF(VLOOKUP(VLOOKUP(VLOOKUP($W$21,Indicateurs!$B$3:$D$1111,3,FALSE),$T$171:$V$187,3,FALSE),$E$196:$AJ$213,31,FALSE)=0,"ND",VLOOKUP(VLOOKUP(VLOOKUP($W$21,Indicateurs!$B$3:$D$1111,3,FALSE),$T$171:$V$187,3,FALSE),$E$196:$AJ$213,31,FALSE)))) -> ND | Z48: =IF($W$21="","ND",IF(VLOOKUP($W$20,$B$224:$AJ$230,34,FALSE)=0,"ND",VLOOKUP($W$20,$B$224:$AJ$230,34,FALSE))) -> ND | AA48: =AI230 -> 0 | BS48: 31008 | BT48: BEAULAC-GARTHBY | BU48: 12 | BV48: non | BW48: non | BX48: non | BY48: non | BZ48: non | CA48: non | CB48: non | CC48: non | CD48: oui | CE48: oui | CF48: oui | CG48: oui | CH48: oui | CI48: non | CJ48: oui | CK48: oui | CL48: 553.4226925 | CM48: 322.2215713 | CN48: 409.8251839 | CO48: 378.4711232 | CP48: 315.6611818 | CR48: 448.0034136 | CS48: =IF(VLOOKUP(BS48,Indicateurs!$B$4:$E$1111,4,FALSE)="","",VLOOKUP(BS48,Indicateurs!$B$4:$E$1111,4,FALSE)) -> 429 | CT48: ND | CU48: 0.4 | CV48: 0.2 | CW48: 0 | CX48: 0.2 | CY48: 0.2 | CZ48: 0.2 | DA48: =IFERROR(SUM(VLOOKUP($BS48,'État & Plan d''action'!$B$4:$AA$1111,18,FALSE),VLOOKUP($BS48,'État & Plan d''action'!$B$4:$AA$1111,20,FALSE))/(VLOOKUP($BS48,'Audit de l''eau'!$B$3:$I$1111,8,FALSE)),"") -> 0.4022526146 | DB48: =IFERROR(SUM(VLOOKUP($BS48,'État & Plan d''action'!$B$4:$AA$1111,19,FALSE),VLOOKUP($BS48,'État & Plan d''action'!$B$4:$AA$1111,21,FALSE))/(VLOOKUP($BS48,'Audit de l''eau'!$B$3:$I$1111,8,FALSE)),"") -> 0.4022526146 | DC48: ND | DD48: 4 | DE48: 2 | DF48: 5 | DG48: 3 | DI48: 0 | DJ48: =IF(VLOOKUP($BS48,'État & Plan d''action'!$B$4:$AR$1111,36,FALSE)="","",VLOOKUP($BS48,'État & Plan d''action'!$B$4:$AR$1111,36,FALSE)) -> 0 | DK48: =IF(VLOOKUP($BS48,'État & Plan d''action'!$B$4:$AR$1111,38,FALSE)="","",VLOOKUP($BS48,'État & Plan d''action'!$B$4:$AR$1111,38,FALSE)) -> 0 | DL48: =IF(VLOOKUP($BS48,'État & Plan d''action'!$B$4:$AR$1111,37,FALSE)="","",VLOOKUP($BS48,'État & Plan d''action'!$B$4:$AR$1111,37,FALSE)) -> 0
C49: ↑ Haut de page | W49: Pression moyenne | Y49: =IF($W$21="","ND",IF(AE$25="non","ND",IF(VLOOKUP(VLOOKUP(VLOOKUP($W$21,Indicateurs!$B$3:$D$1111,3,FALSE),$T$171:$V$187,3,FALSE),$E$196:$AJ$213,32,FALSE)=0,"ND",VLOOKUP(VLOOKUP(VLOOKUP($W$21,Indicateurs!$B$3:$D$1111,3,FALSE),$T$171:$V$187,3,FALSE),$E$196:$AJ$213,32,FALSE)))) -> ND | Z49: =IF($W$21="","ND",IF(VLOOKUP($W$20,$B$224:$AJ$230,35,FALSE)=0,"ND",VLOOKUP($W$20,$B$224:$AJ$230,35,FALSE))) -> ND | AA49: =AJ230 -> 0 | BS49: 19105 | BT49: BEAUMONT | BU49: 12 | BV49: non | BW49: non | BX49: non | BY49: non | BZ49: non | CA49: non | CB49: non | CC49: non | CD49: oui | CE49: oui | CF49: non | CG49: oui | CH49: oui | CI49: oui | CJ49: oui | CK49: oui | CL49: 329.0998424 | CM49: 345.8538021 | CO49: 318.9837685 | CP49: 316.0542001 | CQ49: 334.7925226 | CR49: 199.6488392 | CS49: =IF(VLOOKUP(BS49,Indicateurs!$B$4:$E$1111,4,FALSE)="","",VLOOKUP(BS49,Indicateurs!$B$4:$E$1111,4,FALSE)) -> 199 | CT49: ND | CU49: 0 | CW49: 1 | CX49: 1 | CY49: 1 | CZ49: 1 | DA49: =IFERROR(SUM(VLOOKUP($BS49,'État & Plan d''action'!$B$4:$AA$1111,18,FALSE),VLOOKUP($BS49,'État & Plan d''action'!$B$4:$AA$1111,20,FALSE))/(VLOOKUP($BS49,'Audit de l''eau'!$B$3:$I$1111,8,FALSE)),"") -> 0 | DB49: =IFERROR(SUM(VLOOKUP($BS49,'État & Plan d''action'!$B$4:$AA$1111,19,FALSE),VLOOKUP($BS49,'État & Plan d''action'!$B$4:$AA$1111,21,FALSE))/(VLOOKUP($BS49,'Audit de l''eau'!$B$3:$I$1111,8,FALSE)),"") -> 0 | DC49: ND | DD49: 0 | DF49: 0 | DG49: 1 | DH49: 4 | DI49: 2 | DJ49: =IF(VLOOKUP($BS49,'État & Plan d''action'!$B$4:$AR$1111,36,FALSE)="","",VLOOKUP($BS49,'État & Plan d''action'!$B$4:$AR$1111,36,FALSE)) -> 0 | DK49: =IF(VLOOKUP($BS49,'État & Plan d''action'!$B$4:$AR$1111,38,FALSE)="","",VLOOKUP($BS49,'État & Plan d''action'!$B$4:$AR$1111,38,FALSE)) -> 0 | DL49: =IF(VLOOKUP($BS49,'État & Plan d''action'!$B$4:$AR$1111,37,FALSE)="","",VLOOKUP($BS49,'État & Plan d''action'!$B$4:$AR$1111,37,FALSE)) -> 0
W50: Légende du gaphique Pression | X50: =IF(ISNA(X49),"",IF(X49=0,"ND",TEXT(X49,"# ##0,0")&" m")) -> ND | Y50: =IF(ISNA(Y49),"",IF(Y49=0,"ND",IF(Y49="ND","ND",TEXT(Y49,"# ##0,0")&" m"))) -> ND | Z50: =IF(ISNA(Z49),"",IF(Z49=0,"ND",IF(Z49="ND","ND",TEXT(Z49,"# ##0,0")&" m"))) -> ND | AA50: =IF(ISNA(AA49),"",IF(AA49=0,"ND",IF(AA49="ND","ND",TEXT(AA49,"# ##0,0")&" m"))) -> ND | BS50: 21025 | BT50: BEAUPRÉ | BU50: 3 | BV50: non | BW50: non | BX50: non | BY50: non | BZ50: non | CA50: non | CB50: non | CC50: non | CD50: oui | CE50: oui | CF50: oui | CG50: oui | CH50: oui | CI50: oui | CJ50: oui | CK50: oui | CL50: 373.34517 | CM50: 318.193354 | CN50: 580.8938905 | CO50: 594.9038121 | CP50: 502.9482377 | CQ50: 553.8866653 | CR50: 516.526463 | CS50: =IF(VLOOKUP(BS50,Indicateurs!$B$4:$E$1111,4,FALSE)="","",VLOOKUP(BS50,Indicateurs!$B$4:$E$1111,4,FALSE)) -> 508 | CT50: ND | CU50: 0 | CV50: 0.2 | CW50: 0.2 | CX50: 0.2 | CY50: 1 | CZ50: 1 | DA50: =IFERROR(SUM(VLOOKUP($BS50,'État & Plan d''action'!$B$4:$AA$1111,18,FALSE),VLOOKUP($BS50,'État & Plan d''action'!$B$4:$AA$1111,20,FALSE))/(VLOOKUP($BS50,'Audit de l''eau'!$B$3:$I$1111,8,FALSE)),"") -> 0 | DB50: =IFERROR(SUM(VLOOKUP($BS50,'État & Plan d''action'!$B$4:$AA$1111,19,FALSE),VLOOKUP($BS50,'État & Plan d''action'!$B$4:$AA$1111,21,FALSE))/(VLOOKUP($BS50,'Audit de l''eau'!$B$3:$I$1111,8,FALSE)),"") -> 0.2205801257 | DC50: ND | DD50: 2 | DE50: 2 | DF50: 2 | DG50: 4 | DH50: 7 | DI50: 4 | DJ50: =IF(VLOOKUP($BS50,'État & Plan d''action'!$B$4:$AR$1111,36,FALSE)="","",VLOOKUP($BS50,'État & Plan d''action'!$B$4:$AR$1111,36,FALSE)) -> 3 | DK50: =IF(VLOOKUP($BS50,'État & Plan d''action'!$B$4:$AR$1111,38,FALSE)="","",VLOOKUP($BS50,'État & Plan d''action'!$B$4:$AR$1111,38,FALSE)) -> 0 | DL50: =IF(VLOOKUP($BS50,'État & Plan d''action'!$B$4:$AR$1111,37,FALSE)="","",VLOOKUP($BS50,'État & Plan d''action'!$B$4:$AR$1111,37,FALSE)) -> 3
BS51: 38010 | BT51: BÉCANCOUR | BU51: 17 | BV51: non | BW51: non | BX51: non | BY51: non | BZ51: non | CA51: non | CB51: non | CC51: non | CD51: oui | CE51: oui | CF51: oui | CG51: oui | CH51: oui | CI51: oui | CJ51: oui | CK51: oui | CL51: 851.9991867 | CM51: 453.7122655 | CN51: 444.4448817 | CO51: 378.6778029 | CP51: 323.5200016 | CQ51: 340.9865055 | CR51: 342.1850924 | CS51: =IF(VLOOKUP(BS51,Indicateurs!$B$4:$E$1111,4,FALSE)="","",VLOOKUP(BS51,Indicateurs!$B$4:$E$1111,4,FALSE)) -> 336 | CT51: ND | CU51: 0.2 | CV51: 0.2 | CW51: 0.2 | CX51: 0.2 | CY51: 0.2 | CZ51: 0.2 | DA51: =IFERROR(SUM(VLOOKUP($BS51,'État & Plan d''action'!$B$4:$AA$1111,18,FALSE),VLOOKUP($BS51,'État & Plan d''action'!$B$4:$AA$1111,20,FALSE))/(VLOOKUP($BS51,'Audit de l''eau'!$B$3:$I$1111,8,FALSE)),"") -> 0.1965705991 | DB51: =IFERROR(SUM(VLOOKUP($BS51,'État & Plan d''action'!$B$4:$AA$1111,19,FALSE),VLOOKUP($BS51,'État & Plan d''action'!$B$4:$AA$1111,21,FALSE))/(VLOOKUP($BS51,'Audit de l''eau'!$B$3:$I$1111,8,FALSE)),"") -> 0.1965705991 | DC51: ND | DD51: 3 | DE51: 5 | DF51: 34 | DG51: 30 | DH51: 25 | DI51: 20 | DJ51: =IF(VLOOKUP($BS51,'État & Plan d''action'!$B$4:$AR$1111,36,FALSE)="","",VLOOKUP($BS51,'État & Plan d''action'!$B$4:$AR$1111,36,FALSE)) -> 32 | DK51: =IF(VLOOKUP($BS51,'État & Plan d''action'!$B$4:$AR$1111,38,FALSE)="","",VLOOKUP($BS51,'État & Plan d''action'!$B$4:$AR$1111,38,FALSE)) -> 3 | DL51: =IF(VLOOKUP($BS51,'État & Plan d''action'!$B$4:$AR$1111,37,FALSE)="","",VLOOKUP($BS51,'État & Plan d''action'!$B$4:$AR$1111,37,FALSE)) -> 8
BS52: 46040 | BT52: BEDFORD (CT) | BU52: 16 | BV52: oui | BW52: oui | BX52: oui | BY52: oui | BZ52: oui | CA52: oui | CB52: oui | CC52: oui | CD52: non | CE52: non | CF52: non | CG52: non | CH52: non | CI52: non | CJ52: non | CK52: non | CS52: =IF(VLOOKUP(BS52,Indicateurs!$B$4:$E$1111,4,FALSE)="","",VLOOKUP(BS52,Indicateurs!$B$4:$E$1111,4,FALSE)) ->  | CT52: ND | DA52: =IFERROR(SUM(VLOOKUP($BS52,'État & Plan d''action'!$B$4:$AA$1111,18,FALSE),VLOOKUP($BS52,'État & Plan d''action'!$B$4:$AA$1111,20,FALSE))/(VLOOKUP($BS52,'Audit de l''eau'!$B$3:$I$1111,8,FALSE)),"") ->  | DB52: =IFERROR(SUM(VLOOKUP($BS52,'État & Plan d''action'!$B$4:$AA$1111,19,FALSE),VLOOKUP($BS52,'État & Plan d''action'!$B$4:$AA$1111,21,FALSE))/(VLOOKUP($BS52,'Audit de l''eau'!$B$3:$I$1111,8,FALSE)),"") ->  | DC52: ND | DF52: 0 | DG52: 0 | DJ52: =IF(VLOOKUP($BS52,'État & Plan d''action'!$B$4:$AR$1111,36,FALSE)="","",VLOOKUP($BS52,'État & Plan d''action'!$B$4:$AR$1111,36,FALSE)) ->  | DK52: =IF(VLOOKUP($BS52,'État & Plan d''action'!$B$4:$AR$1111,38,FALSE)="","",VLOOKUP($BS52,'État & Plan d''action'!$B$4:$AR$1111,38,FALSE)) ->  | DL52: =IF(VLOOKUP($BS52,'État & Plan d''action'!$B$4:$AR$1111,37,FALSE)="","",VLOOKUP($BS52,'État & Plan d''action'!$B$4:$AR$1111,37,FALSE)) -> 
BS53: 46035 | BT53: BEDFORD (V) | BU53: 16 | BV53: non | BW53: non | BX53: non | BY53: non | BZ53: non | CA53: non | CB53: non | CC53: non | CD53: oui | CE53: oui | CF53: non | CG53: non | CH53: non | CI53: non | CJ53: non | CK53: oui | CL53: 807.5113176 | CM53: 866.5950176 | CS53: =IF(VLOOKUP(BS53,Indicateurs!$B$4:$E$1111,4,FALSE)="","",VLOOKUP(BS53,Indicateurs!$B$4:$E$1111,4,FALSE)) -> 732 | CT53: ND | CU53: 0.05 | DA53: =IFERROR(SUM(VLOOKUP($BS53,'État & Plan d''action'!$B$4:$AA$1111,18,FALSE),VLOOKUP($BS53,'État & Plan d''action'!$B$4:$AA$1111,20,FALSE))/(VLOOKUP($BS53,'Audit de l''eau'!$B$3:$I$1111,8,FALSE)),"") -> 1.281448892 | DB53: =IFERROR(SUM(VLOOKUP($BS53,'État & Plan d''action'!$B$4:$AA$1111,19,FALSE),VLOOKUP($BS53,'État & Plan d''action'!$B$4:$AA$1111,21,FALSE))/(VLOOKUP($BS53,'Audit de l''eau'!$B$3:$I$1111,8,FALSE)),"") -> 1.601811114 | DC53: ND | DD53: 6 | DF53: 0 | DG53: 0 | DJ53: =IF(VLOOKUP($BS53,'État & Plan d''action'!$B$4:$AR$1111,36,FALSE)="","",VLOOKUP($BS53,'État & Plan d''action'!$B$4:$AR$1111,36,FALSE)) -> 0 | DK53: =IF(VLOOKUP($BS53,'État & Plan d''action'!$B$4:$AR$1111,38,FALSE)="","",VLOOKUP($BS53,'État & Plan d''action'!$B$4:$AR$1111,38,FALSE)) -> 2 | DL53: =IF(VLOOKUP($BS53,'État & Plan d''action'!$B$4:$AR$1111,37,FALSE)="","",VLOOKUP($BS53,'État & Plan d''action'!$B$4:$AR$1111,37,FALSE)) -> 8
BS54: 94250 | BT54: BÉGIN | BU54: 2 | BV54: non | BW54: non | BX54: non | BY54: non | BZ54: non | CA54: non | CB54: non | CC54: non | CD54: oui | CE54: oui | CF54: oui | CG54: oui | CH54: oui | CI54: oui | CJ54: non | CK54: oui | CL54: 443.7783399 | CM54: 428.8951468 | CN54: 514.7989386 | CO54: 410.0341461 | CP54: 420.8263693 | CQ54: 429.9500746 | CS54: =IF(VLOOKUP(BS54,Indicateurs!$B$4:$E$1111,4,FALSE)="","",VLOOKUP(BS54,Indicateurs!$B$4:$E$1111,4,FALSE)) -> 569 | CT54: ND | CU54: 0 | CW54: 0.1 | DA54: =IFERROR(SUM(VLOOKUP($BS54,'État & Plan d''action'!$B$4:$AA$1111,18,FALSE),VLOOKUP($BS54,'État & Plan d''action'!$B$4:$AA$1111,20,FALSE))/(VLOOKUP($BS54,'Audit de l''eau'!$B$3:$I$1111,8,FALSE)),"") -> 0 | DB54: =IFERROR(SUM(VLOOKUP($BS54,'État & Plan d''action'!$B$4:$AA$1111,19,FALSE),VLOOKUP($BS54,'État & Plan d''action'!$B$4:$AA$1111,21,FALSE))/(VLOOKUP($BS54,'Audit de l''eau'!$B$3:$I$1111,8,FALSE)),"") -> 0 | DC54: ND | DD54: 0 | DF54: 2 | DG54: 0 | DH54: 1 | DJ54: =IF(VLOOKUP($BS54,'État & Plan d''action'!$B$4:$AR$1111,36,FALSE)="","",VLOOKUP($BS54,'État & Plan d''action'!$B$4:$AR$1111,36,FALSE)) -> 0 | DK54: =IF(VLOOKUP($BS54,'État & Plan d''action'!$B$4:$AR$1111,38,FALSE)="","",VLOOKUP($BS54,'État & Plan d''action'!$B$4:$AR$1111,38,FALSE)) -> 6 | DL54: =IF(VLOOKUP($BS54,'État & Plan d''action'!$B$4:$AR$1111,37,FALSE)="","",VLOOKUP($BS54,'État & Plan d''action'!$B$4:$AR$1111,37,FALSE)) -> 0
AN55: PROPORTION DES LONGUEURS DE RÉSEAU DE DISTRIBUTION AUSCULTÉS ET NOMBRE DE FUITES RÉPARÉES PAR ANNÉE | BS55: 89050 | BT55: BELCOURT | BU55: 8 | BV55: oui | BW55: oui | BX55: oui | BY55: oui | BZ55: oui | CA55: oui | CB55: oui | CC55: oui | CD55: non | CE55: non | CF55: non | CG55: non | CH55: non | CI55: non | CJ55: non | CK55: non | CS55: =IF(VLOOKUP(BS55,Indicateurs!$B$4:$E$1111,4,FALSE)="","",VLOOKUP(BS55,Indicateurs!$B$4:$E$1111,4,FALSE)) ->  | CT55: ND | DA55: =IFERROR(SUM(VLOOKUP($BS55,'État & Plan d''action'!$B$4:$AA$1111,18,FALSE),VLOOKUP($BS55,'État & Plan d''action'!$B$4:$AA$1111,20,FALSE))/(VLOOKUP($BS55,'Audit de l''eau'!$B$3:$I$1111,8,FALSE)),"") ->  | DB55: =IFERROR(SUM(VLOOKUP($BS55,'État & Plan d''action'!$B$4:$AA$1111,19,FALSE),VLOOKUP($BS55,'État & Plan d''action'!$B$4:$AA$1111,21,FALSE))/(VLOOKUP($BS55,'Audit de l''eau'!$B$3:$I$1111,8,FALSE)),"") ->  | DC55: ND | DF55: 0 | DG55: 0 | DJ55: =IF(VLOOKUP($BS55,'État & Plan d''action'!$B$4:$AR$1111,36,FALSE)="","",VLOOKUP($BS55,'État & Plan d''action'!$B$4:$AR$1111,36,FALSE)) ->  | DK55: =IF(VLOOKUP($BS55,'État & Plan d''action'!$B$4:$AR$1111,38,FALSE)="","",VLOOKUP($BS55,'État & Plan d''action'!$B$4:$AR$1111,38,FALSE)) ->  | DL55: =IF(VLOOKUP($BS55,'État & Plan d''action'!$B$4:$AR$1111,37,FALSE)="","",VLOOKUP($BS55,'État & Plan d''action'!$B$4:$AR$1111,37,FALSE)) -> 
AP56: 2012 | AQ56: 2013 | AR56: 2014 | AS56: 2015 | AT56: 2016 | AU56: 2017 | AV56: 2018 | AW56: 2019 (prévu) | BS56: 85065 | BT56: BELLETERRE | BU56: 8 | BV56: oui | BW56: oui | BX56: oui | BY56: oui | BZ56: oui | CA56: oui | CB56: oui | CC56: oui | CD56: non | CE56: non | CF56: non | CG56: non | CH56: non | CI56: non | CJ56: non | CK56: non | CS56: =IF(VLOOKUP(BS56,Indicateurs!$B$4:$E$1111,4,FALSE)="","",VLOOKUP(BS56,Indicateurs!$B$4:$E$1111,4,FALSE)) ->  | CT56: ND | DA56: =IFERROR(SUM(VLOOKUP($BS56,'État & Plan d''action'!$B$4:$AA$1111,18,FALSE),VLOOKUP($BS56,'État & Plan d''action'!$B$4:$AA$1111,20,FALSE))/(VLOOKUP($BS56,'Audit de l''eau'!$B$3:$I$1111,8,FALSE)),"") ->  | DB56: =IFERROR(SUM(VLOOKUP($BS56,'État & Plan d''action'!$B$4:$AA$1111,19,FALSE),VLOOKUP($BS56,'État & Plan d''action'!$B$4:$AA$1111,21,FALSE))/(VLOOKUP($BS56,'Audit de l''eau'!$B$3:$I$1111,8,FALSE)),"") ->  | DC56: ND | DF56: 0 | DG56: 0 | DJ56: =IF(VLOOKUP($BS56,'État & Plan d''action'!$B$4:$AR$1111,36,FALSE)="","",VLOOKUP($BS56,'État & Plan d''action'!$B$4:$AR$1111,36,FALSE)) ->  | DK56: =IF(VLOOKUP($BS56,'État & Plan d''action'!$B$4:$AR$1111,38,FALSE)="","",VLOOKUP($BS56,'État & Plan d''action'!$B$4:$AR$1111,38,FALSE)) ->  | DL56: =IF(VLOOKUP($BS56,'État & Plan d''action'!$B$4:$AR$1111,37,FALSE)="","",VLOOKUP($BS56,'État & Plan d''action'!$B$4:$AR$1111,37,FALSE)) -> 
AO57: =W57 -> 0 | AP57: =IF($W$21="",CU$7,IF(Y$25="non","ND",IF(VLOOKUP($W$21,$BS$8:$DB$1115,29,FALSE)="","ND",VLOOKUP($W$21,$BS$8:$DB$1115,29,FALSE)))) -> 0.54 | AQ57: =IF($W$21="",CV$7,IF(Z$25="non","ND",IF(VLOOKUP($W$21,$BS$8:$DB$1115,30,FALSE)="","ND",VLOOKUP($W$21,$BS$8:$DB$1115,30,FALSE)))) -> 0.56 | AR57: =IF($W$21="",CW$7,IF(AA$25="non","ND",IF(VLOOKUP($W$21,$BS$8:$DB$1115,31,FALSE)="","ND",VLOOKUP($W$21,$BS$8:$DB$1115,31,FALSE)))) -> 0.74 | AS57: =IF($W$21="",CX$7,IF(AB$25="non","ND",IF(VLOOKUP($W$21,$BS$8:$DB$1115,32,FALSE)="","ND",VLOOKUP($W$21,$BS$8:$DB$1115,32,FALSE)))) -> 0.78 | AT57: =IF($W$21="",CY$7,IF(AC$25="non","ND",IF(VLOOKUP($W$21,$BS$8:$DB$1115,33,FALSE)="","ND",VLOOKUP($W$21,$BS$8:$DB$1115,33,FALSE)))) -> 0.85 | AU57: =IF($W$21="",CZ$7,IF(AD$25="non","ND",IF(VLOOKUP($W$21,$BS$8:$DB$1115,34,FALSE)="","ND",VLOOKUP($W$21,$BS$8:$DB$1115,34,FALSE)))) -> 0.9019886698 | AV57: =IF($W$21="",DA$7,IF(AE$25="non","ND",IF(VLOOKUP($W$21,$BS$8:$DB$1115,35,FALSE)="","ND",VLOOKUP($W$21,$BS$8:$DB$1115,35,FALSE)))) -> 0.8807061573 | AW57: =IF($W$21="",DB$7,IF(AF$25="non","ND",IF(VLOOKUP($W$21,$BS$8:$DB$1115,36,FALSE)=0,"ND",VLOOKUP($W$21,$BS$8:$DB$1115,36,FALSE)))) -> 1.006822127 | BS57: 57040 | BT57: BELOEIL | BU57: 16 | BV57: non | BW57: non | BX57: non | BY57: non | BZ57: non | CA57: non | CB57: non | CC57: non | CD57: oui | CE57: oui | CF57: oui | CG57: oui | CH57: oui | CI57: oui | CJ57: oui | CK57: oui | CL57: 391.9978839 | CM57: 445.758147 | CN57: 382.3968622 | CO57: 343.9779123 | CP57: 360.1916843 | CQ57: 365.3457442 | CR57: 357.7533885 | CS57: =IF(VLOOKUP(BS57,Indicateurs!$B$4:$E$1111,4,FALSE)="","",VLOOKUP(BS57,Indicateurs!$B$4:$E$1111,4,FALSE)) -> 344 | CT57: ND | CU57: 1 | CV57: 1 | CW57: 1 | CX57: 1 | CY57: 1 | CZ57: 1 | DA57: =IFERROR(SUM(VLOOKUP($BS57,'État & Plan d''action'!$B$4:$AA$1111,18,FALSE),VLOOKUP($BS57,'État & Plan d''action'!$B$4:$AA$1111,20,FALSE))/(VLOOKUP($BS57,'Audit de l''eau'!$B$3:$I$1111,8,FALSE)),"") -> 1.013844855 | DB57: =IFERROR(SUM(VLOOKUP($BS57,'État & Plan d''action'!$B$4:$AA$1111,19,FALSE),VLOOKUP($BS57,'État & Plan d''action'!$B$4:$AA$1111,21,FALSE))/(VLOOKUP($BS57,'Audit de l''eau'!$B$3:$I$1111,8,FALSE)),"") -> 1.013844855 | DC57: ND | DD57: 17 | DE57: 16 | DF57: 9 | DG57: 16 | DH57: 16 | DI57: 23 | DJ57: =IF(VLOOKUP($BS57,'État & Plan d''action'!$B$4:$AR$1111,36,FALSE)="","",VLOOKUP($BS57,'État & Plan d''action'!$B$4:$AR$1111,36,FALSE)) -> 18 | DK57: =IF(VLOOKUP($BS57,'État & Plan d''action'!$B$4:$AR$1111,38,FALSE)="","",VLOOKUP($BS57,'État & Plan d''action'!$B$4:$AR$1111,38,FALSE)) -> 5 | DL57: =IF(VLOOKUP($BS57,'État & Plan d''action'!$B$4:$AR$1111,37,FALSE)="","",VLOOKUP($BS57,'État & Plan d''action'!$B$4:$AR$1111,37,FALSE)) -> 15
AO58: =W58 -> 0 | AP58: =IF($W$21="",DD$7,IF(Y$25="non","ND",IF(VLOOKUP($W$21,$BS$8:$DL$1115,38,FALSE)="","ND",VLOOKUP($W$21,$BS$8:$DL$1115,38,FALSE)))) -> 9068 | AQ58: =IF($W$21="",DE$7,IF(Z$25="non","ND",IF(VLOOKUP($W$21,$BS$8:$DL$1115,39,FALSE)="","ND",VLOOKUP($W$21,$BS$8:$DL$1115,39,FALSE)))) -> 8859 | AR58: =IF($W$21="",DF$7,IF(AA$25="non","ND",IF(VLOOKUP($W$21,$BS$8:$DL$1115,40,FALSE)="","ND",VLOOKUP($W$21,$BS$8:$DL$1115,40,FALSE)))) -> 9915 | AS58: =IF($W$21="",DG$7,IF(AB$25="non","ND",IF(VLOOKUP($W$21,$BS$8:$DL$1115,41,FALSE)="","ND",VLOOKUP($W$21,$BS$8:$DL$1115,41,FALSE)))) -> 10153 | AT58: =IF($W$21="",DH$7,IF(AC$25="non","ND",IF(VLOOKUP($W$21,$BS$8:$DL$1115,42,FALSE)="","ND",VLOOKUP($W$21,$BS$8:$DL$1115,42,FALSE)))) -> 8768 | AU58: =IF($W$21="",DI$7,IF(AD$25="non","ND",IF(VLOOKUP($W$21,$BS$8:$DL$1115,43,FALSE)="","ND",VLOOKUP($W$21,$BS$8:$DL$1115,43,FALSE)))) -> 8358 | AV58: =IF($W$21="",DK$7+DL$7+DJ$7,IF(AE$25="non","ND",IF(VLOOKUP($W$21,$BS$8:$DL$1115,44,FALSE)="","ND",VLOOKUP($W$21,$BS$8:$DL$1115,44,FALSE)+VLOOKUP($W$21,$BS$8:$DL$1115,45,FALSE)+VLOOKUP($W$21,$BS$8:$DL$1115,46,FALSE)))) -> 9486 | AW58: 50 | BS58: 88070 | BT58: BERRY | BU58: 8 | BV58: oui | BW58: oui | BX58: oui | BY58: oui | BZ58: oui | CA58: oui | CB58: oui | CC58: oui | CD58: non | CE58: non | CF58: non | CG58: non | CH58: non | CI58: non | CJ58: non | CK58: non | CS58: =IF(VLOOKUP(BS58,Indicateurs!$B$4:$E$1111,4,FALSE)="","",VLOOKUP(BS58,Indicateurs!$B$4:$E$1111,4,FALSE)) ->  | CT58: ND | CU58: 0 | DA58: =IFERROR(SUM(VLOOKUP($BS58,'État & Plan d''action'!$B$4:$AA$1111,18,FALSE),VLOOKUP($BS58,'État & Plan d''action'!$B$4:$AA$1111,20,FALSE))/(VLOOKUP($BS58,'Audit de l''eau'!$B$3:$I$1111,8,FALSE)),"") ->  | DB58: =IFERROR(SUM(VLOOKUP($BS58,'État & Plan d''action'!$B$4:$AA$1111,19,FALSE),VLOOKUP($BS58,'État & Plan d''action'!$B$4:$AA$1111,21,FALSE))/(VLOOKUP($BS58,'Audit de l''eau'!$B$3:$I$1111,8,FALSE)),"") ->  | DC58: ND | DD58: 0 | DF58: 0 | DG58: 0 | DJ58: =IF(VLOOKUP($BS58,'État & Plan d''action'!$B$4:$AR$1111,36,FALSE)="","",VLOOKUP($BS58,'État & Plan d''action'!$B$4:$AR$1111,36,FALSE)) ->  | DK58: =IF(VLOOKUP($BS58,'État & Plan d''action'!$B$4:$AR$1111,38,FALSE)="","",VLOOKUP($BS58,'État & Plan d''action'!$B$4:$AR$1111,38,FALSE)) ->  | DL58: =IF(VLOOKUP($BS58,'État & Plan d''action'!$B$4:$AR$1111,37,FALSE)="","",VLOOKUP($BS58,'État & Plan d''action'!$B$4:$AR$1111,37,FALSE)) -> 
AO59: dummy 1 | AP59: 0 | AQ59: 0 | AR59: 0 | AS59: 0 | AT59: 0 | AU59: 0 | AV59: 0 | BS59: 18065 | BT59: BERTHIER-SUR-MER | BU59: 12 | BV59: non | BW59: non | BX59: non | BY59: non | BZ59: non | CA59: non | CB59: non | CC59: non | CD59: oui | CE59: oui | CF59: oui | CG59: oui | CH59: oui | CI59: oui | CJ59: oui | CK59: oui | CL59: 273.6681593 | CM59: 174.0311591 | CN59: 286.4314152 | CO59: 227.4965762 | CP59: 248.2297555 | CQ59: 266.6256831 | CR59: 272.6989698 | CS59: =IF(VLOOKUP(BS59,Indicateurs!$B$4:$E$1111,4,FALSE)="","",VLOOKUP(BS59,Indicateurs!$B$4:$E$1111,4,FALSE)) -> 276 | CT59: ND | CU59: 0.2 | CV59: 1 | CW59: 1 | CX59: 1 | CY59: 1 | CZ59: 1 | DA59: =IFERROR(SUM(VLOOKUP($BS59,'État & Plan d''action'!$B$4:$AA$1111,18,FALSE),VLOOKUP($BS59,'État & Plan d''action'!$B$4:$AA$1111,20,FALSE))/(VLOOKUP($BS59,'Audit de l''eau'!$B$3:$I$1111,8,FALSE)),"") -> 0 | DB59: =IFERROR(SUM(VLOOKUP($BS59,'État & Plan d''action'!$B$4:$AA$1111,19,FALSE),VLOOKUP($BS59,'État & Plan d''action'!$B$4:$AA$1111,21,FALSE))/(VLOOKUP($BS59,'Audit de l''eau'!$B$3:$I$1111,8,FALSE)),"") -> 1 | DC59: ND | DD59: 1 | DE59: 1 | DF59: 1 | DG59: 1 | DH59: 1 | DI59: 1 | DJ59: =IF(VLOOKUP($BS59,'État & Plan d''action'!$B$4:$AR$1111,36,FALSE)="","",VLOOKUP($BS59,'État & Plan d''action'!$B$4:$AR$1111,36,FALSE)) -> 1 | DK59: =IF(VLOOKUP($BS59,'État & Plan d''action'!$B$4:$AR$1111,38,FALSE)="","",VLOOKUP($BS59,'État & Plan d''action'!$B$4:$AR$1111,38,FALSE)) -> 0 | DL59: =IF(VLOOKUP($BS59,'État & Plan d''action'!$B$4:$AR$1111,37,FALSE)="","",VLOOKUP($BS59,'État & Plan d''action'!$B$4:$AR$1111,37,FALSE)) -> 0
AO60: dummy 2 | AP60: 0 | AQ60: 0 | AR60: 0 | AS60: 0 | AT60: 0 | AU60: 0 | AV60: 0 | BS60: 52035 | BT60: BERTHIERVILLE | BU60: 14 | BV60: non | BW60: non | BX60: non | BY60: non | BZ60: non | CA60: non | CB60: non | CC60: non | CD60: oui | CE60: oui | CF60: oui | CG60: non | CH60: oui | CI60: non | CJ60: oui | CK60: oui | CL60: 1132.021645 | CM60: 1115.176824 | CN60: 1070.27147 | CP60: 1139.329891 | CR60: 1067.365637 | CS60: =IF(VLOOKUP(BS60,Indicateurs!$B$4:$E$1111,4,FALSE)="","",VLOOKUP(BS60,Indicateurs!$B$4:$E$1111,4,FALSE)) -> 1194 | CT60: ND | CU60: 0.01 | CV60: 0 | CX60: 0 | CY60: 1 | CZ60: 1 | DA60: =IFERROR(SUM(VLOOKUP($BS60,'État & Plan d''action'!$B$4:$AA$1111,18,FALSE),VLOOKUP($BS60,'État & Plan d''action'!$B$4:$AA$1111,20,FALSE))/(VLOOKUP($BS60,'Audit de l''eau'!$B$3:$I$1111,8,FALSE)),"") -> 1 | DB60: =IFERROR(SUM(VLOOKUP($BS60,'État & Plan d''action'!$B$4:$AA$1111,19,FALSE),VLOOKUP($BS60,'État & Plan d''action'!$B$4:$AA$1111,21,FALSE))/(VLOOKUP($BS60,'Audit de l''eau'!$B$3:$I$1111,8,FALSE)),"") -> 0.06436041834 | DC60: ND | DD60: 11 | DE60: 6 | DF60: 0 | DG60: 12 | DI60: 4 | DJ60: =IF(VLOOKUP($BS60,'État & Plan d''action'!$B$4:$AR$1111,36,FALSE)="","",VLOOKUP($BS60,'État & Plan d''action'!$B$4:$AR$1111,36,FALSE)) -> 0 | DK60: =IF(VLOOKUP($BS60,'État & Plan d''action'!$B$4:$AR$1111,38,FALSE)="","",VLOOKUP($BS60,'État & Plan d''action'!$B$4:$AR$1111,38,FALSE)) -> 0 | DL60: =IF(VLOOKUP($BS60,'État & Plan d''action'!$B$4:$AR$1111,37,FALSE)="","",VLOOKUP($BS60,'État & Plan d''action'!$B$4:$AR$1111,37,FALSE)) -> 0
AP61: =IF(AP58="","ND",TEXT(AP58,"# ##0")&IF(AP58>1," fuites"," fuite")) -> 9 068 fuites | AQ61: 8 859 fuites | AR61: 9 915 fuites | AS61: 10 153 fuites | AT61: 8 768 fuites | AU61: 8 358 fuites | AV61: 9 486 fuites | BS61: 48005 | BT61: BÉTHANIE | BU61: 16 | BV61: oui | BW61: oui | BX61: oui | BY61: oui | BZ61: oui | CA61: oui | CB61: oui | CC61: oui | CD61: non | CE61: non | CF61: non | CG61: non | CH61: non | CI61: non | CJ61: non | CK61: non | CS61: =IF(VLOOKUP(BS61,Indicateurs!$B$4:$E$1111,4,FALSE)="","",VLOOKUP(BS61,Indicateurs!$B$4:$E$1111,4,FALSE)) ->  | CT61: ND | DA61: =IFERROR(SUM(VLOOKUP($BS61,'État & Plan d''action'!$B$4:$AA$1111,18,FALSE),VLOOKUP($BS61,'État & Plan d''action'!$B$4:$AA$1111,20,FALSE))/(VLOOKUP($BS61,'Audit de l''eau'!$B$3:$I$1111,8,FALSE)),"") ->  | DB61: =IFERROR(SUM(VLOOKUP($BS61,'État & Plan d''action'!$B$4:$AA$1111,19,FALSE),VLOOKUP($BS61,'État & Plan d''action'!$B$4:$AA$1111,21,FALSE))/(VLOOKUP($BS61,'Audit de l''eau'!$B$3:$I$1111,8,FALSE)),"") ->  | DC61: ND | DF61: 0 | DG61: 0 | DJ61: =IF(VLOOKUP($BS61,'État & Plan d''action'!$B$4:$AR$1111,36,FALSE)="","",VLOOKUP($BS61,'État & Plan d''action'!$B$4:$AR$1111,36,FALSE)) ->  | DK61: =IF(VLOOKUP($BS61,'État & Plan d''action'!$B$4:$AR$1111,38,FALSE)="","",VLOOKUP($BS61,'État & Plan d''action'!$B$4:$AR$1111,38,FALSE)) ->  | DL61: =IF(VLOOKUP($BS61,'État & Plan d''action'!$B$4:$AR$1111,37,FALSE)="","",VLOOKUP($BS61,'État & Plan d''action'!$B$4:$AR$1111,37,FALSE)) -> 
AP62: =IF(AP57="","ND",AP57) -> 0.54 | AQ62: 0.56 | AR62: 0.74 | AS62: 0.78 | AT62: 0.85 | AU62: 0.9019886698 | AV62: 0.8807061573 | AW62: =IF(AW57=0,"ND",AW57) -> 1.006822127 | BS62: 13055 | BT62: BIENCOURT | BU62: 1 | BV62: non | BW62: non | BX62: non | BY62: non | BZ62: non | CA62: non | CB62: non | CC62: non | CD62: oui | CE62: oui | CF62: oui | CG62: oui | CH62: oui | CI62: oui | CJ62: oui | CK62: oui | CL62: 182.5562874 | CM62: 384.0733637 | CN62: 357.9376994 | CO62: 514.4000065 | CP62: 562.7532317 | CQ62: 340.3907202 | CR62: 339.2749297 | CS62: =IF(VLOOKUP(BS62,Indicateurs!$B$4:$E$1111,4,FALSE)="","",VLOOKUP(BS62,Indicateurs!$B$4:$E$1111,4,FALSE)) -> 336 | CT62: ND | CU62: 0.75 | CV62: 1 | CW62: 0 | CX62: 0.25 | CY62: 0.1 | CZ62: 0.1 | DA62: =IFERROR(SUM(VLOOKUP($BS62,'État & Plan d''action'!$B$4:$AA$1111,18,FALSE),VLOOKUP($BS62,'État & Plan d''action'!$B$4:$AA$1111,20,FALSE))/(VLOOKUP($BS62,'Audit de l''eau'!$B$3:$I$1111,8,FALSE)),"") -> 0 | DB62: =IFERROR(SUM(VLOOKUP($BS62,'État & Plan d''action'!$B$4:$AA$1111,19,FALSE),VLOOKUP($BS62,'État & Plan d''action'!$B$4:$AA$1111,21,FALSE))/(VLOOKUP($BS62,'Audit de l''eau'!$B$3:$I$1111,8,FALSE)),"") -> 0 | DC62: ND | DD62: 0 | DE62: 1 | DF62: 0 | DG62: 1 | DH62: 0 | DI62: 0 | DJ62: =IF(VLOOKUP($BS62,'État & Plan d''action'!$B$4:$AR$1111,36,FALSE)="","",VLOOKUP($BS62,'État & Plan d''action'!$B$4:$AR$1111,36,FALSE)) -> 0 | DK62: =IF(VLOOKUP($BS62,'État & Plan d''action'!$B$4:$AR$1111,38,FALSE)="","",VLOOKUP($BS62,'État & Plan d''action'!$B$4:$AR$1111,38,FALSE)) -> 0 | DL62: =IF(VLOOKUP($BS62,'État & Plan d''action'!$B$4:$AR$1111,37,FALSE)="","",VLOOKUP($BS62,'État & Plan d''action'!$B$4:$AR$1111,37,FALSE)) -> 0
BS63: 73015 | BT63: BLAINVILLE | BU63: 15 | BV63: non | BW63: non | BX63: non | BY63: non | BZ63: non | CA63: non | CB63: non | CC63: non | CD63: oui | CE63: oui | CF63: oui | CG63: oui | CH63: oui | CI63: oui | CJ63: oui | CK63: oui | CL63: 564.7045556 | CM63: 527.5052061 | CN63: 505.1942507 | CO63: 476 | CP63: 480 | CQ63: 357.8047171 | CR63: 340 | CS63: =IF(VLOOKUP(BS63,Indicateurs!$B$4:$E$1111,4,FALSE)="","",VLOOKUP(BS63,Indicateurs!$B$4:$E$1111,4,FALSE)) -> 381 | CT63: ND | CU63: 0 | CV63: 0.18 | CW63: 0.18 | CY63: 0.2 | CZ63: 0.2 | DA63: =IFERROR(SUM(VLOOKUP($BS63,'État & Plan d''action'!$B$4:$AA$1111,18,FALSE),VLOOKUP($BS63,'État & Plan d''action'!$B$4:$AA$1111,20,FALSE))/(VLOOKUP($BS63,'Audit de l''eau'!$B$3:$I$1111,8,FALSE)),"") -> 0.07239294893 | DB63: =IFERROR(SUM(VLOOKUP($BS63,'État & Plan d''action'!$B$4:$AA$1111,19,FALSE),VLOOKUP($BS63,'État & Plan d''action'!$B$4:$AA$1111,21,FALSE))/(VLOOKUP($BS63,'Audit de l''eau'!$B$3:$I$1111,8,FALSE)),"") -> 0.07239294893 | DC63: ND | DD63: 16 | DE63: 29 | DF63: 17 | DG63: 0 | DH63: 12 | DI63: 30 | DJ63: =IF(VLOOKUP($BS63,'État & Plan d''action'!$B$4:$AR$1111,36,FALSE)="","",VLOOKUP($BS63,'État & Plan d''action'!$B$4:$AR$1111,36,FALSE)) -> 36 | DK63: =IF(VLOOKUP($BS63,'État & Plan d''action'!$B$4:$AR$1111,38,FALSE)="","",VLOOKUP($BS63,'État & Plan d''action'!$B$4:$AR$1111,38,FALSE)) -> 1 | DL63: =IF(VLOOKUP($BS63,'État & Plan d''action'!$B$4:$AR$1111,37,FALSE)="","",VLOOKUP($BS63,'État & Plan d''action'!$B$4:$AR$1111,37,FALSE)) -> 7
AN64: PROPORTION DES LONGUEURS DE RÉSEAU DE DISTRIBUTION AUSCULTÉS ET NOMBRE DE FUITES RÉPARÉES PAR CATÉGORIE | BS64: 98005 | BT64: BLANC-SABLON | BU64: 9 | BV64: non | BW64: non | BX64: non | BY64: non | BZ64: non | CA64: non | CB64: non | CC64: non | CD64: oui | CE64: oui | CF64: oui | CG64: non | CH64: non | CI64: non | CJ64: non | CK64: oui | CL64: 594.3875723 | CM64: 694.4608461 | CN64: 864.5585441 | CS64: =IF(VLOOKUP(BS64,Indicateurs!$B$4:$E$1111,4,FALSE)="","",VLOOKUP(BS64,Indicateurs!$B$4:$E$1111,4,FALSE)) -> 1248 | CT64: ND | CU64: 0.5 | DA64: =IFERROR(SUM(VLOOKUP($BS64,'État & Plan d''action'!$B$4:$AA$1111,18,FALSE),VLOOKUP($BS64,'État & Plan d''action'!$B$4:$AA$1111,20,FALSE))/(VLOOKUP($BS64,'Audit de l''eau'!$B$3:$I$1111,8,FALSE)),"") -> 0 | DB64: =IFERROR(SUM(VLOOKUP($BS64,'État & Plan d''action'!$B$4:$AA$1111,19,FALSE),VLOOKUP($BS64,'État & Plan d''action'!$B$4:$AA$1111,21,FALSE))/(VLOOKUP($BS64,'Audit de l''eau'!$B$3:$I$1111,8,FALSE)),"") -> 0 | DC64: ND | DD64: 4 | DF64: 0 | DG64: 0 | DJ64: =IF(VLOOKUP($BS64,'État & Plan d''action'!$B$4:$AR$1111,36,FALSE)="","",VLOOKUP($BS64,'État & Plan d''action'!$B$4:$AR$1111,36,FALSE)) -> 3 | DK64: =IF(VLOOKUP($BS64,'État & Plan d''action'!$B$4:$AR$1111,38,FALSE)="","",VLOOKUP($BS64,'État & Plan d''action'!$B$4:$AR$1111,38,FALSE)) -> 0 | DL64: =IF(VLOOKUP($BS64,'État & Plan d''action'!$B$4:$AR$1111,37,FALSE)="","",VLOOKUP($BS64,'État & Plan d''action'!$B$4:$AR$1111,37,FALSE)) -> 0
BS65: 83045 | BT65: BLUE SEA | BU65: 7 | BV65: oui | BW65: oui | BX65: oui | BY65: oui | BZ65: oui | CA65: oui | CB65: oui | CC65: oui | CD65: oui | CE65: oui | CF65: non | CG65: non | CH65: non | CI65: non | CJ65: non | CK65: non | CL65: 404.2415434 | CM65: 352.4904378 | CS65: =IF(VLOOKUP(BS65,Indicateurs!$B$4:$E$1111,4,FALSE)="","",VLOOKUP(BS65,Indicateurs!$B$4:$E$1111,4,FALSE)) ->  | CT65: ND | DA65: =IFERROR(SUM(VLOOKUP($BS65,'État & Plan d''action'!$B$4:$AA$1111,18,FALSE),VLOOKUP($BS65,'État & Plan d''action'!$B$4:$AA$1111,20,FALSE))/(VLOOKUP($BS65,'Audit de l''eau'!$B$3:$I$1111,8,FALSE)),"") ->  | DB65: =IFERROR(SUM(VLOOKUP($BS65,'État & Plan d''action'!$B$4:$AA$1111,19,FALSE),VLOOKUP($BS65,'État & Plan d''action'!$B$4:$AA$1111,21,FALSE))/(VLOOKUP($BS65,'Audit de l''eau'!$B$3:$I$1111,8,FALSE)),"") ->  | DC65: ND | DF65: 0 | DG65: 0 | DJ65: =IF(VLOOKUP($BS65,'État & Plan d''action'!$B$4:$AR$1111,36,FALSE)="","",VLOOKUP($BS65,'État & Plan d''action'!$B$4:$AR$1111,36,FALSE)) ->  | DK65: =IF(VLOOKUP($BS65,'État & Plan d''action'!$B$4:$AR$1111,38,FALSE)="","",VLOOKUP($BS65,'État & Plan d''action'!$B$4:$AR$1111,38,FALSE)) ->  | DL65: =IF(VLOOKUP($BS65,'État & Plan d''action'!$B$4:$AR$1111,37,FALSE)="","",VLOOKUP($BS65,'État & Plan d''action'!$B$4:$AR$1111,37,FALSE)) -> 
BS66: 80115 | BT66: BOILEAU | BU66: 7 | BV66: oui | BW66: oui | BX66: oui | BY66: oui | BZ66: oui | CA66: oui | CB66: oui | CC66: oui | CD66: non | CE66: non | CF66: non | CG66: non | CH66: non | CI66: non | CJ66: non | CK66: non | CS66: =IF(VLOOKUP(BS66,Indicateurs!$B$4:$E$1111,4,FALSE)="","",VLOOKUP(BS66,Indicateurs!$B$4:$E$1111,4,FALSE)) ->  | CT66: ND | DA66: =IFERROR(SUM(VLOOKUP($BS66,'État & Plan d''action'!$B$4:$AA$1111,18,FALSE),VLOOKUP($BS66,'État & Plan d''action'!$B$4:$AA$1111,20,FALSE))/(VLOOKUP($BS66,'Audit de l''eau'!$B$3:$I$1111,8,FALSE)),"") ->  | DB66: =IFERROR(SUM(VLOOKUP($BS66,'État & Plan d''action'!$B$4:$AA$1111,19,FALSE),VLOOKUP($BS66,'État & Plan d''action'!$B$4:$AA$1111,21,FALSE))/(VLOOKUP($BS66,'Audit de l''eau'!$B$3:$I$1111,8,FALSE)),"") ->  | DC66: ND | DF66: 0 | DG66: 0 | DJ66: =IF(VLOOKUP($BS66,'État & Plan d''action'!$B$4:$AR$1111,36,FALSE)="","",VLOOKUP($BS66,'État & Plan d''action'!$B$4:$AR$1111,36,FALSE)) ->  | DK66: =IF(VLOOKUP($BS66,'État & Plan d''action'!$B$4:$AR$1111,38,FALSE)="","",VLOOKUP($BS66,'État & Plan d''action'!$B$4:$AR$1111,38,FALSE)) ->  | DL66: =IF(VLOOKUP($BS66,'État & Plan d''action'!$B$4:$AR$1111,37,FALSE)="","",VLOOKUP($BS66,'État & Plan d''action'!$B$4:$AR$1111,37,FALSE)) -> 
C67: ↑ Haut de page | BS67: 73005 | BT67: BOISBRIAND | BU67: 15 | BV67: non | BW67: non | BX67: non | BY67: non | BZ67: non | CA67: non | CB67: non | CC67: non | CD67: oui | CE67: oui | CF67: non | CG67: oui | CH67: oui | CI67: oui | CJ67: oui | CK67: oui | CL67: 756.9372429 | CM67: 759.052423 | CO67: 744.4246263 | CP67: 711.8887356 | CQ67: 526.8225809 | CR67: 539.4971508 | CS67: =IF(VLOOKUP(BS67,Indicateurs!$B$4:$E$1111,4,FALSE)="","",VLOOKUP(BS67,Indicateurs!$B$4:$E$1111,4,FALSE)) -> 580 | CT67: ND | CU67: 0.5 | CV67: 0.5 | CW67: 0.5 | CX67: 1 | CY67: 0 | CZ67: 0 | DA67: =IFERROR(SUM(VLOOKUP($BS67,'État & Plan d''action'!$B$4:$AA$1111,18,FALSE),VLOOKUP($BS67,'État & Plan d''action'!$B$4:$AA$1111,20,FALSE))/(VLOOKUP($BS67,'Audit de l''eau'!$B$3:$I$1111,8,FALSE)),"") -> 1 | DB67: =IFERROR(SUM(VLOOKUP($BS67,'État & Plan d''action'!$B$4:$AA$1111,19,FALSE),VLOOKUP($BS67,'État & Plan d''action'!$B$4:$AA$1111,21,FALSE))/(VLOOKUP($BS67,'Audit de l''eau'!$B$3:$I$1111,8,FALSE)),"") -> 1 | DC67: ND | DD67: 19 | DE67: 12 | DF67: 10 | DG67: 10 | DH67: 1 | DI67: 7 | DJ67: =IF(VLOOKUP($BS67,'État & Plan d''action'!$B$4:$AR$1111,36,FALSE)="","",VLOOKUP($BS67,'État & Plan d''action'!$B$4:$AR$1111,36,FALSE)) -> 3 | DK67: =IF(VLOOKUP($BS67,'État & Plan d''action'!$B$4:$AR$1111,38,FALSE)="","",VLOOKUP($BS67,'État & Plan d''action'!$B$4:$AR$1111,38,FALSE)) -> 0 | DL67: =IF(VLOOKUP($BS67,'État & Plan d''action'!$B$4:$AR$1111,37,FALSE)="","",VLOOKUP($BS67,'État & Plan d''action'!$B$4:$AR$1111,37,FALSE)) -> 0
BS68: 21045 | BT68: BOISCHATEL | BU68: 3 | BV68: non | BW68: non | BX68: non | BY68: non | BZ68: non | CA68: non | CB68: non | CC68: non | CD68: oui | CE68: oui | CF68: oui | CG68: oui | CH68: oui | CI68: oui | CJ68: oui | CK68: oui | CL68: 301.6294208 | CM68: 274.1038979 | CN68: 266.7554522 | CO68: 273.8548352 | CP68: 268.9269885 | CQ68: 269.235293 | CR68: 254.6416288 | CS68: =IF(VLOOKUP(BS68,Indicateurs!$B$4:$E$1111,4,FALSE)="","",VLOOKUP(BS68,Indicateurs!$B$4:$E$1111,4,FALSE)) -> 255 | CT68: ND | CU68: 1 | CV68: 1 | CW68: 1 | CX68: 1 | CY68: 1 | CZ68: 1 | DA68: =IFERROR(SUM(VLOOKUP($BS68,'État & Plan d''action'!$B$4:$AA$1111,18,FALSE),VLOOKUP($BS68,'État & Plan d''action'!$B$4:$AA$1111,20,FALSE))/(VLOOKUP($BS68,'Audit de l''eau'!$B$3:$I$1111,8,FALSE)),"") -> 1 | DB68: =IFERROR(SUM(VLOOKUP($BS68,'État & Plan d''action'!$B$4:$AA$1111,19,FALSE),VLOOKUP($BS68,'État & Plan d''action'!$B$4:$AA$1111,21,FALSE))/(VLOOKUP($BS68,'Audit de l''eau'!$B$3:$I$1111,8,FALSE)),"") -> 1 | DC68: ND | DD68: 8 | DE68: 6 | DF68: 8 | DG68: 6 | DH68: 7 | DI68: 6 | DJ68: =IF(VLOOKUP($BS68,'État & Plan d''action'!$B$4:$AR$1111,36,FALSE)="","",VLOOKUP($BS68,'État & Plan d''action'!$B$4:$AR$1111,36,FALSE)) -> 1 | DK68: =IF(VLOOKUP($BS68,'État & Plan d''action'!$B$4:$AR$1111,38,FALSE)="","",VLOOKUP($BS68,'État & Plan d''action'!$B$4:$AR$1111,38,FALSE)) -> 4 | DL68: =IF(VLOOKUP($BS68,'État & Plan d''action'!$B$4:$AR$1111,37,FALSE)="","",VLOOKUP($BS68,'État & Plan d''action'!$B$4:$AR$1111,37,FALSE)) -> 6
BS69: 73030 | BT69: BOIS-DES-FILION | BU69: 15 | BV69: non | BW69: non | BX69: non | BY69: non | BZ69: non | CA69: non | CB69: non | CC69: non | CD69: oui | CE69: oui | CF69: oui | CG69: oui | CH69: oui | CI69: non | CJ69: non | CK69: oui | CL69: 335.6300759 | CM69: 297.9777158 | CN69: 281.8168153 | CO69: 240.4296165 | CP69: 232.9201402 | CS69: =IF(VLOOKUP(BS69,Indicateurs!$B$4:$E$1111,4,FALSE)="","",VLOOKUP(BS69,Indicateurs!$B$4:$E$1111,4,FALSE)) -> 299 | CT69: ND | CW69: 1 | CX69: 1 | DA69: =IFERROR(SUM(VLOOKUP($BS69,'État & Plan d''action'!$B$4:$AA$1111,18,FALSE),VLOOKUP($BS69,'État & Plan d''action'!$B$4:$AA$1111,20,FALSE))/(VLOOKUP($BS69,'Audit de l''eau'!$B$3:$I$1111,8,FALSE)),"") -> 1 | DB69: =IFERROR(SUM(VLOOKUP($BS69,'État & Plan d''action'!$B$4:$AA$1111,19,FALSE),VLOOKUP($BS69,'État & Plan d''action'!$B$4:$AA$1111,21,FALSE))/(VLOOKUP($BS69,'Audit de l''eau'!$B$3:$I$1111,8,FALSE)),"") -> 0.9808180055 | DC69: ND | DF69: 8 | DG69: 11 | DJ69: =IF(VLOOKUP($BS69,'État & Plan d''action'!$B$4:$AR$1111,36,FALSE)="","",VLOOKUP($BS69,'État & Plan d''action'!$B$4:$AR$1111,36,FALSE)) -> 16 | DK69: =IF(VLOOKUP($BS69,'État & Plan d''action'!$B$4:$AR$1111,38,FALSE)="","",VLOOKUP($BS69,'État & Plan d''action'!$B$4:$AR$1111,38,FALSE)) -> 0 | DL69: =IF(VLOOKUP($BS69,'État & Plan d''action'!$B$4:$AR$1111,37,FALSE)="","",VLOOKUP($BS69,'État & Plan d''action'!$B$4:$AR$1111,37,FALSE)) -> 0
BS70: 83085 | BT70: BOIS-FRANC | BU70: 7 | BV70: oui | BW70: oui | BX70: oui | BY70: oui | BZ70: oui | CA70: oui | CB70: oui | CC70: oui | CD70: oui | CE70: oui | CF70: non | CG70: non | CH70: oui | CI70: non | CJ70: non | CK70: non | CL70: 192.1308656 | CM70: 470.6045809 | CP70: 457.5047479 | CS70: =IF(VLOOKUP(BS70,Indicateurs!$B$4:$E$1111,4,FALSE)="","",VLOOKUP(BS70,Indicateurs!$B$4:$E$1111,4,FALSE)) ->  | CT70: ND | DA70: =IFERROR(SUM(VLOOKUP($BS70,'État & Plan d''action'!$B$4:$AA$1111,18,FALSE),VLOOKUP($BS70,'État & Plan d''action'!$B$4:$AA$1111,20,FALSE))/(VLOOKUP($BS70,'Audit de l''eau'!$B$3:$I$1111,8,FALSE)),"") ->  | DB70: =IFERROR(SUM(VLOOKUP($BS70,'État & Plan d''action'!$B$4:$AA$1111,19,FALSE),VLOOKUP($BS70,'État & Plan d''action'!$B$4:$AA$1111,21,FALSE))/(VLOOKUP($BS70,'Audit de l''eau'!$B$3:$I$1111,8,FALSE)),"") ->  | DC70: ND | DF70: 0 | DG70: 0 | DJ70: =IF(VLOOKUP($BS70,'État & Plan d''action'!$B$4:$AR$1111,36,FALSE)="","",VLOOKUP($BS70,'État & Plan d''action'!$B$4:$AR$1111,36,FALSE)) ->  | DK70: =IF(VLOOKUP($BS70,'État & Plan d''action'!$B$4:$AR$1111,38,FALSE)="","",VLOOKUP($BS70,'État & Plan d''action'!$B$4:$AR$1111,38,FALSE)) ->  | DL70: =IF(VLOOKUP($BS70,'État & Plan d''action'!$B$4:$AR$1111,37,FALSE)="","",VLOOKUP($BS70,'État & Plan d''action'!$B$4:$AR$1111,37,FALSE)) -> 
BS71: 45095 | BT71: BOLTON-EST | BU71: 5 | BV71: oui | BW71: oui | BX71: oui | BY71: oui | BZ71: oui | CA71: oui | CB71: oui | CC71: oui | CD71: non | CE71: non | CF71: non | CG71: non | CH71: non | CI71: non | CJ71: non | CK71: non | CS71: =IF(VLOOKUP(BS71,Indicateurs!$B$4:$E$1111,4,FALSE)="","",VLOOKUP(BS71,Indicateurs!$B$4:$E$1111,4,FALSE)) ->  | CT71: ND | DA71: =IFERROR(SUM(VLOOKUP($BS71,'État & Plan d''action'!$B$4:$AA$1111,18,FALSE),VLOOKUP($BS71,'État & Plan d''action'!$B$4:$AA$1111,20,FALSE))/(VLOOKUP($BS71,'Audit de l''eau'!$B$3:$I$1111,8,FALSE)),"") ->  | DB71: =IFERROR(SUM(VLOOKUP($BS71,'État & Plan d''action'!$B$4:$AA$1111,19,FALSE),VLOOKUP($BS71,'État & Plan d''action'!$B$4:$AA$1111,21,FALSE))/(VLOOKUP($BS71,'Audit de l''eau'!$B$3:$I$1111,8,FALSE)),"") ->  | DC71: ND | DF71: 0 | DG71: 0 | DJ71: =IF(VLOOKUP($BS71,'État & Plan d''action'!$B$4:$AR$1111,36,FALSE)="","",VLOOKUP($BS71,'État & Plan d''action'!$B$4:$AR$1111,36,FALSE)) ->  | DK71: =IF(VLOOKUP($BS71,'État & Plan d''action'!$B$4:$AR$1111,38,FALSE)="","",VLOOKUP($BS71,'État & Plan d''action'!$B$4:$AR$1111,38,FALSE)) ->  | DL71: =IF(VLOOKUP($BS71,'État & Plan d''action'!$B$4:$AR$1111,37,FALSE)="","",VLOOKUP($BS71,'État & Plan d''action'!$B$4:$AR$1111,37,FALSE)) -> 
BS72: 46065 | BT72: BOLTON-OUEST | BU72: 16 | BV72: oui | BW72: oui | BX72: oui | BY72: oui | BZ72: oui | CA72: oui | CB72: oui | CC72: oui | CD72: non | CE72: non | CF72: non | CG72: non | CH72: non | CI72: non | CJ72: non | CK72: non | CS72: =IF(VLOOKUP(BS72,Indicateurs!$B$4:$E$1111,4,FALSE)="","",VLOOKUP(BS72,Indicateurs!$B$4:$E$1111,4,FALSE)) ->  | CT72: ND | DA72: =IFERROR(SUM(VLOOKUP($BS72,'État & Plan d''action'!$B$4:$AA$1111,18,FALSE),VLOOKUP($BS72,'État & Plan d''action'!$B$4:$AA$1111,20,FALSE))/(VLOOKUP($BS72,'Audit de l''eau'!$B$3:$I$1111,8,FALSE)),"") ->  | DB72: =IFERROR(SUM(VLOOKUP($BS72,'État & Plan d''action'!$B$4:$AA$1111,19,FALSE),VLOOKUP($BS72,'État & Plan d''action'!$B$4:$AA$1111,21,FALSE))/(VLOOKUP($BS72,'Audit de l''eau'!$B$3:$I$1111,8,FALSE)),"") ->  | DC72: ND | DF72: 0 | DG72: 0 | DJ72: =IF(VLOOKUP($BS72,'État & Plan d''action'!$B$4:$AR$1111,36,FALSE)="","",VLOOKUP($BS72,'État & Plan d''action'!$B$4:$AR$1111,36,FALSE)) ->  | DK72: =IF(VLOOKUP($BS72,'État & Plan d''action'!$B$4:$AR$1111,38,FALSE)="","",VLOOKUP($BS72,'État & Plan d''action'!$B$4:$AR$1111,38,FALSE)) ->  | DL72: =IF(VLOOKUP($BS72,'État & Plan d''action'!$B$4:$AR$1111,37,FALSE)="","",VLOOKUP($BS72,'État & Plan d''action'!$B$4:$AR$1111,37,FALSE)) -> 
BS73: 05045 | BT73: BONAVENTURE | BU73: 11 | BV73: non | BW73: non | BX73: non | BY73: non | BZ73: non | CA73: non | CB73: non | CC73: non | CD73: non | CE73: non | CF73: non | CG73: non | CH73: non | CI73: oui | CJ73: non | CK73: oui | CQ73: 585.1668839 | CS73: =IF(VLOOKUP(BS73,Indicateurs!$B$4:$E$1111,4,FALSE)="","",VLOOKUP(BS73,Indicateurs!$B$4:$E$1111,4,FALSE)) -> 533 | CT73: ND | DA73: =IFERROR(SUM(VLOOKUP($BS73,'État & Plan d''action'!$B$4:$AA$1111,18,FALSE),VLOOKUP($BS73,'État & Plan d''action'!$B$4:$AA$1111,20,FALSE))/(VLOOKUP($BS73,'Audit de l''eau'!$B$3:$I$1111,8,FALSE)),"") -> 0 | DB73: =IFERROR(SUM(VLOOKUP($BS73,'État & Plan d''action'!$B$4:$AA$1111,19,FALSE),VLOOKUP($BS73,'État & Plan d''action'!$B$4:$AA$1111,21,FALSE))/(VLOOKUP($BS73,'Audit de l''eau'!$B$3:$I$1111,8,FALSE)),"") -> 0 | DC73: ND | DF73: 0 | DG73: 0 | DH73: 6 | DJ73: =IF(VLOOKUP($BS73,'État & Plan d''action'!$B$4:$AR$1111,36,FALSE)="","",VLOOKUP($BS73,'État & Plan d''action'!$B$4:$AR$1111,36,FALSE)) -> 1 | DK73: =IF(VLOOKUP($BS73,'État & Plan d''action'!$B$4:$AR$1111,38,FALSE)="","",VLOOKUP($BS73,'État & Plan d''action'!$B$4:$AR$1111,38,FALSE)) -> 0 | DL73: =IF(VLOOKUP($BS73,'État & Plan d''action'!$B$4:$AR$1111,37,FALSE)="","",VLOOKUP($BS73,'État & Plan d''action'!$B$4:$AR$1111,37,FALSE)) -> 1
BS74: 98010 | BT74: BONNE-ESPÉRANCE | BU74: 9 | BV74: non | BW74: non | BX74: non | BY74: non | BZ74: non | CA74: non | CB74: non | CC74: non | CD74: oui | CE74: oui | CF74: non | CG74: non | CH74: non | CI74: non | CJ74: non | CK74: non | CL74: 589.2020308 | CM74: 552.5475844 | CS74: =IF(VLOOKUP(BS74,Indicateurs!$B$4:$E$1111,4,FALSE)="","",VLOOKUP(BS74,Indicateurs!$B$4:$E$1111,4,FALSE)) ->  | CT74: ND | CU74: 0 | CV74: 0 | DA74: =IFERROR(SUM(VLOOKUP($BS74,'État & Plan d''action'!$B$4:$AA$1111,18,FALSE),VLOOKUP($BS74,'État & Plan d''action'!$B$4:$AA$1111,20,FALSE))/(VLOOKUP($BS74,'Audit de l''eau'!$B$3:$I$1111,8,FALSE)),"") ->  | DB74: =IFERROR(SUM(VLOOKUP($BS74,'État & Plan d''action'!$B$4:$AA$1111,19,FALSE),VLOOKUP($BS74,'État & Plan d''action'!$B$4:$AA$1111,21,FALSE))/(VLOOKUP($BS74,'Audit de l''eau'!$B$3:$I$1111,8,FALSE)),"") ->  | DC74: ND | DD74: 0 | DE74: 0 | DF74: 0 | DG74: 0 | DJ74: =IF(VLOOKUP($BS74,'État & Plan d''action'!$B$4:$AR$1111,36,FALSE)="","",VLOOKUP($BS74,'État & Plan d''action'!$B$4:$AR$1111,36,FALSE)) ->  | DK74: =IF(VLOOKUP($BS74,'État & Plan d''action'!$B$4:$AR$1111,38,FALSE)="","",VLOOKUP($BS74,'État & Plan d''action'!$B$4:$AR$1111,38,FALSE)) ->  | DL74: =IF(VLOOKUP($BS74,'État & Plan d''action'!$B$4:$AR$1111,37,FALSE)="","",VLOOKUP($BS74,'État & Plan d''action'!$B$4:$AR$1111,37,FALSE)) -> 
BS75: 42040 | BT75: BONSECOURS | BU75: 5 | BV75: non | BW75: non | BX75: non | BY75: non | BZ75: non | CA75: non | CB75: non | CC75: non | CD75: oui | CE75: oui | CF75: non | CG75: non | CH75: non | CI75: non | CJ75: oui | CK75: oui | CL75: 994.9937422 | CM75: 805.7090239 | CR75: 268.8477517 | CS75: =IF(VLOOKUP(BS75,Indicateurs!$B$4:$E$1111,4,FALSE)="","",VLOOKUP(BS75,Indicateurs!$B$4:$E$1111,4,FALSE)) -> 190 | CT75: ND | CU75: 0 | CY75: 0 | CZ75: 0 | DA75: =IFERROR(SUM(VLOOKUP($BS75,'État & Plan d''action'!$B$4:$AA$1111,18,FALSE),VLOOKUP($BS75,'État & Plan d''action'!$B$4:$AA$1111,20,FALSE))/(VLOOKUP($BS75,'Audit de l''eau'!$B$3:$I$1111,8,FALSE)),"") -> 1 | DB75: =IFERROR(SUM(VLOOKUP($BS75,'État & Plan d''action'!$B$4:$AA$1111,19,FALSE),VLOOKUP($BS75,'État & Plan d''action'!$B$4:$AA$1111,21,FALSE))/(VLOOKUP($BS75,'Audit de l''eau'!$B$3:$I$1111,8,FALSE)),"") -> 0 | DC75: ND | DD75: 0 | DF75: 0 | DG75: 0 | DI75: 1 | DJ75: =IF(VLOOKUP($BS75,'État & Plan d''action'!$B$4:$AR$1111,36,FALSE)="","",VLOOKUP($BS75,'État & Plan d''action'!$B$4:$AR$1111,36,FALSE)) -> 0 | DK75: =IF(VLOOKUP($BS75,'État & Plan d''action'!$B$4:$AR$1111,38,FALSE)="","",VLOOKUP($BS75,'État & Plan d''action'!$B$4:$AR$1111,38,FALSE)) -> 0 | DL75: =IF(VLOOKUP($BS75,'État & Plan d''action'!$B$4:$AR$1111,37,FALSE)="","",VLOOKUP($BS75,'État & Plan d''action'!$B$4:$AR$1111,37,FALSE)) -> 0
BS76: 58033 | BT76: BOUCHERVILLE | BU76: 16 | BV76: non | BW76: non | BX76: non | BY76: non | BZ76: non | CA76: non | CB76: non | CC76: non | CD76: oui | CE76: oui | CF76: oui | CG76: oui | CH76: oui | CI76: oui | CJ76: oui | CK76: non | CL76: 568.8750008 | CM76: 556.7503758 | CN76: 538.2517516 | CO76: 556.6982336 | CP76: 577.5730575 | CQ76: 766.1369781 | CR76: 701.9022739 | CS76: =IF(VLOOKUP(BS76,Indicateurs!$B$4:$E$1111,4,FALSE)="","",VLOOKUP(BS76,Indicateurs!$B$4:$E$1111,4,FALSE)) ->  | CT76: ND | CU76: 1 | CV76: 1 | CW76: 1 | CX76: 1 | CY76: 1 | CZ76: 1 | DA76: =IFERROR(SUM(VLOOKUP($BS76,'État & Plan d''action'!$B$4:$AA$1111,18,FALSE),VLOOKUP($BS76,'État & Plan d''action'!$B$4:$AA$1111,20,FALSE))/(VLOOKUP($BS76,'Audit de l''eau'!$B$3:$I$1111,8,FALSE)),"") ->  | DB76: =IFERROR(SUM(VLOOKUP($BS76,'État & Plan d''action'!$B$4:$AA$1111,19,FALSE),VLOOKUP($BS76,'État & Plan d''action'!$B$4:$AA$1111,21,FALSE))/(VLOOKUP($BS76,'Audit de l''eau'!$B$3:$I$1111,8,FALSE)),"") ->  | DC76: ND | DD76: 15 | DE76: 9 | DF76: 8 | DG76: 7 | DH76: 40 | DI76: 57 | DJ76: =IF(VLOOKUP($BS76,'État & Plan d''action'!$B$4:$AR$1111,36,FALSE)="","",VLOOKUP($BS76,'État & Plan d''action'!$B$4:$AR$1111,36,FALSE)) ->  | DK76: =IF(VLOOKUP($BS76,'État & Plan d''action'!$B$4:$AR$1111,38,FALSE)="","",VLOOKUP($BS76,'État & Plan d''action'!$B$4:$AR$1111,38,FALSE)) ->  | DL76: =IF(VLOOKUP($BS76,'État & Plan d''action'!$B$4:$AR$1111,37,FALSE)="","",VLOOKUP($BS76,'État & Plan d''action'!$B$4:$AR$1111,37,FALSE)) -> 
BS77: 83050 | BT77: BOUCHETTE | BU77: 7 | BV77: non | BW77: non | BX77: non | BY77: non | BZ77: non | CA77: non | CB77: non | CC77: non | CD77: non | CE77: non | CF77: non | CG77: non | CH77: non | CI77: non | CJ77: non | CK77: non | CS77: =IF(VLOOKUP(BS77,Indicateurs!$B$4:$E$1111,4,FALSE)="","",VLOOKUP(BS77,Indicateurs!$B$4:$E$1111,4,FALSE)) ->  | CT77: ND | CU77: 0 | DA77: =IFERROR(SUM(VLOOKUP($BS77,'État & Plan d''action'!$B$4:$AA$1111,18,FALSE),VLOOKUP($BS77,'État & Plan d''action'!$B$4:$AA$1111,20,FALSE))/(VLOOKUP($BS77,'Audit de l''eau'!$B$3:$I$1111,8,FALSE)),"") ->  | DB77: =IFERROR(SUM(VLOOKUP($BS77,'État & Plan d''action'!$B$4:$AA$1111,19,FALSE),VLOOKUP($BS77,'État & Plan d''action'!$B$4:$AA$1111,21,FALSE))/(VLOOKUP($BS77,'Audit de l''eau'!$B$3:$I$1111,8,FALSE)),"") ->  | DC77: ND | DD77: 0 | DF77: 0 | DG77: 0 | DJ77: =IF(VLOOKUP($BS77,'État & Plan d''action'!$B$4:$AR$1111,36,FALSE)="","",VLOOKUP($BS77,'État & Plan d''action'!$B$4:$AR$1111,36,FALSE)) ->  | DK77: =IF(VLOOKUP($BS77,'État & Plan d''action'!$B$4:$AR$1111,38,FALSE)="","",VLOOKUP($BS77,'État & Plan d''action'!$B$4:$AR$1111,38,FALSE)) ->  | DL77: =IF(VLOOKUP($BS77,'État & Plan d''action'!$B$4:$AR$1111,37,FALSE)="","",VLOOKUP($BS77,'État & Plan d''action'!$B$4:$AR$1111,37,FALSE)) -> 
BS78: 80145 | BT78: BOWMAN | BU78: 7 | BV78: oui | BW78: oui | BX78: oui | BY78: oui | BZ78: oui | CA78: oui | CB78: oui | CC78: oui | CD78: oui | CE78: oui | CF78: oui | CG78: non | CH78: non | CI78: non | CJ78: non | CK78: non | CL78: 436.8089938 | CM78: 431.0702609 | CN78: 402.5647492 | CS78: =IF(VLOOKUP(BS78,Indicateurs!$B$4:$E$1111,4,FALSE)="","",VLOOKUP(BS78,Indicateurs!$B$4:$E$1111,4,FALSE)) ->  | CT78: ND | DA78: =IFERROR(SUM(VLOOKUP($BS78,'État & Plan d''action'!$B$4:$AA$1111,18,FALSE),VLOOKUP($BS78,'État & Plan d''action'!$B$4:$AA$1111,20,FALSE))/(VLOOKUP($BS78,'Audit de l''eau'!$B$3:$I$1111,8,FALSE)),"") ->  | DB78: =IFERROR(SUM(VLOOKUP($BS78,'État & Plan d''action'!$B$4:$AA$1111,19,FALSE),VLOOKUP($BS78,'État & Plan d''action'!$B$4:$AA$1111,21,FALSE))/(VLOOKUP($BS78,'Audit de l''eau'!$B$3:$I$1111,8,FALSE)),"") ->  | DC78: ND | DF78: 0 | DG78: 0 | DJ78: =IF(VLOOKUP($BS78,'État & Plan d''action'!$B$4:$AR$1111,36,FALSE)="","",VLOOKUP($BS78,'État & Plan d''action'!$B$4:$AR$1111,36,FALSE)) ->  | DK78: =IF(VLOOKUP($BS78,'État & Plan d''action'!$B$4:$AR$1111,38,FALSE)="","",VLOOKUP($BS78,'État & Plan d''action'!$B$4:$AR$1111,38,FALSE)) ->  | DL78: =IF(VLOOKUP($BS78,'État & Plan d''action'!$B$4:$AR$1111,37,FALSE)="","",VLOOKUP($BS78,'État & Plan d''action'!$B$4:$AR$1111,37,FALSE)) -> 
BS79: 78075 | BT79: BRÉBEUF | BU79: 15 | BV79: non | BW79: non | BX79: non | BY79: non | BZ79: non | CA79: non | CB79: non | CC79: non | CD79: non | CE79: non | CF79: non | CG79: non | CH79: non | CI79: oui | CJ79: oui | CK79: oui | CQ79: 377.7211764 | CR79: 319.0527005 | CS79: =IF(VLOOKUP(BS79,Indicateurs!$B$4:$E$1111,4,FALSE)="","",VLOOKUP(BS79,Indicateurs!$B$4:$E$1111,4,FALSE)) -> 301 | CT79: ND | CU79: 0 | CV79: 0 | CW79: 0 | CX79: 0 | CY79: 0 | CZ79: 0 | DA79: =IFERROR(SUM(VLOOKUP($BS79,'État & Plan d''action'!$B$4:$AA$1111,18,FALSE),VLOOKUP($BS79,'État & Plan d''action'!$B$4:$AA$1111,20,FALSE))/(VLOOKUP($BS79,'Audit de l''eau'!$B$3:$I$1111,8,FALSE)),"") -> 0 | DB79: =IFERROR(SUM(VLOOKUP($BS79,'État & Plan d''action'!$B$4:$AA$1111,19,FALSE),VLOOKUP($BS79,'État & Plan d''action'!$B$4:$AA$1111,21,FALSE))/(VLOOKUP($BS79,'Audit de l''eau'!$B$3:$I$1111,8,FALSE)),"") -> 0 | DC79: ND | DD79: 2 | DE79: 2 | DF79: 5 | DG79: 6 | DH79: 1 | DI79: 2 | DJ79: =IF(VLOOKUP($BS79,'État & Plan d''action'!$B$4:$AR$1111,36,FALSE)="","",VLOOKUP($BS79,'État & Plan d''action'!$B$4:$AR$1111,36,FALSE)) -> 1 | DK79: =IF(VLOOKUP($BS79,'État & Plan d''action'!$B$4:$AR$1111,38,FALSE)="","",VLOOKUP($BS79,'État & Plan d''action'!$B$4:$AR$1111,38,FALSE)) -> 0 | DL79: =IF(VLOOKUP($BS79,'État & Plan d''action'!$B$4:$AR$1111,37,FALSE)="","",VLOOKUP($BS79,'État & Plan d''action'!$B$4:$AR$1111,37,FALSE)) -> 1
BS80: 46090 | BT80: BRIGHAM | BU80: 16 | BV80: oui | BW80: oui | BX80: oui | BY80: oui | BZ80: oui | CA80: oui | CB80: oui | CC80: oui | CD80: non | CE80: non | CF80: non | CG80: non | CH80: non | CI80: non | CJ80: non | CK80: non | CS80: =IF(VLOOKUP(BS80,Indicateurs!$B$4:$E$1111,4,FALSE)="","",VLOOKUP(BS80,Indicateurs!$B$4:$E$1111,4,FALSE)) ->  | CT80: ND | DA80: =IFERROR(SUM(VLOOKUP($BS80,'État & Plan d''action'!$B$4:$AA$1111,18,FALSE),VLOOKUP($BS80,'État & Plan d''action'!$B$4:$AA$1111,20,FALSE))/(VLOOKUP($BS80,'Audit de l''eau'!$B$3:$I$1111,8,FALSE)),"") ->  | DB80: =IFERROR(SUM(VLOOKUP($BS80,'État & Plan d''action'!$B$4:$AA$1111,19,FALSE),VLOOKUP($BS80,'État & Plan d''action'!$B$4:$AA$1111,21,FALSE))/(VLOOKUP($BS80,'Audit de l''eau'!$B$3:$I$1111,8,FALSE)),"") ->  | DC80: ND | DF80: 0 | DG80: 0 | DJ80: =IF(VLOOKUP($BS80,'État & Plan d''action'!$B$4:$AR$1111,36,FALSE)="","",VLOOKUP($BS80,'État & Plan d''action'!$B$4:$AR$1111,36,FALSE)) ->  | DK80: =IF(VLOOKUP($BS80,'État & Plan d''action'!$B$4:$AR$1111,38,FALSE)="","",VLOOKUP($BS80,'État & Plan d''action'!$B$4:$AR$1111,38,FALSE)) ->  | DL80: =IF(VLOOKUP($BS80,'État & Plan d''action'!$B$4:$AR$1111,37,FALSE)="","",VLOOKUP($BS80,'État & Plan d''action'!$B$4:$AR$1111,37,FALSE)) -> 
BS81: 84005 | BT81: BRISTOL | BU81: 7 | BV81: oui | BW81: oui | BX81: oui | BY81: oui | BZ81: oui | CA81: oui | CB81: oui | CC81: oui | CD81: oui | CE81: oui | CF81: oui | CG81: non | CH81: non | CI81: non | CJ81: non | CK81: non | CL81: 335.4046039 | CM81: 341.6650403 | CN81: 595.3139269 | CS81: =IF(VLOOKUP(BS81,Indicateurs!$B$4:$E$1111,4,FALSE)="","",VLOOKUP(BS81,Indicateurs!$B$4:$E$1111,4,FALSE)) ->  | CT81: ND | DA81: =IFERROR(SUM(VLOOKUP($BS81,'État & Plan d''action'!$B$4:$AA$1111,18,FALSE),VLOOKUP($BS81,'État & Plan d''action'!$B$4:$AA$1111,20,FALSE))/(VLOOKUP($BS81,'Audit de l''eau'!$B$3:$I$1111,8,FALSE)),"") ->  | DB81: =IFERROR(SUM(VLOOKUP($BS81,'État & Plan d''action'!$B$4:$AA$1111,19,FALSE),VLOOKUP($BS81,'État & Plan d''action'!$B$4:$AA$1111,21,FALSE))/(VLOOKUP($BS81,'Audit de l''eau'!$B$3:$I$1111,8,FALSE)),"") ->  | DC81: ND | DF81: 0 | DG81: 0 | DJ81: =IF(VLOOKUP($BS81,'État & Plan d''action'!$B$4:$AR$1111,36,FALSE)="","",VLOOKUP($BS81,'État & Plan d''action'!$B$4:$AR$1111,36,FALSE)) ->  | DK81: =IF(VLOOKUP($BS81,'État & Plan d''action'!$B$4:$AR$1111,38,FALSE)="","",VLOOKUP($BS81,'État & Plan d''action'!$B$4:$AR$1111,38,FALSE)) ->  | DL81: =IF(VLOOKUP($BS81,'État & Plan d''action'!$B$4:$AR$1111,37,FALSE)="","",VLOOKUP($BS81,'État & Plan d''action'!$B$4:$AR$1111,37,FALSE)) -> 
BS82: 46070 | BT82: BROME | BU82: 16 | BV82: oui | BW82: oui | BX82: oui | BY82: oui | BZ82: oui | CA82: oui | CB82: oui | CC82: oui | CD82: non | CE82: non | CF82: non | CG82: non | CH82: non | CI82: non | CJ82: non | CK82: non | CS82: =IF(VLOOKUP(BS82,Indicateurs!$B$4:$E$1111,4,FALSE)="","",VLOOKUP(BS82,Indicateurs!$B$4:$E$1111,4,FALSE)) ->  | CT82: ND | DA82: =IFERROR(SUM(VLOOKUP($BS82,'État & Plan d''action'!$B$4:$AA$1111,18,FALSE),VLOOKUP($BS82,'État & Plan d''action'!$B$4:$AA$1111,20,FALSE))/(VLOOKUP($BS82,'Audit de l''eau'!$B$3:$I$1111,8,FALSE)),"") ->  | DB82: =IFERROR(SUM(VLOOKUP($BS82,'État & Plan d''action'!$B$4:$AA$1111,19,FALSE),VLOOKUP($BS82,'État & Plan d''action'!$B$4:$AA$1111,21,FALSE))/(VLOOKUP($BS82,'Audit de l''eau'!$B$3:$I$1111,8,FALSE)),"") ->  | DC82: ND | DF82: 0 | DG82: 0 | DJ82: =IF(VLOOKUP($BS82,'État & Plan d''action'!$B$4:$AR$1111,36,FALSE)="","",VLOOKUP($BS82,'État & Plan d''action'!$B$4:$AR$1111,36,FALSE)) ->  | DK82: =IF(VLOOKUP($BS82,'État & Plan d''action'!$B$4:$AR$1111,38,FALSE)="","",VLOOKUP($BS82,'État & Plan d''action'!$B$4:$AR$1111,38,FALSE)) ->  | DL82: =IF(VLOOKUP($BS82,'État & Plan d''action'!$B$4:$AR$1111,37,FALSE)="","",VLOOKUP($BS82,'État & Plan d''action'!$B$4:$AR$1111,37,FALSE)) -> 
BS83: 46078 | BT83: BROMONT | BU83: 16 | BV83: non | BW83: non | BX83: non | BY83: non | BZ83: non | CA83: non | CB83: non | CC83: non | CD83: oui | CE83: oui | CF83: oui | CG83: oui | CH83: oui | CI83: oui | CJ83: oui | CK83: oui | CL83: 922.8944589 | CM83: 837.8248203 | CN83: 809.1407594 | CO83: 789.4478393 | CP83: 794.1248072 | CQ83: 817.2502482 | CR83: 788.9515572 | CS83: =IF(VLOOKUP(BS83,Indicateurs!$B$4:$E$1111,4,FALSE)="","",VLOOKUP(BS83,Indicateurs!$B$4:$E$1111,4,FALSE)) -> 729 | CT83: ND | CU83: 0 | CV83: 0 | CW83: 0 | CX83: 1 | CY83: 1 | CZ83: 1 | DA83: =IFERROR(SUM(VLOOKUP($BS83,'État & Plan d''action'!$B$4:$AA$1111,18,FALSE),VLOOKUP($BS83,'État & Plan d''action'!$B$4:$AA$1111,20,FALSE))/(VLOOKUP($BS83,'Audit de l''eau'!$B$3:$I$1111,8,FALSE)),"") -> 0 | DB83: =IFERROR(SUM(VLOOKUP($BS83,'État & Plan d''action'!$B$4:$AA$1111,19,FALSE),VLOOKUP($BS83,'État & Plan d''action'!$B$4:$AA$1111,21,FALSE))/(VLOOKUP($BS83,'Audit de l''eau'!$B$3:$I$1111,8,FALSE)),"") -> 0 | DC83: ND | DD83: 4 | DE83: 3 | DF83: 3 | DG83: 1 | DH83: 2 | DI83: 6 | DJ83: =IF(VLOOKUP($BS83,'État & Plan d''action'!$B$4:$AR$1111,36,FALSE)="","",VLOOKUP($BS83,'État & Plan d''action'!$B$4:$AR$1111,36,FALSE)) -> 4 | DK83: =IF(VLOOKUP($BS83,'État & Plan d''action'!$B$4:$AR$1111,38,FALSE)="","",VLOOKUP($BS83,'État & Plan d''action'!$B$4:$AR$1111,38,FALSE)) -> 0 | DL83: =IF(VLOOKUP($BS83,'État & Plan d''action'!$B$4:$AR$1111,37,FALSE)="","",VLOOKUP($BS83,'État & Plan d''action'!$B$4:$AR$1111,37,FALSE)) -> 0
BS84: 58007 | BT84: BROSSARD | BU84: 16 | BV84: non | BW84: non | BX84: non | BY84: non | BZ84: non | CA84: non | CB84: non | CC84: non | CD84: oui | CE84: oui | CF84: oui | CG84: oui | CH84: oui | CI84: oui | CJ84: oui | CK84: oui | CL84: 369.7335775 | CM84: 374.0524113 | CN84: 359.417796 | CO84: 350.762668 | CP84: 338.9928227 | CQ84: 347.529903 | CR84: 337.3659792 | CS84: =IF(VLOOKUP(BS84,Indicateurs!$B$4:$E$1111,4,FALSE)="","",VLOOKUP(BS84,Indicateurs!$B$4:$E$1111,4,FALSE)) -> 325 | CT84: ND | CU84: 0.35 | CV84: 0.35 | CW84: 0.35 | CX84: 1 | CY84: 1 | CZ84: 1 | DA84: =IFERROR(SUM(VLOOKUP($BS84,'État & Plan d''action'!$B$4:$AA$1111,18,FALSE),VLOOKUP($BS84,'État & Plan d''action'!$B$4:$AA$1111,20,FALSE))/(VLOOKUP($BS84,'Audit de l''eau'!$B$3:$I$1111,8,FALSE)),"") -> 1.319488818 | DB84: =IFERROR(SUM(VLOOKUP($BS84,'État & Plan d''action'!$B$4:$AA$1111,19,FALSE),VLOOKUP($BS84,'État & Plan d''action'!$B$4:$AA$1111,21,FALSE))/(VLOOKUP($BS84,'Audit de l''eau'!$B$3:$I$1111,8,FALSE)),"") -> 1.319488818 | DC84: ND | DD84: 30 | DE84: 30 | DF84: 38 | DG84: 73 | DH84: 33 | DI84: 39 | DJ84: =IF(VLOOKUP($BS84,'État & Plan d''action'!$B$4:$AR$1111,36,FALSE)="","",VLOOKUP($BS84,'État & Plan d''action'!$B$4:$AR$1111,36,FALSE)) -> 15 | DK84: =IF(VLOOKUP($BS84,'État & Plan d''action'!$B$4:$AR$1111,38,FALSE)="","",VLOOKUP($BS84,'État & Plan d''action'!$B$4:$AR$1111,38,FALSE)) -> 5 | DL84: =IF(VLOOKUP($BS84,'État & Plan d''action'!$B$4:$AR$1111,37,FALSE)="","",VLOOKUP($BS84,'État & Plan d''action'!$B$4:$AR$1111,37,FALSE)) -> 8
BS85: 76043 | BT85: BROWNSBURG-CHATHAM | BU85: 15 | BV85: non | BW85: non | BX85: non | BY85: non | BZ85: non | CA85: non | CB85: non | CC85: non | CD85: oui | CE85: oui | CF85: oui | CG85: non | CH85: oui | CI85: oui | CJ85: oui | CK85: oui | CL85: 688.2440476 | CM85: 715.5705611 | CN85: 550.2330044 | CP85: 507.6925225 | CQ85: 621.6088148 | CR85: 582 | CS85: =IF(VLOOKUP(BS85,Indicateurs!$B$4:$E$1111,4,FALSE)="","",VLOOKUP(BS85,Indicateurs!$B$4:$E$1111,4,FALSE)) -> 702 | CT85: ND | CU85: 0.75 | CV85: 0.75 | CW85: 1 | CX85: 0 | CY85: 1 | CZ85: 1 | DA85: =IFERROR(SUM(VLOOKUP($BS85,'État & Plan d''action'!$B$4:$AA$1111,18,FALSE),VLOOKUP($BS85,'État & Plan d''action'!$B$4:$AA$1111,20,FALSE))/(VLOOKUP($BS85,'Audit de l''eau'!$B$3:$I$1111,8,FALSE)),"") -> 1 | DB85: =IFERROR(SUM(VLOOKUP($BS85,'État & Plan d''action'!$B$4:$AA$1111,19,FALSE),VLOOKUP($BS85,'État & Plan d''action'!$B$4:$AA$1111,21,FALSE))/(VLOOKUP($BS85,'Audit de l''eau'!$B$3:$I$1111,8,FALSE)),"") -> 1 | DC85: ND | DD85: 2 | DE85: 1 | DF85: 2 | DG85: 2 | DH85: 2 | DI85: 0 | DJ85: =IF(VLOOKUP($BS85,'État & Plan d''action'!$B$4:$AR$1111,36,FALSE)="","",VLOOKUP($BS85,'État & Plan d''action'!$B$4:$AR$1111,36,FALSE)) -> 0 | DK85: =IF(VLOOKUP($BS85,'État & Plan d''action'!$B$4:$AR$1111,38,FALSE)="","",VLOOKUP($BS85,'État & Plan d''action'!$B$4:$AR$1111,38,FALSE)) -> 0 | DL85: =IF(VLOOKUP($BS85,'État & Plan d''action'!$B$4:$AR$1111,37,FALSE)="","",VLOOKUP($BS85,'État & Plan d''action'!$B$4:$AR$1111,37,FALSE)) -> 0
W86: COMPTEUR D'EAU | BS86: 84025 | BT86: BRYSON | BU86: 7 | BV86: non | BW86: non | BX86: non | BY86: non | BZ86: non | CA86: non | CB86: non | CC86: non | CD86: oui | CE86: oui | CF86: non | CG86: non | CH86: non | CI86: non | CJ86: non | CK86: oui | CL86: 936.4422149 | CM86: 768.8334884 | CS86: =IF(VLOOKUP(BS86,Indicateurs!$B$4:$E$1111,4,FALSE)="","",VLOOKUP(BS86,Indicateurs!$B$4:$E$1111,4,FALSE)) -> 441 | CT86: ND | CU86: 0 | DA86: =IFERROR(SUM(VLOOKUP($BS86,'État & Plan d''action'!$B$4:$AA$1111,18,FALSE),VLOOKUP($BS86,'État & Plan d''action'!$B$4:$AA$1111,20,FALSE))/(VLOOKUP($BS86,'Audit de l''eau'!$B$3:$I$1111,8,FALSE)),"") -> 0.4269854825 | DB86: =IFERROR(SUM(VLOOKUP($BS86,'État & Plan d''action'!$B$4:$AA$1111,19,FALSE),VLOOKUP($BS86,'État & Plan d''action'!$B$4:$AA$1111,21,FALSE))/(VLOOKUP($BS86,'Audit de l''eau'!$B$3:$I$1111,8,FALSE)),"") -> 0.6404782237 | DC86: ND | DD86: 1 | DF86: 0 | DG86: 0 | DJ86: =IF(VLOOKUP($BS86,'État & Plan d''action'!$B$4:$AR$1111,36,FALSE)="","",VLOOKUP($BS86,'État & Plan d''action'!$B$4:$AR$1111,36,FALSE)) -> 1 | DK86: =IF(VLOOKUP($BS86,'État & Plan d''action'!$B$4:$AR$1111,38,FALSE)="","",VLOOKUP($BS86,'État & Plan d''action'!$B$4:$AR$1111,38,FALSE)) -> 0 | DL86: =IF(VLOOKUP($BS86,'État & Plan d''action'!$B$4:$AR$1111,37,FALSE)="","",VLOOKUP($BS86,'État & Plan d''action'!$B$4:$AR$1111,37,FALSE)) -> 4
BS87: 41070 | BT87: BURY | BU87: 5 | BV87: non | BW87: non | BX87: non | BY87: non | BZ87: non | CA87: non | CB87: non | CC87: non | CD87: oui | CE87: oui | CF87: oui | CG87: non | CH87: oui | CI87: oui | CJ87: oui | CK87: oui | CL87: 403.0648666 | CM87: 431.0007961 | CN87: 425.3850378 | CP87: 506.7637074 | CQ87: 455.8997643 | CR87: 475.9140572 | CS87: =IF(VLOOKUP(BS87,Indicateurs!$B$4:$E$1111,4,FALSE)="","",VLOOKUP(BS87,Indicateurs!$B$4:$E$1111,4,FALSE)) -> 568 | CT87: ND | CU87: 0 | CV87: 0.01 | CX87: 0.01 | CY87: 1 | CZ87: 1 | DA87: =IFERROR(SUM(VLOOKUP($BS87,'État & Plan d''action'!$B$4:$AA$1111,18,FALSE),VLOOKUP($BS87,'État & Plan d''action'!$B$4:$AA$1111,20,FALSE))/(VLOOKUP($BS87,'Audit de l''eau'!$B$3:$I$1111,8,FALSE)),"") -> 1 | DB87: =IFERROR(SUM(VLOOKUP($BS87,'État & Plan d''action'!$B$4:$AA$1111,19,FALSE),VLOOKUP($BS87,'État & Plan d''action'!$B$4:$AA$1111,21,FALSE))/(VLOOKUP($BS87,'Audit de l''eau'!$B$3:$I$1111,8,FALSE)),"") -> 1 | DC87: ND | DD87: 0 | DE87: 3 | DF87: 0 | DG87: 4 | DH87: 4 | DI87: 4 | DJ87: =IF(VLOOKUP($BS87,'État & Plan d''action'!$B$4:$AR$1111,36,FALSE)="","",VLOOKUP($BS87,'État & Plan d''action'!$B$4:$AR$1111,36,FALSE)) -> 2 | DK87: =IF(VLOOKUP($BS87,'État & Plan d''action'!$B$4:$AR$1111,38,FALSE)="","",VLOOKUP($BS87,'État & Plan d''action'!$B$4:$AR$1111,38,FALSE)) -> 0 | DL87: =IF(VLOOKUP($BS87,'État & Plan d''action'!$B$4:$AR$1111,37,FALSE)="","",VLOOKUP($BS87,'État & Plan d''action'!$B$4:$AR$1111,37,FALSE)) -> 0
W88: Non résidentiel | X88: Branchements | BS88: 12057 | BT88: CACOUNA | BU88: 1 | BV88: non | BW88: non | BX88: non | BY88: non | BZ88: non | CA88: non | CB88: non | CC88: non | CD88: oui | CE88: oui | CF88: non | CG88: oui | CH88: oui | CI88: oui | CJ88: oui | CK88: oui | CL88: 271.2920384 | CM88: 374.9128241 | CO88: 247.7427193 | CP88: 248.5459588 | CQ88: 256.5896294 | CR88: 256.2069969 | CS88: =IF(VLOOKUP(BS88,Indicateurs!$B$4:$E$1111,4,FALSE)="","",VLOOKUP(BS88,Indicateurs!$B$4:$E$1111,4,FALSE)) -> 313 | CT88: ND | CU88: 0.15 | CW88: 0.2 | CX88: 0.2 | CY88: 0.2 | CZ88: 0.2 | DA88: =IFERROR(SUM(VLOOKUP($BS88,'État & Plan d''action'!$B$4:$AA$1111,18,FALSE),VLOOKUP($BS88,'État & Plan d''action'!$B$4:$AA$1111,20,FALSE))/(VLOOKUP($BS88,'Audit de l''eau'!$B$3:$I$1111,8,FALSE)),"") -> 0 | DB88: =IFERROR(SUM(VLOOKUP($BS88,'État & Plan d''action'!$B$4:$AA$1111,19,FALSE),VLOOKUP($BS88,'État & Plan d''action'!$B$4:$AA$1111,21,FALSE))/(VLOOKUP($BS88,'Audit de l''eau'!$B$3:$I$1111,8,FALSE)),"") -> 0 | DC88: ND | DD88: 1 | DF88: 1 | DG88: 2 | DH88: 0 | DI88: 0 | DJ88: =IF(VLOOKUP($BS88,'État & Plan d''action'!$B$4:$AR$1111,36,FALSE)="","",VLOOKUP($BS88,'État & Plan d''action'!$B$4:$AR$1111,36,FALSE)) -> 0 | DK88: =IF(VLOOKUP($BS88,'État & Plan d''action'!$B$4:$AR$1111,38,FALSE)="","",VLOOKUP($BS88,'État & Plan d''action'!$B$4:$AR$1111,38,FALSE)) -> 0 | DL88: =IF(VLOOKUP($BS88,'État & Plan d''action'!$B$4:$AR$1111,37,FALSE)="","",VLOOKUP($BS88,'État & Plan d''action'!$B$4:$AR$1111,37,FALSE)) -> 0
W89: =IF(X89="ND","",IF(SUM(X89:X90)=0,"Aucun branchement non résidentiel",TEXT(X89,"# ##0")&" branchements sans compteurs (" &TEXT((X89/SUM(X89:X90)),"0%")&")")) -> 51 572 branchements sans compteurs (40%) | X89: =IF(W21="",SUM('État & Plan d''action'!$CK$4:$CK$1111),IF(AND(AE24="oui",AE25="non"),"ND",IF(AND(AE24="non",AE25="oui"),VLOOKUP(W21,'État & Plan d''action'!$B$4:$CQ$1111,88,FALSE),"ND"))) -> 51572 | BS89: 59030 | BT89: CALIXA-LAVALLÉE | BU89: 16 | BV89: non | BW89: non | BX89: non | BY89: non | BZ89: non | CA89: non | CB89: non | CC89: non | CD89: oui | CE89: oui | CF89: oui | CG89: oui | CH89: oui | CI89: oui | CJ89: oui | CK89: oui | CL89: 290.2098762 | CM89: 301.2103816 | CN89: 265.0403453 | CO89: 203.4301812 | CP89: 310.186056 | CQ89: 283.495912 | CR89: 262.0033532 | CS89: =IF(VLOOKUP(BS89,Indicateurs!$B$4:$E$1111,4,FALSE)="","",VLOOKUP(BS89,Indicateurs!$B$4:$E$1111,4,FALSE)) -> 306 | CT89: ND | CU89: 0 | CV89: 0 | CW89: 0 | CX89: 1 | CY89: 0 | CZ89: 0 | DA89: =IFERROR(SUM(VLOOKUP($BS89,'État & Plan d''action'!$B$4:$AA$1111,18,FALSE),VLOOKUP($BS89,'État & Plan d''action'!$B$4:$AA$1111,20,FALSE))/(VLOOKUP($BS89,'Audit de l''eau'!$B$3:$I$1111,8,FALSE)),"") -> 0 | DB89: =IFERROR(SUM(VLOOKUP($BS89,'État & Plan d''action'!$B$4:$AA$1111,19,FALSE),VLOOKUP($BS89,'État & Plan d''action'!$B$4:$AA$1111,21,FALSE))/(VLOOKUP($BS89,'Audit de l''eau'!$B$3:$I$1111,8,FALSE)),"") -> 0 | DC89: ND | DD89: 0 | DE89: 0 | DF89: 0 | DG89: 0 | DH89: 0 | DI89: 0 | DJ89: =IF(VLOOKUP($BS89,'État & Plan d''action'!$B$4:$AR$1111,36,FALSE)="","",VLOOKUP($BS89,'État & Plan d''action'!$B$4:$AR$1111,36,FALSE)) -> 0 | DK89: =IF(VLOOKUP($BS89,'État & Plan d''action'!$B$4:$AR$1111,38,FALSE)="","",VLOOKUP($BS89,'État & Plan d''action'!$B$4:$AR$1111,38,FALSE)) -> 0 | DL89: =IF(VLOOKUP($BS89,'État & Plan d''action'!$B$4:$AR$1111,37,FALSE)="","",VLOOKUP($BS89,'État & Plan d''action'!$B$4:$AR$1111,37,FALSE)) -> 0
W90: =IF(X90="ND","",IF(SUM(X89:X90)=0,"Aucun branchement non résidentiel",TEXT(X90,"# ##0")&" branchements équipés de compteurs (" &TEXT((X90/SUM(X89:X90)),"0%")&")")) -> 75 912 branchements équipés de compteurs (60%) | X90: =IF(W21="",SUM('État & Plan d''action'!$CI$4:$CJ$1111),IF(AND(AE24="oui",AE25="non"),"ND",IF(AND(AE24="non",AE25="oui"),VLOOKUP(W21,'État & Plan d''action'!$B$4:$CQ$1111,86,FALSE)+VLOOKUP(W21,'État & Plan d''action'!$B$4:$CQ$1111,87,FALSE),"ND"))) -> 75912 | BS90: 84030 | BT90: CAMPBELL'S BAY | BU90: 7 | BV90: non | BW90: non | BX90: non | BY90: non | BZ90: non | CA90: non | CB90: non | CC90: non | CD90: non | CE90: non | CF90: non | CG90: non | CH90: non | CI90: non | CJ90: oui | CK90: oui | CR90: 570.2018972 | CS90: =IF(VLOOKUP(BS90,Indicateurs!$B$4:$E$1111,4,FALSE)="","",VLOOKUP(BS90,Indicateurs!$B$4:$E$1111,4,FALSE)) -> 483 | CT90: ND | CU90: 0 | CY90: 0.6 | CZ90: 0.6 | DA90: =IFERROR(SUM(VLOOKUP($BS90,'État & Plan d''action'!$B$4:$AA$1111,18,FALSE),VLOOKUP($BS90,'État & Plan d''action'!$B$4:$AA$1111,20,FALSE))/(VLOOKUP($BS90,'Audit de l''eau'!$B$3:$I$1111,8,FALSE)),"") -> 1.264510278 | DB90: =IFERROR(SUM(VLOOKUP($BS90,'État & Plan d''action'!$B$4:$AA$1111,19,FALSE),VLOOKUP($BS90,'État & Plan d''action'!$B$4:$AA$1111,21,FALSE))/(VLOOKUP($BS90,'Audit de l''eau'!$B$3:$I$1111,8,FALSE)),"") -> 1.264510278 | DC90: ND | DD90: 2 | DF90: 0 | DG90: 0 | DI90: 6 | DJ90: =IF(VLOOKUP($BS90,'État & Plan d''action'!$B$4:$AR$1111,36,FALSE)="","",VLOOKUP($BS90,'État & Plan d''action'!$B$4:$AR$1111,36,FALSE)) -> 3 | DK90: =IF(VLOOKUP($BS90,'État & Plan d''action'!$B$4:$AR$1111,38,FALSE)="","",VLOOKUP($BS90,'État & Plan d''action'!$B$4:$AR$1111,38,FALSE)) -> 6 | DL90: =IF(VLOOKUP($BS90,'État & Plan d''action'!$B$4:$AR$1111,37,FALSE)="","",VLOOKUP($BS90,'État & Plan d''action'!$B$4:$AR$1111,37,FALSE)) -> 4
BS91: 67020 | BT91: CANDIAC | BU91: 16 | BV91: non | BW91: non | BX91: non | BY91: non | BZ91: non | CA91: non | CB91: non | CC91: non | CD91: oui | CE91: oui | CF91: oui | CG91: oui | CH91: oui | CI91: oui | CJ91: oui | CK91: non | CL91: 451.5804556 | CM91: 588.6529196 | CN91: 545.2139972 | CO91: 592.6300481 | CP91: 583.3558165 | CQ91: 533.6230622 | CR91: 483.3734352 | CS91: =IF(VLOOKUP(BS91,Indicateurs!$B$4:$E$1111,4,FALSE)="","",VLOOKUP(BS91,Indicateurs!$B$4:$E$1111,4,FALSE)) ->  | CT91: ND | CU91: 2 | CV91: 2 | CW91: 1 | CX91: 1 | CY91: 1 | CZ91: 1 | DA91: =IFERROR(SUM(VLOOKUP($BS91,'État & Plan d''action'!$B$4:$AA$1111,18,FALSE),VLOOKUP($BS91,'État & Plan d''action'!$B$4:$AA$1111,20,FALSE))/(VLOOKUP($BS91,'Audit de l''eau'!$B$3:$I$1111,8,FALSE)),"") ->  | DB91: =IFERROR(SUM(VLOOKUP($BS91,'État & Plan d''action'!$B$4:$AA$1111,19,FALSE),VLOOKUP($BS91,'État & Plan d''action'!$B$4:$AA$1111,21,FALSE))/(VLOOKUP($BS91,'Audit de l''eau'!$B$3:$I$1111,8,FALSE)),"") ->  | DC91: ND | DD91: 11 | DE91: 6 | DF91: 20 | DG91: 2 | DH91: 12 | DI91: 9 | DJ91: =IF(VLOOKUP($BS91,'État & Plan d''action'!$B$4:$AR$1111,36,FALSE)="","",VLOOKUP($BS91,'État & Plan d''action'!$B$4:$AR$1111,36,FALSE)) ->  | DK91: =IF(VLOOKUP($BS91,'État & Plan d''action'!$B$4:$AR$1111,38,FALSE)="","",VLOOKUP($BS91,'État & Plan d''action'!$B$4:$AR$1111,38,FALSE)) ->  | DL91: =IF(VLOOKUP($BS91,'État & Plan d''action'!$B$4:$AR$1111,37,FALSE)="","",VLOOKUP($BS91,'État & Plan d''action'!$B$4:$AR$1111,37,FALSE)) -> 
BS92: 82020 | BT92: CANTLEY | BU92: 7 | BV92: oui | BW92: oui | BX92: oui | BY92: oui | BZ92: oui | CA92: oui | CB92: oui | CC92: oui | CD92: non | CE92: non | CF92: non | CG92: non | CH92: non | CI92: non | CJ92: non | CK92: non | CS92: =IF(VLOOKUP(BS92,Indicateurs!$B$4:$E$1111,4,FALSE)="","",VLOOKUP(BS92,Indicateurs!$B$4:$E$1111,4,FALSE)) ->  | CT92: ND | DA92: =IFERROR(SUM(VLOOKUP($BS92,'État & Plan d''action'!$B$4:$AA$1111,18,FALSE),VLOOKUP($BS92,'État & Plan d''action'!$B$4:$AA$1111,20,FALSE))/(VLOOKUP($BS92,'Audit de l''eau'!$B$3:$I$1111,8,FALSE)),"") ->  | DB92: =IFERROR(SUM(VLOOKUP($BS92,'État & Plan d''action'!$B$4:$AA$1111,19,FALSE),VLOOKUP($BS92,'État & Plan d''action'!$B$4:$AA$1111,21,FALSE))/(VLOOKUP($BS92,'Audit de l''eau'!$B$3:$I$1111,8,FALSE)),"") ->  | DC92: ND | DF92: 0 | DG92: 0 | DJ92: =IF(VLOOKUP($BS92,'État & Plan d''action'!$B$4:$AR$1111,36,FALSE)="","",VLOOKUP($BS92,'État & Plan d''action'!$B$4:$AR$1111,36,FALSE)) ->  | DK92: =IF(VLOOKUP($BS92,'État & Plan d''action'!$B$4:$AR$1111,38,FALSE)="","",VLOOKUP($BS92,'État & Plan d''action'!$B$4:$AR$1111,38,FALSE)) ->  | DL92: =IF(VLOOKUP($BS92,'État & Plan d''action'!$B$4:$AR$1111,37,FALSE)="","",VLOOKUP($BS92,'État & Plan d''action'!$B$4:$AR$1111,37,FALSE)) -> 
W93: Résidentiel | X93: Immeubles | BS93: 04047 | BT93: CAP-CHAT | BU93: 11 | BV93: non | BW93: non | BX93: non | BY93: non | BZ93: non | CA93: non | CB93: non | CC93: non | CD93: oui | CE93: oui | CF93: non | CG93: non | CH93: non | CI93: oui | CJ93: non | CK93: oui | CL93: 1040.652477 | CM93: 1168.541554 | CQ93: 1807.815484 | CS93: =IF(VLOOKUP(BS93,Indicateurs!$B$4:$E$1111,4,FALSE)="","",VLOOKUP(BS93,Indicateurs!$B$4:$E$1111,4,FALSE)) -> 934 | CT93: ND | CU93: 0.1 | DA93: =IFERROR(SUM(VLOOKUP($BS93,'État & Plan d''action'!$B$4:$AA$1111,18,FALSE),VLOOKUP($BS93,'État & Plan d''action'!$B$4:$AA$1111,20,FALSE))/(VLOOKUP($BS93,'Audit de l''eau'!$B$3:$I$1111,8,FALSE)),"") -> 0.7999931411 | DB93: =IFERROR(SUM(VLOOKUP($BS93,'État & Plan d''action'!$B$4:$AA$1111,19,FALSE),VLOOKUP($BS93,'État & Plan d''action'!$B$4:$AA$1111,21,FALSE))/(VLOOKUP($BS93,'Audit de l''eau'!$B$3:$I$1111,8,FALSE)),"") -> 0.7999931411 | DC93: ND | DD93: 12 | DF93: 0 | DG93: 0 | DH93: 5 | DJ93: =IF(VLOOKUP($BS93,'État & Plan d''action'!$B$4:$AR$1111,36,FALSE)="","",VLOOKUP($BS93,'État & Plan d''action'!$B$4:$AR$1111,36,FALSE)) -> 6 | DK93: =IF(VLOOKUP($BS93,'État & Plan d''action'!$B$4:$AR$1111,38,FALSE)="","",VLOOKUP($BS93,'État & Plan d''action'!$B$4:$AR$1111,38,FALSE)) -> 0 | DL93: =IF(VLOOKUP($BS93,'État & Plan d''action'!$B$4:$AR$1111,37,FALSE)="","",VLOOKUP($BS93,'État & Plan d''action'!$B$4:$AR$1111,37,FALSE)) -> 0
W94: =IF(X94="ND","",IF(SUM(X94:X95)=0,"Aucun branchement non résidentiel",TEXT(X94,"# ##0")&" branchements sans compteurs (" &TEXT((X94/SUM(X94:X95)),"0%")&")")) -> 1 747 221 branchements sans compteurs (88%) | X94: =IF(W21="",SUM('État & Plan d''action'!$CQ$4:$CQ$1111),IF(AND(AE24="oui",AE25="non"),"ND",IF(AND(AE24="non",AE25="oui"),VLOOKUP(W21,'État & Plan d''action'!$B$4:$CQ$1111,94,FALSE),"ND"))) -> 1747221 | BS94: 05060 | BT94: CAPLAN | BU94: 11 | BV94: non | BW94: non | BX94: non | BY94: non | BZ94: non | CA94: non | CB94: non | CC94: non | CD94: oui | CE94: oui | CF94: oui | CG94: oui | CH94: oui | CI94: oui | CJ94: oui | CK94: oui | CL94: 311.1445394 | CM94: 261.5386437 | CN94: 294.6902779 | CO94: 291.5786149 | CP94: 313.4211846 | CQ94: 383.7179361 | CR94: 355.3395927 | CS94: =IF(VLOOKUP(BS94,Indicateurs!$B$4:$E$1111,4,FALSE)="","",VLOOKUP(BS94,Indicateurs!$B$4:$E$1111,4,FALSE)) -> 459 | CT94: ND | CU94: 0.05 | CV94: 0.05 | CW94: 1 | CX94: 1 | CY94: 0 | CZ94: 0 | DA94: =IFERROR(SUM(VLOOKUP($BS94,'État & Plan d''action'!$B$4:$AA$1111,18,FALSE),VLOOKUP($BS94,'État & Plan d''action'!$B$4:$AA$1111,20,FALSE))/(VLOOKUP($BS94,'Audit de l''eau'!$B$3:$I$1111,8,FALSE)),"") -> 0 | DB94: =IFERROR(SUM(VLOOKUP($BS94,'État & Plan d''action'!$B$4:$AA$1111,19,FALSE),VLOOKUP($BS94,'État & Plan d''action'!$B$4:$AA$1111,21,FALSE))/(VLOOKUP($BS94,'Audit de l''eau'!$B$3:$I$1111,8,FALSE)),"") -> 0 | DC94: ND | DD94: 2 | DE94: 1 | DF94: 1 | DG94: 1 | DH94: 4 | DI94: 2 | DJ94: =IF(VLOOKUP($BS94,'État & Plan d''action'!$B$4:$AR$1111,36,FALSE)="","",VLOOKUP($BS94,'État & Plan d''action'!$B$4:$AR$1111,36,FALSE)) -> 0 | DK94: =IF(VLOOKUP($BS94,'État & Plan d''action'!$B$4:$AR$1111,38,FALSE)="","",VLOOKUP($BS94,'État & Plan d''action'!$B$4:$AR$1111,38,FALSE)) -> 0 | DL94: =IF(VLOOKUP($BS94,'État & Plan d''action'!$B$4:$AR$1111,37,FALSE)="","",VLOOKUP($BS94,'État & Plan d''action'!$B$4:$AR$1111,37,FALSE)) -> 0
W95: =IF(X95="ND","",IF(SUM(X94:X95)=0,"Aucun branchement non résidentiel",TEXT(X95,"# ##0")&" branchements équipés de compteurs (" &TEXT((X95/SUM(X94:X95)),"0%")&")")) -> 248 827 branchements équipés de compteurs (12%) | X95: =IF(W21="",SUM('État & Plan d''action'!$CO$4:$CP$1111),IF(AND(AE24="oui",AE25="non"),"ND",IF(AND(AE24="non",AE25="oui"),VLOOKUP(W21,'État & Plan d''action'!$B$4:$CQ$1111,92,FALSE)+VLOOKUP(W21,'État & Plan d''action'!$B$4:$CQ$1111,93,FALSE),"ND"))) -> 248827 | BS95: 18045 | BT95: CAP-SAINT-IGNACE | BU95: 12 | BV95: non | BW95: non | BX95: non | BY95: non | BZ95: non | CA95: non | CB95: non | CC95: non | CD95: oui | CE95: oui | CF95: non | CG95: non | CH95: oui | CI95: oui | CJ95: non | CK95: oui | CL95: 611.4279255 | CM95: 517.3405165 | CP95: 592.0613417 | CQ95: 899.6293023 | CS95: =IF(VLOOKUP(BS95,Indicateurs!$B$4:$E$1111,4,FALSE)="","",VLOOKUP(BS95,Indicateurs!$B$4:$E$1111,4,FALSE)) -> 459 | CT95: ND | CU95: 0 | CX95: 0 | DA95: =IFERROR(SUM(VLOOKUP($BS95,'État & Plan d''action'!$B$4:$AA$1111,18,FALSE),VLOOKUP($BS95,'État & Plan d''action'!$B$4:$AA$1111,20,FALSE))/(VLOOKUP($BS95,'Audit de l''eau'!$B$3:$I$1111,8,FALSE)),"") -> 1 | DB95: =IFERROR(SUM(VLOOKUP($BS95,'État & Plan d''action'!$B$4:$AA$1111,19,FALSE),VLOOKUP($BS95,'État & Plan d''action'!$B$4:$AA$1111,21,FALSE))/(VLOOKUP($BS95,'Audit de l''eau'!$B$3:$I$1111,8,FALSE)),"") -> 1 | DC95: ND | DD95: 7 | DF95: 0 | DG95: 6 | DH95: 5 | DJ95: =IF(VLOOKUP($BS95,'État & Plan d''action'!$B$4:$AR$1111,36,FALSE)="","",VLOOKUP($BS95,'État & Plan d''action'!$B$4:$AR$1111,36,FALSE)) -> 6 | DK95: =IF(VLOOKUP($BS95,'État & Plan d''action'!$B$4:$AR$1111,38,FALSE)="","",VLOOKUP($BS95,'État & Plan d''action'!$B$4:$AR$1111,38,FALSE)) -> 0 | DL95: =IF(VLOOKUP($BS95,'État & Plan d''action'!$B$4:$AR$1111,37,FALSE)="","",VLOOKUP($BS95,'État & Plan d''action'!$B$4:$AR$1111,37,FALSE)) -> 0
BS96: 34030 | BT96: CAP-SANTÉ | BU96: 3 | BV96: non | BW96: non | BX96: non | BY96: non | BZ96: non | CA96: non | CB96: non | CC96: non | CD96: oui | CE96: oui | CF96: non | CG96: non | CH96: oui | CI96: oui | CJ96: oui | CK96: oui | CL96: 434.5427727 | CM96: 398.6768761 | CP96: 266.8807587 | CQ96: 236.5727146 | CR96: 243.0140987 | CS96: =IF(VLOOKUP(BS96,Indicateurs!$B$4:$E$1111,4,FALSE)="","",VLOOKUP(BS96,Indicateurs!$B$4:$E$1111,4,FALSE)) -> 299 | CT96: ND | CU96: 0 | CX96: 1 | CY96: 0.5 | CZ96: 0.5 | DA96: =IFERROR(SUM(VLOOKUP($BS96,'État & Plan d''action'!$B$4:$AA$1111,18,FALSE),VLOOKUP($BS96,'État & Plan d''action'!$B$4:$AA$1111,20,FALSE))/(VLOOKUP($BS96,'Audit de l''eau'!$B$3:$I$1111,8,FALSE)),"") -> 0 | DB96: =IFERROR(SUM(VLOOKUP($BS96,'État & Plan d''action'!$B$4:$AA$1111,19,FALSE),VLOOKUP($BS96,'État & Plan d''action'!$B$4:$AA$1111,21,FALSE))/(VLOOKUP($BS96,'Audit de l''eau'!$B$3:$I$1111,8,FALSE)),"") -> 0 | DC96: ND | DD96: 3 | DF96: 0 | DG96: 7 | DH96: 7 | DI96: 6 | DJ96: =IF(VLOOKUP($BS96,'État & Plan d''action'!$B$4:$AR$1111,36,FALSE)="","",VLOOKUP($BS96,'État & Plan d''action'!$B$4:$AR$1111,36,FALSE)) -> 3 | DK96: =IF(VLOOKUP($BS96,'État & Plan d''action'!$B$4:$AR$1111,38,FALSE)="","",VLOOKUP($BS96,'État & Plan d''action'!$B$4:$AR$1111,38,FALSE)) -> 2 | DL96: =IF(VLOOKUP($BS96,'État & Plan d''action'!$B$4:$AR$1111,37,FALSE)="","",VLOOKUP($BS96,'État & Plan d''action'!$B$4:$AR$1111,37,FALSE)) -> 2
BS97: 57010 | BT97: CARIGNAN | BU97: 16 | BV97: non | BW97: non | BX97: non | BY97: non | BZ97: non | CA97: non | CB97: non | CC97: non | CD97: oui | CE97: oui | CF97: non | CG97: oui | CH97: non | CI97: non | CJ97: non | CK97: oui | CL97: 418.4631091 | CM97: 382.849836 | CO97: 303.6732154 | CS97: =IF(VLOOKUP(BS97,Indicateurs!$B$4:$E$1111,4,FALSE)="","",VLOOKUP(BS97,Indicateurs!$B$4:$E$1111,4,FALSE)) -> 290 | CT97: ND | CU97: 0.12 | CW97: 0 | DA97: =IFERROR(SUM(VLOOKUP($BS97,'État & Plan d''action'!$B$4:$AA$1111,18,FALSE),VLOOKUP($BS97,'État & Plan d''action'!$B$4:$AA$1111,20,FALSE))/(VLOOKUP($BS97,'Audit de l''eau'!$B$3:$I$1111,8,FALSE)),"") -> 0 | DB97: =IFERROR(SUM(VLOOKUP($BS97,'État & Plan d''action'!$B$4:$AA$1111,19,FALSE),VLOOKUP($BS97,'État & Plan d''action'!$B$4:$AA$1111,21,FALSE))/(VLOOKUP($BS97,'Audit de l''eau'!$B$3:$I$1111,8,FALSE)),"") -> 1 | DC97: ND | DD97: 6 | DF97: 0 | DG97: 0 | DJ97: =IF(VLOOKUP($BS97,'État & Plan d''action'!$B$4:$AR$1111,36,FALSE)="","",VLOOKUP($BS97,'État & Plan d''action'!$B$4:$AR$1111,36,FALSE)) -> 3 | DK97: =IF(VLOOKUP($BS97,'État & Plan d''action'!$B$4:$AR$1111,38,FALSE)="","",VLOOKUP($BS97,'État & Plan d''action'!$B$4:$AR$1111,38,FALSE)) -> 0 | DL97: =IF(VLOOKUP($BS97,'État & Plan d''action'!$B$4:$AR$1111,37,FALSE)="","",VLOOKUP($BS97,'État & Plan d''action'!$B$4:$AR$1111,37,FALSE)) -> 0
W98: RÉSULTAT DE VALIDITÉ DES DONNÉES | BS98: 06013 | BT98: CARLETON-SUR-MER | BU98: 11 | BV98: non | BW98: non | BX98: non | BY98: non | BZ98: non | CA98: non | CB98: non | CC98: non | CD98: oui | CE98: oui | CF98: oui | CG98: oui | CH98: non | CI98: oui | CJ98: oui | CK98: non | CL98: 882.582129 | CM98: 899.8276942 | CN98: 796.8086693 | CO98: 634.1655715 | CQ98: 754.9455074 | CR98: 607.488544 | CS98: =IF(VLOOKUP(BS98,Indicateurs!$B$4:$E$1111,4,FALSE)="","",VLOOKUP(BS98,Indicateurs!$B$4:$E$1111,4,FALSE)) ->  | CT98: ND | CU98: 1 | CV98: 1 | CW98: 1 | CY98: 1 | CZ98: 1 | DA98: =IFERROR(SUM(VLOOKUP($BS98,'État & Plan d''action'!$B$4:$AA$1111,18,FALSE),VLOOKUP($BS98,'État & Plan d''action'!$B$4:$AA$1111,20,FALSE))/(VLOOKUP($BS98,'Audit de l''eau'!$B$3:$I$1111,8,FALSE)),"") ->  | DB98: =IFERROR(SUM(VLOOKUP($BS98,'État & Plan d''action'!$B$4:$AA$1111,19,FALSE),VLOOKUP($BS98,'État & Plan d''action'!$B$4:$AA$1111,21,FALSE))/(VLOOKUP($BS98,'Audit de l''eau'!$B$3:$I$1111,8,FALSE)),"") ->  | DC98: ND | DD98: 6 | DE98: 5 | DF98: 4 | DG98: 0 | DH98: 9 | DI98: 11 | DJ98: =IF(VLOOKUP($BS98,'État & Plan d''action'!$B$4:$AR$1111,36,FALSE)="","",VLOOKUP($BS98,'État & Plan d''action'!$B$4:$AR$1111,36,FALSE)) ->  | DK98: =IF(VLOOKUP($BS98,'État & Plan d''action'!$B$4:$AR$1111,38,FALSE)="","",VLOOKUP($BS98,'État & Plan d''action'!$B$4:$AR$1111,38,FALSE)) ->  | DL98: =IF(VLOOKUP($BS98,'État & Plan d''action'!$B$4:$AR$1111,37,FALSE)="","",VLOOKUP($BS98,'État & Plan d''action'!$B$4:$AR$1111,37,FALSE)) -> 
BS99: 05077 | BT99: CASCAPÉDIA-SAINT-JULES | BU99: 11 | BV99: oui | BW99: oui | BX99: oui | BY99: oui | BZ99: oui | CA99: oui | CB99: oui | CC99: oui | CD99: oui | CE99: oui | CF99: non | CG99: non | CH99: non | CI99: non | CJ99: non | CK99: non | CL99: 755.6 | CM99: 717.961081 | CS99: =IF(VLOOKUP(BS99,Indicateurs!$B$4:$E$1111,4,FALSE)="","",VLOOKUP(BS99,Indicateurs!$B$4:$E$1111,4,FALSE)) ->  | CT99: ND | CU99: 0.3 | DA99: =IFERROR(SUM(VLOOKUP($BS99,'État & Plan d''action'!$B$4:$AA$1111,18,FALSE),VLOOKUP($BS99,'État & Plan d''action'!$B$4:$AA$1111,20,FALSE))/(VLOOKUP($BS99,'Audit de l''eau'!$B$3:$I$1111,8,FALSE)),"") ->  | DB99: =IFERROR(SUM(VLOOKUP($BS99,'État & Plan d''action'!$B$4:$AA$1111,19,FALSE),VLOOKUP($BS99,'État & Plan d''action'!$B$4:$AA$1111,21,FALSE))/(VLOOKUP($BS99,'Audit de l''eau'!$B$3:$I$1111,8,FALSE)),"") ->  | DC99: ND | DD99: 3 | DF99: 0 | DG99: 0 | DJ99: =IF(VLOOKUP($BS99,'État & Plan d''action'!$B$4:$AR$1111,36,FALSE)="","",VLOOKUP($BS99,'État & Plan d''action'!$B$4:$AR$1111,36,FALSE)) ->  | DK99: =IF(VLOOKUP($BS99,'État & Plan d''action'!$B$4:$AR$1111,38,FALSE)="","",VLOOKUP($BS99,'État & Plan d''action'!$B$4:$AR$1111,38,FALSE)) ->  | DL99: =IF(VLOOKUP($BS99,'État & Plan d''action'!$B$4:$AR$1111,37,FALSE)="","",VLOOKUP($BS99,'État & Plan d''action'!$B$4:$AR$1111,37,FALSE)) -> 
BS100: 07018 | BT100: CAUSAPSCAL | BU100: 1 | BV100: non | BW100: non | BX100: non | BY100: non | BZ100: non | CA100: non | CB100: oui | CC100: non | CD100: non | CE100: non | CF100: non | CG100: non | CH100: non | CI100: non | CJ100: non | CK100: non | CS100: =IF(VLOOKUP(BS100,Indicateurs!$B$4:$E$1111,4,FALSE)="","",VLOOKUP(BS100,Indicateurs!$B$4:$E$1111,4,FALSE)) ->  | CT100: ND | DA100: =IFERROR(SUM(VLOOKUP($BS100,'État & Plan d''action'!$B$4:$AA$1111,18,FALSE),VLOOKUP($BS100,'État & Plan d''action'!$B$4:$AA$1111,20,FALSE))/(VLOOKUP($BS100,'Audit de l''eau'!$B$3:$I$1111,8,FALSE)),"") ->  | DB100: =IFERROR(SUM(VLOOKUP($BS100,'État & Plan d''action'!$B$4:$AA$1111,19,FALSE),VLOOKUP($BS100,'État & Plan d''action'!$B$4:$AA$1111,21,FALSE))/(VLOOKUP($BS100,'Audit de l''eau'!$B$3:$I$1111,8,FALSE)),"") ->  | DC100: ND | DF100: 0 | DG100: 0 | DJ100: =IF(VLOOKUP($BS100,'État & Plan d''action'!$B$4:$AR$1111,36,FALSE)="","",VLOOKUP($BS100,'État & Plan d''action'!$B$4:$AR$1111,36,FALSE)) ->  | DK100: =IF(VLOOKUP($BS100,'État & Plan d''action'!$B$4:$AR$1111,38,FALSE)="","",VLOOKUP($BS100,'État & Plan d''action'!$B$4:$AR$1111,38,FALSE)) ->  | DL100: =IF(VLOOKUP($BS100,'État & Plan d''action'!$B$4:$AR$1111,37,FALSE)="","",VLOOKUP($BS100,'État & Plan d''action'!$B$4:$AR$1111,37,FALSE)) -> 
W101: =W20 -> TOUT LE QUÉBEC | X101: =X30 -> ND | Y101: =Y30 -> Région : ND | Z101: Classe de pop : ND | AA101: Tout le Québec | BS101: 83040 | BT101: CAYAMANT | BU101: 7 | BV101: oui | BW101: oui | BX101: oui | BY101: oui | BZ101: oui | CA101: oui | CB101: oui | CC101: oui | CD101: non | CE101: non | CF101: non | CG101: non | CH101: non | CI101: non | CJ101: non | CK101: non | CS101: =IF(VLOOKUP(BS101,Indicateurs!$B$4:$E$1111,4,FALSE)="","",VLOOKUP(BS101,Indicateurs!$B$4:$E$1111,4,FALSE)) ->  | CT101: ND | DA101: =IFERROR(SUM(VLOOKUP($BS101,'État & Plan d''action'!$B$4:$AA$1111,18,FALSE),VLOOKUP($BS101,'État & Plan d''action'!$B$4:$AA$1111,20,FALSE))/(VLOOKUP($BS101,'Audit de l''eau'!$B$3:$I$1111,8,FALSE)),"") ->  | DB101: =IFERROR(SUM(VLOOKUP($BS101,'État & Plan d''action'!$B$4:$AA$1111,19,FALSE),VLOOKUP($BS101,'État & Plan d''action'!$B$4:$AA$1111,21,FALSE))/(VLOOKUP($BS101,'Audit de l''eau'!$B$3:$I$1111,8,FALSE)),"") ->  | DC101: ND | DF101: 0 | DG101: 0 | DJ101: =IF(VLOOKUP($BS101,'État & Plan d''action'!$B$4:$AR$1111,36,FALSE)="","",VLOOKUP($BS101,'État & Plan d''action'!$B$4:$AR$1111,36,FALSE)) ->  | DK101: =IF(VLOOKUP($BS101,'État & Plan d''action'!$B$4:$AR$1111,38,FALSE)="","",VLOOKUP($BS101,'État & Plan d''action'!$B$4:$AR$1111,38,FALSE)) ->  | DL101: =IF(VLOOKUP($BS101,'État & Plan d''action'!$B$4:$AR$1111,37,FALSE)="","",VLOOKUP($BS101,'État & Plan d''action'!$B$4:$AR$1111,37,FALSE)) -> 
W102: Résultat de validité des données | X102: =IF($W$21="","ND",IF($AE$25="non","ND",IF(VLOOKUP($W$21,Indicateurs!$B$4:$H$1111,7,FALSE)=0,"ND",VLOOKUP($W$21,Indicateurs!$B$4:$H$1111,7,FALSE)))) -> ND | Y102: =IF($W$21="","ND",IF(AE$25="non","ND",IF(VLOOKUP(VLOOKUP(VLOOKUP($W$21,Indicateurs!$B$3:$D$1111,3,FALSE),$T$171:$V$187,3,FALSE),$E$171:$AK$188,33,FALSE)=0,"ND",VLOOKUP(VLOOKUP(VLOOKUP($W$21,Indicateurs!$B$3:$D$1111,3,FALSE),$T$171:$V$187,3,FALSE),$E$171:$AK$188,33,FALSE)))) -> ND | Z102: =IF($W$21="","ND",IF(VLOOKUP($W$20,$B$199:$AK$205,36,FALSE)=0,"ND",VLOOKUP($W$20,$B$199:$AK$205,36,FALSE))) -> ND | AA102: =AK188 -> 55.81464743 | BS102: 57005 | BT102: CHAMBLY | BU102: 16 | BV102: non | BW102: non | BX102: non | BY102: non | BZ102: non | CA102: non | CB102: non | CC102: non | CD102: oui | CE102: oui | CF102: oui | CG102: oui | CH102: non | CI102: non | CJ102: oui | CK102: oui | CL102: 425.3528291 | CM102: 403.7573533 | CN102: 390.4371359 | CO102: 394.9278111 | CR102: 352.1121106 | CS102: =IF(VLOOKUP(BS102,Indicateurs!$B$4:$E$1111,4,FALSE)="","",VLOOKUP(BS102,Indicateurs!$B$4:$E$1111,4,FALSE)) -> 382 | CT102: ND | CU102: 1 | CV102: 1 | CW102: 1 | CY102: 0 | CZ102: 0 | DA102: =IFERROR(SUM(VLOOKUP($BS102,'État & Plan d''action'!$B$4:$AA$1111,18,FALSE),VLOOKUP($BS102,'État & Plan d''action'!$B$4:$AA$1111,20,FALSE))/(VLOOKUP($BS102,'Audit de l''eau'!$B$3:$I$1111,8,FALSE)),"") -> 2 | DB102: =IFERROR(SUM(VLOOKUP($BS102,'État & Plan d''action'!$B$4:$AA$1111,19,FALSE),VLOOKUP($BS102,'État & Plan d''action'!$B$4:$AA$1111,21,FALSE))/(VLOOKUP($BS102,'Audit de l''eau'!$B$3:$I$1111,8,FALSE)),"") -> 0 | DC102: ND | DD102: 31 | DE102: 27 | DF102: 27 | DG102: 0 | DI102: 36 | DJ102: =IF(VLOOKUP($BS102,'État & Plan d''action'!$B$4:$AR$1111,36,FALSE)="","",VLOOKUP($BS102,'État & Plan d''action'!$B$4:$AR$1111,36,FALSE)) -> 38 | DK102: =IF(VLOOKUP($BS102,'État & Plan d''action'!$B$4:$AR$1111,38,FALSE)="","",VLOOKUP($BS102,'État & Plan d''action'!$B$4:$AR$1111,38,FALSE)) -> 2 | DL102: =IF(VLOOKUP($BS102,'État & Plan d''action'!$B$4:$AR$1111,37,FALSE)="","",VLOOKUP($BS102,'État & Plan d''action'!$B$4:$AR$1111,37,FALSE)) -> 10
BS103: 91020 | BT103: CHAMBORD | BU103: 2 | BV103: non | BW103: non | BX103: non | BY103: non | BZ103: non | CA103: non | CB103: non | CC103: non | CD103: oui | CE103: oui | CF103: non | CG103: oui | CH103: oui | CI103: non | CJ103: oui | CK103: non | CL103: 458.1180667 | CM103: 439.9822519 | CO103: 503.9352201 | CP103: 488.5209027 | CR103: 417.7095958 | CS103: =IF(VLOOKUP(BS103,Indicateurs!$B$4:$E$1111,4,FALSE)="","",VLOOKUP(BS103,Indicateurs!$B$4:$E$1111,4,FALSE)) ->  | CT103: ND | CU103: 0 | CV103: 0.11 | CW103: 0.2 | CX103: 0.2 | CY103: 0 | CZ103: 0 | DA103: =IFERROR(SUM(VLOOKUP($BS103,'État & Plan d''action'!$B$4:$AA$1111,18,FALSE),VLOOKUP($BS103,'État & Plan d''action'!$B$4:$AA$1111,20,FALSE))/(VLOOKUP($BS103,'Audit de l''eau'!$B$3:$I$1111,8,FALSE)),"") ->  | DB103: =IFERROR(SUM(VLOOKUP($BS103,'État & Plan d''action'!$B$4:$AA$1111,19,FALSE),VLOOKUP($BS103,'État & Plan d''action'!$B$4:$AA$1111,21,FALSE))/(VLOOKUP($BS103,'Audit de l''eau'!$B$3:$I$1111,8,FALSE)),"") ->  | DC103: ND | DD103: 4 | DE103: 1 | DF103: 3 | DG103: 3 | DI103: 0 | DJ103: =IF(VLOOKUP($BS103,'État & Plan d''action'!$B$4:$AR$1111,36,FALSE)="","",VLOOKUP($BS103,'État & Plan d''action'!$B$4:$AR$1111,36,FALSE)) ->  | DK103: =IF(VLOOKUP($BS103,'État & Plan d''action'!$B$4:$AR$1111,38,FALSE)="","",VLOOKUP($BS103,'État & Plan d''action'!$B$4:$AR$1111,38,FALSE)) ->  | DL103: =IF(VLOOKUP($BS103,'État & Plan d''action'!$B$4:$AR$1111,37,FALSE)="","",VLOOKUP($BS103,'État & Plan d''action'!$B$4:$AR$1111,37,FALSE)) -> 
BS104: 37220 | BT104: CHAMPLAIN | BU104: 4 | BV104: non | BW104: non | BX104: non | BY104: non | BZ104: non | CA104: non | CB104: non | CC104: non | CD104: oui | CE104: oui | CF104: non | CG104: oui | CH104: oui | CI104: oui | CJ104: oui | CK104: oui | CL104: 427.4527953 | CM104: 461.0247326 | CO104: 454.1899495 | CP104: 432.6752116 | CQ104: 472.446865 | CR104: 410.0424465 | CS104: =IF(VLOOKUP(BS104,Indicateurs!$B$4:$E$1111,4,FALSE)="","",VLOOKUP(BS104,Indicateurs!$B$4:$E$1111,4,FALSE)) -> 526 | CT104: ND | CU104: 0 | CW104: 0 | CX104: 0 | CY104: 1 | CZ104: 1 | DA104: =IFERROR(SUM(VLOOKUP($BS104,'État & Plan d''action'!$B$4:$AA$1111,18,FALSE),VLOOKUP($BS104,'État & Plan d''action'!$B$4:$AA$1111,20,FALSE))/(VLOOKUP($BS104,'Audit de l''eau'!$B$3:$I$1111,8,FALSE)),"") -> 0.5000146494 | DB104: =IFERROR(SUM(VLOOKUP($BS104,'État & Plan d''action'!$B$4:$AA$1111,19,FALSE),VLOOKUP($BS104,'État & Plan d''action'!$B$4:$AA$1111,21,FALSE))/(VLOOKUP($BS104,'Audit de l''eau'!$B$3:$I$1111,8,FALSE)),"") -> 1 | DC104: ND | DD104: 3 | DF104: 2 | DG104: 2 | DH104: 2 | DI104: 4 | DJ104: =IF(VLOOKUP($BS104,'État & Plan d''action'!$B$4:$AR$1111,36,FALSE)="","",VLOOKUP($BS104,'État & Plan d''action'!$B$4:$AR$1111,36,FALSE)) -> 3 | DK104: =IF(VLOOKUP($BS104,'État & Plan d''action'!$B$4:$AR$1111,38,FALSE)="","",VLOOKUP($BS104,'État & Plan d''action'!$B$4:$AR$1111,38,FALSE)) -> 0 | DL104: =IF(VLOOKUP($BS104,'État & Plan d''action'!$B$4:$AR$1111,37,FALSE)="","",VLOOKUP($BS104,'État & Plan d''action'!$B$4:$AR$1111,37,FALSE)) -> 2
BS105: 88005 | BT105: CHAMPNEUF | BU105: 8 | BV105: non | BW105: non | BX105: non | BY105: non | BZ105: non | CA105: oui | CB105: oui | CC105: oui | CD105: oui | CE105: oui | CF105: oui | CG105: oui | CH105: oui | CI105: non | CJ105: non | CK105: non | CL105: 312.6641373 | CM105: 4177.307745 | CN105: 370.5882353 | CO105: 313.5712388 | CP105: 320.4623849 | CS105: =IF(VLOOKUP(BS105,Indicateurs!$B$4:$E$1111,4,FALSE)="","",VLOOKUP(BS105,Indicateurs!$B$4:$E$1111,4,FALSE)) ->  | CT105: ND | DA105: =IFERROR(SUM(VLOOKUP($BS105,'État & Plan d''action'!$B$4:$AA$1111,18,FALSE),VLOOKUP($BS105,'État & Plan d''action'!$B$4:$AA$1111,20,FALSE))/(VLOOKUP($BS105,'Audit de l''eau'!$B$3:$I$1111,8,FALSE)),"") ->  | DB105: =IFERROR(SUM(VLOOKUP($BS105,'État & Plan d''action'!$B$4:$AA$1111,19,FALSE),VLOOKUP($BS105,'État & Plan d''action'!$B$4:$AA$1111,21,FALSE))/(VLOOKUP($BS105,'Audit de l''eau'!$B$3:$I$1111,8,FALSE)),"") ->  | DC105: ND | DF105: 0 | DG105: 0 | DJ105: =IF(VLOOKUP($BS105,'État & Plan d''action'!$B$4:$AR$1111,36,FALSE)="","",VLOOKUP($BS105,'État & Plan d''action'!$B$4:$AR$1111,36,FALSE)) ->  | DK105: =IF(VLOOKUP($BS105,'État & Plan d''action'!$B$4:$AR$1111,38,FALSE)="","",VLOOKUP($BS105,'État & Plan d''action'!$B$4:$AR$1111,38,FALSE)) ->  | DL105: =IF(VLOOKUP($BS105,'État & Plan d''action'!$B$4:$AR$1111,37,FALSE)="","",VLOOKUP($BS105,'État & Plan d''action'!$B$4:$AR$1111,37,FALSE)) -> 
BS106: 02028 | BT106: CHANDLER | BU106: 11 | BV106: non | BW106: non | BX106: non | BY106: non | BZ106: non | CA106: non | CB106: non | CC106: non | CD106: oui | CE106: oui | CF106: non | CG106: oui | CH106: non | CI106: oui | CJ106: oui | CK106: oui | CL106: 1385.150129 | CM106: 1125.271949 | CO106: 1249.139378 | CQ106: 1029.653018 | CR106: 1063.599058 | CS106: =IF(VLOOKUP(BS106,Indicateurs!$B$4:$E$1111,4,FALSE)="","",VLOOKUP(BS106,Indicateurs!$B$4:$E$1111,4,FALSE)) -> 1132 | CT106: ND | CU106: 0 | CW106: 1 | CY106: 1 | CZ106: 1 | DA106: =IFERROR(SUM(VLOOKUP($BS106,'État & Plan d''action'!$B$4:$AA$1111,18,FALSE),VLOOKUP($BS106,'État & Plan d''action'!$B$4:$AA$1111,20,FALSE))/(VLOOKUP($BS106,'Audit de l''eau'!$B$3:$I$1111,8,FALSE)),"") -> 1 | DB106: =IFERROR(SUM(VLOOKUP($BS106,'État & Plan d''action'!$B$4:$AA$1111,19,FALSE),VLOOKUP($BS106,'État & Plan d''action'!$B$4:$AA$1111,21,FALSE))/(VLOOKUP($BS106,'Audit de l''eau'!$B$3:$I$1111,8,FALSE)),"") -> 1.50000617 | DC106: ND | DD106: 4 | DF106: 12 | DG106: 0 | DH106: 28 | DI106: 34 | DJ106: =IF(VLOOKUP($BS106,'État & Plan d''action'!$B$4:$AR$1111,36,FALSE)="","",VLOOKUP($BS106,'État & Plan d''action'!$B$4:$AR$1111,36,FALSE)) -> 9 | DK106: =IF(VLOOKUP($BS106,'État & Plan d''action'!$B$4:$AR$1111,38,FALSE)="","",VLOOKUP($BS106,'État & Plan d''action'!$B$4:$AR$1111,38,FALSE)) -> 0 | DL106: =IF(VLOOKUP($BS106,'État & Plan d''action'!$B$4:$AR$1111,37,FALSE)="","",VLOOKUP($BS106,'État & Plan d''action'!$B$4:$AR$1111,37,FALSE)) -> 26
BS107: 99020 | BT107: CHAPAIS | BU107: 10 | BV107: non | BW107: non | BX107: non | BY107: non | BZ107: non | CA107: non | CB107: non | CC107: non | CD107: oui | CE107: oui | CF107: oui | CG107: oui | CH107: non | CI107: oui | CJ107: non | CK107: oui | CL107: 3998.984084 | CM107: 3602.197909 | CN107: 3492.652093 | CO107: 4107.42743 | CQ107: 3140.629271 | CS107: =IF(VLOOKUP(BS107,Indicateurs!$B$4:$E$1111,4,FALSE)="","",VLOOKUP(BS107,Indicateurs!$B$4:$E$1111,4,FALSE)) -> 2806 | CT107: ND | CU107: 0.1 | CV107: 0.15 | CW107: 0.15 | CX107: 0.15 | DA107: =IFERROR(SUM(VLOOKUP($BS107,'État & Plan d''action'!$B$4:$AA$1111,18,FALSE),VLOOKUP($BS107,'État & Plan d''action'!$B$4:$AA$1111,20,FALSE))/(VLOOKUP($BS107,'Audit de l''eau'!$B$3:$I$1111,8,FALSE)),"") -> 0.02717391304 | DB107: =IFERROR(SUM(VLOOKUP($BS107,'État & Plan d''action'!$B$4:$AA$1111,19,FALSE),VLOOKUP($BS107,'État & Plan d''action'!$B$4:$AA$1111,21,FALSE))/(VLOOKUP($BS107,'Audit de l''eau'!$B$3:$I$1111,8,FALSE)),"") -> 1 | DC107: ND | DD107: 6 | DE107: 3 | DF107: 6 | DG107: 6 | DH107: 8 | DJ107: =IF(VLOOKUP($BS107,'État & Plan d''action'!$B$4:$AR$1111,36,FALSE)="","",VLOOKUP($BS107,'État & Plan d''action'!$B$4:$AR$1111,36,FALSE)) -> 0 | DK107: =IF(VLOOKUP($BS107,'État & Plan d''action'!$B$4:$AR$1111,38,FALSE)="","",VLOOKUP($BS107,'État & Plan d''action'!$B$4:$AR$1111,38,FALSE)) -> 0 | DL107: =IF(VLOOKUP($BS107,'État & Plan d''action'!$B$4:$AR$1111,37,FALSE)="","",VLOOKUP($BS107,'État & Plan d''action'!$B$4:$AR$1111,37,FALSE)) -> 2
BS108: 51080 | BT108: CHARETTE | BU108: 4 | BV108: non | BW108: non | BX108: non | BY108: non | BZ108: non | CA108: non | CB108: non | CC108: non | CD108: oui | CE108: oui | CF108: oui | CG108: non | CH108: oui | CI108: oui | CJ108: non | CK108: oui | CL108: 236.0909423 | CM108: 359.6115076 | CN108: 300.6165134 | CP108: 363.4322387 | CQ108: 358.2647115 | CS108: =IF(VLOOKUP(BS108,Indicateurs!$B$4:$E$1111,4,FALSE)="","",VLOOKUP(BS108,Indicateurs!$B$4:$E$1111,4,FALSE)) -> 395 | CT108: ND | CU108: 0 | CV108: 0 | CX108: 0 | DA108: =IFERROR(SUM(VLOOKUP($BS108,'État & Plan d''action'!$B$4:$AA$1111,18,FALSE),VLOOKUP($BS108,'État & Plan d''action'!$B$4:$AA$1111,20,FALSE))/(VLOOKUP($BS108,'Audit de l''eau'!$B$3:$I$1111,8,FALSE)),"") -> 0 | DB108: =IFERROR(SUM(VLOOKUP($BS108,'État & Plan d''action'!$B$4:$AA$1111,19,FALSE),VLOOKUP($BS108,'État & Plan d''action'!$B$4:$AA$1111,21,FALSE))/(VLOOKUP($BS108,'Audit de l''eau'!$B$3:$I$1111,8,FALSE)),"") -> 0 | DC108: ND | DD108: 0 | DE108: 0 | DF108: 0 | DG108: 0 | DH108: 0 | DJ108: =IF(VLOOKUP($BS108,'État & Plan d''action'!$B$4:$AR$1111,36,FALSE)="","",VLOOKUP($BS108,'État & Plan d''action'!$B$4:$AR$1111,36,FALSE)) -> 1 | DK108: =IF(VLOOKUP($BS108,'État & Plan d''action'!$B$4:$AR$1111,38,FALSE)="","",VLOOKUP($BS108,'État & Plan d''action'!$B$4:$AR$1111,38,FALSE)) -> 1 | DL108: =IF(VLOOKUP($BS108,'État & Plan d''action'!$B$4:$AR$1111,37,FALSE)="","",VLOOKUP($BS108,'État & Plan d''action'!$B$4:$AR$1111,37,FALSE)) -> 0
BS109: 60005 | BT109: CHARLEMAGNE | BU109: 14 | BV109: non | BW109: non | BX109: non | BY109: non | BZ109: non | CA109: non | CB109: non | CC109: non | CD109: oui | CE109: oui | CF109: oui | CG109: oui | CH109: oui | CI109: oui | CJ109: oui | CK109: oui | CL109: 433.7742473 | CM109: 394.5943578 | CN109: 364.9638253 | CO109: 354.5322064 | CP109: 367.2131564 | CQ109: 393.953207 | CR109: 450.9471318 | CS109: =IF(VLOOKUP(BS109,Indicateurs!$B$4:$E$1111,4,FALSE)="","",VLOOKUP(BS109,Indicateurs!$B$4:$E$1111,4,FALSE)) -> 482 | CT109: ND | CU109: 0.2 | CV109: 0 | CW109: 0 | CX109: 0 | CY109: 0.2 | CZ109: 0.2 | DA109: =IFERROR(SUM(VLOOKUP($BS109,'État & Plan d''action'!$B$4:$AA$1111,18,FALSE),VLOOKUP($BS109,'État & Plan d''action'!$B$4:$AA$1111,20,FALSE))/(VLOOKUP($BS109,'Audit de l''eau'!$B$3:$I$1111,8,FALSE)),"") -> 1 | DB109: =IFERROR(SUM(VLOOKUP($BS109,'État & Plan d''action'!$B$4:$AA$1111,19,FALSE),VLOOKUP($BS109,'État & Plan d''action'!$B$4:$AA$1111,21,FALSE))/(VLOOKUP($BS109,'Audit de l''eau'!$B$3:$I$1111,8,FALSE)),"") -> 1 | DC109: ND | DD109: 13 | DE109: 9 | DF109: 10 | DG109: 5 | DH109: 6 | DI109: 9 | DJ109: =IF(VLOOKUP($BS109,'État & Plan d''action'!$B$4:$AR$1111,36,FALSE)="","",VLOOKUP($BS109,'État & Plan d''action'!$B$4:$AR$1111,36,FALSE)) -> 3 | DK109: =IF(VLOOKUP($BS109,'État & Plan d''action'!$B$4:$AR$1111,38,FALSE)="","",VLOOKUP($BS109,'État & Plan d''action'!$B$4:$AR$1111,38,FALSE)) -> 0 | DL109: =IF(VLOOKUP($BS109,'État & Plan d''action'!$B$4:$AR$1111,37,FALSE)="","",VLOOKUP($BS109,'État & Plan d''action'!$B$4:$AR$1111,37,FALSE)) -> 0
C110: ↑ Haut de page | BS110: 41020 | BT110: CHARTIERVILLE | BU110: 5 | BV110: oui | BW110: oui | BX110: oui | BY110: oui | BZ110: oui | CA110: oui | CB110: oui | CC110: oui | CD110: non | CE110: non | CF110: non | CG110: non | CH110: non | CI110: non | CJ110: non | CK110: non | CS110: =IF(VLOOKUP(BS110,Indicateurs!$B$4:$E$1111,4,FALSE)="","",VLOOKUP(BS110,Indicateurs!$B$4:$E$1111,4,FALSE)) ->  | CT110: ND | DA110: =IFERROR(SUM(VLOOKUP($BS110,'État & Plan d''action'!$B$4:$AA$1111,18,FALSE),VLOOKUP($BS110,'État & Plan d''action'!$B$4:$AA$1111,20,FALSE))/(VLOOKUP($BS110,'Audit de l''eau'!$B$3:$I$1111,8,FALSE)),"") ->  | DB110: =IFERROR(SUM(VLOOKUP($BS110,'État & Plan d''action'!$B$4:$AA$1111,19,FALSE),VLOOKUP($BS110,'État & Plan d''action'!$B$4:$AA$1111,21,FALSE))/(VLOOKUP($BS110,'Audit de l''eau'!$B$3:$I$1111,8,FALSE)),"") ->  | DC110: ND | DF110: 0 | DG110: 0 | DJ110: =IF(VLOOKUP($BS110,'État & Plan d''action'!$B$4:$AR$1111,36,FALSE)="","",VLOOKUP($BS110,'État & Plan d''action'!$B$4:$AR$1111,36,FALSE)) ->  | DK110: =IF(VLOOKUP($BS110,'État & Plan d''action'!$B$4:$AR$1111,38,FALSE)="","",VLOOKUP($BS110,'État & Plan d''action'!$B$4:$AR$1111,38,FALSE)) ->  | DL110: =IF(VLOOKUP($BS110,'État & Plan d''action'!$B$4:$AR$1111,37,FALSE)="","",VLOOKUP($BS110,'État & Plan d''action'!$B$4:$AR$1111,37,FALSE)) -> 
BS111: 67050 | BT111: CHÂTEAUGUAY | BU111: 16 | BV111: non | BW111: non | BX111: non | BY111: non | BZ111: non | CA111: non | CB111: non | CC111: non | CD111: non | CE111: non | CF111: non | CG111: non | CH111: non | CI111: oui | CJ111: oui | CK111: non | CQ111: 542.1934584 | CR111: 517.6985804 | CS111: =IF(VLOOKUP(BS111,Indicateurs!$B$4:$E$1111,4,FALSE)="","",VLOOKUP(BS111,Indicateurs!$B$4:$E$1111,4,FALSE)) ->  | CT111: ND | CU111: 1 | CV111: 1 | CW111: 1 | CX111: 1 | CY111: 1 | CZ111: 1 | DA111: =IFERROR(SUM(VLOOKUP($BS111,'État & Plan d''action'!$B$4:$AA$1111,18,FALSE),VLOOKUP($BS111,'État & Plan d''action'!$B$4:$AA$1111,20,FALSE))/(VLOOKUP($BS111,'Audit de l''eau'!$B$3:$I$1111,8,FALSE)),"") ->  | DB111: =IFERROR(SUM(VLOOKUP($BS111,'État & Plan d''action'!$B$4:$AA$1111,19,FALSE),VLOOKUP($BS111,'État & Plan d''action'!$B$4:$AA$1111,21,FALSE))/(VLOOKUP($BS111,'Audit de l''eau'!$B$3:$I$1111,8,FALSE)),"") ->  | DC111: ND | DD111: 67 | DE111: 65 | DF111: 67 | DG111: 57 | DH111: 83 | DI111: 61 | DJ111: =IF(VLOOKUP($BS111,'État & Plan d''action'!$B$4:$AR$1111,36,FALSE)="","",VLOOKUP($BS111,'État & Plan d''action'!$B$4:$AR$1111,36,FALSE)) ->  | DK111: =IF(VLOOKUP($BS111,'État & Plan d''action'!$B$4:$AR$1111,38,FALSE)="","",VLOOKUP($BS111,'État & Plan d''action'!$B$4:$AR$1111,38,FALSE)) ->  | DL111: =IF(VLOOKUP($BS111,'État & Plan d''action'!$B$4:$AR$1111,37,FALSE)="","",VLOOKUP($BS111,'État & Plan d''action'!$B$4:$AR$1111,37,FALSE)) -> 
BS112: 21035 | BT112: CHÂTEAU-RICHER | BU112: 3 | BV112: non | BW112: non | BX112: non | BY112: non | BZ112: non | CA112: non | CB112: non | CC112: non | CD112: oui | CE112: oui | CF112: non | CG112: non | CH112: oui | CI112: oui | CJ112: non | CK112: non | CL112: 446.8933976 | CM112: 394.9448092 | CP112: 479.0872629 | CQ112: 390.8564981 | CS112: =IF(VLOOKUP(BS112,Indicateurs!$B$4:$E$1111,4,FALSE)="","",VLOOKUP(BS112,Indicateurs!$B$4:$E$1111,4,FALSE)) ->  | CT112: ND | CU112: 0 | CX112: 1 | DA112: =IFERROR(SUM(VLOOKUP($BS112,'État & Plan d''action'!$B$4:$AA$1111,18,FALSE),VLOOKUP($BS112,'État & Plan d''action'!$B$4:$AA$1111,20,FALSE))/(VLOOKUP($BS112,'Audit de l''eau'!$B$3:$I$1111,8,FALSE)),"") ->  | DB112: =IFERROR(SUM(VLOOKUP($BS112,'État & Plan d''action'!$B$4:$AA$1111,19,FALSE),VLOOKUP($BS112,'État & Plan d''action'!$B$4:$AA$1111,21,FALSE))/(VLOOKUP($BS112,'Audit de l''eau'!$B$3:$I$1111,8,FALSE)),"") ->  | DC112: ND | DD112: 4 | DF112: 0 | DG112: 1 | DH112: 1 | DJ112: =IF(VLOOKUP($BS112,'État & Plan d''action'!$B$4:$AR$1111,36,FALSE)="","",VLOOKUP($BS112,'État & Plan d''action'!$B$4:$AR$1111,36,FALSE)) ->  | DK112: =IF(VLOOKUP($BS112,'État & Plan d''action'!$B$4:$AR$1111,38,FALSE)="","",VLOOKUP($BS112,'État & Plan d''action'!$B$4:$AR$1111,38,FALSE)) ->  | DL112: =IF(VLOOKUP($BS112,'État & Plan d''action'!$B$4:$AR$1111,37,FALSE)="","",VLOOKUP($BS112,'État & Plan d''action'!$B$4:$AR$1111,37,FALSE)) -> 
BS113: 87095 | BT113: CHAZEL | BU113: 8 | BV113: non | BW113: non | BX113: non | BY113: non | BZ113: non | CA113: non | CB113: non | CC113: non | CD113: non | CE113: non | CF113: non | CG113: non | CH113: non | CI113: non | CJ113: non | CK113: oui | CS113: =IF(VLOOKUP(BS113,Indicateurs!$B$4:$E$1111,4,FALSE)="","",VLOOKUP(BS113,Indicateurs!$B$4:$E$1111,4,FALSE)) -> 250 | CT113: ND | CU113: 0 | CV113: 0 | CW113: 0 | CX113: 0 | DA113: =IFERROR(SUM(VLOOKUP($BS113,'État & Plan d''action'!$B$4:$AA$1111,18,FALSE),VLOOKUP($BS113,'État & Plan d''action'!$B$4:$AA$1111,20,FALSE))/(VLOOKUP($BS113,'Audit de l''eau'!$B$3:$I$1111,8,FALSE)),"") -> 0 | DB113: =IFERROR(SUM(VLOOKUP($BS113,'État & Plan d''action'!$B$4:$AA$1111,19,FALSE),VLOOKUP($BS113,'État & Plan d''action'!$B$4:$AA$1111,21,FALSE))/(VLOOKUP($BS113,'Audit de l''eau'!$B$3:$I$1111,8,FALSE)),"") -> 1 | DC113: ND | DD113: 6 | DE113: 5 | DF113: 14 | DG113: 11 | DJ113: =IF(VLOOKUP($BS113,'État & Plan d''action'!$B$4:$AR$1111,36,FALSE)="","",VLOOKUP($BS113,'État & Plan d''action'!$B$4:$AR$1111,36,FALSE)) -> 0 | DK113: =IF(VLOOKUP($BS113,'État & Plan d''action'!$B$4:$AR$1111,38,FALSE)="","",VLOOKUP($BS113,'État & Plan d''action'!$B$4:$AR$1111,38,FALSE)) -> 0 | DL113: =IF(VLOOKUP($BS113,'État & Plan d''action'!$B$4:$AR$1111,37,FALSE)="","",VLOOKUP($BS113,'État & Plan d''action'!$B$4:$AR$1111,37,FALSE)) -> 0
BS114: 82025 | BT114: CHELSEA | BU114: 7 | BV114: oui | BW114: oui | BX114: oui | BY114: oui | BZ114: oui | CA114: oui | CB114: oui | CC114: non | CD114: oui | CE114: non | CF114: non | CG114: non | CH114: non | CI114: non | CJ114: non | CK114: non | CL114: 575.6881982 | CS114: =IF(VLOOKUP(BS114,Indicateurs!$B$4:$E$1111,4,FALSE)="","",VLOOKUP(BS114,Indicateurs!$B$4:$E$1111,4,FALSE)) ->  | CT114: ND | DA114: =IFERROR(SUM(VLOOKUP($BS114,'État & Plan d''action'!$B$4:$AA$1111,18,FALSE),VLOOKUP($BS114,'État & Plan d''action'!$B$4:$AA$1111,20,FALSE))/(VLOOKUP($BS114,'Audit de l''eau'!$B$3:$I$1111,8,FALSE)),"") ->  | DB114: =IFERROR(SUM(VLOOKUP($BS114,'État & Plan d''action'!$B$4:$AA$1111,19,FALSE),VLOOKUP($BS114,'État & Plan d''action'!$B$4:$AA$1111,21,FALSE))/(VLOOKUP($BS114,'Audit de l''eau'!$B$3:$I$1111,8,FALSE)),"") ->  | DC114: ND | DF114: 0 | DG114: 0 | DJ114: =IF(VLOOKUP($BS114,'État & Plan d''action'!$B$4:$AR$1111,36,FALSE)="","",VLOOKUP($BS114,'État & Plan d''action'!$B$4:$AR$1111,36,FALSE)) ->  | DK114: =IF(VLOOKUP($BS114,'État & Plan d''action'!$B$4:$AR$1111,38,FALSE)="","",VLOOKUP($BS114,'État & Plan d''action'!$B$4:$AR$1111,38,FALSE)) ->  | DL114: =IF(VLOOKUP($BS114,'État & Plan d''action'!$B$4:$AR$1111,37,FALSE)="","",VLOOKUP($BS114,'État & Plan d''action'!$B$4:$AR$1111,37,FALSE)) -> 
BS115: 80103 | BT115: CHÉNÉVILLE | BU115: 7 | BV115: non | BW115: non | BX115: non | BY115: non | BZ115: non | CA115: non | CB115: non | CC115: non | CD115: non | CE115: non | CF115: non | CG115: non | CH115: non | CI115: oui | CJ115: oui | CK115: non | CQ115: 408.3703213 | CR115: 377.5958137 | CS115: =IF(VLOOKUP(BS115,Indicateurs!$B$4:$E$1111,4,FALSE)="","",VLOOKUP(BS115,Indicateurs!$B$4:$E$1111,4,FALSE)) ->  | CT115: ND | CU115: 0 | CY115: 0 | CZ115: 0 | DA115: =IFERROR(SUM(VLOOKUP($BS115,'État & Plan d''action'!$B$4:$AA$1111,18,FALSE),VLOOKUP($BS115,'État & Plan d''action'!$B$4:$AA$1111,20,FALSE))/(VLOOKUP($BS115,'Audit de l''eau'!$B$3:$I$1111,8,FALSE)),"") ->  | DB115: =IFERROR(SUM(VLOOKUP($BS115,'État & Plan d''action'!$B$4:$AA$1111,19,FALSE),VLOOKUP($BS115,'État & Plan d''action'!$B$4:$AA$1111,21,FALSE))/(VLOOKUP($BS115,'Audit de l''eau'!$B$3:$I$1111,8,FALSE)),"") ->  | DC115: ND | DD115: 3 | DF115: 0 | DG115: 0 | DH115: 4 | DI115: 5 | DJ115: =IF(VLOOKUP($BS115,'État & Plan d''action'!$B$4:$AR$1111,36,FALSE)="","",VLOOKUP($BS115,'État & Plan d''action'!$B$4:$AR$1111,36,FALSE)) ->  | DK115: =IF(VLOOKUP($BS115,'État & Plan d''action'!$B$4:$AR$1111,38,FALSE)="","",VLOOKUP($BS115,'État & Plan d''action'!$B$4:$AR$1111,38,FALSE)) ->  | DL115: =IF(VLOOKUP($BS115,'État & Plan d''action'!$B$4:$AR$1111,37,FALSE)="","",VLOOKUP($BS115,'État & Plan d''action'!$B$4:$AR$1111,37,FALSE)) -> 
BS116: 62047 | BT116: CHERTSEY | BU116: 14 | BV116: non | BW116: non | BX116: non | BY116: non | BZ116: non | CA116: non | CB116: non | CC116: non | CD116: oui | CE116: oui | CF116: non | CG116: non | CH116: oui | CI116: oui | CJ116: oui | CK116: oui | CL116: 464.0298449 | CM116: 442.764727 | CP116: 337.1927224 | CQ116: 336.4651328 | CR116: 288.3834037 | CS116: =IF(VLOOKUP(BS116,Indicateurs!$B$4:$E$1111,4,FALSE)="","",VLOOKUP(BS116,Indicateurs!$B$4:$E$1111,4,FALSE)) -> 346 | CT116: ND | CU116: 0 | CX116: 0 | CY116: 0 | CZ116: 0 | DA116: =IFERROR(SUM(VLOOKUP($BS116,'État & Plan d''action'!$B$4:$AA$1111,18,FALSE),VLOOKUP($BS116,'État & Plan d''action'!$B$4:$AA$1111,20,FALSE))/(VLOOKUP($BS116,'Audit de l''eau'!$B$3:$I$1111,8,FALSE)),"") -> 0.5735373537 | DB116: =IFERROR(SUM(VLOOKUP($BS116,'État & Plan d''action'!$B$4:$AA$1111,19,FALSE),VLOOKUP($BS116,'État & Plan d''action'!$B$4:$AA$1111,21,FALSE))/(VLOOKUP($BS116,'Audit de l''eau'!$B$3:$I$1111,8,FALSE)),"") -> 1 | DC116: ND | DD116: 2 | DF116: 0 | DG116: 1 | DH116: 0 | DI116: 0 | DJ116: =IF(VLOOKUP($BS116,'État & Plan d''action'!$B$4:$AR$1111,36,FALSE)="","",VLOOKUP($BS116,'État & Plan d''action'!$B$4:$AR$1111,36,FALSE)) -> 2 | DK116: =IF(VLOOKUP($BS116,'État & Plan d''action'!$B$4:$AR$1111,38,FALSE)="","",VLOOKUP($BS116,'État & Plan d''action'!$B$4:$AR$1111,38,FALSE)) -> 0 | DL116: =IF(VLOOKUP($BS116,'État & Plan d''action'!$B$4:$AR$1111,37,FALSE)="","",VLOOKUP($BS116,'État & Plan d''action'!$B$4:$AR$1111,37,FALSE)) -> 0
BS117: 39030 | BT117: CHESTERVILLE | BU117: 17 | BV117: non | BW117: non | BX117: non | BY117: non | BZ117: non | CA117: non | CB117: non | CC117: non | CD117: oui | CE117: oui | CF117: oui | CG117: oui | CH117: oui | CI117: oui | CJ117: oui | CK117: oui | CL117: 447.2948183 | CM117: 341.8250853 | CN117: 281.7698141 | CO117: 264.415973 | CP117: 280.2743679 | CQ117: 342.4487905 | CR117: 305.9467919 | CS117: =IF(VLOOKUP(BS117,Indicateurs!$B$4:$E$1111,4,FALSE)="","",VLOOKUP(BS117,Indicateurs!$B$4:$E$1111,4,FALSE)) -> 301 | CT117: ND | CU117: 0 | CV117: 0.05 | CW117: 0.05 | CX117: 1 | CY117: 0 | CZ117: 0 | DA117: =IFERROR(SUM(VLOOKUP($BS117,'État & Plan d''action'!$B$4:$AA$1111,18,FALSE),VLOOKUP($BS117,'État & Plan d''action'!$B$4:$AA$1111,20,FALSE))/(VLOOKUP($BS117,'Audit de l''eau'!$B$3:$I$1111,8,FALSE)),"") -> 0 | DB117: =IFERROR(SUM(VLOOKUP($BS117,'État & Plan d''action'!$B$4:$AA$1111,19,FALSE),VLOOKUP($BS117,'État & Plan d''action'!$B$4:$AA$1111,21,FALSE))/(VLOOKUP($BS117,'Audit de l''eau'!$B$3:$I$1111,8,FALSE)),"") -> 0.4994465353 | DC117: ND | DD117: 0 | DE117: 1 | DF117: 2 | DG117: 2 | DH117: 1 | DI117: 2 | DJ117: =IF(VLOOKUP($BS117,'État & Plan d''action'!$B$4:$AR$1111,36,FALSE)="","",VLOOKUP($BS117,'État & Plan d''action'!$B$4:$AR$1111,36,FALSE)) -> 0 | DK117: =IF(VLOOKUP($BS117,'État & Plan d''action'!$B$4:$AR$1111,38,FALSE)="","",VLOOKUP($BS117,'État & Plan d''action'!$B$4:$AR$1111,38,FALSE)) -> 0 | DL117: =IF(VLOOKUP($BS117,'État & Plan d''action'!$B$4:$AR$1111,37,FALSE)="","",VLOOKUP($BS117,'État & Plan d''action'!$B$4:$AR$1111,37,FALSE)) -> 0
BS118: 99025 | BT118: CHIBOUGAMAU | BU118: 10 | BV118: non | BW118: non | BX118: non | BY118: non | BZ118: non | CA118: non | CB118: non | CC118: non | CD118: oui | CE118: oui | CF118: oui | CG118: oui | CH118: oui | CI118: oui | CJ118: oui | CK118: oui | CL118: 1200.413607 | CM118: 1180.67385 | CN118: 1247.381535 | CO118: 1311.188272 | CP118: 1420.073995 | CQ118: 1305.095188 | CR118: 1230.197156 | CS118: =IF(VLOOKUP(BS118,Indicateurs!$B$4:$E$1111,4,FALSE)="","",VLOOKUP(BS118,Indicateurs!$B$4:$E$1111,4,FALSE)) -> 1164 | CT118: ND | CU118: 0 | CV118: 0 | CW118: 1 | CY118: 0 | CZ118: 0 | DA118: =IFERROR(SUM(VLOOKUP($BS118,'État & Plan d''action'!$B$4:$AA$1111,18,FALSE),VLOOKUP($BS118,'État & Plan d''action'!$B$4:$AA$1111,20,FALSE))/(VLOOKUP($BS118,'Audit de l''eau'!$B$3:$I$1111,8,FALSE)),"") -> 0 | DB118: =IFERROR(SUM(VLOOKUP($BS118,'État & Plan d''action'!$B$4:$AA$1111,19,FALSE),VLOOKUP($BS118,'État & Plan d''action'!$B$4:$AA$1111,21,FALSE))/(VLOOKUP($BS118,'Audit de l''eau'!$B$3:$I$1111,8,FALSE)),"") -> 0 | DC118: ND | DD118: 0 | DE118: 0 | DF118: 7 | DG118: 0 | DH118: 11 | DI118: 2 | DJ118: =IF(VLOOKUP($BS118,'État & Plan d''action'!$B$4:$AR$1111,36,FALSE)="","",VLOOKUP($BS118,'État & Plan d''action'!$B$4:$AR$1111,36,FALSE)) -> 3 | DK118: =IF(VLOOKUP($BS118,'État & Plan d''action'!$B$4:$AR$1111,38,FALSE)="","",VLOOKUP($BS118,'État & Plan d''action'!$B$4:$AR$1111,38,FALSE)) -> 1 | DL118: =IF(VLOOKUP($BS118,'État & Plan d''action'!$B$4:$AR$1111,37,FALSE)="","",VLOOKUP($BS118,'État & Plan d''action'!$B$4:$AR$1111,37,FALSE)) -> 5
BS119: 84090 | BT119: CHICHESTER | BU119: 7 | BV119: oui | BW119: oui | BX119: oui | BY119: oui | BZ119: oui | CA119: oui | CB119: oui | CC119: oui | CD119: non | CE119: non | CF119: non | CG119: non | CH119: non | CI119: non | CJ119: non | CK119: non | CS119: =IF(VLOOKUP(BS119,Indicateurs!$B$4:$E$1111,4,FALSE)="","",VLOOKUP(BS119,Indicateurs!$B$4:$E$1111,4,FALSE)) ->  | CT119: ND | DA119: =IFERROR(SUM(VLOOKUP($BS119,'État & Plan d''action'!$B$4:$AA$1111,18,FALSE),VLOOKUP($BS119,'État & Plan d''action'!$B$4:$AA$1111,20,FALSE))/(VLOOKUP($BS119,'Audit de l''eau'!$B$3:$I$1111,8,FALSE)),"") ->  | DB119: =IFERROR(SUM(VLOOKUP($BS119,'État & Plan d''action'!$B$4:$AA$1111,19,FALSE),VLOOKUP($BS119,'État & Plan d''action'!$B$4:$AA$1111,21,FALSE))/(VLOOKUP($BS119,'Audit de l''eau'!$B$3:$I$1111,8,FALSE)),"") ->  | DC119: ND | DF119: 0 | DG119: 0 | DJ119: =IF(VLOOKUP($BS119,'État & Plan d''action'!$B$4:$AR$1111,36,FALSE)="","",VLOOKUP($BS119,'État & Plan d''action'!$B$4:$AR$1111,36,FALSE)) ->  | DK119: =IF(VLOOKUP($BS119,'État & Plan d''action'!$B$4:$AR$1111,38,FALSE)="","",VLOOKUP($BS119,'État & Plan d''action'!$B$4:$AR$1111,38,FALSE)) ->  | DL119: =IF(VLOOKUP($BS119,'État & Plan d''action'!$B$4:$AR$1111,37,FALSE)="","",VLOOKUP($BS119,'État & Plan d''action'!$B$4:$AR$1111,37,FALSE)) -> 
BS120: 96035 | BT120: CHUTE-AUX-OUTARDES | BU120: 9 | BV120: non | BW120: non | BX120: non | BY120: non | BZ120: non | CA120: non | CB120: non | CC120: non | CD120: oui | CE120: oui | CF120: non | CG120: non | CH120: oui | CI120: oui | CJ120: non | CK120: non | CL120: 471.7063249 | CM120: 531.1213268 | CP120: 501.8103959 | CQ120: 443.8990286 | CS120: =IF(VLOOKUP(BS120,Indicateurs!$B$4:$E$1111,4,FALSE)="","",VLOOKUP(BS120,Indicateurs!$B$4:$E$1111,4,FALSE)) ->  | CT120: ND | CU120: 0.35 | CW120: 0 | CX120: 0 | DA120: =IFERROR(SUM(VLOOKUP($BS120,'État & Plan d''action'!$B$4:$AA$1111,18,FALSE),VLOOKUP($BS120,'État & Plan d''action'!$B$4:$AA$1111,20,FALSE))/(VLOOKUP($BS120,'Audit de l''eau'!$B$3:$I$1111,8,FALSE)),"") ->  | DB120: =IFERROR(SUM(VLOOKUP($BS120,'État & Plan d''action'!$B$4:$AA$1111,19,FALSE),VLOOKUP($BS120,'État & Plan d''action'!$B$4:$AA$1111,21,FALSE))/(VLOOKUP($BS120,'Audit de l''eau'!$B$3:$I$1111,8,FALSE)),"") ->  | DC120: ND | DD120: 3 | DF120: 1 | DG120: 1 | DH120: 6 | DJ120: =IF(VLOOKUP($BS120,'État & Plan d''action'!$B$4:$AR$1111,36,FALSE)="","",VLOOKUP($BS120,'État & Plan d''action'!$B$4:$AR$1111,36,FALSE)) ->  | DK120: =IF(VLOOKUP($BS120,'État & Plan d''action'!$B$4:$AR$1111,38,FALSE)="","",VLOOKUP($BS120,'État & Plan d''action'!$B$4:$AR$1111,38,FALSE)) ->  | DL120: =IF(VLOOKUP($BS120,'État & Plan d''action'!$B$4:$AR$1111,37,FALSE)="","",VLOOKUP($BS120,'État & Plan d''action'!$B$4:$AR$1111,37,FALSE)) -> 
BS121: 79065 | BT121: CHUTE-SAINT-PHILIPPE | BU121: 15 | BV121: oui | BW121: oui | BX121: oui | BY121: oui | BZ121: oui | CA121: oui | CB121: oui | CC121: oui | CD121: oui | CE121: oui | CF121: oui | CG121: oui | CH121: oui | CI121: non | CJ121: non | CK121: non | CL121: 385.838606 | CM121: 357.3376606 | CN121: 371.3094501 | CO121: 369.1634711 | CP121: 419.8765242 | CS121: =IF(VLOOKUP(BS121,Indicateurs!$B$4:$E$1111,4,FALSE)="","",VLOOKUP(BS121,Indicateurs!$B$4:$E$1111,4,FALSE)) ->  | CT121: ND | DA121: =IFERROR(SUM(VLOOKUP($BS121,'État & Plan d''action'!$B$4:$AA$1111,18,FALSE),VLOOKUP($BS121,'État & Plan d''action'!$B$4:$AA$1111,20,FALSE))/(VLOOKUP($BS121,'Audit de l''eau'!$B$3:$I$1111,8,FALSE)),"") ->  | DB121: =IFERROR(SUM(VLOOKUP($BS121,'État & Plan d''action'!$B$4:$AA$1111,19,FALSE),VLOOKUP($BS121,'État & Plan d''action'!$B$4:$AA$1111,21,FALSE))/(VLOOKUP($BS121,'Audit de l''eau'!$B$3:$I$1111,8,FALSE)),"") ->  | DC121: ND | DF121: 0 | DG121: 0 | DJ121: =IF(VLOOKUP($BS121,'État & Plan d''action'!$B$4:$AR$1111,36,FALSE)="","",VLOOKUP($BS121,'État & Plan d''action'!$B$4:$AR$1111,36,FALSE)) ->  | DK121: =IF(VLOOKUP($BS121,'État & Plan d''action'!$B$4:$AR$1111,38,FALSE)="","",VLOOKUP($BS121,'État & Plan d''action'!$B$4:$AR$1111,38,FALSE)) ->  | DL121: =IF(VLOOKUP($BS121,'État & Plan d''action'!$B$4:$AR$1111,37,FALSE)="","",VLOOKUP($BS121,'État & Plan d''action'!$B$4:$AR$1111,37,FALSE)) -> 
BS122: 84015 | BT122: CLARENDON | BU122: 7 | BV122: non | BW122: non | BX122: non | BY122: non | BZ122: oui | CA122: oui | CB122: oui | CC122: oui | CD122: non | CE122: non | CF122: non | CG122: non | CH122: non | CI122: non | CJ122: non | CK122: non | CS122: =IF(VLOOKUP(BS122,Indicateurs!$B$4:$E$1111,4,FALSE)="","",VLOOKUP(BS122,Indicateurs!$B$4:$E$1111,4,FALSE)) ->  | CT122: ND | CU122: 0 | CV122: 0 | DA122: =IFERROR(SUM(VLOOKUP($BS122,'État & Plan d''action'!$B$4:$AA$1111,18,FALSE),VLOOKUP($BS122,'État & Plan d''action'!$B$4:$AA$1111,20,FALSE))/(VLOOKUP($BS122,'Audit de l''eau'!$B$3:$I$1111,8,FALSE)),"") ->  | DB122: =IFERROR(SUM(VLOOKUP($BS122,'État & Plan d''action'!$B$4:$AA$1111,19,FALSE),VLOOKUP($BS122,'État & Plan d''action'!$B$4:$AA$1111,21,FALSE))/(VLOOKUP($BS122,'Audit de l''eau'!$B$3:$I$1111,8,FALSE)),"") ->  | DC122: ND | DD122: 1 | DE122: 1 | DF122: 0 | DG122: 0 | DJ122: =IF(VLOOKUP($BS122,'État & Plan d''action'!$B$4:$AR$1111,36,FALSE)="","",VLOOKUP($BS122,'État & Plan d''action'!$B$4:$AR$1111,36,FALSE)) ->  | DK122: =IF(VLOOKUP($BS122,'État & Plan d''action'!$B$4:$AR$1111,38,FALSE)="","",VLOOKUP($BS122,'État & Plan d''action'!$B$4:$AR$1111,38,FALSE)) ->  | DL122: =IF(VLOOKUP($BS122,'État & Plan d''action'!$B$4:$AR$1111,37,FALSE)="","",VLOOKUP($BS122,'État & Plan d''action'!$B$4:$AR$1111,37,FALSE)) -> 
BS123: 15035 | BT123: CLERMONT (03) | BU123: 3 | BV123: non | BW123: non | BX123: non | BY123: non | BZ123: non | CA123: non | CB123: non | CC123: non | CD123: oui | CE123: oui | CF123: oui | CG123: oui | CH123: oui | CI123: oui | CJ123: oui | CK123: oui | CL123: 543.8500387 | CM123: 458.7621548 | CN123: 419.8999276 | CO123: 404.1206769 | CP123: 415.5226836 | CQ123: 412.2784622 | CR123: 401.0596563 | CS123: =IF(VLOOKUP(BS123,Indicateurs!$B$4:$E$1111,4,FALSE)="","",VLOOKUP(BS123,Indicateurs!$B$4:$E$1111,4,FALSE)) -> 410 | CT123: ND | CU123: 0 | CV123: 0.25 | CW123: 0.25 | CX123: 0.25 | CY123: 0.25 | CZ123: 0.25 | DA123: =IFERROR(SUM(VLOOKUP($BS123,'État & Plan d''action'!$B$4:$AA$1111,18,FALSE),VLOOKUP($BS123,'État & Plan d''action'!$B$4:$AA$1111,20,FALSE))/(VLOOKUP($BS123,'Audit de l''eau'!$B$3:$I$1111,8,FALSE)),"") -> 0.2025462963 | DB123: =IFERROR(SUM(VLOOKUP($BS123,'État & Plan d''action'!$B$4:$AA$1111,19,FALSE),VLOOKUP($BS123,'État & Plan d''action'!$B$4:$AA$1111,21,FALSE))/(VLOOKUP($BS123,'Audit de l''eau'!$B$3:$I$1111,8,FALSE)),"") -> 0.2025462963 | DC123: ND | DD123: 4 | DE123: 3 | DF123: 4 | DG123: 3 | DH123: 2 | DI123: 2 | DJ123: =IF(VLOOKUP($BS123,'État & Plan d''action'!$B$4:$AR$1111,36,FALSE)="","",VLOOKUP($BS123,'État & Plan d''action'!$B$4:$AR$1111,36,FALSE)) -> 2 | DK123: =IF(VLOOKUP($BS123,'État & Plan d''action'!$B$4:$AR$1111,38,FALSE)="","",VLOOKUP($BS123,'État & Plan d''action'!$B$4:$AR$1111,38,FALSE)) -> 4 | DL123: =IF(VLOOKUP($BS123,'État & Plan d''action'!$B$4:$AR$1111,37,FALSE)="","",VLOOKUP($BS123,'État & Plan d''action'!$B$4:$AR$1111,37,FALSE)) -> 1
BS124: 87110 | BT124: CLERMONT (08) | BU124: 8 | BV124: oui | BW124: oui | BX124: oui | BY124: oui | BZ124: oui | CA124: oui | CB124: oui | CC124: oui | CD124: non | CE124: non | CF124: non | CG124: non | CH124: non | CI124: non | CJ124: non | CK124: non | CS124: =IF(VLOOKUP(BS124,Indicateurs!$B$4:$E$1111,4,FALSE)="","",VLOOKUP(BS124,Indicateurs!$B$4:$E$1111,4,FALSE)) ->  | CT124: ND | DA124: =IFERROR(SUM(VLOOKUP($BS124,'État & Plan d''action'!$B$4:$AA$1111,18,FALSE),VLOOKUP($BS124,'État & Plan d''action'!$B$4:$AA$1111,20,FALSE))/(VLOOKUP($BS124,'Audit de l''eau'!$B$3:$I$1111,8,FALSE)),"") ->  | DB124: =IFERROR(SUM(VLOOKUP($BS124,'État & Plan d''action'!$B$4:$AA$1111,19,FALSE),VLOOKUP($BS124,'État & Plan d''action'!$B$4:$AA$1111,21,FALSE))/(VLOOKUP($BS124,'Audit de l''eau'!$B$3:$I$1111,8,FALSE)),"") ->  | DC124: ND | DF124: 0 | DG124: 0 | DJ124: =IF(VLOOKUP($BS124,'État & Plan d''action'!$B$4:$AR$1111,36,FALSE)="","",VLOOKUP($BS124,'État & Plan d''action'!$B$4:$AR$1111,36,FALSE)) ->  | DK124: =IF(VLOOKUP($BS124,'État & Plan d''action'!$B$4:$AR$1111,38,FALSE)="","",VLOOKUP($BS124,'État & Plan d''action'!$B$4:$AR$1111,38,FALSE)) ->  | DL124: =IF(VLOOKUP($BS124,'État & Plan d''action'!$B$4:$AR$1111,37,FALSE)="","",VLOOKUP($BS124,'État & Plan d''action'!$B$4:$AR$1111,37,FALSE)) -> 
BS125: 87075 | BT125: CLERVAL | BU125: 8 | BV125: oui | BW125: oui | BX125: oui | BY125: oui | BZ125: oui | CA125: oui | CB125: oui | CC125: oui | CD125: non | CE125: non | CF125: non | CG125: non | CH125: non | CI125: non | CJ125: non | CK125: non | CS125: =IF(VLOOKUP(BS125,Indicateurs!$B$4:$E$1111,4,FALSE)="","",VLOOKUP(BS125,Indicateurs!$B$4:$E$1111,4,FALSE)) ->  | CT125: ND | DA125: =IFERROR(SUM(VLOOKUP($BS125,'État & Plan d''action'!$B$4:$AA$1111,18,FALSE),VLOOKUP($BS125,'État & Plan d''action'!$B$4:$AA$1111,20,FALSE))/(VLOOKUP($BS125,'Audit de l''eau'!$B$3:$I$1111,8,FALSE)),"") ->  | DB125: =IFERROR(SUM(VLOOKUP($BS125,'État & Plan d''action'!$B$4:$AA$1111,19,FALSE),VLOOKUP($BS125,'État & Plan d''action'!$B$4:$AA$1111,21,FALSE))/(VLOOKUP($BS125,'Audit de l''eau'!$B$3:$I$1111,8,FALSE)),"") ->  | DC125: ND | DF125: 0 | DG125: 0 | DJ125: =IF(VLOOKUP($BS125,'État & Plan d''action'!$B$4:$AR$1111,36,FALSE)="","",VLOOKUP($BS125,'État & Plan d''action'!$B$4:$AR$1111,36,FALSE)) ->  | DK125: =IF(VLOOKUP($BS125,'État & Plan d''action'!$B$4:$AR$1111,38,FALSE)="","",VLOOKUP($BS125,'État & Plan d''action'!$B$4:$AR$1111,38,FALSE)) ->  | DL125: =IF(VLOOKUP($BS125,'État & Plan d''action'!$B$4:$AR$1111,37,FALSE)="","",VLOOKUP($BS125,'État & Plan d''action'!$B$4:$AR$1111,37,FALSE)) -> 
BS126: 42110 | BT126: CLEVELAND | BU126: 5 | BV126: oui | BW126: oui | BX126: oui | BY126: oui | BZ126: oui | CA126: oui | CB126: oui | CC126: oui | CD126: non | CE126: non | CF126: non | CG126: non | CH126: non | CI126: non | CJ126: non | CK126: non | CS126: =IF(VLOOKUP(BS126,Indicateurs!$B$4:$E$1111,4,FALSE)="","",VLOOKUP(BS126,Indicateurs!$B$4:$E$1111,4,FALSE)) ->  | CT126: ND | DA126: =IFERROR(SUM(VLOOKUP($BS126,'État & Plan d''action'!$B$4:$AA$1111,18,FALSE),VLOOKUP($BS126,'État & Plan d''action'!$B$4:$AA$1111,20,FALSE))/(VLOOKUP($BS126,'Audit de l''eau'!$B$3:$I$1111,8,FALSE)),"") ->  | DB126: =IFERROR(SUM(VLOOKUP($BS126,'État & Plan d''action'!$B$4:$AA$1111,19,FALSE),VLOOKUP($BS126,'État & Plan d''action'!$B$4:$AA$1111,21,FALSE))/(VLOOKUP($BS126,'Audit de l''eau'!$B$3:$I$1111,8,FALSE)),"") ->  | DC126: ND | DF126: 0 | DG126: 0 | DJ126: =IF(VLOOKUP($BS126,'État & Plan d''action'!$B$4:$AR$1111,36,FALSE)="","",VLOOKUP($BS126,'État & Plan d''action'!$B$4:$AR$1111,36,FALSE)) ->  | DK126: =IF(VLOOKUP($BS126,'État & Plan d''action'!$B$4:$AR$1111,38,FALSE)="","",VLOOKUP($BS126,'État & Plan d''action'!$B$4:$AR$1111,38,FALSE)) ->  | DL126: =IF(VLOOKUP($BS126,'État & Plan d''action'!$B$4:$AR$1111,37,FALSE)="","",VLOOKUP($BS126,'État & Plan d''action'!$B$4:$AR$1111,37,FALSE)) -> 
BS127: 03010 | BT127: CLORIDORME | BU127: 11 | BV127: non | BW127: non | BX127: non | BY127: non | BZ127: non | CA127: non | CB127: non | CC127: non | CD127: oui | CE127: non | CF127: non | CG127: non | CH127: non | CI127: oui | CJ127: non | CK127: oui | CL127: 1226.140078 | CQ127: 735.5458183 | CS127: =IF(VLOOKUP(BS127,Indicateurs!$B$4:$E$1111,4,FALSE)="","",VLOOKUP(BS127,Indicateurs!$B$4:$E$1111,4,FALSE)) -> 1262 | CT127: ND | DA127: =IFERROR(SUM(VLOOKUP($BS127,'État & Plan d''action'!$B$4:$AA$1111,18,FALSE),VLOOKUP($BS127,'État & Plan d''action'!$B$4:$AA$1111,20,FALSE))/(VLOOKUP($BS127,'Audit de l''eau'!$B$3:$I$1111,8,FALSE)),"") -> 0 | DB127: =IFERROR(SUM(VLOOKUP($BS127,'État & Plan d''action'!$B$4:$AA$1111,19,FALSE),VLOOKUP($BS127,'État & Plan d''action'!$B$4:$AA$1111,21,FALSE))/(VLOOKUP($BS127,'Audit de l''eau'!$B$3:$I$1111,8,FALSE)),"") -> 1 | DC127: ND | DF127: 0 | DG127: 0 | DH127: 0 | DJ127: =IF(VLOOKUP($BS127,'État & Plan d''action'!$B$4:$AR$1111,36,FALSE)="","",VLOOKUP($BS127,'État & Plan d''action'!$B$4:$AR$1111,36,FALSE)) -> 0 | DK127: =IF(VLOOKUP($BS127,'État & Plan d''action'!$B$4:$AR$1111,38,FALSE)="","",VLOOKUP($BS127,'État & Plan d''action'!$B$4:$AR$1111,38,FALSE)) -> 0 | DL127: =IF(VLOOKUP($BS127,'État & Plan d''action'!$B$4:$AR$1111,37,FALSE)="","",VLOOKUP($BS127,'État & Plan d''action'!$B$4:$AR$1111,37,FALSE)) -> 0
BS128: 44037 | BT128: COATICOOK | BU128: 5 | BV128: non | BW128: non | BX128: non | BY128: non | BZ128: non | CA128: non | CB128: non | CC128: non | CD128: oui | CE128: oui | CF128: oui | CG128: oui | CH128: oui | CI128: oui | CJ128: oui | CK128: oui | CL128: 863.1516318 | CM128: 623.9863447 | CN128: 862.8442851 | CO128: 854.9833194 | CP128: 756.8168906 | CQ128: 617.4340348 | CR128: 556.7309906 | CS128: =IF(VLOOKUP(BS128,Indicateurs!$B$4:$E$1111,4,FALSE)="","",VLOOKUP(BS128,Indicateurs!$B$4:$E$1111,4,FALSE)) -> 534 | CT128: ND | CU128: 0 | CV128: 1 | CW128: 1 | CX128: 1 | CY128: 1 | CZ128: 1 | DA128: =IFERROR(SUM(VLOOKUP($BS128,'État & Plan d''action'!$B$4:$AA$1111,18,FALSE),VLOOKUP($BS128,'État & Plan d''action'!$B$4:$AA$1111,20,FALSE))/(VLOOKUP($BS128,'Audit de l''eau'!$B$3:$I$1111,8,FALSE)),"") -> 0 | DB128: =IFERROR(SUM(VLOOKUP($BS128,'État & Plan d''action'!$B$4:$AA$1111,19,FALSE),VLOOKUP($BS128,'État & Plan d''action'!$B$4:$AA$1111,21,FALSE))/(VLOOKUP($BS128,'Audit de l''eau'!$B$3:$I$1111,8,FALSE)),"") -> 0 | DC128: ND | DD128: 0 | DE128: 2 | DF128: 2 | DG128: 0 | DH128: 0 | DI128: 6 | DJ128: =IF(VLOOKUP($BS128,'État & Plan d''action'!$B$4:$AR$1111,36,FALSE)="","",VLOOKUP($BS128,'État & Plan d''action'!$B$4:$AR$1111,36,FALSE)) -> 4 | DK128: =IF(VLOOKUP($BS128,'État & Plan d''action'!$B$4:$AR$1111,38,FALSE)="","",VLOOKUP($BS128,'État & Plan d''action'!$B$4:$AR$1111,38,FALSE)) -> 4 | DL128: =IF(VLOOKUP($BS128,'État & Plan d''action'!$B$4:$AR$1111,37,FALSE)="","",VLOOKUP($BS128,'État & Plan d''action'!$B$4:$AR$1111,37,FALSE)) -> 0
BS129: 95050 | BT129: COLOMBIER | BU129: 9 | BV129: non | BW129: non | BX129: non | BY129: non | BZ129: non | CA129: non | CB129: non | CC129: non | CD129: oui | CE129: oui | CF129: non | CG129: non | CH129: non | CI129: non | CJ129: non | CK129: non | CL129: 583.9539406 | CM129: 524.5173253 | CS129: =IF(VLOOKUP(BS129,Indicateurs!$B$4:$E$1111,4,FALSE)="","",VLOOKUP(BS129,Indicateurs!$B$4:$E$1111,4,FALSE)) ->  | CT129: ND | CU129: 0 | CX129: 0 | DA129: =IFERROR(SUM(VLOOKUP($BS129,'État & Plan d''action'!$B$4:$AA$1111,18,FALSE),VLOOKUP($BS129,'État & Plan d''action'!$B$4:$AA$1111,20,FALSE))/(VLOOKUP($BS129,'Audit de l''eau'!$B$3:$I$1111,8,FALSE)),"") ->  | DB129: =IFERROR(SUM(VLOOKUP($BS129,'État & Plan d''action'!$B$4:$AA$1111,19,FALSE),VLOOKUP($BS129,'État & Plan d''action'!$B$4:$AA$1111,21,FALSE))/(VLOOKUP($BS129,'Audit de l''eau'!$B$3:$I$1111,8,FALSE)),"") ->  | DC129: ND | DD129: 2 | DF129: 0 | DG129: 3 | DJ129: =IF(VLOOKUP($BS129,'État & Plan d''action'!$B$4:$AR$1111,36,FALSE)="","",VLOOKUP($BS129,'État & Plan d''action'!$B$4:$AR$1111,36,FALSE)) ->  | DK129: =IF(VLOOKUP($BS129,'État & Plan d''action'!$B$4:$AR$1111,38,FALSE)="","",VLOOKUP($BS129,'État & Plan d''action'!$B$4:$AR$1111,38,FALSE)) ->  | DL129: =IF(VLOOKUP($BS129,'État & Plan d''action'!$B$4:$AR$1111,37,FALSE)="","",VLOOKUP($BS129,'État & Plan d''action'!$B$4:$AR$1111,37,FALSE)) -> 
BS130: 44071 | BT130: COMPTON | BU130: 5 | BV130: non | BW130: non | BX130: non | BY130: non | BZ130: non | CA130: non | CB130: non | CC130: non | CD130: oui | CE130: oui | CF130: oui | CG130: oui | CH130: oui | CI130: oui | CJ130: oui | CK130: oui | CL130: 331.367918 | CM130: 261.6430579 | CN130: 280.9158758 | CO130: 258.6419486 | CP130: 255.4474343 | CQ130: 226.3453525 | CR130: 192.7831298 | CS130: =IF(VLOOKUP(BS130,Indicateurs!$B$4:$E$1111,4,FALSE)="","",VLOOKUP(BS130,Indicateurs!$B$4:$E$1111,4,FALSE)) -> 223 | CT130: ND | CU130: 0 | CV130: 0.25 | CW130: 0.25 | CX130: 0.25 | CY130: 0.25 | CZ130: 0.25 | DA130: =IFERROR(SUM(VLOOKUP($BS130,'État & Plan d''action'!$B$4:$AA$1111,18,FALSE),VLOOKUP($BS130,'État & Plan d''action'!$B$4:$AA$1111,20,FALSE))/(VLOOKUP($BS130,'Audit de l''eau'!$B$3:$I$1111,8,FALSE)),"") -> 0.25 | DB130: =IFERROR(SUM(VLOOKUP($BS130,'État & Plan d''action'!$B$4:$AA$1111,19,FALSE),VLOOKUP($BS130,'État & Plan d''action'!$B$4:$AA$1111,21,FALSE))/(VLOOKUP($BS130,'Audit de l''eau'!$B$3:$I$1111,8,FALSE)),"") -> 0 | DC130: ND | DD130: 1 | DE130: 2 | DF130: 2 | DG130: 3 | DH130: 1 | DI130: 2 | DJ130: =IF(VLOOKUP($BS130,'État & Plan d''action'!$B$4:$AR$1111,36,FALSE)="","",VLOOKUP($BS130,'État & Plan d''action'!$B$4:$AR$1111,36,FALSE)) -> 4 | DK130: =IF(VLOOKUP($BS130,'État & Plan d''action'!$B$4:$AR$1111,38,FALSE)="","",VLOOKUP($BS130,'État & Plan d''action'!$B$4:$AR$1111,38,FALSE)) -> 0 | DL130: =IF(VLOOKUP($BS130,'État & Plan d''action'!$B$4:$AR$1111,37,FALSE)="","",VLOOKUP($BS130,'État & Plan d''action'!$B$4:$AR$1111,37,FALSE)) -> 0
BS131: 59035 | BT131: CONTRECOEUR | BU131: 16 | BV131: non | BW131: non | BX131: non | BY131: non | BZ131: non | CA131: non | CB131: non | CC131: non | CD131: oui | CE131: oui | CF131: oui | CG131: oui | CH131: oui | CI131: oui | CJ131: oui | CK131: non | CL131: 560.4491904 | CM131: 590.9788512 | CN131: 528.4025962 | CO131: 475.3835822 | CP131: 480.5546078 | CQ131: 500.0511444 | CR131: 450.1146291 | CS131: =IF(VLOOKUP(BS131,Indicateurs!$B$4:$E$1111,4,FALSE)="","",VLOOKUP(BS131,Indicateurs!$B$4:$E$1111,4,FALSE)) ->  | CT131: ND | CU131: 0.1 | CV131: 0.1 | CW131: 0.1 | CX131: 0.1 | CY131: 0.1 | CZ131: 0.1 | DA131: =IFERROR(SUM(VLOOKUP($BS131,'État & Plan d''action'!$B$4:$AA$1111,18,FALSE),VLOOKUP($BS131,'État & Plan d''action'!$B$4:$AA$1111,20,FALSE))/(VLOOKUP($BS131,'Audit de l''eau'!$B$3:$I$1111,8,FALSE)),"") ->  | DB131: =IFERROR(SUM(VLOOKUP($BS131,'État & Plan d''action'!$B$4:$AA$1111,19,FALSE),VLOOKUP($BS131,'État & Plan d''action'!$B$4:$AA$1111,21,FALSE))/(VLOOKUP($BS131,'Audit de l''eau'!$B$3:$I$1111,8,FALSE)),"") ->  | DC131: ND | DD131: 12 | DE131: 11 | DF131: 9 | DG131: 14 | DH131: 8 | DI131: 9 | DJ131: =IF(VLOOKUP($BS131,'État & Plan d''action'!$B$4:$AR$1111,36,FALSE)="","",VLOOKUP($BS131,'État & Plan d''action'!$B$4:$AR$1111,36,FALSE)) ->  | DK131: =IF(VLOOKUP($BS131,'État & Plan d''action'!$B$4:$AR$1111,38,FALSE)="","",VLOOKUP($BS131,'État & Plan d''action'!$B$4:$AR$1111,38,FALSE)) ->  | DL131: =IF(VLOOKUP($BS131,'État & Plan d''action'!$B$4:$AR$1111,37,FALSE)="","",VLOOKUP($BS131,'État & Plan d''action'!$B$4:$AR$1111,37,FALSE)) -> 
BS132: 41038 | BT132: COOKSHIRE-EATON | BU132: 5 | BV132: non | BW132: non | BX132: non | BY132: non | BZ132: non | CA132: non | CB132: non | CC132: non | CD132: oui | CE132: oui | CF132: oui | CG132: oui | CH132: oui | CI132: oui | CJ132: oui | CK132: oui | CL132: 554.3690514 | CM132: 469.7158235 | CN132: 421.3200607 | CO132: 424.7923055 | CP132: 416.6442152 | CQ132: 425.9293197 | CR132: 511.3483677 | CS132: =IF(VLOOKUP(BS132,Indicateurs!$B$4:$E$1111,4,FALSE)="","",VLOOKUP(BS132,Indicateurs!$B$4:$E$1111,4,FALSE)) -> 497 | CT132: ND | CU132: 0.05 | CV132: 0.2 | CW132: 1 | CX132: 1 | CY132: 1 | CZ132: 1 | DA132: =IFERROR(SUM(VLOOKUP($BS132,'État & Plan d''action'!$B$4:$AA$1111,18,FALSE),VLOOKUP($BS132,'État & Plan d''action'!$B$4:$AA$1111,20,FALSE))/(VLOOKUP($BS132,'Audit de l''eau'!$B$3:$I$1111,8,FALSE)),"") -> 1 | DB132: =IFERROR(SUM(VLOOKUP($BS132,'État & Plan d''action'!$B$4:$AA$1111,19,FALSE),VLOOKUP($BS132,'État & Plan d''action'!$B$4:$AA$1111,21,FALSE))/(VLOOKUP($BS132,'Audit de l''eau'!$B$3:$I$1111,8,FALSE)),"") -> 1 | DC132: ND | DD132: 23 | DE132: 8 | DF132: 26 | DG132: 8 | DH132: 18 | DI132: 5 | DJ132: =IF(VLOOKUP($BS132,'État & Plan d''action'!$B$4:$AR$1111,36,FALSE)="","",VLOOKUP($BS132,'État & Plan d''action'!$B$4:$AR$1111,36,FALSE)) -> 7 | DK132: =IF(VLOOKUP($BS132,'État & Plan d''action'!$B$4:$AR$1111,38,FALSE)="","",VLOOKUP($BS132,'État & Plan d''action'!$B$4:$AR$1111,38,FALSE)) -> 0 | DL132: =IF(VLOOKUP($BS132,'État & Plan d''action'!$B$4:$AR$1111,37,FALSE)="","",VLOOKUP($BS132,'État & Plan d''action'!$B$4:$AR$1111,37,FALSE)) -> 12
BS133: 71040 | BT133: COTEAU-DU-LAC | BU133: 16 | BV133: non | BW133: non | BX133: non | BY133: non | BZ133: non | CA133: non | CB133: non | CC133: non | CD133: non | CE133: non | CF133: non | CG133: non | CH133: non | CI133: oui | CJ133: oui | CK133: oui | CQ133: 342.9382609 | CR133: 300.6089722 | CS133: =IF(VLOOKUP(BS133,Indicateurs!$B$4:$E$1111,4,FALSE)="","",VLOOKUP(BS133,Indicateurs!$B$4:$E$1111,4,FALSE)) -> 343 | CT133: ND | CU133: 0.0247 | CW133: 0 | CX133: 0 | CY133: 0 | CZ133: 0 | DA133: =IFERROR(SUM(VLOOKUP($BS133,'État & Plan d''action'!$B$4:$AA$1111,18,FALSE),VLOOKUP($BS133,'État & Plan d''action'!$B$4:$AA$1111,20,FALSE))/(VLOOKUP($BS133,'Audit de l''eau'!$B$3:$I$1111,8,FALSE)),"") -> 0 | DB133: =IFERROR(SUM(VLOOKUP($BS133,'État & Plan d''action'!$B$4:$AA$1111,19,FALSE),VLOOKUP($BS133,'État & Plan d''action'!$B$4:$AA$1111,21,FALSE))/(VLOOKUP($BS133,'Audit de l''eau'!$B$3:$I$1111,8,FALSE)),"") -> 0.05039734433 | DC133: ND | DD133: 6 | DF133: 6 | DG133: 17 | DH133: 5 | DI133: 8 | DJ133: =IF(VLOOKUP($BS133,'État & Plan d''action'!$B$4:$AR$1111,36,FALSE)="","",VLOOKUP($BS133,'État & Plan d''action'!$B$4:$AR$1111,36,FALSE)) -> 14 | DK133: =IF(VLOOKUP($BS133,'État & Plan d''action'!$B$4:$AR$1111,38,FALSE)="","",VLOOKUP($BS133,'État & Plan d''action'!$B$4:$AR$1111,38,FALSE)) -> 0 | DL133: =IF(VLOOKUP($BS133,'État & Plan d''action'!$B$4:$AR$1111,37,FALSE)="","",VLOOKUP($BS133,'État & Plan d''action'!$B$4:$AR$1111,37,FALSE)) -> 14
BS134: 98015 | BT134: CÔTE-NORD-DU-GOLFE-DU-SAINT-LAURENT | BU134: 9 | BV134: non | BW134: non | BX134: non | BY134: non | BZ134: non | CA134: non | CB134: non | CC134: non | CD134: oui | CE134: oui | CF134: non | CG134: oui | CH134: oui | CI134: non | CJ134: oui | CK134: non | CL134: 312.2247617 | CM134: 331.7132642 | CO134: 357.0002743 | CP134: 334.1621317 | CR134: 445.0491024 | CS134: =IF(VLOOKUP(BS134,Indicateurs!$B$4:$E$1111,4,FALSE)="","",VLOOKUP(BS134,Indicateurs!$B$4:$E$1111,4,FALSE)) ->  | CT134: ND | CZ134: 0.2 | DA134: =IFERROR(SUM(VLOOKUP($BS134,'État & Plan d''action'!$B$4:$AA$1111,18,FALSE),VLOOKUP($BS134,'État & Plan d''action'!$B$4:$AA$1111,20,FALSE))/(VLOOKUP($BS134,'Audit de l''eau'!$B$3:$I$1111,8,FALSE)),"") ->  | DB134: =IFERROR(SUM(VLOOKUP($BS134,'État & Plan d''action'!$B$4:$AA$1111,19,FALSE),VLOOKUP($BS134,'État & Plan d''action'!$B$4:$AA$1111,21,FALSE))/(VLOOKUP($BS134,'Audit de l''eau'!$B$3:$I$1111,8,FALSE)),"") ->  | DC134: ND | DD134: 0 | DE134: 0 | DF134: 0 | DG134: 0 | DI134: 0 | DJ134: =IF(VLOOKUP($BS134,'État & Plan d''action'!$B$4:$AR$1111,36,FALSE)="","",VLOOKUP($BS134,'État & Plan d''action'!$B$4:$AR$1111,36,FALSE)) ->  | DK134: =IF(VLOOKUP($BS134,'État & Plan d''action'!$B$4:$AR$1111,38,FALSE)="","",VLOOKUP($BS134,'État & Plan d''action'!$B$4:$AR$1111,38,FALSE)) ->  | DL134: =IF(VLOOKUP($BS134,'État & Plan d''action'!$B$4:$AR$1111,37,FALSE)="","",VLOOKUP($BS134,'État & Plan d''action'!$B$4:$AR$1111,37,FALSE)) -> 
BS135: 66058 | BT135: CÔTE-SAINT-LUC | BU135: 6 | BV135: non | BW135: non | BX135: non | BY135: non | BZ135: non | CA135: non | CB135: non | CC135: non | CD135: oui | CE135: oui | CF135: oui | CG135: oui | CH135: oui | CI135: oui | CJ135: oui | CK135: oui | CL135: 638.436784 | CM135: 767.0780255 | CN135: 680.5685599 | CO135: 576.0150773 | CP135: 857.5207993 | CQ135: 818 | CR135: 785.5459741 | CS135: =IF(VLOOKUP(BS135,Indicateurs!$B$4:$E$1111,4,FALSE)="","",VLOOKUP(BS135,Indicateurs!$B$4:$E$1111,4,FALSE)) -> 529 | CT135: ND | CU135: 1 | CW135: 1 | CX135: 1 | CY135: 1 | CZ135: 1 | DA135: =IFERROR(SUM(VLOOKUP($BS135,'État & Plan d''action'!$B$4:$AA$1111,18,FALSE),VLOOKUP($BS135,'État & Plan d''action'!$B$4:$AA$1111,20,FALSE))/(VLOOKUP($BS135,'Audit de l''eau'!$B$3:$I$1111,8,FALSE)),"") -> 1.0771317 | DB135: =IFERROR(SUM(VLOOKUP($BS135,'État & Plan d''action'!$B$4:$AA$1111,19,FALSE),VLOOKUP($BS135,'État & Plan d''action'!$B$4:$AA$1111,21,FALSE))/(VLOOKUP($BS135,'Audit de l''eau'!$B$3:$I$1111,8,FALSE)),"") -> 1.0771317 | DC135: ND | DD135: 27 | DF135: 46 | DG135: 45 | DH135: 37 | DI135: 35 | DJ135: =IF(VLOOKUP($BS135,'État & Plan d''action'!$B$4:$AR$1111,36,FALSE)="","",VLOOKUP($BS135,'État & Plan d''action'!$B$4:$AR$1111,36,FALSE)) -> 12 | DK135: =IF(VLOOKUP($BS135,'État & Plan d''action'!$B$4:$AR$1111,38,FALSE)="","",VLOOKUP($BS135,'État & Plan d''action'!$B$4:$AR$1111,38,FALSE)) -> 5 | DL135: =IF(VLOOKUP($BS135,'État & Plan d''action'!$B$4:$AR$1111,37,FALSE)="","",VLOOKUP($BS135,'État & Plan d''action'!$B$4:$AR$1111,37,FALSE)) -> 20
BS136: 30090 | BT136: COURCELLES | BU136: 5 | BV136: non | BW136: non | BX136: non | BY136: non | BZ136: non | CA136: non | CB136: non | CC136: non | CD136: oui | CE136: oui | CF136: oui | CG136: oui | CH136: oui | CI136: oui | CJ136: oui | CK136: oui | CL136: 224.9553051 | CM136: 210.7507874 | CN136: 233.3221971 | CO136: 244.4274942 | CP136: 268.4872389 | CQ136: 243.9177002 | CR136: 202 | CS136: =IF(VLOOKUP(BS136,Indicateurs!$B$4:$E$1111,4,FALSE)="","",VLOOKUP(BS136,Indicateurs!$B$4:$E$1111,4,FALSE)) -> 294 | CT136: ND | CU136: 0 | CV136: 0 | CW136: 0 | CX136: 0 | CY136: 0 | CZ136: 0 | DA136: =IFERROR(SUM(VLOOKUP($BS136,'État & Plan d''action'!$B$4:$AA$1111,18,FALSE),VLOOKUP($BS136,'État & Plan d''action'!$B$4:$AA$1111,20,FALSE))/(VLOOKUP($BS136,'Audit de l''eau'!$B$3:$I$1111,8,FALSE)),"") -> 0 | DB136: =IFERROR(SUM(VLOOKUP($BS136,'État & Plan d''action'!$B$4:$AA$1111,19,FALSE),VLOOKUP($BS136,'État & Plan d''action'!$B$4:$AA$1111,21,FALSE))/(VLOOKUP($BS136,'Audit de l''eau'!$B$3:$I$1111,8,FALSE)),"") -> 0 | DC136: ND | DD136: 3 | DE136: 3 | DF136: 3 | DG136: 0 | DH136: 0 | DI136: 2 | DJ136: =IF(VLOOKUP($BS136,'État & Plan d''action'!$B$4:$AR$1111,36,FALSE)="","",VLOOKUP($BS136,'État & Plan d''action'!$B$4:$AR$1111,36,FALSE)) -> 0 | DK136: =IF(VLOOKUP($BS136,'État & Plan d''action'!$B$4:$AR$1111,38,FALSE)="","",VLOOKUP($BS136,'État & Plan d''action'!$B$4:$AR$1111,38,FALSE)) -> 0 | DL136: =IF(VLOOKUP($BS136,'État & Plan d''action'!$B$4:$AR$1111,37,FALSE)="","",VLOOKUP($BS136,'État & Plan d''action'!$B$4:$AR$1111,37,FALSE)) -> 0
BS137: 46080 | BT137: COWANSVILLE | BU137: 16 | BV137: non | BW137: non | BX137: non | BY137: non | BZ137: non | CA137: non | CB137: non | CC137: non | CD137: oui | CE137: oui | CF137: oui | CG137: oui | CH137: oui | CI137: oui | CJ137: oui | CK137: oui | CL137: 790.8608199 | CM137: 680.8832955 | CN137: 608.6288566 | CO137: 605.2567287 | CP137: 661.6524933 | CQ137: 613.6977315 | CR137: 610.0880995 | CS137: =IF(VLOOKUP(BS137,Indicateurs!$B$4:$E$1111,4,FALSE)="","",VLOOKUP(BS137,Indicateurs!$B$4:$E$1111,4,FALSE)) -> 534 | CT137: ND | CU137: 0.8 | CV137: 0.2 | CW137: 1 | CX137: 1 | CY137: 1 | CZ137: 1 | DA137: =IFERROR(SUM(VLOOKUP($BS137,'État & Plan d''action'!$B$4:$AA$1111,18,FALSE),VLOOKUP($BS137,'État & Plan d''action'!$B$4:$AA$1111,20,FALSE))/(VLOOKUP($BS137,'Audit de l''eau'!$B$3:$I$1111,8,FALSE)),"") -> 1 | DB137: =IFERROR(SUM(VLOOKUP($BS137,'État & Plan d''action'!$B$4:$AA$1111,19,FALSE),VLOOKUP($BS137,'État & Plan d''action'!$B$4:$AA$1111,21,FALSE))/(VLOOKUP($BS137,'Audit de l''eau'!$B$3:$I$1111,8,FALSE)),"") -> 1 | DC137: ND | DD137: 20 | DE137: 22 | DF137: 28 | DG137: 28 | DH137: 21 | DI137: 21 | DJ137: =IF(VLOOKUP($BS137,'État & Plan d''action'!$B$4:$AR$1111,36,FALSE)="","",VLOOKUP($BS137,'État & Plan d''action'!$B$4:$AR$1111,36,FALSE)) -> 23 | DK137: =IF(VLOOKUP($BS137,'État & Plan d''action'!$B$4:$AR$1111,38,FALSE)="","",VLOOKUP($BS137,'État & Plan d''action'!$B$4:$AR$1111,38,FALSE)) -> 3 | DL137: =IF(VLOOKUP($BS137,'État & Plan d''action'!$B$4:$AR$1111,37,FALSE)="","",VLOOKUP($BS137,'État & Plan d''action'!$B$4:$AR$1111,37,FALSE)) -> 23
BS138: 61013 | BT138: CRABTREE | BU138: 14 | BV138: non | BW138: non | BX138: non | BY138: non | BZ138: non | CA138: non | CB138: non | CC138: non | CD138: oui | CE138: oui | CF138: oui | CG138: oui | CH138: oui | CI138: oui | CJ138: oui | CK138: oui | CL138: 402.8406136 | CM138: 415.1326495 | CN138: 352.3344431 | CO138: 331.5015518 | CP138: 343.0174934 | CQ138: 395.3141291 | CR138: 342.4275342 | CS138: =IF(VLOOKUP(BS138,Indicateurs!$B$4:$E$1111,4,FALSE)="","",VLOOKUP(BS138,Indicateurs!$B$4:$E$1111,4,FALSE)) -> 316 | CT138: ND | CU138: 1 | CV138: 1 | CW138: 1 | CX138: 1 | CY138: 1 | CZ138: 1 | DA138: =IFERROR(SUM(VLOOKUP($BS138,'État & Plan d''action'!$B$4:$AA$1111,18,FALSE),VLOOKUP($BS138,'État & Plan d''action'!$B$4:$AA$1111,20,FALSE))/(VLOOKUP($BS138,'Audit de l''eau'!$B$3:$I$1111,8,FALSE)),"") -> 1 | DB138: =IFERROR(SUM(VLOOKUP($BS138,'État & Plan d''action'!$B$4:$AA$1111,19,FALSE),VLOOKUP($BS138,'État & Plan d''action'!$B$4:$AA$1111,21,FALSE))/(VLOOKUP($BS138,'Audit de l''eau'!$B$3:$I$1111,8,FALSE)),"") -> 1 | DC138: ND | DD138: 6 | DE138: 3 | DF138: 2 | DG138: 3 | DH138: 2 | DI138: 2 | DJ138: =IF(VLOOKUP($BS138,'État & Plan d''action'!$B$4:$AR$1111,36,FALSE)="","",VLOOKUP($BS138,'État & Plan d''action'!$B$4:$AR$1111,36,FALSE)) -> 2 | DK138: =IF(VLOOKUP($BS138,'État & Plan d''action'!$B$4:$AR$1111,38,FALSE)="","",VLOOKUP($BS138,'État & Plan d''action'!$B$4:$AR$1111,38,FALSE)) -> 1 | DL138: =IF(VLOOKUP($BS138,'État & Plan d''action'!$B$4:$AR$1111,37,FALSE)="","",VLOOKUP($BS138,'État & Plan d''action'!$B$4:$AR$1111,37,FALSE)) -> 0
BS139: 40047 | BT139: DANVILLE | BU139: 5 | BV139: non | BW139: non | BX139: non | BY139: non | BZ139: non | CA139: non | CB139: non | CC139: non | CD139: oui | CE139: oui | CF139: oui | CG139: non | CH139: oui | CI139: non | CJ139: non | CK139: non | CL139: 399.7639689 | CM139: 378.0207135 | CN139: 358.2201851 | CP139: 316 | CS139: =IF(VLOOKUP(BS139,Indicateurs!$B$4:$E$1111,4,FALSE)="","",VLOOKUP(BS139,Indicateurs!$B$4:$E$1111,4,FALSE)) ->  | CT139: ND | CU139: 0.01 | CV139: 0.05 | CX139: 1 | DA139: =IFERROR(SUM(VLOOKUP($BS139,'État & Plan d''action'!$B$4:$AA$1111,18,FALSE),VLOOKUP($BS139,'État & Plan d''action'!$B$4:$AA$1111,20,FALSE))/(VLOOKUP($BS139,'Audit de l''eau'!$B$3:$I$1111,8,FALSE)),"") ->  | DB139: =IFERROR(SUM(VLOOKUP($BS139,'État & Plan d''action'!$B$4:$AA$1111,19,FALSE),VLOOKUP($BS139,'État & Plan d''action'!$B$4:$AA$1111,21,FALSE))/(VLOOKUP($BS139,'Audit de l''eau'!$B$3:$I$1111,8,FALSE)),"") ->  | DC139: ND | DD139: 3 | DE139: 4 | DF139: 0 | DG139: 8 | DJ139: =IF(VLOOKUP($BS139,'État & Plan d''action'!$B$4:$AR$1111,36,FALSE)="","",VLOOKUP($BS139,'État & Plan d''action'!$B$4:$AR$1111,36,FALSE)) ->  | DK139: =IF(VLOOKUP($BS139,'État & Plan d''action'!$B$4:$AR$1111,38,FALSE)="","",VLOOKUP($BS139,'État & Plan d''action'!$B$4:$AR$1111,38,FALSE)) ->  | DL139: =IF(VLOOKUP($BS139,'État & Plan d''action'!$B$4:$AR$1111,37,FALSE)="","",VLOOKUP($BS139,'État & Plan d''action'!$B$4:$AR$1111,37,FALSE)) -> 
C140: ↑ Haut de page | BS140: 39152 | BT140: DAVELUYVILLE | BU140: 17 | BV140: non | BW140: non | BX140: non | BY140: non | BZ140: non | CA140: non | CB140: non | CC140: non | CD140: oui | CE140: oui | CF140: oui | CG140: oui | CH140: oui | CI140: oui | CJ140: oui | CK140: oui | CL140: 462.5398803 | CM140: 479.2463896 | CN140: 431.9152557 | CO140: 429.308128 | CP140: 442.8903252 | CQ140: 360.5359416 | CR140: 350.2935421 | CS140: =IF(VLOOKUP(BS140,Indicateurs!$B$4:$E$1111,4,FALSE)="","",VLOOKUP(BS140,Indicateurs!$B$4:$E$1111,4,FALSE)) -> 412 | CT140: ND | CU140: 0 | CV140: 1 | CW140: 1 | CX140: 1 | CY140: 1 | CZ140: 1 | DA140: =IFERROR(SUM(VLOOKUP($BS140,'État & Plan d''action'!$B$4:$AA$1111,18,FALSE),VLOOKUP($BS140,'État & Plan d''action'!$B$4:$AA$1111,20,FALSE))/(VLOOKUP($BS140,'Audit de l''eau'!$B$3:$I$1111,8,FALSE)),"") -> 0 | DB140: =IFERROR(SUM(VLOOKUP($BS140,'État & Plan d''action'!$B$4:$AA$1111,19,FALSE),VLOOKUP($BS140,'État & Plan d''action'!$B$4:$AA$1111,21,FALSE))/(VLOOKUP($BS140,'Audit de l''eau'!$B$3:$I$1111,8,FALSE)),"") -> 0 | DC140: ND | DD140: 3 | DE140: 3 | DF140: 0 | DG140: 1 | DH140: 1 | DI140: 3 | DJ140: =IF(VLOOKUP($BS140,'État & Plan d''action'!$B$4:$AR$1111,36,FALSE)="","",VLOOKUP($BS140,'État & Plan d''action'!$B$4:$AR$1111,36,FALSE)) -> 2 | DK140: =IF(VLOOKUP($BS140,'État & Plan d''action'!$B$4:$AR$1111,38,FALSE)="","",VLOOKUP($BS140,'État & Plan d''action'!$B$4:$AR$1111,38,FALSE)) -> 0 | DL140: =IF(VLOOKUP($BS140,'État & Plan d''action'!$B$4:$AR$1111,37,FALSE)="","",VLOOKUP($BS140,'État & Plan d''action'!$B$4:$AR$1111,37,FALSE)) -> 0
BS141: 13005 | BT141: DÉGELIS | BU141: 1 | BV141: non | BW141: non | BX141: non | BY141: non | BZ141: non | CA141: non | CB141: non | CC141: non | CD141: oui | CE141: oui | CF141: oui | CG141: oui | CH141: oui | CI141: oui | CJ141: oui | CK141: non | CL141: 594.4768497 | CM141: 538.4654304 | CN141: 465.2007296 | CO141: 620.9554353 | CP141: 600.809288 | CQ141: 620.6118048 | CR141: 572.5005489 | CS141: =IF(VLOOKUP(BS141,Indicateurs!$B$4:$E$1111,4,FALSE)="","",VLOOKUP(BS141,Indicateurs!$B$4:$E$1111,4,FALSE)) ->  | CT141: ND | CU141: 0 | CV141: 0.1 | CW141: 0.25 | CX141: 0.25 | CY141: 1 | CZ141: 1 | DA141: =IFERROR(SUM(VLOOKUP($BS141,'État & Plan d''action'!$B$4:$AA$1111,18,FALSE),VLOOKUP($BS141,'État & Plan d''action'!$B$4:$AA$1111,20,FALSE))/(VLOOKUP($BS141,'Audit de l''eau'!$B$3:$I$1111,8,FALSE)),"") ->  | DB141: =IFERROR(SUM(VLOOKUP($BS141,'État & Plan d''action'!$B$4:$AA$1111,19,FALSE),VLOOKUP($BS141,'État & Plan d''action'!$B$4:$AA$1111,21,FALSE))/(VLOOKUP($BS141,'Audit de l''eau'!$B$3:$I$1111,8,FALSE)),"") ->  | DC141: ND | DD141: 3 | DE141: 3 | DF141: 10 | DG141: 9 | DH141: 3 | DI141: 3 | DJ141: =IF(VLOOKUP($BS141,'État & Plan d''action'!$B$4:$AR$1111,36,FALSE)="","",VLOOKUP($BS141,'État & Plan d''action'!$B$4:$AR$1111,36,FALSE)) ->  | DK141: =IF(VLOOKUP($BS141,'État & Plan d''action'!$B$4:$AR$1111,38,FALSE)="","",VLOOKUP($BS141,'État & Plan d''action'!$B$4:$AR$1111,38,FALSE)) ->  | DL141: =IF(VLOOKUP($BS141,'État & Plan d''action'!$B$4:$AR$1111,37,FALSE)="","",VLOOKUP($BS141,'État & Plan d''action'!$B$4:$AR$1111,37,FALSE)) -> 
BS142: 83070 | BT142: DÉLÉAGE | BU142: 7 | BV142: non | BW142: non | BX142: non | BY142: non | BZ142: non | CA142: non | CB142: non | CC142: non | CD142: non | CE142: non | CF142: non | CG142: non | CH142: non | CI142: non | CJ142: non | CK142: non | CS142: =IF(VLOOKUP(BS142,Indicateurs!$B$4:$E$1111,4,FALSE)="","",VLOOKUP(BS142,Indicateurs!$B$4:$E$1111,4,FALSE)) ->  | CT142: ND | DA142: =IFERROR(SUM(VLOOKUP($BS142,'État & Plan d''action'!$B$4:$AA$1111,18,FALSE),VLOOKUP($BS142,'État & Plan d''action'!$B$4:$AA$1111,20,FALSE))/(VLOOKUP($BS142,'Audit de l''eau'!$B$3:$I$1111,8,FALSE)),"") ->  | DB142: =IFERROR(SUM(VLOOKUP($BS142,'État & Plan d''action'!$B$4:$AA$1111,19,FALSE),VLOOKUP($BS142,'État & Plan d''action'!$B$4:$AA$1111,21,FALSE))/(VLOOKUP($BS142,'Audit de l''eau'!$B$3:$I$1111,8,FALSE)),"") ->  | DC142: ND | DF142: 0 | DG142: 0 | DJ142: =IF(VLOOKUP($BS142,'État & Plan d''action'!$B$4:$AR$1111,36,FALSE)="","",VLOOKUP($BS142,'État & Plan d''action'!$B$4:$AR$1111,36,FALSE)) ->  | DK142: =IF(VLOOKUP($BS142,'État & Plan d''action'!$B$4:$AR$1111,38,FALSE)="","",VLOOKUP($BS142,'État & Plan d''action'!$B$4:$AR$1111,38,FALSE)) ->  | DL142: =IF(VLOOKUP($BS142,'État & Plan d''action'!$B$4:$AR$1111,37,FALSE)="","",VLOOKUP($BS142,'État & Plan d''action'!$B$4:$AR$1111,37,FALSE)) -> 
BS143: 67025 | BT143: DELSON | BU143: 16 | BV143: non | BW143: non | BX143: non | BY143: non | BZ143: non | CA143: non | CB143: non | CC143: non | CD143: oui | CE143: oui | CF143: non | CG143: oui | CH143: oui | CI143: oui | CJ143: oui | CK143: non | CL143: 537.8422847 | CM143: 530.5772595 | CO143: 488.2462572 | CP143: 495.6029982 | CQ143: 536.9946482 | CR143: 494.4774844 | CS143: =IF(VLOOKUP(BS143,Indicateurs!$B$4:$E$1111,4,FALSE)="","",VLOOKUP(BS143,Indicateurs!$B$4:$E$1111,4,FALSE)) ->  | CT143: ND | CU143: 2 | CV143: 1 | CW143: 1 | CX143: 1 | CY143: 2 | CZ143: 2 | DA143: =IFERROR(SUM(VLOOKUP($BS143,'État & Plan d''action'!$B$4:$AA$1111,18,FALSE),VLOOKUP($BS143,'État & Plan d''action'!$B$4:$AA$1111,20,FALSE))/(VLOOKUP($BS143,'Audit de l''eau'!$B$3:$I$1111,8,FALSE)),"") ->  | DB143: =IFERROR(SUM(VLOOKUP($BS143,'État & Plan d''action'!$B$4:$AA$1111,19,FALSE),VLOOKUP($BS143,'État & Plan d''action'!$B$4:$AA$1111,21,FALSE))/(VLOOKUP($BS143,'Audit de l''eau'!$B$3:$I$1111,8,FALSE)),"") ->  | DC143: ND | DD143: 14 | DE143: 6 | DF143: 3 | DG143: 5 | DH143: 4 | DI143: 4 | DJ143: =IF(VLOOKUP($BS143,'État & Plan d''action'!$B$4:$AR$1111,36,FALSE)="","",VLOOKUP($BS143,'État & Plan d''action'!$B$4:$AR$1111,36,FALSE)) ->  | DK143: =IF(VLOOKUP($BS143,'État & Plan d''action'!$B$4:$AR$1111,38,FALSE)="","",VLOOKUP($BS143,'État & Plan d''action'!$B$4:$AR$1111,38,FALSE)) ->  | DL143: =IF(VLOOKUP($BS143,'État & Plan d''action'!$B$4:$AR$1111,37,FALSE)="","",VLOOKUP($BS143,'État & Plan d''action'!$B$4:$AR$1111,37,FALSE)) -> 
BS144: 83005 | BT144: DENHOLM | BU144: 7 | BV144: oui | BW144: oui | BX144: oui | BY144: oui | BZ144: oui | CA144: oui | CB144: oui | CC144: oui | CD144: oui | CE144: non | CF144: non | CG144: non | CH144: oui | CI144: non | CJ144: non | CK144: non | CL144: 264.8615148 | CP144: 268.9656839 | CS144: =IF(VLOOKUP(BS144,Indicateurs!$B$4:$E$1111,4,FALSE)="","",VLOOKUP(BS144,Indicateurs!$B$4:$E$1111,4,FALSE)) ->  | CT144: ND | DA144: =IFERROR(SUM(VLOOKUP($BS144,'État & Plan d''action'!$B$4:$AA$1111,18,FALSE),VLOOKUP($BS144,'État & Plan d''action'!$B$4:$AA$1111,20,FALSE))/(VLOOKUP($BS144,'Audit de l''eau'!$B$3:$I$1111,8,FALSE)),"") ->  | DB144: =IFERROR(SUM(VLOOKUP($BS144,'État & Plan d''action'!$B$4:$AA$1111,19,FALSE),VLOOKUP($BS144,'État & Plan d''action'!$B$4:$AA$1111,21,FALSE))/(VLOOKUP($BS144,'Audit de l''eau'!$B$3:$I$1111,8,FALSE)),"") ->  | DC144: ND | DF144: 0 | DG144: 0 | DJ144: =IF(VLOOKUP($BS144,'État & Plan d''action'!$B$4:$AR$1111,36,FALSE)="","",VLOOKUP($BS144,'État & Plan d''action'!$B$4:$AR$1111,36,FALSE)) ->  | DK144: =IF(VLOOKUP($BS144,'État & Plan d''action'!$B$4:$AR$1111,38,FALSE)="","",VLOOKUP($BS144,'État & Plan d''action'!$B$4:$AR$1111,38,FALSE)) ->  | DL144: =IF(VLOOKUP($BS144,'État & Plan d''action'!$B$4:$AR$1111,37,FALSE)="","",VLOOKUP($BS144,'État & Plan d''action'!$B$4:$AR$1111,37,FALSE)) -> 
BS145: 93005 | BT145: DESBIENS | BU145: 2 | BV145: non | BW145: non | BX145: non | BY145: non | BZ145: non | CA145: non | CB145: non | CC145: non | CD145: oui | CE145: oui | CF145: non | CG145: oui | CH145: oui | CI145: oui | CJ145: oui | CK145: non | CL145: 465.3853534 | CM145: 388.5858931 | CO145: 409.663499 | CP145: 547.8827402 | CQ145: 320.2383375 | CR145: 377.0042397 | CS145: =IF(VLOOKUP(BS145,Indicateurs!$B$4:$E$1111,4,FALSE)="","",VLOOKUP(BS145,Indicateurs!$B$4:$E$1111,4,FALSE)) ->  | CT145: ND | CU145: 0 | CV145: 0.1 | CW145: 0.1 | CX145: 0.1 | CY145: 1 | CZ145: 1 | DA145: =IFERROR(SUM(VLOOKUP($BS145,'État & Plan d''action'!$B$4:$AA$1111,18,FALSE),VLOOKUP($BS145,'État & Plan d''action'!$B$4:$AA$1111,20,FALSE))/(VLOOKUP($BS145,'Audit de l''eau'!$B$3:$I$1111,8,FALSE)),"") ->  | DB145: =IFERROR(SUM(VLOOKUP($BS145,'État & Plan d''action'!$B$4:$AA$1111,19,FALSE),VLOOKUP($BS145,'État & Plan d''action'!$B$4:$AA$1111,21,FALSE))/(VLOOKUP($BS145,'Audit de l''eau'!$B$3:$I$1111,8,FALSE)),"") ->  | DC145: ND | DD145: 0 | DE145: 1 | DF145: 0 | DG145: 0 | DH145: 4 | DI145: 2 | DJ145: =IF(VLOOKUP($BS145,'État & Plan d''action'!$B$4:$AR$1111,36,FALSE)="","",VLOOKUP($BS145,'État & Plan d''action'!$B$4:$AR$1111,36,FALSE)) ->  | DK145: =IF(VLOOKUP($BS145,'État & Plan d''action'!$B$4:$AR$1111,38,FALSE)="","",VLOOKUP($BS145,'État & Plan d''action'!$B$4:$AR$1111,38,FALSE)) ->  | DL145: =IF(VLOOKUP($BS145,'État & Plan d''action'!$B$4:$AR$1111,37,FALSE)="","",VLOOKUP($BS145,'État & Plan d''action'!$B$4:$AR$1111,37,FALSE)) -> 
BS146: 38070 | BT146: DESCHAILLONS-SUR-SAINT-LAURENT | BU146: 17 | BV146: non | BW146: non | BX146: non | BY146: non | BZ146: non | CA146: non | CB146: non | CC146: non | CD146: oui | CE146: oui | CF146: oui | CG146: oui | CH146: oui | CI146: oui | CJ146: oui | CK146: oui | CL146: 411.9651652 | CM146: 458.0088194 | CN146: 422.0684921 | CO146: 382.7418909 | CP146: 397.8590664 | CQ146: 386.4014729 | CR146: 402.1463812 | CS146: =IF(VLOOKUP(BS146,Indicateurs!$B$4:$E$1111,4,FALSE)="","",VLOOKUP(BS146,Indicateurs!$B$4:$E$1111,4,FALSE)) -> 453 | CT146: ND | CU146: 0 | CV146: 1 | CW146: 1 | CX146: 1 | CY146: 1 | CZ146: 1 | DA146: =IFERROR(SUM(VLOOKUP($BS146,'État & Plan d''action'!$B$4:$AA$1111,18,FALSE),VLOOKUP($BS146,'État & Plan d''action'!$B$4:$AA$1111,20,FALSE))/(VLOOKUP($BS146,'Audit de l''eau'!$B$3:$I$1111,8,FALSE)),"") -> 0.3350694444 | DB146: =IFERROR(SUM(VLOOKUP($BS146,'État & Plan d''action'!$B$4:$AA$1111,19,FALSE),VLOOKUP($BS146,'État & Plan d''action'!$B$4:$AA$1111,21,FALSE))/(VLOOKUP($BS146,'Audit de l''eau'!$B$3:$I$1111,8,FALSE)),"") -> 0.3350694444 | DC146: ND | DD146: 4 | DE146: 8 | DF146: 4 | DG146: 5 | DH146: 5 | DI146: 1 | DJ146: =IF(VLOOKUP($BS146,'État & Plan d''action'!$B$4:$AR$1111,36,FALSE)="","",VLOOKUP($BS146,'État & Plan d''action'!$B$4:$AR$1111,36,FALSE)) -> 2 | DK146: =IF(VLOOKUP($BS146,'État & Plan d''action'!$B$4:$AR$1111,38,FALSE)="","",VLOOKUP($BS146,'État & Plan d''action'!$B$4:$AR$1111,38,FALSE)) -> 1 | DL146: =IF(VLOOKUP($BS146,'État & Plan d''action'!$B$4:$AR$1111,37,FALSE)="","",VLOOKUP($BS146,'État & Plan d''action'!$B$4:$AR$1111,37,FALSE)) -> 1
BS147: 34058 | BT147: DESCHAMBAULT-GRONDINES | BU147: 3 | BV147: non | BW147: non | BX147: non | BY147: non | BZ147: non | CA147: non | CB147: non | CC147: non | CD147: oui | CE147: oui | CF147: oui | CG147: oui | CH147: oui | CI147: oui | CJ147: oui | CK147: oui | CL147: 530.8239997 | CM147: 525.6680937 | CN147: 408.0955319 | CO147: 356.6254783 | CP147: 369.1786233 | CQ147: 378.4673539 | CR147: 365.091776 | CS147: =IF(VLOOKUP(BS147,Indicateurs!$B$4:$E$1111,4,FALSE)="","",VLOOKUP(BS147,Indicateurs!$B$4:$E$1111,4,FALSE)) -> 505 | CT147: ND | CU147: 1 | CV147: 1 | CW147: 1 | CX147: 1 | CY147: 1 | CZ147: 1 | DA147: =IFERROR(SUM(VLOOKUP($BS147,'État & Plan d''action'!$B$4:$AA$1111,18,FALSE),VLOOKUP($BS147,'État & Plan d''action'!$B$4:$AA$1111,20,FALSE))/(VLOOKUP($BS147,'Audit de l''eau'!$B$3:$I$1111,8,FALSE)),"") -> 0 | DB147: =IFERROR(SUM(VLOOKUP($BS147,'État & Plan d''action'!$B$4:$AA$1111,19,FALSE),VLOOKUP($BS147,'État & Plan d''action'!$B$4:$AA$1111,21,FALSE))/(VLOOKUP($BS147,'Audit de l''eau'!$B$3:$I$1111,8,FALSE)),"") -> 0 | DC147: ND | DD147: 10 | DE147: 6 | DF147: 3 | DG147: 3 | DH147: 1 | DI147: 5 | DJ147: =IF(VLOOKUP($BS147,'État & Plan d''action'!$B$4:$AR$1111,36,FALSE)="","",VLOOKUP($BS147,'État & Plan d''action'!$B$4:$AR$1111,36,FALSE)) -> 1 | DK147: =IF(VLOOKUP($BS147,'État & Plan d''action'!$B$4:$AR$1111,38,FALSE)="","",VLOOKUP($BS147,'État & Plan d''action'!$B$4:$AR$1111,38,FALSE)) -> 1 | DL147: =IF(VLOOKUP($BS147,'État & Plan d''action'!$B$4:$AR$1111,37,FALSE)="","",VLOOKUP($BS147,'État & Plan d''action'!$B$4:$AR$1111,37,FALSE)) -> 0
BS148: 72010 | BT148: DEUX-MONTAGNES | BU148: 15 | BV148: non | BW148: non | BX148: non | BY148: non | BZ148: non | CA148: non | CB148: non | CC148: non | CD148: oui | CE148: oui | CF148: oui | CG148: oui | CH148: oui | CI148: oui | CJ148: oui | CK148: oui | CL148: 291.9291804 | CM148: 264.9420871 | CN148: 331.5568916 | CO148: 318.4627885 | CP148: 269.51944 | CQ148: 417.4496333 | CR148: 470.7685985 | CS148: =IF(VLOOKUP(BS148,Indicateurs!$B$4:$E$1111,4,FALSE)="","",VLOOKUP(BS148,Indicateurs!$B$4:$E$1111,4,FALSE)) -> 474 | CT148: ND | CU148: 2 | CV148: 1 | CW148: 1 | CX148: 1 | CY148: 1 | CZ148: 1 | DA148: =IFERROR(SUM(VLOOKUP($BS148,'État & Plan d''action'!$B$4:$AA$1111,18,FALSE),VLOOKUP($BS148,'État & Plan d''action'!$B$4:$AA$1111,20,FALSE))/(VLOOKUP($BS148,'Audit de l''eau'!$B$3:$I$1111,8,FALSE)),"") -> 1 | DB148: =IFERROR(SUM(VLOOKUP($BS148,'État & Plan d''action'!$B$4:$AA$1111,19,FALSE),VLOOKUP($BS148,'État & Plan d''action'!$B$4:$AA$1111,21,FALSE))/(VLOOKUP($BS148,'Audit de l''eau'!$B$3:$I$1111,8,FALSE)),"") -> 1.500006575 | DC148: ND | DD148: 35 | DE148: 27 | DF148: 16 | DG148: 54 | DH148: 56 | DI148: 28 | DJ148: =IF(VLOOKUP($BS148,'État & Plan d''action'!$B$4:$AR$1111,36,FALSE)="","",VLOOKUP($BS148,'État & Plan d''action'!$B$4:$AR$1111,36,FALSE)) -> 29 | DK148: =IF(VLOOKUP($BS148,'État & Plan d''action'!$B$4:$AR$1111,38,FALSE)="","",VLOOKUP($BS148,'État & Plan d''action'!$B$4:$AR$1111,38,FALSE)) -> 0 | DL148: =IF(VLOOKUP($BS148,'État & Plan d''action'!$B$4:$AR$1111,37,FALSE)="","",VLOOKUP($BS148,'État & Plan d''action'!$B$4:$AR$1111,37,FALSE)) -> 0
BS149: 31020 | BT149: DISRAELI (P) | BU149: 12 | BV149: oui | BW149: oui | BX149: oui | BY149: oui | BZ149: oui | CA149: oui | CB149: oui | CC149: oui | CD149: non | CE149: non | CF149: non | CG149: non | CH149: non | CI149: non | CJ149: non | CK149: non | CS149: =IF(VLOOKUP(BS149,Indicateurs!$B$4:$E$1111,4,FALSE)="","",VLOOKUP(BS149,Indicateurs!$B$4:$E$1111,4,FALSE)) ->  | CT149: ND | DA149: =IFERROR(SUM(VLOOKUP($BS149,'État & Plan d''action'!$B$4:$AA$1111,18,FALSE),VLOOKUP($BS149,'État & Plan d''action'!$B$4:$AA$1111,20,FALSE))/(VLOOKUP($BS149,'Audit de l''eau'!$B$3:$I$1111,8,FALSE)),"") ->  | DB149: =IFERROR(SUM(VLOOKUP($BS149,'État & Plan d''action'!$B$4:$AA$1111,19,FALSE),VLOOKUP($BS149,'État & Plan d''action'!$B$4:$AA$1111,21,FALSE))/(VLOOKUP($BS149,'Audit de l''eau'!$B$3:$I$1111,8,FALSE)),"") ->  | DC149: ND | DF149: 0 | DG149: 0 | DJ149: =IF(VLOOKUP($BS149,'État & Plan d''action'!$B$4:$AR$1111,36,FALSE)="","",VLOOKUP($BS149,'État & Plan d''action'!$B$4:$AR$1111,36,FALSE)) ->  | DK149: =IF(VLOOKUP($BS149,'État & Plan d''action'!$B$4:$AR$1111,38,FALSE)="","",VLOOKUP($BS149,'État & Plan d''action'!$B$4:$AR$1111,38,FALSE)) ->  | DL149: =IF(VLOOKUP($BS149,'État & Plan d''action'!$B$4:$AR$1111,37,FALSE)="","",VLOOKUP($BS149,'État & Plan d''action'!$B$4:$AR$1111,37,FALSE)) -> 
BS150: 31015 | BT150: DISRAELI (V) | BU150: 12 | BV150: non | BW150: non | BX150: non | BY150: non | BZ150: non | CA150: non | CB150: non | CC150: non | CD150: oui | CE150: oui | CF150: oui | CG150: oui | CH150: oui | CI150: oui | CJ150: non | CK150: oui | CL150: 490.792607 | CM150: 462.2107589 | CN150: 408.4987276 | CO150: 412.6553893 | CP150: 419.7173029 | CQ150: 370.7965169 | CS150: =IF(VLOOKUP(BS150,Indicateurs!$B$4:$E$1111,4,FALSE)="","",VLOOKUP(BS150,Indicateurs!$B$4:$E$1111,4,FALSE)) -> 458 | CT150: ND | CU150: 0.2 | CV150: 0.4 | CW150: 0.4 | CX150: 1 | DA150: =IFERROR(SUM(VLOOKUP($BS150,'État & Plan d''action'!$B$4:$AA$1111,18,FALSE),VLOOKUP($BS150,'État & Plan d''action'!$B$4:$AA$1111,20,FALSE))/(VLOOKUP($BS150,'Audit de l''eau'!$B$3:$I$1111,8,FALSE)),"") -> 1 | DB150: =IFERROR(SUM(VLOOKUP($BS150,'État & Plan d''action'!$B$4:$AA$1111,19,FALSE),VLOOKUP($BS150,'État & Plan d''action'!$B$4:$AA$1111,21,FALSE))/(VLOOKUP($BS150,'Audit de l''eau'!$B$3:$I$1111,8,FALSE)),"") -> 1 | DC150: ND | DD150: 1 | DE150: 9 | DF150: 3 | DG150: 8 | DH150: 1 | DJ150: =IF(VLOOKUP($BS150,'État & Plan d''action'!$B$4:$AR$1111,36,FALSE)="","",VLOOKUP($BS150,'État & Plan d''action'!$B$4:$AR$1111,36,FALSE)) -> 5 | DK150: =IF(VLOOKUP($BS150,'État & Plan d''action'!$B$4:$AR$1111,38,FALSE)="","",VLOOKUP($BS150,'État & Plan d''action'!$B$4:$AR$1111,38,FALSE)) -> 0 | DL150: =IF(VLOOKUP($BS150,'État & Plan d''action'!$B$4:$AR$1111,37,FALSE)="","",VLOOKUP($BS150,'État & Plan d''action'!$B$4:$AR$1111,37,FALSE)) -> 3
BS151: 44023 | BT151: DIXVILLE | BU151: 5 | BV151: non | BW151: non | BX151: non | BY151: non | BZ151: non | CA151: non | CB151: non | CC151: non | CD151: oui | CE151: oui | CF151: oui | CG151: oui | CH151: oui | CI151: oui | CJ151: oui | CK151: oui | CL151: 350.9638682 | CM151: 318.8281777 | CN151: 300.4044396 | CO151: 295.08922 | CP151: 270.9451525 | CQ151: 344.2005035 | CR151: 262.3779905 | CS151: =IF(VLOOKUP(BS151,Indicateurs!$B$4:$E$1111,4,FALSE)="","",VLOOKUP(BS151,Indicateurs!$B$4:$E$1111,4,FALSE)) -> 295 | CT151: ND | CU151: 0 | CV151: 1 | CW151: 0 | CX151: 0.3 | CY151: 0 | CZ151: 0 | DA151: =IFERROR(SUM(VLOOKUP($BS151,'État & Plan d''action'!$B$4:$AA$1111,18,FALSE),VLOOKUP($BS151,'État & Plan d''action'!$B$4:$AA$1111,20,FALSE))/(VLOOKUP($BS151,'Audit de l''eau'!$B$3:$I$1111,8,FALSE)),"") -> 0 | DB151: =IFERROR(SUM(VLOOKUP($BS151,'État & Plan d''action'!$B$4:$AA$1111,19,FALSE),VLOOKUP($BS151,'État & Plan d''action'!$B$4:$AA$1111,21,FALSE))/(VLOOKUP($BS151,'Audit de l''eau'!$B$3:$I$1111,8,FALSE)),"") -> 0 | DC151: ND | DD151: 0 | DE151: 2 | DF151: 2 | DG151: 2 | DH151: 3 | DI151: 1 | DJ151: =IF(VLOOKUP($BS151,'État & Plan d''action'!$B$4:$AR$1111,36,FALSE)="","",VLOOKUP($BS151,'État & Plan d''action'!$B$4:$AR$1111,36,FALSE)) -> 0 | DK151: =IF(VLOOKUP($BS151,'État & Plan d''action'!$B$4:$AR$1111,38,FALSE)="","",VLOOKUP($BS151,'État & Plan d''action'!$B$4:$AR$1111,38,FALSE)) -> 0 | DL151: =IF(VLOOKUP($BS151,'État & Plan d''action'!$B$4:$AR$1111,37,FALSE)="","",VLOOKUP($BS151,'État & Plan d''action'!$B$4:$AR$1111,37,FALSE)) -> 0
BS152: 92022 | BT152: DOLBEAU-MISTASSINI | BU152: 2 | BV152: non | BW152: non | BX152: non | BY152: non | BZ152: non | CA152: non | CB152: non | CC152: non | CD152: oui | CE152: oui | CF152: oui | CG152: oui | CH152: oui | CI152: oui | CJ152: oui | CK152: oui | CL152: 498.4404092 | CM152: 487.8255693 | CN152: 487.5257633 | CO152: 493.746988 | CP152: 540.5899622 | CQ152: 501.3066978 | CR152: 436 | CS152: =IF(VLOOKUP(BS152,Indicateurs!$B$4:$E$1111,4,FALSE)="","",VLOOKUP(BS152,Indicateurs!$B$4:$E$1111,4,FALSE)) -> 456 | CT152: ND | CU152: 0 | CW152: 1 | CX152: 1 | CY152: 1 | CZ152: 1 | DA152: =IFERROR(SUM(VLOOKUP($BS152,'État & Plan d''action'!$B$4:$AA$1111,18,FALSE),VLOOKUP($BS152,'État & Plan d''action'!$B$4:$AA$1111,20,FALSE))/(VLOOKUP($BS152,'Audit de l''eau'!$B$3:$I$1111,8,FALSE)),"") -> 1.003198465 | DB152: =IFERROR(SUM(VLOOKUP($BS152,'État & Plan d''action'!$B$4:$AA$1111,19,FALSE),VLOOKUP($BS152,'État & Plan d''action'!$B$4:$AA$1111,21,FALSE))/(VLOOKUP($BS152,'Audit de l''eau'!$B$3:$I$1111,8,FALSE)),"") -> 1.003198465 | DC152: ND | DD152: 0 | DF152: 0 | DG152: 3 | DH152: 33 | DI152: 20 | DJ152: =IF(VLOOKUP($BS152,'État & Plan d''action'!$B$4:$AR$1111,36,FALSE)="","",VLOOKUP($BS152,'État & Plan d''action'!$B$4:$AR$1111,36,FALSE)) -> 5 | DK152: =IF(VLOOKUP($BS152,'État & Plan d''action'!$B$4:$AR$1111,38,FALSE)="","",VLOOKUP($BS152,'État & Plan d''action'!$B$4:$AR$1111,38,FALSE)) -> 11 | DL152: =IF(VLOOKUP($BS152,'État & Plan d''action'!$B$4:$AR$1111,37,FALSE)="","",VLOOKUP($BS152,'État & Plan d''action'!$B$4:$AR$1111,37,FALSE)) -> 16
BS153: 66142 | BT153: DOLLARD-DES-ORMEAUX | BU153: 6 | BV153: non | BW153: non | BX153: non | BY153: non | BZ153: non | CA153: non | CB153: non | CC153: non | CD153: oui | CE153: oui | CF153: oui | CG153: oui | CH153: oui | CI153: oui | CJ153: oui | CK153: oui | CL153: 339.5603418 | CM153: 394.8642175 | CN153: 407.461714 | CO153: 424.2917429 | CP153: 413.2400895 | CQ153: 572 | CR153: 600.3350024 | CS153: =IF(VLOOKUP(BS153,Indicateurs!$B$4:$E$1111,4,FALSE)="","",VLOOKUP(BS153,Indicateurs!$B$4:$E$1111,4,FALSE)) -> 505 | CT153: ND | CU153: 1 | CV153: 1 | CW153: 0.25 | CX153: 1 | CY153: 1 | CZ153: 1 | DA153: =IFERROR(SUM(VLOOKUP($BS153,'État & Plan d''action'!$B$4:$AA$1111,18,FALSE),VLOOKUP($BS153,'État & Plan d''action'!$B$4:$AA$1111,20,FALSE))/(VLOOKUP($BS153,'Audit de l''eau'!$B$3:$I$1111,8,FALSE)),"") -> 1 | DB153: =IFERROR(SUM(VLOOKUP($BS153,'État & Plan d''action'!$B$4:$AA$1111,19,FALSE),VLOOKUP($BS153,'État & Plan d''action'!$B$4:$AA$1111,21,FALSE))/(VLOOKUP($BS153,'Audit de l''eau'!$B$3:$I$1111,8,FALSE)),"") -> 1 | DC153: ND | DD153: 53 | DE153: 60 | DF153: 46 | DG153: 63 | DH153: 64 | DI153: 50 | DJ153: =IF(VLOOKUP($BS153,'État & Plan d''action'!$B$4:$AR$1111,36,FALSE)="","",VLOOKUP($BS153,'État & Plan d''action'!$B$4:$AR$1111,36,FALSE)) -> 17 | DK153: =IF(VLOOKUP($BS153,'État & Plan d''action'!$B$4:$AR$1111,38,FALSE)="","",VLOOKUP($BS153,'État & Plan d''action'!$B$4:$AR$1111,38,FALSE)) -> 1 | DL153: =IF(VLOOKUP($BS153,'État & Plan d''action'!$B$4:$AR$1111,37,FALSE)="","",VLOOKUP($BS153,'État & Plan d''action'!$B$4:$AR$1111,37,FALSE)) -> 5
BS154: 34025 | BT154: DONNACONA | BU154: 3 | BV154: non | BW154: non | BX154: non | BY154: non | BZ154: non | CA154: non | CB154: non | CC154: non | CD154: oui | CE154: oui | CF154: oui | CG154: oui | CH154: oui | CI154: oui | CJ154: oui | CK154: oui | CL154: 440.1423733 | CM154: 470.2476277 | CN154: 431.2926699 | CO154: 355.2318713 | CP154: 339.1953067 | CQ154: 327.4019834 | CR154: 311.7777654 | CS154: =IF(VLOOKUP(BS154,Indicateurs!$B$4:$E$1111,4,FALSE)="","",VLOOKUP(BS154,Indicateurs!$B$4:$E$1111,4,FALSE)) -> 371 | CT154: ND | CU154: 1 | CV154: 0 | CW154: 0 | CX154: 0 | CY154: 0 | CZ154: 0 | DA154: =IFERROR(SUM(VLOOKUP($BS154,'État & Plan d''action'!$B$4:$AA$1111,18,FALSE),VLOOKUP($BS154,'État & Plan d''action'!$B$4:$AA$1111,20,FALSE))/(VLOOKUP($BS154,'Audit de l''eau'!$B$3:$I$1111,8,FALSE)),"") -> 0 | DB154: =IFERROR(SUM(VLOOKUP($BS154,'État & Plan d''action'!$B$4:$AA$1111,19,FALSE),VLOOKUP($BS154,'État & Plan d''action'!$B$4:$AA$1111,21,FALSE))/(VLOOKUP($BS154,'Audit de l''eau'!$B$3:$I$1111,8,FALSE)),"") -> 0.3534130869 | DC154: ND | DD154: 10 | DE154: 14 | DF154: 16 | DG154: 13 | DH154: 8 | DI154: 11 | DJ154: =IF(VLOOKUP($BS154,'État & Plan d''action'!$B$4:$AR$1111,36,FALSE)="","",VLOOKUP($BS154,'État & Plan d''action'!$B$4:$AR$1111,36,FALSE)) -> 18 | DK154: =IF(VLOOKUP($BS154,'État & Plan d''action'!$B$4:$AR$1111,38,FALSE)="","",VLOOKUP($BS154,'État & Plan d''action'!$B$4:$AR$1111,38,FALSE)) -> 0 | DL154: =IF(VLOOKUP($BS154,'État & Plan d''action'!$B$4:$AR$1111,37,FALSE)="","",VLOOKUP($BS154,'État & Plan d''action'!$B$4:$AR$1111,37,FALSE)) -> 4
BS155: 66087 | BT155: DORVAL | BU155: 6 | BV155: non | BW155: non | BX155: non | BY155: non | BZ155: non | CA155: non | CB155: non | CC155: non | CD155: non | CE155: non | CF155: non | CG155: non | CH155: non | CI155: oui | CJ155: oui | CK155: oui | CQ155: 1246 | CR155: 1217.373725 | CS155: =IF(VLOOKUP(BS155,Indicateurs!$B$4:$E$1111,4,FALSE)="","",VLOOKUP(BS155,Indicateurs!$B$4:$E$1111,4,FALSE)) -> 1067 | CT155: ND | CU155: 1 | CW155: 1 | CX155: 1 | CY155: 1 | CZ155: 1 | DA155: =IFERROR(SUM(VLOOKUP($BS155,'État & Plan d''action'!$B$4:$AA$1111,18,FALSE),VLOOKUP($BS155,'État & Plan d''action'!$B$4:$AA$1111,20,FALSE))/(VLOOKUP($BS155,'Audit de l''eau'!$B$3:$I$1111,8,FALSE)),"") -> 1 | DB155: =IFERROR(SUM(VLOOKUP($BS155,'État & Plan d''action'!$B$4:$AA$1111,19,FALSE),VLOOKUP($BS155,'État & Plan d''action'!$B$4:$AA$1111,21,FALSE))/(VLOOKUP($BS155,'Audit de l''eau'!$B$3:$I$1111,8,FALSE)),"") -> 1 | DC155: ND | DD155: 44 | DF155: 23 | DG155: 20 | DH155: 38 | DI155: 20 | DJ155: =IF(VLOOKUP($BS155,'État & Plan d''action'!$B$4:$AR$1111,36,FALSE)="","",VLOOKUP($BS155,'État & Plan d''action'!$B$4:$AR$1111,36,FALSE)) -> 18 | DK155: =IF(VLOOKUP($BS155,'État & Plan d''action'!$B$4:$AR$1111,38,FALSE)="","",VLOOKUP($BS155,'État & Plan d''action'!$B$4:$AR$1111,38,FALSE)) -> 0 | DL155: =IF(VLOOKUP($BS155,'État & Plan d''action'!$B$4:$AR$1111,37,FALSE)="","",VLOOKUP($BS155,'État & Plan d''action'!$B$4:$AR$1111,37,FALSE)) -> 4
BS156: 33040 | BT156: DOSQUET | BU156: 12 | BV156: oui | BW156: oui | BX156: oui | BY156: oui | BZ156: oui | CA156: oui | CB156: oui | CC156: oui | CD156: non | CE156: non | CF156: non | CG156: non | CH156: non | CI156: non | CJ156: non | CK156: non | CS156: =IF(VLOOKUP(BS156,Indicateurs!$B$4:$E$1111,4,FALSE)="","",VLOOKUP(BS156,Indicateurs!$B$4:$E$1111,4,FALSE)) ->  | CT156: ND | DA156: =IFERROR(SUM(VLOOKUP($BS156,'État & Plan d''action'!$B$4:$AA$1111,18,FALSE),VLOOKUP($BS156,'État & Plan d''action'!$B$4:$AA$1111,20,FALSE))/(VLOOKUP($BS156,'Audit de l''eau'!$B$3:$I$1111,8,FALSE)),"") ->  | DB156: =IFERROR(SUM(VLOOKUP($BS156,'État & Plan d''action'!$B$4:$AA$1111,19,FALSE),VLOOKUP($BS156,'État & Plan d''action'!$B$4:$AA$1111,21,FALSE))/(VLOOKUP($BS156,'Audit de l''eau'!$B$3:$I$1111,8,FALSE)),"") ->  | DC156: ND | DF156: 0 | DG156: 0 | DJ156: =IF(VLOOKUP($BS156,'État & Plan d''action'!$B$4:$AR$1111,36,FALSE)="","",VLOOKUP($BS156,'État & Plan d''action'!$B$4:$AR$1111,36,FALSE)) ->  | DK156: =IF(VLOOKUP($BS156,'État & Plan d''action'!$B$4:$AR$1111,38,FALSE)="","",VLOOKUP($BS156,'État & Plan d''action'!$B$4:$AR$1111,38,FALSE)) ->  | DL156: =IF(VLOOKUP($BS156,'État & Plan d''action'!$B$4:$AR$1111,37,FALSE)="","",VLOOKUP($BS156,'État & Plan d''action'!$B$4:$AR$1111,37,FALSE)) -> 
BS157: 49058 | BT157: DRUMMONDVILLE | BU157: 17 | BV157: non | BW157: non | BX157: non | BY157: non | BZ157: non | CA157: non | CB157: non | CC157: non | CD157: oui | CE157: oui | CF157: oui | CG157: oui | CH157: oui | CI157: oui | CJ157: oui | CK157: oui | CL157: 482.3891755 | CM157: 517.191566 | CN157: 493.6252026 | CO157: 487.5288298 | CP157: 460.9413528 | CQ157: 458.3403037 | CR157: 480.6487024 | CS157: =IF(VLOOKUP(BS157,Indicateurs!$B$4:$E$1111,4,FALSE)="","",VLOOKUP(BS157,Indicateurs!$B$4:$E$1111,4,FALSE)) -> 488 | CT157: ND | CU157: 0 | CV157: 0 | CW157: 0 | CX157: 0 | CY157: 0.25 | CZ157: 0.25 | DA157: =IFERROR(SUM(VLOOKUP($BS157,'État & Plan d''action'!$B$4:$AA$1111,18,FALSE),VLOOKUP($BS157,'État & Plan d''action'!$B$4:$AA$1111,20,FALSE))/(VLOOKUP($BS157,'Audit de l''eau'!$B$3:$I$1111,8,FALSE)),"") -> 0.5287456623 | DB157: =IFERROR(SUM(VLOOKUP($BS157,'État & Plan d''action'!$B$4:$AA$1111,19,FALSE),VLOOKUP($BS157,'État & Plan d''action'!$B$4:$AA$1111,21,FALSE))/(VLOOKUP($BS157,'Audit de l''eau'!$B$3:$I$1111,8,FALSE)),"") -> 0.7396343145 | DC157: ND | DD157: 48 | DE157: 62 | DF157: 67 | DG157: 70 | DH157: 76 | DI157: 50 | DJ157: =IF(VLOOKUP($BS157,'État & Plan d''action'!$B$4:$AR$1111,36,FALSE)="","",VLOOKUP($BS157,'État & Plan d''action'!$B$4:$AR$1111,36,FALSE)) -> 33 | DK157: =IF(VLOOKUP($BS157,'État & Plan d''action'!$B$4:$AR$1111,38,FALSE)="","",VLOOKUP($BS157,'État & Plan d''action'!$B$4:$AR$1111,38,FALSE)) -> 5 | DL157: =IF(VLOOKUP($BS157,'État & Plan d''action'!$B$4:$AR$1111,37,FALSE)="","",VLOOKUP($BS157,'État & Plan d''action'!$B$4:$AR$1111,37,FALSE)) -> 7
BS158: 41117 | BT158: DUDSWELL | BU158: 5 | BV158: non | BW158: non | BX158: non | BY158: non | BZ158: non | CA158: non | CB158: non | CC158: non | CD158: oui | CE158: oui | CF158: oui | CG158: oui | CH158: oui | CI158: oui | CJ158: oui | CK158: oui | CL158: 254.7918615 | CM158: 257.2800019 | CN158: 332.7934764 | CO158: 326.4055454 | CP158: 224.7097993 | CQ158: 278.9033039 | CR158: 237.1629667 | CS158: =IF(VLOOKUP(BS158,Indicateurs!$B$4:$E$1111,4,FALSE)="","",VLOOKUP(BS158,Indicateurs!$B$4:$E$1111,4,FALSE)) -> 260 | CT158: ND | CU158: 0 | CV158: 0 | CW158: 0 | CX158: 0 | CY158: 0 | CZ158: 0 | DA158: =IFERROR(SUM(VLOOKUP($BS158,'État & Plan d''action'!$B$4:$AA$1111,18,FALSE),VLOOKUP($BS158,'État & Plan d''action'!$B$4:$AA$1111,20,FALSE))/(VLOOKUP($BS158,'Audit de l''eau'!$B$3:$I$1111,8,FALSE)),"") -> 0 | DB158: =IFERROR(SUM(VLOOKUP($BS158,'État & Plan d''action'!$B$4:$AA$1111,19,FALSE),VLOOKUP($BS158,'État & Plan d''action'!$B$4:$AA$1111,21,FALSE))/(VLOOKUP($BS158,'Audit de l''eau'!$B$3:$I$1111,8,FALSE)),"") -> 0 | DC158: ND | DD158: 0 | DE158: 1 | DF158: 4 | DG158: 1 | DH158: 1 | DI158: 0 | DJ158: =IF(VLOOKUP($BS158,'État & Plan d''action'!$B$4:$AR$1111,36,FALSE)="","",VLOOKUP($BS158,'État & Plan d''action'!$B$4:$AR$1111,36,FALSE)) -> 0 | DK158: =IF(VLOOKUP($BS158,'État & Plan d''action'!$B$4:$AR$1111,38,FALSE)="","",VLOOKUP($BS158,'État & Plan d''action'!$B$4:$AR$1111,38,FALSE)) -> 0 | DL158: =IF(VLOOKUP($BS158,'État & Plan d''action'!$B$4:$AR$1111,37,FALSE)="","",VLOOKUP($BS158,'État & Plan d''action'!$B$4:$AR$1111,37,FALSE)) -> 1
BS159: 80135 | BT159: DUHAMEL | BU159: 7 | BV159: non | BW159: non | BX159: non | BY159: non | BZ159: non | CA159: non | CB159: non | CC159: non | CD159: oui | CE159: oui | CF159: oui | CG159: oui | CH159: non | CI159: oui | CJ159: oui | CK159: oui | CL159: 408.4076764 | CM159: 380.3008249 | CN159: 541.3823333 | CO159: 437.3412524 | CQ159: 461.7149556 | CR159: 352.9645751 | CS159: =IF(VLOOKUP(BS159,Indicateurs!$B$4:$E$1111,4,FALSE)="","",VLOOKUP(BS159,Indicateurs!$B$4:$E$1111,4,FALSE)) -> 785 | CT159: ND | CU159: 1 | CV159: 1 | CW159: 1 | CX159: 1 | CY159: 1 | CZ159: 1 | DA159: =IFERROR(SUM(VLOOKUP($BS159,'État & Plan d''action'!$B$4:$AA$1111,18,FALSE),VLOOKUP($BS159,'État & Plan d''action'!$B$4:$AA$1111,20,FALSE))/(VLOOKUP($BS159,'Audit de l''eau'!$B$3:$I$1111,8,FALSE)),"") -> 0 | DB159: =IFERROR(SUM(VLOOKUP($BS159,'État & Plan d''action'!$B$4:$AA$1111,19,FALSE),VLOOKUP($BS159,'État & Plan d''action'!$B$4:$AA$1111,21,FALSE))/(VLOOKUP($BS159,'Audit de l''eau'!$B$3:$I$1111,8,FALSE)),"") -> 0 | DC159: ND | DD159: 0 | DE159: 0 | DF159: 1 | DG159: 3 | DH159: 1 | DI159: 0 | DJ159: =IF(VLOOKUP($BS159,'État & Plan d''action'!$B$4:$AR$1111,36,FALSE)="","",VLOOKUP($BS159,'État & Plan d''action'!$B$4:$AR$1111,36,FALSE)) -> 0 | DK159: =IF(VLOOKUP($BS159,'État & Plan d''action'!$B$4:$AR$1111,38,FALSE)="","",VLOOKUP($BS159,'État & Plan d''action'!$B$4:$AR$1111,38,FALSE)) -> 0 | DL159: =IF(VLOOKUP($BS159,'État & Plan d''action'!$B$4:$AR$1111,37,FALSE)="","",VLOOKUP($BS159,'État & Plan d''action'!$B$4:$AR$1111,37,FALSE)) -> 0
BS160: 85030 | BT160: DUHAMEL-OUEST | BU160: 8 | BV160: oui | BW160: oui | BX160: oui | BY160: oui | BZ160: oui | CA160: oui | CB160: oui | CC160: oui | CD160: oui | CE160: oui | CF160: oui | CG160: oui | CH160: oui | CI160: non | CJ160: non | CK160: non | CL160: 409.0454447 | CM160: 331.8264804 | CN160: 316.1360415 | CO160: 290.1494099 | CP160: 278.4132415 | CS160: =IF(VLOOKUP(BS160,Indicateurs!$B$4:$E$1111,4,FALSE)="","",VLOOKUP(BS160,Indicateurs!$B$4:$E$1111,4,FALSE)) ->  | CT160: ND | DA160: =IFERROR(SUM(VLOOKUP($BS160,'État & Plan d''action'!$B$4:$AA$1111,18,FALSE),VLOOKUP($BS160,'État & Plan d''action'!$B$4:$AA$1111,20,FALSE))/(VLOOKUP($BS160,'Audit de l''eau'!$B$3:$I$1111,8,FALSE)),"") ->  | DB160: =IFERROR(SUM(VLOOKUP($BS160,'État & Plan d''action'!$B$4:$AA$1111,19,FALSE),VLOOKUP($BS160,'État & Plan d''action'!$B$4:$AA$1111,21,FALSE))/(VLOOKUP($BS160,'Audit de l''eau'!$B$3:$I$1111,8,FALSE)),"") ->  | DC160: ND | DF160: 0 | DG160: 0 | DJ160: =IF(VLOOKUP($BS160,'État & Plan d''action'!$B$4:$AR$1111,36,FALSE)="","",VLOOKUP($BS160,'État & Plan d''action'!$B$4:$AR$1111,36,FALSE)) ->  | DK160: =IF(VLOOKUP($BS160,'État & Plan d''action'!$B$4:$AR$1111,38,FALSE)="","",VLOOKUP($BS160,'État & Plan d''action'!$B$4:$AR$1111,38,FALSE)) ->  | DL160: =IF(VLOOKUP($BS160,'État & Plan d''action'!$B$4:$AR$1111,37,FALSE)="","",VLOOKUP($BS160,'État & Plan d''action'!$B$4:$AR$1111,37,FALSE)) -> 
BS161: 69075 | BT161: DUNDEE | BU161: 16 | BV161: oui | BW161: oui | BX161: oui | BY161: oui | BZ161: oui | CA161: oui | CB161: oui | CC161: oui | CD161: oui | CE161: oui | CF161: oui | CG161: non | CH161: non | CI161: non | CJ161: non | CK161: non | CL161: 439 | CM161: 601.1720629 | CN161: 338.514956 | CS161: =IF(VLOOKUP(BS161,Indicateurs!$B$4:$E$1111,4,FALSE)="","",VLOOKUP(BS161,Indicateurs!$B$4:$E$1111,4,FALSE)) ->  | CT161: ND | DA161: =IFERROR(SUM(VLOOKUP($BS161,'État & Plan d''action'!$B$4:$AA$1111,18,FALSE),VLOOKUP($BS161,'État & Plan d''action'!$B$4:$AA$1111,20,FALSE))/(VLOOKUP($BS161,'Audit de l''eau'!$B$3:$I$1111,8,FALSE)),"") ->  | DB161: =IFERROR(SUM(VLOOKUP($BS161,'État & Plan d''action'!$B$4:$AA$1111,19,FALSE),VLOOKUP($BS161,'État & Plan d''action'!$B$4:$AA$1111,21,FALSE))/(VLOOKUP($BS161,'Audit de l''eau'!$B$3:$I$1111,8,FALSE)),"") ->  | DC161: ND | DF161: 0 | DG161: 0 | DJ161: =IF(VLOOKUP($BS161,'État & Plan d''action'!$B$4:$AR$1111,36,FALSE)="","",VLOOKUP($BS161,'État & Plan d''action'!$B$4:$AR$1111,36,FALSE)) ->  | DK161: =IF(VLOOKUP($BS161,'État & Plan d''action'!$B$4:$AR$1111,38,FALSE)="","",VLOOKUP($BS161,'État & Plan d''action'!$B$4:$AR$1111,38,FALSE)) ->  | DL161: =IF(VLOOKUP($BS161,'État & Plan d''action'!$B$4:$AR$1111,37,FALSE)="","",VLOOKUP($BS161,'État & Plan d''action'!$B$4:$AR$1111,37,FALSE)) -> 
BS162: 46050 | BT162: DUNHAM | BU162: 16 | BV162: oui | BW162: oui | BX162: oui | BY162: oui | BZ162: oui | CA162: oui | CB162: oui | CC162: oui | CD162: non | CE162: non | CF162: non | CG162: non | CH162: non | CI162: non | CJ162: non | CK162: non | CS162: =IF(VLOOKUP(BS162,Indicateurs!$B$4:$E$1111,4,FALSE)="","",VLOOKUP(BS162,Indicateurs!$B$4:$E$1111,4,FALSE)) ->  | CT162: ND | DA162: =IFERROR(SUM(VLOOKUP($BS162,'État & Plan d''action'!$B$4:$AA$1111,18,FALSE),VLOOKUP($BS162,'État & Plan d''action'!$B$4:$AA$1111,20,FALSE))/(VLOOKUP($BS162,'Audit de l''eau'!$B$3:$I$1111,8,FALSE)),"") ->  | DB162: =IFERROR(SUM(VLOOKUP($BS162,'État & Plan d''action'!$B$4:$AA$1111,19,FALSE),VLOOKUP($BS162,'État & Plan d''action'!$B$4:$AA$1111,21,FALSE))/(VLOOKUP($BS162,'Audit de l''eau'!$B$3:$I$1111,8,FALSE)),"") ->  | DC162: ND | DF162: 0 | DG162: 0 | DJ162: =IF(VLOOKUP($BS162,'État & Plan d''action'!$B$4:$AR$1111,36,FALSE)="","",VLOOKUP($BS162,'État & Plan d''action'!$B$4:$AR$1111,36,FALSE)) ->  | DK162: =IF(VLOOKUP($BS162,'État & Plan d''action'!$B$4:$AR$1111,38,FALSE)="","",VLOOKUP($BS162,'État & Plan d''action'!$B$4:$AR$1111,38,FALSE)) ->  | DL162: =IF(VLOOKUP($BS162,'État & Plan d''action'!$B$4:$AR$1111,37,FALSE)="","",VLOOKUP($BS162,'État & Plan d''action'!$B$4:$AR$1111,37,FALSE)) -> 
C163: ↑ Haut de page | BS163: 87005 | BT163: DUPARQUET | BU163: 8 | BV163: non | BW163: non | BX163: non | BY163: non | BZ163: non | CA163: non | CB163: non | CC163: non | CD163: oui | CE163: oui | CF163: oui | CG163: non | CH163: non | CI163: non | CJ163: oui | CK163: oui | CL163: 533.9258482 | CM163: 475.7304138 | CN163: 422.8848307 | CR163: 517.8591348 | CS163: =IF(VLOOKUP(BS163,Indicateurs!$B$4:$E$1111,4,FALSE)="","",VLOOKUP(BS163,Indicateurs!$B$4:$E$1111,4,FALSE)) -> 498 | CT163: ND | CU163: 1 | CV163: 1 | CW163: 1 | CX163: 1 | CY163: 0 | CZ163: 0 | DA163: =IFERROR(SUM(VLOOKUP($BS163,'État & Plan d''action'!$B$4:$AA$1111,18,FALSE),VLOOKUP($BS163,'État & Plan d''action'!$B$4:$AA$1111,20,FALSE))/(VLOOKUP($BS163,'Audit de l''eau'!$B$3:$I$1111,8,FALSE)),"") -> 0 | DB163: =IFERROR(SUM(VLOOKUP($BS163,'État & Plan d''action'!$B$4:$AA$1111,19,FALSE),VLOOKUP($BS163,'État & Plan d''action'!$B$4:$AA$1111,21,FALSE))/(VLOOKUP($BS163,'Audit de l''eau'!$B$3:$I$1111,8,FALSE)),"") -> 0 | DC163: ND | DD163: 14 | DE163: 37 | DF163: 64 | DG163: 71 | DI163: 0 | DJ163: =IF(VLOOKUP($BS163,'État & Plan d''action'!$B$4:$AR$1111,36,FALSE)="","",VLOOKUP($BS163,'État & Plan d''action'!$B$4:$AR$1111,36,FALSE)) -> 0 | DK163: =IF(VLOOKUP($BS163,'État & Plan d''action'!$B$4:$AR$1111,38,FALSE)="","",VLOOKUP($BS163,'État & Plan d''action'!$B$4:$AR$1111,38,FALSE)) -> 0 | DL163: =IF(VLOOKUP($BS163,'État & Plan d''action'!$B$4:$AR$1111,37,FALSE)="","",VLOOKUP($BS163,'État & Plan d''action'!$B$4:$AR$1111,37,FALSE)) -> 0
BS164: 87085 | BT164: DUPUY | BU164: 8 | BV164: non | BW164: non | BX164: non | BY164: non | BZ164: non | CA164: non | CB164: non | CC164: non | CD164: oui | CE164: oui | CF164: non | CG164: non | CH164: non | CI164: non | CJ164: non | CK164: oui | CL164: 344.7645485 | CM164: 366.4934066 | CS164: =IF(VLOOKUP(BS164,Indicateurs!$B$4:$E$1111,4,FALSE)="","",VLOOKUP(BS164,Indicateurs!$B$4:$E$1111,4,FALSE)) -> 341 | CT164: ND | CU164: 0 | CV164: 0 | CX164: 0 | DA164: =IFERROR(SUM(VLOOKUP($BS164,'État & Plan d''action'!$B$4:$AA$1111,18,FALSE),VLOOKUP($BS164,'État & Plan d''action'!$B$4:$AA$1111,20,FALSE))/(VLOOKUP($BS164,'Audit de l''eau'!$B$3:$I$1111,8,FALSE)),"") -> 0 | DB164: =IFERROR(SUM(VLOOKUP($BS164,'État & Plan d''action'!$B$4:$AA$1111,19,FALSE),VLOOKUP($BS164,'État & Plan d''action'!$B$4:$AA$1111,21,FALSE))/(VLOOKUP($BS164,'Audit de l''eau'!$B$3:$I$1111,8,FALSE)),"") -> 0 | DC164: ND | DD164: 0 | DE164: 0 | DF164: 0 | DG164: 0 | DJ164: =IF(VLOOKUP($BS164,'État & Plan d''action'!$B$4:$AR$1111,36,FALSE)="","",VLOOKUP($BS164,'État & Plan d''action'!$B$4:$AR$1111,36,FALSE)) -> 0 | DK164: =IF(VLOOKUP($BS164,'État & Plan d''action'!$B$4:$AR$1111,38,FALSE)="","",VLOOKUP($BS164,'État & Plan d''action'!$B$4:$AR$1111,38,FALSE)) -> 2 | DL164: =IF(VLOOKUP($BS164,'État & Plan d''action'!$B$4:$AR$1111,37,FALSE)="","",VLOOKUP($BS164,'État & Plan d''action'!$B$4:$AR$1111,37,FALSE)) -> 0
BS165: 49015 | BT165: DURHAM-SUD | BU165: 17 | BV165: non | BW165: non | BX165: non | BY165: non | BZ165: non | CA165: non | CB165: non | CC165: non | CD165: oui | CE165: oui | CF165: oui | CG165: oui | CH165: oui | CI165: oui | CJ165: oui | CK165: oui | CL165: 274.2946708 | CM165: 315.5746721 | CN165: 304.6997121 | CO165: 242.3057638 | CP165: 245.6342692 | CQ165: 240.1407555 | CR165: 201.4672374 | CS165: =IF(VLOOKUP(BS165,Indicateurs!$B$4:$E$1111,4,FALSE)="","",VLOOKUP(BS165,Indicateurs!$B$4:$E$1111,4,FALSE)) -> 236 | CT165: ND | CU165: 1 | CV165: 1 | CW165: 0 | CX165: 0 | CY165: 1 | CZ165: 1 | DA165: =IFERROR(SUM(VLOOKUP($BS165,'État & Plan d''action'!$B$4:$AA$1111,18,FALSE),VLOOKUP($BS165,'État & Plan d''action'!$B$4:$AA$1111,20,FALSE))/(VLOOKUP($BS165,'Audit de l''eau'!$B$3:$I$1111,8,FALSE)),"") -> 0 | DB165: =IFERROR(SUM(VLOOKUP($BS165,'État & Plan d''action'!$B$4:$AA$1111,19,FALSE),VLOOKUP($BS165,'État & Plan d''action'!$B$4:$AA$1111,21,FALSE))/(VLOOKUP($BS165,'Audit de l''eau'!$B$3:$I$1111,8,FALSE)),"") -> 0 | DC165: ND | DD165: 1 | DE165: 0 | DF165: 0 | DG165: 0 | DH165: 1 | DI165: 1 | DJ165: =IF(VLOOKUP($BS165,'État & Plan d''action'!$B$4:$AR$1111,36,FALSE)="","",VLOOKUP($BS165,'État & Plan d''action'!$B$4:$AR$1111,36,FALSE)) -> 1 | DK165: =IF(VLOOKUP($BS165,'État & Plan d''action'!$B$4:$AR$1111,38,FALSE)="","",VLOOKUP($BS165,'État & Plan d''action'!$B$4:$AR$1111,38,FALSE)) -> 2 | DL165: =IF(VLOOKUP($BS165,'État & Plan d''action'!$B$4:$AR$1111,37,FALSE)="","",VLOOKUP($BS165,'État & Plan d''action'!$B$4:$AR$1111,37,FALSE)) -> 0
BS166: 41060 | BT166: EAST ANGUS | BU166: 5 | BV166: non | BW166: non | BX166: non | BY166: non | BZ166: non | CA166: non | CB166: non | CC166: non | CD166: oui | CE166: non | CF166: non | CG166: non | CH166: non | CI166: oui | CJ166: oui | CK166: oui | CL166: 552.5080851 | CQ166: 419.983126 | CR166: 462.2868438 | CS166: =IF(VLOOKUP(BS166,Indicateurs!$B$4:$E$1111,4,FALSE)="","",VLOOKUP(BS166,Indicateurs!$B$4:$E$1111,4,FALSE)) -> 437 | CT166: ND | CY166: 0 | CZ166: 0 | DA166: =IFERROR(SUM(VLOOKUP($BS166,'État & Plan d''action'!$B$4:$AA$1111,18,FALSE),VLOOKUP($BS166,'État & Plan d''action'!$B$4:$AA$1111,20,FALSE))/(VLOOKUP($BS166,'Audit de l''eau'!$B$3:$I$1111,8,FALSE)),"") -> 1 | DB166: =IFERROR(SUM(VLOOKUP($BS166,'État & Plan d''action'!$B$4:$AA$1111,19,FALSE),VLOOKUP($BS166,'État & Plan d''action'!$B$4:$AA$1111,21,FALSE))/(VLOOKUP($BS166,'Audit de l''eau'!$B$3:$I$1111,8,FALSE)),"") -> 0 | DC166: ND | DF166: 0 | DG166: 0 | DH166: 8 | DI166: 8 | DJ166: =IF(VLOOKUP($BS166,'État & Plan d''action'!$B$4:$AR$1111,36,FALSE)="","",VLOOKUP($BS166,'État & Plan d''action'!$B$4:$AR$1111,36,FALSE)) -> 6 | DK166: =IF(VLOOKUP($BS166,'État & Plan d''action'!$B$4:$AR$1111,38,FALSE)="","",VLOOKUP($BS166,'État & Plan d''action'!$B$4:$AR$1111,38,FALSE)) -> 1 | DL166: =IF(VLOOKUP($BS166,'État & Plan d''action'!$B$4:$AR$1111,37,FALSE)="","",VLOOKUP($BS166,'État & Plan d''action'!$B$4:$AR$1111,37,FALSE)) -> 1
BS167: 31122 | BT167: EAST BROUGHTON | BU167: 12 | BV167: non | BW167: non | BX167: non | BY167: non | BZ167: non | CA167: non | CB167: non | CC167: non | CD167: oui | CE167: oui | CF167: non | CG167: non | CH167: oui | CI167: oui | CJ167: oui | CK167: non | CL167: 500.8650865 | CM167: 318.486394 | CP167: 397.0282713 | CQ167: 401.0877652 | CR167: 391.6745942 | CS167: =IF(VLOOKUP(BS167,Indicateurs!$B$4:$E$1111,4,FALSE)="","",VLOOKUP(BS167,Indicateurs!$B$4:$E$1111,4,FALSE)) ->  | CT167: ND | CU167: 0.1 | CX167: 0 | CY167: 0 | CZ167: 0 | DA167: =IFERROR(SUM(VLOOKUP($BS167,'État & Plan d''action'!$B$4:$AA$1111,18,FALSE),VLOOKUP($BS167,'État & Plan d''action'!$B$4:$AA$1111,20,FALSE))/(VLOOKUP($BS167,'Audit de l''eau'!$B$3:$I$1111,8,FALSE)),"") ->  | DB167: =IFERROR(SUM(VLOOKUP($BS167,'État & Plan d''action'!$B$4:$AA$1111,19,FALSE),VLOOKUP($BS167,'État & Plan d''action'!$B$4:$AA$1111,21,FALSE))/(VLOOKUP($BS167,'Audit de l''eau'!$B$3:$I$1111,8,FALSE)),"") ->  | DC167: ND | DD167: 8 | DF167: 0 | DG167: 6 | DH167: 19 | DI167: 15 | DJ167: =IF(VLOOKUP($BS167,'État & Plan d''action'!$B$4:$AR$1111,36,FALSE)="","",VLOOKUP($BS167,'État & Plan d''action'!$B$4:$AR$1111,36,FALSE)) ->  | DK167: =IF(VLOOKUP($BS167,'État & Plan d''action'!$B$4:$AR$1111,38,FALSE)="","",VLOOKUP($BS167,'État & Plan d''action'!$B$4:$AR$1111,38,FALSE)) ->  | DL167: =IF(VLOOKUP($BS167,'État & Plan d''action'!$B$4:$AR$1111,37,FALSE)="","",VLOOKUP($BS167,'État & Plan d''action'!$B$4:$AR$1111,37,FALSE)) -> 
BS168: 46085 | BT168: EAST FARNHAM | BU168: 16 | BV168: oui | BW168: oui | BX168: oui | BY168: oui | BZ168: oui | CA168: oui | CB168: oui | CC168: oui | CD168: non | CE168: non | CF168: non | CG168: non | CH168: non | CI168: non | CJ168: non | CK168: non | CS168: =IF(VLOOKUP(BS168,Indicateurs!$B$4:$E$1111,4,FALSE)="","",VLOOKUP(BS168,Indicateurs!$B$4:$E$1111,4,FALSE)) ->  | CT168: ND | DA168: =IFERROR(SUM(VLOOKUP($BS168,'État & Plan d''action'!$B$4:$AA$1111,18,FALSE),VLOOKUP($BS168,'État & Plan d''action'!$B$4:$AA$1111,20,FALSE))/(VLOOKUP($BS168,'Audit de l''eau'!$B$3:$I$1111,8,FALSE)),"") ->  | DB168: =IFERROR(SUM(VLOOKUP($BS168,'État & Plan d''action'!$B$4:$AA$1111,19,FALSE),VLOOKUP($BS168,'État & Plan d''action'!$B$4:$AA$1111,21,FALSE))/(VLOOKUP($BS168,'Audit de l''eau'!$B$3:$I$1111,8,FALSE)),"") ->  | DC168: ND | DF168: 0 | DG168: 0 | DJ168: =IF(VLOOKUP($BS168,'État & Plan d''action'!$B$4:$AR$1111,36,FALSE)="","",VLOOKUP($BS168,'État & Plan d''action'!$B$4:$AR$1111,36,FALSE)) ->  | DK168: =IF(VLOOKUP($BS168,'État & Plan d''action'!$B$4:$AR$1111,38,FALSE)="","",VLOOKUP($BS168,'État & Plan d''action'!$B$4:$AR$1111,38,FALSE)) ->  | DL168: =IF(VLOOKUP($BS168,'État & Plan d''action'!$B$4:$AR$1111,37,FALSE)="","",VLOOKUP($BS168,'État & Plan d''action'!$B$4:$AR$1111,37,FALSE)) -> 
B169: =MATCH(N169,'Audit de l''eau'!E3:M3,0) ->  | C169: Régions administratives | F169: Nombre de municipalité | G169: Nombre de formulaires importés | I169: Indice de fuites dans les infrastructures | J169: Consommation résidentielle (l/pers/d) | K169: Quantité d'eau distribuée (l/pers/d) | M169: Résultat de valitdité des données | N169: Choisir un indicateur dans la liste ↓ | W169: Pertes d'eau réelles (ML/an) | X169: Pertes d'eau réelles inévitables (ML/an) | Y169: Longueur totale des réseaux de distribution (km) | Z169: Longueur des réseaux auscultés (km) | AA169: Volume d'eau distribué (ML/an) | AB169: Population desservie par les réseaux de distribution (pers) | AC169: Fuites conduites - Nbr de réparation | AD169: Fuites branchements de service côté public - Nbr de réparation | AE169: Fuites branchements de service côté privé - Nbr de réparation | AF169: Nombre de fuites réparées | AG169: Proportion du réseau ausculté | AH169: Consommation résidentielle (L/pers/d) | AI169: IFI moyen | AJ169: Pression moyenne pondérée | AK169: Résultat de validité des données | AL169: Densité des branchements de service | AM169: Quantité d'eau distribuée | AN169: Nombre de réseaux de distribution d'eau potable distincts | AO169: Logements résidentiels desservis (log) | BS169: 44010 | BT169: EAST HEREFORD | BU169: 5 | BV169: non | BW169: non | BX169: non | BY169: non | BZ169: non | CA169: non | CB169: non | CC169: non | CD169: oui | CE169: oui | CF169: oui | CG169: oui | CH169: oui | CI169: oui | CJ169: oui | CK169: oui | CL169: 308.8803089 | CM169: 271.5783699 | CN169: 274.587519 | CO169: 317.2374429 | CP169: 190.7260541 | CQ169: 200.8094006 | CR169: 158.8440758 | CS169: =IF(VLOOKUP(BS169,Indicateurs!$B$4:$E$1111,4,FALSE)="","",VLOOKUP(BS169,Indicateurs!$B$4:$E$1111,4,FALSE)) -> 186 | CT169: ND | CU169: 0.05 | CV169: 0.05 | CW169: 0.05 | CX169: 0.05 | CY169: 0 | CZ169: 0 | DA169: =IFERROR(SUM(VLOOKUP($BS169,'État & Plan d''action'!$B$4:$AA$1111,18,FALSE),VLOOKUP($BS169,'État & Plan d''action'!$B$4:$AA$1111,20,FALSE))/(VLOOKUP($BS169,'Audit de l''eau'!$B$3:$I$1111,8,FALSE)),"") -> 0 | DB169: =IFERROR(SUM(VLOOKUP($BS169,'État & Plan d''action'!$B$4:$AA$1111,19,FALSE),VLOOKUP($BS169,'État & Plan d''action'!$B$4:$AA$1111,21,FALSE))/(VLOOKUP($BS169,'Audit de l''eau'!$B$3:$I$1111,8,FALSE)),"") -> 0 | DC169: ND | DD169: 0 | DE169: 0 | DF169: 0 | DG169: 0 | DH169: 0 | DI169: 0 | DJ169: =IF(VLOOKUP($BS169,'État & Plan d''action'!$B$4:$AR$1111,36,FALSE)="","",VLOOKUP($BS169,'État & Plan d''action'!$B$4:$AR$1111,36,FALSE)) -> 0 | DK169: =IF(VLOOKUP($BS169,'État & Plan d''action'!$B$4:$AR$1111,38,FALSE)="","",VLOOKUP($BS169,'État & Plan d''action'!$B$4:$AR$1111,38,FALSE)) -> 0 | DL169: =IF(VLOOKUP($BS169,'État & Plan d''action'!$B$4:$AR$1111,37,FALSE)="","",VLOOKUP($BS169,'État & Plan d''action'!$B$4:$AR$1111,37,FALSE)) -> 0
F170: Total | G170: Total | I170: Moy. Pondérée | J170: Moy. Pondérée | K170: Moy. Pondérée | M170: Moyenne | N170: Total | S170: Choisir un indicateur dans la liste ↓ | W170: TOTAL | X170: TOTAL | Y170: TOTAL | Z170: TOTAL | AA170: TOTAL | AB170: TOTAL | AC170: TOTAL | AD170: TOTAL | AE170: TOTAL | AF170: TOTAL | AG170: MOY. PONDÉRÉE | AH170: TOTAL | AI170: MOY. PONDÉRÉE | AJ170: MOY. PONDÉRÉE | AK170: MOYENNE | AL170: MOYENNE | AM170: MOY. PONDÉRÉE | AN170: Total | AO170: Total | BS170: 45093 | BT170: EASTMAN | BU170: 5 | BV170: non | BW170: non | BX170: non | BY170: non | BZ170: non | CA170: non | CB170: non | CC170: non | CD170: oui | CE170: oui | CF170: non | CG170: oui | CH170: oui | CI170: oui | CJ170: oui | CK170: oui | CL170: 656.9577049 | CM170: 649.3349661 | CO170: 876.7930749 | CP170: 676.4451357 | CQ170: 556.1757073 | CR170: 470.1414379 | CS170: =IF(VLOOKUP(BS170,Indicateurs!$B$4:$E$1111,4,FALSE)="","",VLOOKUP(BS170,Indicateurs!$B$4:$E$1111,4,FALSE)) -> 542 | CT170: ND | CU170: 0.1 | CW170: 1 | CX170: 1 | CY170: 1 | CZ170: 1 | DA170: =IFERROR(SUM(VLOOKUP($BS170,'État & Plan d''action'!$B$4:$AA$1111,18,FALSE),VLOOKUP($BS170,'État & Plan d''action'!$B$4:$AA$1111,20,FALSE))/(VLOOKUP($BS170,'Audit de l''eau'!$B$3:$I$1111,8,FALSE)),"") -> 0.07307270734 | DB170: =IFERROR(SUM(VLOOKUP($BS170,'État & Plan d''action'!$B$4:$AA$1111,19,FALSE),VLOOKUP($BS170,'État & Plan d''action'!$B$4:$AA$1111,21,FALSE))/(VLOOKUP($BS170,'Audit de l''eau'!$B$3:$I$1111,8,FALSE)),"") -> 0.07307270734 | DC170: ND | DD170: 5 | DF170: 9 | DG170: 5 | DH170: 3 | DI170: 2 | DJ170: =IF(VLOOKUP($BS170,'État & Plan d''action'!$B$4:$AR$1111,36,FALSE)="","",VLOOKUP($BS170,'État & Plan d''action'!$B$4:$AR$1111,36,FALSE)) -> 2 | DK170: =IF(VLOOKUP($BS170,'État & Plan d''action'!$B$4:$AR$1111,38,FALSE)="","",VLOOKUP($BS170,'État & Plan d''action'!$B$4:$AR$1111,38,FALSE)) -> 1 | DL170: =IF(VLOOKUP($BS170,'État & Plan d''action'!$B$4:$AR$1111,37,FALSE)="","",VLOOKUP($BS170,'État & Plan d''action'!$B$4:$AR$1111,37,FALSE)) -> 1
C171: 1 | D171: - | E171: Bas-St-Laurent | F171: 74 | G171: =COUNTIFS('Audit de l''eau'!$E$4:$E$1111,">0",'Audit de l''eau'!$D$4:$D$1111,Évolution!C171) -> 58 | I171: =AI171 -> 1.919934073 | J171: =AH171 -> 278.1388494 | K171: =AM171 -> 454.169762 | M171: =AK171 -> 54.37708927 | N171: =IF($N$169=$S$170,"",IF($N$169=$S$171,TEXT(AN171,"#"),IF($N$169=$S$172,TEXT(AO171,"# ###"),IF($N$169=$S$173,TEXT(AB171,"# ###"),IF($N$169=$S$174,Y171,IF($N$169=$S$175,AA171,IF($N$169=$S$176,W171,IF($N$169=$S$177,TEXT(AG171,"0%"),IF($N$169=$S$178,TEXT(AF171,"# ###")))))))))) ->  | S171: Nombre de réseaux de distribution d'eau potable distincts | T171: 1 | U171: - | V171: Bas-St-Laurent | W171: =SUMIF('Audit de l''eau'!$D$4:$D$1111,$C171,'Audit de l''eau'!$L$4:$L$1111) -> 2434.261273 | X171: =SUMIF('Audit de l''eau'!$D$4:$D$1111,$C171,'Audit de l''eau'!$M$4:$M$1111) -> 1267.887949 | Y171: =SUMIF('Audit de l''eau'!$D$4:$D$1111,$C171,'Audit de l''eau'!$I$4:$I$1111) -> 1100.37 | Z171: =SUMIF('État & Plan d''action'!$D$4:$D$1111,$C171,'État & Plan d''action'!$S$4:$S$1111)+SUMIF('État & Plan d''action'!$D$4:$D$1111,$C171,'État & Plan d''action'!$U$4:$U$1111) -> 699.623 | AA171: =SUMIF('Audit de l''eau'!$D$4:$D$1111,C171,'Audit de l''eau'!$J$4:$J$1111) -> 19521.62194 | AB171: =SUMIF('Audit de l''eau'!$D$4:$D$1111,$C171,'Audit de l''eau'!$H$4:$H$1111) -> 117761.9036 | AC171: =SUMIF('État & Plan d''action'!$D$4:$D$1111,C171,'État & Plan d''action'!$AK$4:$AK$1111) -> 105 | AD171: =SUMIF('État & Plan d''action'!$D$4:$D$1111,C171,'État & Plan d''action'!$AL$4:$AL$1111) -> 94 | AE171: =SUMIF('État & Plan d''action'!$D$4:$D$1111,C171,'État & Plan d''action'!$AM$4:$AM$1111) -> 41 | AF171: =SUM(AC171:AE171) -> 240 | AG171: =Z171/Y171 -> 0.6358070467 | AH171: =(SUMIF('Audit de l''eau'!$D$4:$D$1111,Évolution!$T171,'Audit de l''eau'!$K$4:$K$1111)*1000000/365)/SUMIF('Audit de l''eau'!$D$4:$D$1111,Évolution!$T171,'Audit de l''eau'!$H$4:$H$1111) -> 278.1388494 | AI171: =SUMIF('Audit de l''eau'!$D$4:$D$1111,Évolution!$T171,'Audit de l''eau'!$L$4:$L$1111)/SUMIF('Audit de l''eau'!$D$4:$D$1111,Évolution!$T171,'Audit de l''eau'!$M$4:$M$1111) -> 1.919934073 | AJ171: =(SUMPRODUCT(--('Audit de l''eau'!$D$4:$D$1111=T171),'Audit de l''eau'!$T$4:$T$1111,'Audit de l''eau'!$V$4:$V$1111)+SUMPRODUCT(--('Audit de l''eau'!$D$4:$D$1111=T171),'Audit de l''eau'!$AV$4:$AV$1111,'Audit de l''eau'!$AX$4:$AX$1111)+SUMPRODUCT(--('Audit de l''eau'!$D$4:$D$1111=T171),'Audit de l''eau'!$BX$4:$BX$1111,'Audit de l''eau'!$BZ$4:$BZ$1111)+SUMPRODUCT(--('Audit de l''eau'!$D$4:$D$1111=T171),'Audit de l''eau'!$CZ$4:$CZ$1111,'Audit de l''eau'!$DB$4:$DB$1111)+SUMPRODUCT(--('Audit de l''eau'!$D$4:$D$1111=T171),'Audit de l''eau'!$EB$4:$EB$1111,'Audit de l''eau'!$ED$4:$ED$1111)+SUMPRODUCT(--('Audit de l''eau'!$D$4:$D$1111=T171),'Audit de l''eau'!$FD$4:$FD$1111,'Audit de l''eau'!$FF$4:$FF$1111)+SUMPRODUCT(--('Audit de l''eau'!$D$4:$D$1111=T171),'Audit de l''eau'!$GF$4:$GF$1111,'Audit de l''eau'!$GH$4:$GH$1111)+SUMPRODUCT(--('Audit de l''eau'!$D$4:$D$1111=T171),'Audit de l''eau'!$HH$4:$HH$1111,'Audit de l''eau'!$HJ$4:$HJ$1111)+SUMPRODUCT(--('Audit de l''eau'!$D$4:$D$1111=T171),'Audit de l''eau'!$IJ$4:$IJ$1111,'Audit de l''eau'!$IL$4:$IL$1111))/(SUMIF('Audit de l''eau'!$D$4:$D$1111,Évolution!$T171,'Audit de l''eau'!$T$4:$T$1111)+SUMIF('Audit de l''eau'!$D$4:$D$1111,Évolution!$T171,'Audit de l''eau'!$AV$4:$AV$1111)+SUMIF('Audit de l''eau'!$D$4:$D$1111,Évolution!$T171,'Audit de l''eau'!$BX$4:$BX$1111)+SUMIF('Audit de l''eau'!$D$4:$D$1111,Évolution!$T171,'Audit de l''eau'!$CZ$4:$CZ$1111)+SUMIF('Audit de l''eau'!$D$4:$D$1111,Évolution!$T171,'Audit de l''eau'!$EB$4:$EB$1111)+SUMIF('Audit de l''eau'!$D$4:$D$1111,Évolution!$T171,'Audit de l''eau'!$FD$4:$FD$1111)+SUMIF('Audit de l''eau'!$D$4:$D$1111,Évolution!$T171,'Audit de l''eau'!$GF$4:$GF$1111)+SUMIF('Audit de l''eau'!$D$4:$D$1111,Évolution!$T171,'Audit de l''eau'!$HH$4:$HH$1111)+SUMIF('Audit de l''eau'!$D$4:$D$1111,Évolution!$T171,'Audit de l''eau'!$IJ$4:$IJ$1111)) -> 51.64342488 | AK171: =AVERAGEIF(Indicateurs!$D$4:$D$1111,Évolution!$T171,Indicateurs!$H$4:$H$1111) -> 54.37708927 | AL171: =(SUMIF('Audit de l''eau'!$D$4:$D$1111,Évolution!$T171,'Audit de l''eau'!$T$4:$T$1111)+SUMIF('Audit de l''eau'!$D$4:$D$1111,Évolution!$T171,'Audit de l''eau'!$AV$4:$AV$1111)+SUMIF('Audit de l''eau'!$D$4:$D$1111,Évolution!$T171,'Audit de l''eau'!$BX$4:$BX$1111)+SUMIF('Audit de l''eau'!$D$4:$D$1111,Évolution!$T171,'Audit de l''eau'!$CZ$4:$CZ$1111)+SUMIF('Audit de l''eau'!$D$4:$D$1111,Évolution!$T171,'Audit de l''eau'!$EB$4:$EB$1111)+SUMIF('Audit de l''eau'!$D$4:$D$1111,Évolution!$T171,'Audit de l''eau'!$FD$4:$FD$1111)+SUMIF('Audit de l''eau'!$D$4:$D$1111,Évolution!$T171,'Audit de l''eau'!$GF$4:$GF$1111)+SUMIF('Audit de l''eau'!$D$4:$D$1111,Évolution!$T171,'Audit de l''eau'!$HH$4:$HH$1111)+SUMIF('Audit de l''eau'!$D$4:$D$1111,Évolution!$T171,'Audit de l''eau'!$IJ$4:$IJ$1111))/(SUMIF('Audit de l''eau'!$D$4:$D$1111,Évolution!$T171,'Audit de l''eau'!$I$4:$I$1111)) -> 40.20556722 | AM171: =(SUMIF('Audit de l''eau'!$D$4:$D$1111,Évolution!$T171,'Audit de l''eau'!$J$4:$J$1111)*1000000/365)/SUMIF('Audit de l''eau'!$D$4:$D$1111,Évolution!$T171,'Audit de l''eau'!$H$4:$H$1111) -> 454.169762 | AN171: =SUMIFS('Audit de l''eau'!$E$4:$E$1111,'Audit de l''eau'!$D$4:$D$1111,Évolution!T171) -> 67 | AO171: =SUMIFS('Audit de l''eau'!$F$4:$F$1111,'Audit de l''eau'!$D$4:$D$1111,Évolution!T171) -> 55548 | BS171: 83075 | BT171: EGAN-SUD | BU171: 7 | BV171: oui | BW171: oui | BX171: oui | BY171: oui | BZ171: oui | CA171: oui | CB171: oui | CC171: oui | CD171: non | CE171: non | CF171: non | CG171: non | CH171: non | CI171: non | CJ171: non | CK171: non | CS171: =IF(VLOOKUP(BS171,Indicateurs!$B$4:$E$1111,4,FALSE)="","",VLOOKUP(BS171,Indicateurs!$B$4:$E$1111,4,FALSE)) ->  | CT171: ND | DA171: =IFERROR(SUM(VLOOKUP($BS171,'État & Plan d''action'!$B$4:$AA$1111,18,FALSE),VLOOKUP($BS171,'État & Plan d''action'!$B$4:$AA$1111,20,FALSE))/(VLOOKUP($BS171,'Audit de l''eau'!$B$3:$I$1111,8,FALSE)),"") ->  | DB171: =IFERROR(SUM(VLOOKUP($BS171,'État & Plan d''action'!$B$4:$AA$1111,19,FALSE),VLOOKUP($BS171,'État & Plan d''action'!$B$4:$AA$1111,21,FALSE))/(VLOOKUP($BS171,'Audit de l''eau'!$B$3:$I$1111,8,FALSE)),"") ->  | DC171: ND | DF171: 0 | DG171: 0 | DJ171: =IF(VLOOKUP($BS171,'État & Plan d''action'!$B$4:$AR$1111,36,FALSE)="","",VLOOKUP($BS171,'État & Plan d''action'!$B$4:$AR$1111,36,FALSE)) ->  | DK171: =IF(VLOOKUP($BS171,'État & Plan d''action'!$B$4:$AR$1111,38,FALSE)="","",VLOOKUP($BS171,'État & Plan d''action'!$B$4:$AR$1111,38,FALSE)) ->  | DL171: =IF(VLOOKUP($BS171,'État & Plan d''action'!$B$4:$AR$1111,37,FALSE)="","",VLOOKUP($BS171,'État & Plan d''action'!$B$4:$AR$1111,37,FALSE)) -> 
C172: 2 | D172: - | E172: Saguenay-Lac-St-Jean | F172: 47 | G172: =COUNTIFS('Audit de l''eau'!$E$4:$E$1111,">0",'Audit de l''eau'!$D$4:$D$1111,Évolution!C172) -> 33 | I172: =AI172 -> 3.376579342 | J172: =AH172 -> 275.340143 | K172: =AM172 -> 525.235172 | M172: =AK172 -> 55.52938662 | S172: Logements résidentiels desservis | T172: 2 | U172: - | V172: Saguenay-Lac-St-Jean | W172: =SUMIF('Audit de l''eau'!$D$4:$D$1111,$C172,'Audit de l''eau'!$L$4:$L$1111) -> 10473.6076 | X172: =SUMIF('Audit de l''eau'!$D$4:$D$1111,$C172,'Audit de l''eau'!$M$4:$M$1111) -> 3101.839626 | Y172: =SUMIF('Audit de l''eau'!$D$4:$D$1111,$C172,'Audit de l''eau'!$I$4:$I$1111) -> 2513.56929 | Z172: =SUMIF('État & Plan d''action'!$D$4:$D$1111,$C172,'État & Plan d''action'!$S$4:$S$1111)+SUMIF('État & Plan d''action'!$D$4:$D$1111,$C172,'État & Plan d''action'!$U$4:$U$1111) -> 1889.85 | AA172: =SUMIF('Audit de l''eau'!$D$4:$D$1111,C172,'Audit de l''eau'!$J$4:$J$1111) -> 45768.09213 | AB172: =SUMIF('Audit de l''eau'!$D$4:$D$1111,$C172,'Audit de l''eau'!$H$4:$H$1111) -> 238735.0275 | AC172: =SUMIF('État & Plan d''action'!$D$4:$D$1111,C172,'État & Plan d''action'!$AK$4:$AK$1111) -> 358 | AD172: =SUMIF('État & Plan d''action'!$D$4:$D$1111,C172,'État & Plan d''action'!$AL$4:$AL$1111) -> 115 | AE172: =SUMIF('État & Plan d''action'!$D$4:$D$1111,C172,'État & Plan d''action'!$AM$4:$AM$1111) -> 65 | AF172: 538 | AG172: =Z172/Y172 -> 0.7518591222 | AH172: =(SUMIF('Audit de l''eau'!$D$4:$D$1111,Évolution!$T172,'Audit de l''eau'!$K$4:$K$1111)*1000000/365)/SUMIF('Audit de l''eau'!$D$4:$D$1111,Évolution!$T172,'Audit de l''eau'!$H$4:$H$1111) -> 275.340143 | AI172: =SUMIF('Audit de l''eau'!$D$4:$D$1111,Évolution!$T172,'Audit de l''eau'!$L$4:$L$1111)/SUMIF('Audit de l''eau'!$D$4:$D$1111,Évolution!$T172,'Audit de l''eau'!$M$4:$M$1111) -> 3.376579342 | AJ172: =(SUMPRODUCT(--('Audit de l''eau'!$D$4:$D$1111=T172),'Audit de l''eau'!$T$4:$T$1111,'Audit de l''eau'!$V$4:$V$1111)+SUMPRODUCT(--('Audit de l''eau'!$D$4:$D$1111=T172),'Audit de l''eau'!$AV$4:$AV$1111,'Audit de l''eau'!$AX$4:$AX$1111)+SUMPRODUCT(--('Audit de l''eau'!$D$4:$D$1111=T172),'Audit de l''eau'!$BX$4:$BX$1111,'Audit de l''eau'!$BZ$4:$BZ$1111)+SUMPRODUCT(--('Audit de l''eau'!$D$4:$D$1111=T172),'Audit de l''eau'!$CZ$4:$CZ$1111,'Audit de l''eau'!$DB$4:$DB$1111)+SUMPRODUCT(--('Audit de l''eau'!$D$4:$D$1111=T172),'Audit de l''eau'!$EB$4:$EB$1111,'Audit de l''eau'!$ED$4:$ED$1111)+SUMPRODUCT(--('Audit de l''eau'!$D$4:$D$1111=T172),'Audit de l''eau'!$FD$4:$FD$1111,'Audit de l''eau'!$FF$4:$FF$1111)+SUMPRODUCT(--('Audit de l''eau'!$D$4:$D$1111=T172),'Audit de l''eau'!$GF$4:$GF$1111,'Audit de l''eau'!$GH$4:$GH$1111)+SUMPRODUCT(--('Audit de l''eau'!$D$4:$D$1111=T172),'Audit de l''eau'!$HH$4:$HH$1111,'Audit de l''eau'!$HJ$4:$HJ$1111)+SUMPRODUCT(--('Audit de l''eau'!$D$4:$D$1111=T172),'Audit de l''eau'!$IJ$4:$IJ$1111,'Audit de l''eau'!$IL$4:$IL$1111))/(SUMIF('Audit de l''eau'!$D$4:$D$1111,Évolution!$T172,'Audit de l''eau'!$T$4:$T$1111)+SUMIF('Audit de l''eau'!$D$4:$D$1111,Évolution!$T172,'Audit de l''eau'!$AV$4:$AV$1111)+SUMIF('Audit de l''eau'!$D$4:$D$1111,Évolution!$T172,'Audit de l''eau'!$BX$4:$BX$1111)+SUMIF('Audit de l''eau'!$D$4:$D$1111,Évolution!$T172,'Audit de l''eau'!$CZ$4:$CZ$1111)+SUMIF('Audit de l''eau'!$D$4:$D$1111,Évolution!$T172,'Audit de l''eau'!$EB$4:$EB$1111)+SUMIF('Audit de l''eau'!$D$4:$D$1111,Évolution!$T172,'Audit de l''eau'!$FD$4:$FD$1111)+SUMIF('Audit de l''eau'!$D$4:$D$1111,Évolution!$T172,'Audit de l''eau'!$GF$4:$GF$1111)+SUMIF('Audit de l''eau'!$D$4:$D$1111,Évolution!$T172,'Audit de l''eau'!$HH$4:$HH$1111)+SUMIF('Audit de l''eau'!$D$4:$D$1111,Évolution!$T172,'Audit de l''eau'!$IJ$4:$IJ$1111)) -> 59.31241551 | AK172: =AVERAGEIF(Indicateurs!$D$4:$D$1111,Évolution!$T172,Indicateurs!$H$4:$H$1111) -> 55.52938662 | AL172: =(SUMIF('Audit de l''eau'!$D$4:$D$1111,Évolution!$T172,'Audit de l''eau'!$T$4:$T$1111)+SUMIF('Audit de l''eau'!$D$4:$D$1111,Évolution!$T172,'Audit de l''eau'!$AV$4:$AV$1111)+SUMIF('Audit de l''eau'!$D$4:$D$1111,Évolution!$T172,'Audit de l''eau'!$BX$4:$BX$1111)+SUMIF('Audit de l''eau'!$D$4:$D$1111,Évolution!$T172,'Audit de l''eau'!$CZ$4:$CZ$1111)+SUMIF('Audit de l''eau'!$D$4:$D$1111,Évolution!$T172,'Audit de l''eau'!$EB$4:$EB$1111)+SUMIF('Audit de l''eau'!$D$4:$D$1111,Évolution!$T172,'Audit de l''eau'!$FD$4:$FD$1111)+SUMIF('Audit de l''eau'!$D$4:$D$1111,Évolution!$T172,'Audit de l''eau'!$GF$4:$GF$1111)+SUMIF('Audit de l''eau'!$D$4:$D$1111,Évolution!$T172,'Audit de l''eau'!$HH$4:$HH$1111)+SUMIF('Audit de l''eau'!$D$4:$D$1111,Évolution!$T172,'Audit de l''eau'!$IJ$4:$IJ$1111))/(SUMIF('Audit de l''eau'!$D$4:$D$1111,Évolution!$T172,'Audit de l''eau'!$I$4:$I$1111)) -> 34.47567582 | AM172: =(SUMIF('Audit de l''eau'!$D$4:$D$1111,Évolution!$T172,'Audit de l''eau'!$J$4:$J$1111)*1000000/365)/SUMIF('Audit de l''eau'!$D$4:$D$1111,Évolution!$T172,'Audit de l''eau'!$H$4:$H$1111) -> 525.235172 | AN172: =SUMIFS('Audit de l''eau'!$E$4:$E$1111,'Audit de l''eau'!$D$4:$D$1111,Évolution!T172) -> 46 | AO172: =SUMIFS('Audit de l''eau'!$F$4:$F$1111,'Audit de l''eau'!$D$4:$D$1111,Évolution!T172) -> 111172 | BS172: 69050 | BT172: ELGIN | BU172: 16 | BV172: oui | BW172: oui | BX172: oui | BY172: oui | BZ172: oui | CA172: oui | CB172: oui | CC172: oui | CD172: oui | CE172: oui | CF172: non | CG172: oui | CH172: non | CI172: non | CJ172: non | CK172: non | CL172: 1247.360597 | CM172: 1468.053967 | CO172: 1188.614824 | CS172: =IF(VLOOKUP(BS172,Indicateurs!$B$4:$E$1111,4,FALSE)="","",VLOOKUP(BS172,Indicateurs!$B$4:$E$1111,4,FALSE)) ->  | CT172: ND | DA172: =IFERROR(SUM(VLOOKUP($BS172,'État & Plan d''action'!$B$4:$AA$1111,18,FALSE),VLOOKUP($BS172,'État & Plan d''action'!$B$4:$AA$1111,20,FALSE))/(VLOOKUP($BS172,'Audit de l''eau'!$B$3:$I$1111,8,FALSE)),"") ->  | DB172: =IFERROR(SUM(VLOOKUP($BS172,'État & Plan d''action'!$B$4:$AA$1111,19,FALSE),VLOOKUP($BS172,'État & Plan d''action'!$B$4:$AA$1111,21,FALSE))/(VLOOKUP($BS172,'Audit de l''eau'!$B$3:$I$1111,8,FALSE)),"") ->  | DC172: ND | DF172: 0 | DG172: 0 | DJ172: =IF(VLOOKUP($BS172,'État & Plan d''action'!$B$4:$AR$1111,36,FALSE)="","",VLOOKUP($BS172,'État & Plan d''action'!$B$4:$AR$1111,36,FALSE)) ->  | DK172: =IF(VLOOKUP($BS172,'État & Plan d''action'!$B$4:$AR$1111,38,FALSE)="","",VLOOKUP($BS172,'État & Plan d''action'!$B$4:$AR$1111,38,FALSE)) ->  | DL172: =IF(VLOOKUP($BS172,'État & Plan d''action'!$B$4:$AR$1111,37,FALSE)="","",VLOOKUP($BS172,'État & Plan d''action'!$B$4:$AR$1111,37,FALSE)) -> 
C173: 3 | D173: - | E173: Capitale Nationale | F173: 48 | G173: =COUNTIFS('Audit de l''eau'!$E$4:$E$1111,">0",'Audit de l''eau'!$D$4:$D$1111,Évolution!C173) -> 42 | I173: 4.006337647 | J173: 216.5027151 | K173: 405.2040617 | M173: 55.90387901 | S173: Population desservie par les réseaux de distribution | T173: 3 | U173: - | V173: Capitale Nationale | W173: =SUMIF('Audit de l''eau'!$D$4:$D$1111,$C173,'Audit de l''eau'!$L$4:$L$1111) -> 23136.31591 | X173: =SUMIF('Audit de l''eau'!$D$4:$D$1111,$C173,'Audit de l''eau'!$M$4:$M$1111) -> 5774.929112 | Y173: =SUMIF('Audit de l''eau'!$D$4:$D$1111,$C173,'Audit de l''eau'!$I$4:$I$1111) -> 3993.5719 | Z173: =SUMIF('État & Plan d''action'!$D$4:$D$1111,$C173,'État & Plan d''action'!$S$4:$S$1111)+SUMIF('État & Plan d''action'!$D$4:$D$1111,$C173,'État & Plan d''action'!$U$4:$U$1111) -> 8662.976802 | AA173: =SUMIF('Audit de l''eau'!$D$4:$D$1111,C173,'Audit de l''eau'!$J$4:$J$1111) -> 100701.2953 | AB173: =SUMIF('Audit de l''eau'!$D$4:$D$1111,$C173,'Audit de l''eau'!$H$4:$H$1111) -> 680876.5899 | AC173: =SUMIF('État & Plan d''action'!$D$4:$D$1111,C173,'État & Plan d''action'!$AK$4:$AK$1111) -> 579 | AD173: =SUMIF('État & Plan d''action'!$D$4:$D$1111,C173,'État & Plan d''action'!$AL$4:$AL$1111) -> 250 | AE173: =SUMIF('État & Plan d''action'!$D$4:$D$1111,C173,'État & Plan d''action'!$AM$4:$AM$1111) -> 145 | AF173: 974 | AG173: 2.169230208 | AH173: =(SUMIF('Audit de l''eau'!$D$4:$D$1111,Évolution!$T173,'Audit de l''eau'!$K$4:$K$1111)*1000000/365)/SUMIF('Audit de l''eau'!$D$4:$D$1111,Évolution!$T173,'Audit de l''eau'!$H$4:$H$1111) -> 216.5027151 | AI173: =SUMIF('Audit de l''eau'!$D$4:$D$1111,Évolution!$T173,'Audit de l''eau'!$L$4:$L$1111)/SUMIF('Audit de l''eau'!$D$4:$D$1111,Évolution!$T173,'Audit de l''eau'!$M$4:$M$1111) -> 4.006337647 | AJ173: =(SUMPRODUCT(--('Audit de l''eau'!$D$4:$D$1111=T173),'Audit de l''eau'!$T$4:$T$1111,'Audit de l''eau'!$V$4:$V$1111)+SUMPRODUCT(--('Audit de l''eau'!$D$4:$D$1111=T173),'Audit de l''eau'!$AV$4:$AV$1111,'Audit de l''eau'!$AX$4:$AX$1111)+SUMPRODUCT(--('Audit de l''eau'!$D$4:$D$1111=T173),'Audit de l''eau'!$BX$4:$BX$1111,'Audit de l''eau'!$BZ$4:$BZ$1111)+SUMPRODUCT(--('Audit de l''eau'!$D$4:$D$1111=T173),'Audit de l''eau'!$CZ$4:$CZ$1111,'Audit de l''eau'!$DB$4:$DB$1111)+SUMPRODUCT(--('Audit de l''eau'!$D$4:$D$1111=T173),'Audit de l''eau'!$EB$4:$EB$1111,'Audit de l''eau'!$ED$4:$ED$1111)+SUMPRODUCT(--('Audit de l''eau'!$D$4:$D$1111=T173),'Audit de l''eau'!$FD$4:$FD$1111,'Audit de l''eau'!$FF$4:$FF$1111)+SUMPRODUCT(--('Audit de l''eau'!$D$4:$D$1111=T173),'Audit de l''eau'!$GF$4:$GF$1111,'Audit de l''eau'!$GH$4:$GH$1111)+SUMPRODUCT(--('Audit de l''eau'!$D$4:$D$1111=T173),'Audit de l''eau'!$HH$4:$HH$1111,'Audit de l''eau'!$HJ$4:$HJ$1111)+SUMPRODUCT(--('Audit de l''eau'!$D$4:$D$1111=T173),'Audit de l''eau'!$IJ$4:$IJ$1111,'Audit de l''eau'!$IL$4:$IL$1111))/(SUMIF('Audit de l''eau'!$D$4:$D$1111,Évolution!$T173,'Audit de l''eau'!$T$4:$T$1111)+SUMIF('Audit de l''eau'!$D$4:$D$1111,Évolution!$T173,'Audit de l''eau'!$AV$4:$AV$1111)+SUMIF('Audit de l''eau'!$D$4:$D$1111,Évolution!$T173,'Audit de l''eau'!$BX$4:$BX$1111)+SUMIF('Audit de l''eau'!$D$4:$D$1111,Évolution!$T173,'Audit de l''eau'!$CZ$4:$CZ$1111)+SUMIF('Audit de l''eau'!$D$4:$D$1111,Évolution!$T173,'Audit de l''eau'!$EB$4:$EB$1111)+SUMIF('Audit de l''eau'!$D$4:$D$1111,Évolution!$T173,'Audit de l''eau'!$FD$4:$FD$1111)+SUMIF('Audit de l''eau'!$D$4:$D$1111,Évolution!$T173,'Audit de l''eau'!$GF$4:$GF$1111)+SUMIF('Audit de l''eau'!$D$4:$D$1111,Évolution!$T173,'Audit de l''eau'!$HH$4:$HH$1111)+SUMIF('Audit de l''eau'!$D$4:$D$1111,Évolution!$T173,'Audit de l''eau'!$IJ$4:$IJ$1111)) -> 55.49144232 | AK173: =AVERAGEIF(Indicateurs!$D$4:$D$1111,Évolution!$T173,Indicateurs!$H$4:$H$1111) -> 55.90387901 | AL173: =(SUMIF('Audit de l''eau'!$D$4:$D$1111,Évolution!$T173,'Audit de l''eau'!$T$4:$T$1111)+SUMIF('Audit de l''eau'!$D$4:$D$1111,Évolution!$T173,'Audit de l''eau'!$AV$4:$AV$1111)+SUMIF('Audit de l''eau'!$D$4:$D$1111,Évolution!$T173,'Audit de l''eau'!$BX$4:$BX$1111)+SUMIF('Audit de l''eau'!$D$4:$D$1111,Évolution!$T173,'Audit de l''eau'!$CZ$4:$CZ$1111)+SUMIF('Audit de l''eau'!$D$4:$D$1111,Évolution!$T173,'Audit de l''eau'!$EB$4:$EB$1111)+SUMIF('Audit de l''eau'!$D$4:$D$1111,Évolution!$T173,'Audit de l''eau'!$FD$4:$FD$1111)+SUMIF('Audit de l''eau'!$D$4:$D$1111,Évolution!$T173,'Audit de l''eau'!$GF$4:$GF$1111)+SUMIF('Audit de l''eau'!$D$4:$D$1111,Évolution!$T173,'Audit de l''eau'!$HH$4:$HH$1111)+SUMIF('Audit de l''eau'!$D$4:$D$1111,Évolution!$T173,'Audit de l''eau'!$IJ$4:$IJ$1111))/(SUMIF('Audit de l''eau'!$D$4:$D$1111,Évolution!$T173,'Audit de l''eau'!$I$4:$I$1111)) -> 54.86917614 | AM173: =(SUMIF('Audit de l''eau'!$D$4:$D$1111,Évolution!$T173,'Audit de l''eau'!$J$4:$J$1111)*1000000/365)/SUMIF('Audit de l''eau'!$D$4:$D$1111,Évolution!$T173,'Audit de l''eau'!$H$4:$H$1111) -> 405.2040617 | AN173: =SUMIFS('Audit de l''eau'!$E$4:$E$1111,'Audit de l''eau'!$D$4:$D$1111,Évolution!T173) -> 59 | AO173: =SUMIFS('Audit de l''eau'!$F$4:$F$1111,'Audit de l''eau'!$D$4:$D$1111,Évolution!T173) -> 334632.1375 | BS173: 62053 | BT173: ENTRELACS | BU173: 14 | BV173: oui | BW173: oui | BX173: oui | BY173: oui | BZ173: oui | CA173: oui | CB173: oui | CC173: oui | CD173: non | CE173: non | CF173: non | CG173: non | CH173: non | CI173: non | CJ173: non | CK173: non | CS173: =IF(VLOOKUP(BS173,Indicateurs!$B$4:$E$1111,4,FALSE)="","",VLOOKUP(BS173,Indicateurs!$B$4:$E$1111,4,FALSE)) ->  | CT173: ND | DA173: =IFERROR(SUM(VLOOKUP($BS173,'État & Plan d''action'!$B$4:$AA$1111,18,FALSE),VLOOKUP($BS173,'État & Plan d''action'!$B$4:$AA$1111,20,FALSE))/(VLOOKUP($BS173,'Audit de l''eau'!$B$3:$I$1111,8,FALSE)),"") ->  | DB173: =IFERROR(SUM(VLOOKUP($BS173,'État & Plan d''action'!$B$4:$AA$1111,19,FALSE),VLOOKUP($BS173,'État & Plan d''action'!$B$4:$AA$1111,21,FALSE))/(VLOOKUP($BS173,'Audit de l''eau'!$B$3:$I$1111,8,FALSE)),"") ->  | DC173: ND | DF173: 0 | DG173: 0 | DJ173: =IF(VLOOKUP($BS173,'État & Plan d''action'!$B$4:$AR$1111,36,FALSE)="","",VLOOKUP($BS173,'État & Plan d''action'!$B$4:$AR$1111,36,FALSE)) ->  | DK173: =IF(VLOOKUP($BS173,'État & Plan d''action'!$B$4:$AR$1111,38,FALSE)="","",VLOOKUP($BS173,'État & Plan d''action'!$B$4:$AR$1111,38,FALSE)) ->  | DL173: =IF(VLOOKUP($BS173,'État & Plan d''action'!$B$4:$AR$1111,37,FALSE)="","",VLOOKUP($BS173,'État & Plan d''action'!$B$4:$AR$1111,37,FALSE)) -> 
C174: 4 | D174: - | E174: Mauricie | F174: 39 | G174: =COUNTIFS('Audit de l''eau'!$E$4:$E$1111,">0",'Audit de l''eau'!$D$4:$D$1111,Évolution!C174) -> 34 | I174: 3.185935195 | J174: 277.8510273 | K174: 453.6181661 | M174: 51.62160956 | S174: Longueur totale des réseaux de distribution (km) | T174: 4 | U174: - | V174: Mauricie | W174: =SUMIF('Audit de l''eau'!$D$4:$D$1111,$C174,'Audit de l''eau'!$L$4:$L$1111) -> 7630.454523 | X174: =SUMIF('Audit de l''eau'!$D$4:$D$1111,$C174,'Audit de l''eau'!$M$4:$M$1111) -> 2395.043859 | Y174: =SUMIF('Audit de l''eau'!$D$4:$D$1111,$C174,'Audit de l''eau'!$I$4:$I$1111) -> 2476.994138 | Z174: =SUMIF('État & Plan d''action'!$D$4:$D$1111,$C174,'État & Plan d''action'!$S$4:$S$1111)+SUMIF('État & Plan d''action'!$D$4:$D$1111,$C174,'État & Plan d''action'!$U$4:$U$1111) -> 1395.009 | AA174: =SUMIF('Audit de l''eau'!$D$4:$D$1111,C174,'Audit de l''eau'!$J$4:$J$1111) -> 39348.68612 | AB174: =SUMIF('Audit de l''eau'!$D$4:$D$1111,$C174,'Audit de l''eau'!$H$4:$H$1111) -> 237654.9873 | AC174: =SUMIF('État & Plan d''action'!$D$4:$D$1111,C174,'État & Plan d''action'!$AK$4:$AK$1111) -> 139 | AD174: =SUMIF('État & Plan d''action'!$D$4:$D$1111,C174,'État & Plan d''action'!$AL$4:$AL$1111) -> 141 | AE174: =SUMIF('État & Plan d''action'!$D$4:$D$1111,C174,'État & Plan d''action'!$AM$4:$AM$1111) -> 57 | AF174: 337 | AG174: 0.5631862339 | AH174: =(SUMIF('Audit de l''eau'!$D$4:$D$1111,Évolution!$T174,'Audit de l''eau'!$K$4:$K$1111)*1000000/365)/SUMIF('Audit de l''eau'!$D$4:$D$1111,Évolution!$T174,'Audit de l''eau'!$H$4:$H$1111) -> 277.8510273 | AI174: =SUMIF('Audit de l''eau'!$D$4:$D$1111,Évolution!$T174,'Audit de l''eau'!$L$4:$L$1111)/SUMIF('Audit de l''eau'!$D$4:$D$1111,Évolution!$T174,'Audit de l''eau'!$M$4:$M$1111) -> 3.185935195 | AJ174: =(SUMPRODUCT(--('Audit de l''eau'!$D$4:$D$1111=T174),'Audit de l''eau'!$T$4:$T$1111,'Audit de l''eau'!$V$4:$V$1111)+SUMPRODUCT(--('Audit de l''eau'!$D$4:$D$1111=T174),'Audit de l''eau'!$AV$4:$AV$1111,'Audit de l''eau'!$AX$4:$AX$1111)+SUMPRODUCT(--('Audit de l''eau'!$D$4:$D$1111=T174),'Audit de l''eau'!$BX$4:$BX$1111,'Audit de l''eau'!$BZ$4:$BZ$1111)+SUMPRODUCT(--('Audit de l''eau'!$D$4:$D$1111=T174),'Audit de l''eau'!$CZ$4:$CZ$1111,'Audit de l''eau'!$DB$4:$DB$1111)+SUMPRODUCT(--('Audit de l''eau'!$D$4:$D$1111=T174),'Audit de l''eau'!$EB$4:$EB$1111,'Audit de l''eau'!$ED$4:$ED$1111)+SUMPRODUCT(--('Audit de l''eau'!$D$4:$D$1111=T174),'Audit de l''eau'!$FD$4:$FD$1111,'Audit de l''eau'!$FF$4:$FF$1111)+SUMPRODUCT(--('Audit de l''eau'!$D$4:$D$1111=T174),'Audit de l''eau'!$GF$4:$GF$1111,'Audit de l''eau'!$GH$4:$GH$1111)+SUMPRODUCT(--('Audit de l''eau'!$D$4:$D$1111=T174),'Audit de l''eau'!$HH$4:$HH$1111,'Audit de l''eau'!$HJ$4:$HJ$1111)+SUMPRODUCT(--('Audit de l''eau'!$D$4:$D$1111=T174),'Audit de l''eau'!$IJ$4:$IJ$1111,'Audit de l''eau'!$IL$4:$IL$1111))/(SUMIF('Audit de l''eau'!$D$4:$D$1111,Évolution!$T174,'Audit de l''eau'!$T$4:$T$1111)+SUMIF('Audit de l''eau'!$D$4:$D$1111,Évolution!$T174,'Audit de l''eau'!$AV$4:$AV$1111)+SUMIF('Audit de l''eau'!$D$4:$D$1111,Évolution!$T174,'Audit de l''eau'!$BX$4:$BX$1111)+SUMIF('Audit de l''eau'!$D$4:$D$1111,Évolution!$T174,'Audit de l''eau'!$CZ$4:$CZ$1111)+SUMIF('Audit de l''eau'!$D$4:$D$1111,Évolution!$T174,'Audit de l''eau'!$EB$4:$EB$1111)+SUMIF('Audit de l''eau'!$D$4:$D$1111,Évolution!$T174,'Audit de l''eau'!$FD$4:$FD$1111)+SUMIF('Audit de l''eau'!$D$4:$D$1111,Évolution!$T174,'Audit de l''eau'!$GF$4:$GF$1111)+SUMIF('Audit de l''eau'!$D$4:$D$1111,Évolution!$T174,'Audit de l''eau'!$HH$4:$HH$1111)+SUMIF('Audit de l''eau'!$D$4:$D$1111,Évolution!$T174,'Audit de l''eau'!$IJ$4:$IJ$1111)) -> 50.00677783 | AK174: =AVERAGEIF(Indicateurs!$D$4:$D$1111,Évolution!$T174,Indicateurs!$H$4:$H$1111) -> 51.62160956 | AL174: =(SUMIF('Audit de l''eau'!$D$4:$D$1111,Évolution!$T174,'Audit de l''eau'!$T$4:$T$1111)+SUMIF('Audit de l''eau'!$D$4:$D$1111,Évolution!$T174,'Audit de l''eau'!$AV$4:$AV$1111)+SUMIF('Audit de l''eau'!$D$4:$D$1111,Évolution!$T174,'Audit de l''eau'!$BX$4:$BX$1111)+SUMIF('Audit de l''eau'!$D$4:$D$1111,Évolution!$T174,'Audit de l''eau'!$CZ$4:$CZ$1111)+SUMIF('Audit de l''eau'!$D$4:$D$1111,Évolution!$T174,'Audit de l''eau'!$EB$4:$EB$1111)+SUMIF('Audit de l''eau'!$D$4:$D$1111,Évolution!$T174,'Audit de l''eau'!$FD$4:$FD$1111)+SUMIF('Audit de l''eau'!$D$4:$D$1111,Évolution!$T174,'Audit de l''eau'!$GF$4:$GF$1111)+SUMIF('Audit de l''eau'!$D$4:$D$1111,Évolution!$T174,'Audit de l''eau'!$HH$4:$HH$1111)+SUMIF('Audit de l''eau'!$D$4:$D$1111,Évolution!$T174,'Audit de l''eau'!$IJ$4:$IJ$1111))/(SUMIF('Audit de l''eau'!$D$4:$D$1111,Évolution!$T174,'Audit de l''eau'!$I$4:$I$1111)) -> 36.66258172 | AM174: =(SUMIF('Audit de l''eau'!$D$4:$D$1111,Évolution!$T174,'Audit de l''eau'!$J$4:$J$1111)*1000000/365)/SUMIF('Audit de l''eau'!$D$4:$D$1111,Évolution!$T174,'Audit de l''eau'!$H$4:$H$1111) -> 453.6181661 | AN174: =SUMIFS('Audit de l''eau'!$E$4:$E$1111,'Audit de l''eau'!$D$4:$D$1111,Évolution!T174) -> 47 | AO174: =SUMIFS('Audit de l''eau'!$F$4:$F$1111,'Audit de l''eau'!$D$4:$D$1111,Évolution!T174) -> 122815 | BS174: 06025 | BT174: ESCUMINAC | BU174: 11 | BV174: oui | BW174: oui | BX174: oui | BY174: oui | BZ174: oui | CA174: oui | CB174: oui | CC174: oui | CD174: oui | CE174: non | CF174: non | CG174: oui | CH174: oui | CI174: non | CJ174: non | CK174: non | CL174: 819.5115467 | CO174: 762.9791367 | CP174: 928.3025925 | CS174: =IF(VLOOKUP(BS174,Indicateurs!$B$4:$E$1111,4,FALSE)="","",VLOOKUP(BS174,Indicateurs!$B$4:$E$1111,4,FALSE)) ->  | CT174: ND | CW174: 1 | CX174: 1 | DA174: =IFERROR(SUM(VLOOKUP($BS174,'État & Plan d''action'!$B$4:$AA$1111,18,FALSE),VLOOKUP($BS174,'État & Plan d''action'!$B$4:$AA$1111,20,FALSE))/(VLOOKUP($BS174,'Audit de l''eau'!$B$3:$I$1111,8,FALSE)),"") ->  | DB174: =IFERROR(SUM(VLOOKUP($BS174,'État & Plan d''action'!$B$4:$AA$1111,19,FALSE),VLOOKUP($BS174,'État & Plan d''action'!$B$4:$AA$1111,21,FALSE))/(VLOOKUP($BS174,'Audit de l''eau'!$B$3:$I$1111,8,FALSE)),"") ->  | DC174: ND | DF174: 1 | DG174: 1 | DJ174: =IF(VLOOKUP($BS174,'État & Plan d''action'!$B$4:$AR$1111,36,FALSE)="","",VLOOKUP($BS174,'État & Plan d''action'!$B$4:$AR$1111,36,FALSE)) ->  | DK174: =IF(VLOOKUP($BS174,'État & Plan d''action'!$B$4:$AR$1111,38,FALSE)="","",VLOOKUP($BS174,'État & Plan d''action'!$B$4:$AR$1111,38,FALSE)) ->  | DL174: =IF(VLOOKUP($BS174,'État & Plan d''action'!$B$4:$AR$1111,37,FALSE)="","",VLOOKUP($BS174,'État & Plan d''action'!$B$4:$AR$1111,37,FALSE)) -> 
C175: 5 | D175: - | E175: Estrie | F175: 58 | G175: =COUNTIFS('Audit de l''eau'!$E$4:$E$1111,">0",'Audit de l''eau'!$D$4:$D$1111,Évolution!C175) -> 49 | I175: 1.545037966 | J175: 269.2854445 | K175: 416.493175 | M175: 56.18578854 | S175: Volume d'eau distribué (ML/an) | T175: 5 | U175: - | V175: Estrie | W175: =SUMIF('Audit de l''eau'!$D$4:$D$1111,$C175,'Audit de l''eau'!$L$4:$L$1111) -> 3536.001963 | X175: =SUMIF('Audit de l''eau'!$D$4:$D$1111,$C175,'Audit de l''eau'!$M$4:$M$1111) -> 2288.618171 | Y175: =SUMIF('Audit de l''eau'!$D$4:$D$1111,$C175,'Audit de l''eau'!$I$4:$I$1111) -> 1723.549 | Z175: =SUMIF('État & Plan d''action'!$D$4:$D$1111,$C175,'État & Plan d''action'!$S$4:$S$1111)+SUMIF('État & Plan d''action'!$D$4:$D$1111,$C175,'État & Plan d''action'!$U$4:$U$1111) -> 1462.394 | AA175: =SUMIF('Audit de l''eau'!$D$4:$D$1111,C175,'Audit de l''eau'!$J$4:$J$1111) -> 36187.29264 | AB175: =SUMIF('Audit de l''eau'!$D$4:$D$1111,$C175,'Audit de l''eau'!$H$4:$H$1111) -> 238042.9584 | AC175: =SUMIF('État & Plan d''action'!$D$4:$D$1111,C175,'État & Plan d''action'!$AK$4:$AK$1111) -> 199 | AD175: =SUMIF('État & Plan d''action'!$D$4:$D$1111,C175,'État & Plan d''action'!$AL$4:$AL$1111) -> 103 | AE175: =SUMIF('État & Plan d''action'!$D$4:$D$1111,C175,'État & Plan d''action'!$AM$4:$AM$1111) -> 38 | AF175: 340 | AG175: 0.8484783432 | AH175: =(SUMIF('Audit de l''eau'!$D$4:$D$1111,Évolution!$T175,'Audit de l''eau'!$K$4:$K$1111)*1000000/365)/SUMIF('Audit de l''eau'!$D$4:$D$1111,Évolution!$T175,'Audit de l''eau'!$H$4:$H$1111) -> 269.2854445 | AI175: =SUMIF('Audit de l''eau'!$D$4:$D$1111,Évolution!$T175,'Audit de l''eau'!$L$4:$L$1111)/SUMIF('Audit de l''eau'!$D$4:$D$1111,Évolution!$T175,'Audit de l''eau'!$M$4:$M$1111) -> 1.545037966 | AJ175: =(SUMPRODUCT(--('Audit de l''eau'!$D$4:$D$1111=T175),'Audit de l''eau'!$T$4:$T$1111,'Audit de l''eau'!$V$4:$V$1111)+SUMPRODUCT(--('Audit de l''eau'!$D$4:$D$1111=T175),'Audit de l''eau'!$AV$4:$AV$1111,'Audit de l''eau'!$AX$4:$AX$1111)+SUMPRODUCT(--('Audit de l''eau'!$D$4:$D$1111=T175),'Audit de l''eau'!$BX$4:$BX$1111,'Audit de l''eau'!$BZ$4:$BZ$1111)+SUMPRODUCT(--('Audit de l''eau'!$D$4:$D$1111=T175),'Audit de l''eau'!$CZ$4:$CZ$1111,'Audit de l''eau'!$DB$4:$DB$1111)+SUMPRODUCT(--('Audit de l''eau'!$D$4:$D$1111=T175),'Audit de l''eau'!$EB$4:$EB$1111,'Audit de l''eau'!$ED$4:$ED$1111)+SUMPRODUCT(--('Audit de l''eau'!$D$4:$D$1111=T175),'Audit de l''eau'!$FD$4:$FD$1111,'Audit de l''eau'!$FF$4:$FF$1111)+SUMPRODUCT(--('Audit de l''eau'!$D$4:$D$1111=T175),'Audit de l''eau'!$GF$4:$GF$1111,'Audit de l''eau'!$GH$4:$GH$1111)+SUMPRODUCT(--('Audit de l''eau'!$D$4:$D$1111=T175),'Audit de l''eau'!$HH$4:$HH$1111,'Audit de l''eau'!$HJ$4:$HJ$1111)+SUMPRODUCT(--('Audit de l''eau'!$D$4:$D$1111=T175),'Audit de l''eau'!$IJ$4:$IJ$1111,'Audit de l''eau'!$IL$4:$IL$1111))/(SUMIF('Audit de l''eau'!$D$4:$D$1111,Évolution!$T175,'Audit de l''eau'!$T$4:$T$1111)+SUMIF('Audit de l''eau'!$D$4:$D$1111,Évolution!$T175,'Audit de l''eau'!$AV$4:$AV$1111)+SUMIF('Audit de l''eau'!$D$4:$D$1111,Évolution!$T175,'Audit de l''eau'!$BX$4:$BX$1111)+SUMIF('Audit de l''eau'!$D$4:$D$1111,Évolution!$T175,'Audit de l''eau'!$CZ$4:$CZ$1111)+SUMIF('Audit de l''eau'!$D$4:$D$1111,Évolution!$T175,'Audit de l''eau'!$EB$4:$EB$1111)+SUMIF('Audit de l''eau'!$D$4:$D$1111,Évolution!$T175,'Audit de l''eau'!$FD$4:$FD$1111)+SUMIF('Audit de l''eau'!$D$4:$D$1111,Évolution!$T175,'Audit de l''eau'!$GF$4:$GF$1111)+SUMIF('Audit de l''eau'!$D$4:$D$1111,Évolution!$T175,'Audit de l''eau'!$HH$4:$HH$1111)+SUMIF('Audit de l''eau'!$D$4:$D$1111,Évolution!$T175,'Audit de l''eau'!$IJ$4:$IJ$1111)) -> 59.19251215 | AK175: =AVERAGEIF(Indicateurs!$D$4:$D$1111,Évolution!$T175,Indicateurs!$H$4:$H$1111) -> 56.18578854 | AL175: =(SUMIF('Audit de l''eau'!$D$4:$D$1111,Évolution!$T175,'Audit de l''eau'!$T$4:$T$1111)+SUMIF('Audit de l''eau'!$D$4:$D$1111,Évolution!$T175,'Audit de l''eau'!$AV$4:$AV$1111)+SUMIF('Audit de l''eau'!$D$4:$D$1111,Évolution!$T175,'Audit de l''eau'!$BX$4:$BX$1111)+SUMIF('Audit de l''eau'!$D$4:$D$1111,Évolution!$T175,'Audit de l''eau'!$CZ$4:$CZ$1111)+SUMIF('Audit de l''eau'!$D$4:$D$1111,Évolution!$T175,'Audit de l''eau'!$EB$4:$EB$1111)+SUMIF('Audit de l''eau'!$D$4:$D$1111,Évolution!$T175,'Audit de l''eau'!$FD$4:$FD$1111)+SUMIF('Audit de l''eau'!$D$4:$D$1111,Évolution!$T175,'Audit de l''eau'!$GF$4:$GF$1111)+SUMIF('Audit de l''eau'!$D$4:$D$1111,Évolution!$T175,'Audit de l''eau'!$HH$4:$HH$1111)+SUMIF('Audit de l''eau'!$D$4:$D$1111,Évolution!$T175,'Audit de l''eau'!$IJ$4:$IJ$1111))/(SUMIF('Audit de l''eau'!$D$4:$D$1111,Évolution!$T175,'Audit de l''eau'!$I$4:$I$1111)) -> 42.18098818 | AM175: =(SUMIF('Audit de l''eau'!$D$4:$D$1111,Évolution!$T175,'Audit de l''eau'!$J$4:$J$1111)*1000000/365)/SUMIF('Audit de l''eau'!$D$4:$D$1111,Évolution!$T175,'Audit de l''eau'!$H$4:$H$1111) -> 416.493175 | AN175: =SUMIFS('Audit de l''eau'!$E$4:$E$1111,'Audit de l''eau'!$D$4:$D$1111,Évolution!T175) -> 58 | AO175: =SUMIFS('Audit de l''eau'!$F$4:$F$1111,'Audit de l''eau'!$D$4:$D$1111,Évolution!T175) -> 116907 | BS175: 10005 | BT175: ESPRIT-SAINT | BU175: 1 | BV175: oui | BW175: oui | BX175: oui | BY175: oui | BZ175: oui | CA175: oui | CB175: oui | CC175: oui | CD175: non | CE175: non | CF175: non | CG175: non | CH175: non | CI175: non | CJ175: non | CK175: non | CS175: =IF(VLOOKUP(BS175,Indicateurs!$B$4:$E$1111,4,FALSE)="","",VLOOKUP(BS175,Indicateurs!$B$4:$E$1111,4,FALSE)) ->  | CT175: ND | DA175: =IFERROR(SUM(VLOOKUP($BS175,'État & Plan d''action'!$B$4:$AA$1111,18,FALSE),VLOOKUP($BS175,'État & Plan d''action'!$B$4:$AA$1111,20,FALSE))/(VLOOKUP($BS175,'Audit de l''eau'!$B$3:$I$1111,8,FALSE)),"") ->  | DB175: =IFERROR(SUM(VLOOKUP($BS175,'État & Plan d''action'!$B$4:$AA$1111,19,FALSE),VLOOKUP($BS175,'État & Plan d''action'!$B$4:$AA$1111,21,FALSE))/(VLOOKUP($BS175,'Audit de l''eau'!$B$3:$I$1111,8,FALSE)),"") ->  | DC175: ND | DD175: 0 | DE175: 0 | DF175: 0 | DG175: 0 | DJ175: =IF(VLOOKUP($BS175,'État & Plan d''action'!$B$4:$AR$1111,36,FALSE)="","",VLOOKUP($BS175,'État & Plan d''action'!$B$4:$AR$1111,36,FALSE)) ->  | DK175: =IF(VLOOKUP($BS175,'État & Plan d''action'!$B$4:$AR$1111,38,FALSE)="","",VLOOKUP($BS175,'État & Plan d''action'!$B$4:$AR$1111,38,FALSE)) ->  | DL175: =IF(VLOOKUP($BS175,'État & Plan d''action'!$B$4:$AR$1111,37,FALSE)="","",VLOOKUP($BS175,'État & Plan d''action'!$B$4:$AR$1111,37,FALSE)) -> 
C176: 6 | D176: - | E176: Montréal | F176: 15 | G176: =COUNTIFS('Audit de l''eau'!$E$4:$E$1111,">0",'Audit de l''eau'!$D$4:$D$1111,Évolution!C176) -> 14 | I176: 18.96821851 | J176: 303.0341235 | K176: 761.5773303 | M176: 54.40187777 | S176: Pertes d'eau réelles (ML/an) | T176: 6 | U176: - | V176: Montréal | W176: =SUMIF('Audit de l''eau'!$D$4:$D$1111,$C176,'Audit de l''eau'!$L$4:$L$1111) -> 154432.3503 | X176: =SUMIF('Audit de l''eau'!$D$4:$D$1111,$C176,'Audit de l''eau'!$M$4:$M$1111) -> 8141.637037 | Y176: =SUMIF('Audit de l''eau'!$D$4:$D$1111,$C176,'Audit de l''eau'!$I$4:$I$1111) -> 5868.88161 | Z176: =SUMIF('État & Plan d''action'!$D$4:$D$1111,$C176,'État & Plan d''action'!$S$4:$S$1111)+SUMIF('État & Plan d''action'!$D$4:$D$1111,$C176,'État & Plan d''action'!$U$4:$U$1111) -> 6514.813 | AA176: =SUMIF('Audit de l''eau'!$D$4:$D$1111,C176,'Audit de l''eau'!$J$4:$J$1111) -> 574157.7239 | AB176: =SUMIF('Audit de l''eau'!$D$4:$D$1111,$C176,'Audit de l''eau'!$H$4:$H$1111) -> 2065495.909 | AC176: =SUMIF('État & Plan d''action'!$D$4:$D$1111,C176,'État & Plan d''action'!$AK$4:$AK$1111) -> 1191 | AD176: =SUMIF('État & Plan d''action'!$D$4:$D$1111,C176,'État & Plan d''action'!$AL$4:$AL$1111) -> 975 | AE176: =SUMIF('État & Plan d''action'!$D$4:$D$1111,C176,'État & Plan d''action'!$AM$4:$AM$1111) -> 139 | AF176: 2305 | AG176: 1.110060388 | AH176: =(SUMIF('Audit de l''eau'!$D$4:$D$1111,Évolution!$T176,'Audit de l''eau'!$K$4:$K$1111)*1000000/365)/SUMIF('Audit de l''eau'!$D$4:$D$1111,Évolution!$T176,'Audit de l''eau'!$H$4:$H$1111) -> 303.0341235 | AI176: =SUMIF('Audit de l''eau'!$D$4:$D$1111,Évolution!$T176,'Audit de l''eau'!$L$4:$L$1111)/SUMIF('Audit de l''eau'!$D$4:$D$1111,Évolution!$T176,'Audit de l''eau'!$M$4:$M$1111) -> 18.96821851 | AJ176: =(SUMPRODUCT(--('Audit de l''eau'!$D$4:$D$1111=T176),'Audit de l''eau'!$T$4:$T$1111,'Audit de l''eau'!$V$4:$V$1111)+SUMPRODUCT(--('Audit de l''eau'!$D$4:$D$1111=T176),'Audit de l''eau'!$AV$4:$AV$1111,'Audit de l''eau'!$AX$4:$AX$1111)+SUMPRODUCT(--('Audit de l''eau'!$D$4:$D$1111=T176),'Audit de l''eau'!$BX$4:$BX$1111,'Audit de l''eau'!$BZ$4:$BZ$1111)+SUMPRODUCT(--('Audit de l''eau'!$D$4:$D$1111=T176),'Audit de l''eau'!$CZ$4:$CZ$1111,'Audit de l''eau'!$DB$4:$DB$1111)+SUMPRODUCT(--('Audit de l''eau'!$D$4:$D$1111=T176),'Audit de l''eau'!$EB$4:$EB$1111,'Audit de l''eau'!$ED$4:$ED$1111)+SUMPRODUCT(--('Audit de l''eau'!$D$4:$D$1111=T176),'Audit de l''eau'!$FD$4:$FD$1111,'Audit de l''eau'!$FF$4:$FF$1111)+SUMPRODUCT(--('Audit de l''eau'!$D$4:$D$1111=T176),'Audit de l''eau'!$GF$4:$GF$1111,'Audit de l''eau'!$GH$4:$GH$1111)+SUMPRODUCT(--('Audit de l''eau'!$D$4:$D$1111=T176),'Audit de l''eau'!$HH$4:$HH$1111,'Audit de l''eau'!$HJ$4:$HJ$1111)+SUMPRODUCT(--('Audit de l''eau'!$D$4:$D$1111=T176),'Audit de l''eau'!$IJ$4:$IJ$1111,'Audit de l''eau'!$IL$4:$IL$1111))/(SUMIF('Audit de l''eau'!$D$4:$D$1111,Évolution!$T176,'Audit de l''eau'!$T$4:$T$1111)+SUMIF('Audit de l''eau'!$D$4:$D$1111,Évolution!$T176,'Audit de l''eau'!$AV$4:$AV$1111)+SUMIF('Audit de l''eau'!$D$4:$D$1111,Évolution!$T176,'Audit de l''eau'!$BX$4:$BX$1111)+SUMIF('Audit de l''eau'!$D$4:$D$1111,Évolution!$T176,'Audit de l''eau'!$CZ$4:$CZ$1111)+SUMIF('Audit de l''eau'!$D$4:$D$1111,Évolution!$T176,'Audit de l''eau'!$EB$4:$EB$1111)+SUMIF('Audit de l''eau'!$D$4:$D$1111,Évolution!$T176,'Audit de l''eau'!$FD$4:$FD$1111)+SUMIF('Audit de l''eau'!$D$4:$D$1111,Évolution!$T176,'Audit de l''eau'!$GF$4:$GF$1111)+SUMIF('Audit de l''eau'!$D$4:$D$1111,Évolution!$T176,'Audit de l''eau'!$HH$4:$HH$1111)+SUMIF('Audit de l''eau'!$D$4:$D$1111,Évolution!$T176,'Audit de l''eau'!$IJ$4:$IJ$1111)) -> 50.04890154 | AK176: =AVERAGEIF(Indicateurs!$D$4:$D$1111,Évolution!$T176,Indicateurs!$H$4:$H$1111) -> 54.40187777 | AL176: =(SUMIF('Audit de l''eau'!$D$4:$D$1111,Évolution!$T176,'Audit de l''eau'!$T$4:$T$1111)+SUMIF('Audit de l''eau'!$D$4:$D$1111,Évolution!$T176,'Audit de l''eau'!$AV$4:$AV$1111)+SUMIF('Audit de l''eau'!$D$4:$D$1111,Évolution!$T176,'Audit de l''eau'!$BX$4:$BX$1111)+SUMIF('Audit de l''eau'!$D$4:$D$1111,Évolution!$T176,'Audit de l''eau'!$CZ$4:$CZ$1111)+SUMIF('Audit de l''eau'!$D$4:$D$1111,Évolution!$T176,'Audit de l''eau'!$EB$4:$EB$1111)+SUMIF('Audit de l''eau'!$D$4:$D$1111,Évolution!$T176,'Audit de l''eau'!$FD$4:$FD$1111)+SUMIF('Audit de l''eau'!$D$4:$D$1111,Évolution!$T176,'Audit de l''eau'!$GF$4:$GF$1111)+SUMIF('Audit de l''eau'!$D$4:$D$1111,Évolution!$T176,'Audit de l''eau'!$HH$4:$HH$1111)+SUMIF('Audit de l''eau'!$D$4:$D$1111,Évolution!$T176,'Audit de l''eau'!$IJ$4:$IJ$1111))/(SUMIF('Audit de l''eau'!$D$4:$D$1111,Évolution!$T176,'Audit de l''eau'!$I$4:$I$1111)) -> 59.86217193 | AM176: =(SUMIF('Audit de l''eau'!$D$4:$D$1111,Évolution!$T176,'Audit de l''eau'!$J$4:$J$1111)*1000000/365)/SUMIF('Audit de l''eau'!$D$4:$D$1111,Évolution!$T176,'Audit de l''eau'!$H$4:$H$1111) -> 761.5773303 | AN176: =SUMIFS('Audit de l''eau'!$E$4:$E$1111,'Audit de l''eau'!$D$4:$D$1111,Évolution!T176) -> 17 | AO176: =SUMIFS('Audit de l''eau'!$F$4:$F$1111,'Audit de l''eau'!$D$4:$D$1111,Évolution!T176) -> 987562.8683 | BS176: 77011 | BT176: ESTÉREL | BU176: 15 | BV176: non | BW176: non | BX176: non | BY176: non | BZ176: non | CA176: non | CB176: non | CC176: non | CD176: oui | CE176: oui | CF176: non | CG176: oui | CH176: non | CI176: oui | CJ176: oui | CK176: oui | CL176: 867.1538195 | CM176: 769.9261388 | CO176: 664.7895715 | CQ176: 1966.984475 | CR176: 2147.188628 | CS176: =IF(VLOOKUP(BS176,Indicateurs!$B$4:$E$1111,4,FALSE)="","",VLOOKUP(BS176,Indicateurs!$B$4:$E$1111,4,FALSE)) -> 2826 | CT176: ND | CU176: 0 | CV176: 0 | CW176: 1 | CX176: 1 | CY176: 0 | CZ176: 0 | DA176: =IFERROR(SUM(VLOOKUP($BS176,'État & Plan d''action'!$B$4:$AA$1111,18,FALSE),VLOOKUP($BS176,'État & Plan d''action'!$B$4:$AA$1111,20,FALSE))/(VLOOKUP($BS176,'Audit de l''eau'!$B$3:$I$1111,8,FALSE)),"") -> 0 | DB176: =IFERROR(SUM(VLOOKUP($BS176,'État & Plan d''action'!$B$4:$AA$1111,19,FALSE),VLOOKUP($BS176,'État & Plan d''action'!$B$4:$AA$1111,21,FALSE))/(VLOOKUP($BS176,'Audit de l''eau'!$B$3:$I$1111,8,FALSE)),"") -> 0 | DC176: ND | DD176: 0 | DE176: 1 | DF176: 0 | DG176: 0 | DH176: 0 | DI176: 0 | DJ176: =IF(VLOOKUP($BS176,'État & Plan d''action'!$B$4:$AR$1111,36,FALSE)="","",VLOOKUP($BS176,'État & Plan d''action'!$B$4:$AR$1111,36,FALSE)) -> 0 | DK176: =IF(VLOOKUP($BS176,'État & Plan d''action'!$B$4:$AR$1111,38,FALSE)="","",VLOOKUP($BS176,'État & Plan d''action'!$B$4:$AR$1111,38,FALSE)) -> 0 | DL176: =IF(VLOOKUP($BS176,'État & Plan d''action'!$B$4:$AR$1111,37,FALSE)="","",VLOOKUP($BS176,'État & Plan d''action'!$B$4:$AR$1111,37,FALSE)) -> 0
C177: 7 | D177: - | E177: Outaouais | F177: 33 | G177: =COUNTIFS('Audit de l''eau'!$E$4:$E$1111,">0",'Audit de l''eau'!$D$4:$D$1111,Évolution!C177) -> 18 | I177: 3.012796353 | J177: 251.4505019 | K177: 379.4198315 | M177: 49.49519256 | S177: Proportion du réseau ausculté | T177: 7 | U177: - | V177: Outaouais | W177: =SUMIF('Audit de l''eau'!$D$4:$D$1111,$C177,'Audit de l''eau'!$L$4:$L$1111) -> 8270.587222 | X177: =SUMIF('Audit de l''eau'!$D$4:$D$1111,$C177,'Audit de l''eau'!$M$4:$M$1111) -> 2745.153091 | Y177: =SUMIF('Audit de l''eau'!$D$4:$D$1111,$C177,'Audit de l''eau'!$I$4:$I$1111) -> 1546.43 | Z177: =SUMIF('État & Plan d''action'!$D$4:$D$1111,$C177,'État & Plan d''action'!$S$4:$S$1111)+SUMIF('État & Plan d''action'!$D$4:$D$1111,$C177,'État & Plan d''action'!$U$4:$U$1111) -> 747.975 | AA177: =SUMIF('Audit de l''eau'!$D$4:$D$1111,C177,'Audit de l''eau'!$J$4:$J$1111) -> 41821.932 | AB177: =SUMIF('Audit de l''eau'!$D$4:$D$1111,$C177,'Audit de l''eau'!$H$4:$H$1111) -> 301989.053 | AC177: =SUMIF('État & Plan d''action'!$D$4:$D$1111,C177,'État & Plan d''action'!$AK$4:$AK$1111) -> 330 | AD177: =SUMIF('État & Plan d''action'!$D$4:$D$1111,C177,'État & Plan d''action'!$AL$4:$AL$1111) -> 51 | AE177: =SUMIF('État & Plan d''action'!$D$4:$D$1111,C177,'État & Plan d''action'!$AM$4:$AM$1111) -> 39 | AF177: 420 | AG177: 0.483678537 | AH177: =(SUMIF('Audit de l''eau'!$D$4:$D$1111,Évolution!$T177,'Audit de l''eau'!$K$4:$K$1111)*1000000/365)/SUMIF('Audit de l''eau'!$D$4:$D$1111,Évolution!$T177,'Audit de l''eau'!$H$4:$H$1111) -> 251.4505019 | AI177: =SUMIF('Audit de l''eau'!$D$4:$D$1111,Évolution!$T177,'Audit de l''eau'!$L$4:$L$1111)/SUMIF('Audit de l''eau'!$D$4:$D$1111,Évolution!$T177,'Audit de l''eau'!$M$4:$M$1111) -> 3.012796353 | AJ177: =(SUMPRODUCT(--('Audit de l''eau'!$D$4:$D$1111=T177),'Audit de l''eau'!$T$4:$T$1111,'Audit de l''eau'!$V$4:$V$1111)+SUMPRODUCT(--('Audit de l''eau'!$D$4:$D$1111=T177),'Audit de l''eau'!$AV$4:$AV$1111,'Audit de l''eau'!$AX$4:$AX$1111)+SUMPRODUCT(--('Audit de l''eau'!$D$4:$D$1111=T177),'Audit de l''eau'!$BX$4:$BX$1111,'Audit de l''eau'!$BZ$4:$BZ$1111)+SUMPRODUCT(--('Audit de l''eau'!$D$4:$D$1111=T177),'Audit de l''eau'!$CZ$4:$CZ$1111,'Audit de l''eau'!$DB$4:$DB$1111)+SUMPRODUCT(--('Audit de l''eau'!$D$4:$D$1111=T177),'Audit de l''eau'!$EB$4:$EB$1111,'Audit de l''eau'!$ED$4:$ED$1111)+SUMPRODUCT(--('Audit de l''eau'!$D$4:$D$1111=T177),'Audit de l''eau'!$FD$4:$FD$1111,'Audit de l''eau'!$FF$4:$FF$1111)+SUMPRODUCT(--('Audit de l''eau'!$D$4:$D$1111=T177),'Audit de l''eau'!$GF$4:$GF$1111,'Audit de l''eau'!$GH$4:$GH$1111)+SUMPRODUCT(--('Audit de l''eau'!$D$4:$D$1111=T177),'Audit de l''eau'!$HH$4:$HH$1111,'Audit de l''eau'!$HJ$4:$HJ$1111)+SUMPRODUCT(--('Audit de l''eau'!$D$4:$D$1111=T177),'Audit de l''eau'!$IJ$4:$IJ$1111,'Audit de l''eau'!$IL$4:$IL$1111))/(SUMIF('Audit de l''eau'!$D$4:$D$1111,Évolution!$T177,'Audit de l''eau'!$T$4:$T$1111)+SUMIF('Audit de l''eau'!$D$4:$D$1111,Évolution!$T177,'Audit de l''eau'!$AV$4:$AV$1111)+SUMIF('Audit de l''eau'!$D$4:$D$1111,Évolution!$T177,'Audit de l''eau'!$BX$4:$BX$1111)+SUMIF('Audit de l''eau'!$D$4:$D$1111,Évolution!$T177,'Audit de l''eau'!$CZ$4:$CZ$1111)+SUMIF('Audit de l''eau'!$D$4:$D$1111,Évolution!$T177,'Audit de l''eau'!$EB$4:$EB$1111)+SUMIF('Audit de l''eau'!$D$4:$D$1111,Évolution!$T177,'Audit de l''eau'!$FD$4:$FD$1111)+SUMIF('Audit de l''eau'!$D$4:$D$1111,Évolution!$T177,'Audit de l''eau'!$GF$4:$GF$1111)+SUMIF('Audit de l''eau'!$D$4:$D$1111,Évolution!$T177,'Audit de l''eau'!$HH$4:$HH$1111)+SUMIF('Audit de l''eau'!$D$4:$D$1111,Évolution!$T177,'Audit de l''eau'!$IJ$4:$IJ$1111)) -> 48.79042485 | AK177: =AVERAGEIF(Indicateurs!$D$4:$D$1111,Évolution!$T177,Indicateurs!$H$4:$H$1111) -> 49.49519256 | AL177: =(SUMIF('Audit de l''eau'!$D$4:$D$1111,Évolution!$T177,'Audit de l''eau'!$T$4:$T$1111)+SUMIF('Audit de l''eau'!$D$4:$D$1111,Évolution!$T177,'Audit de l''eau'!$AV$4:$AV$1111)+SUMIF('Audit de l''eau'!$D$4:$D$1111,Évolution!$T177,'Audit de l''eau'!$BX$4:$BX$1111)+SUMIF('Audit de l''eau'!$D$4:$D$1111,Évolution!$T177,'Audit de l''eau'!$CZ$4:$CZ$1111)+SUMIF('Audit de l''eau'!$D$4:$D$1111,Évolution!$T177,'Audit de l''eau'!$EB$4:$EB$1111)+SUMIF('Audit de l''eau'!$D$4:$D$1111,Évolution!$T177,'Audit de l''eau'!$FD$4:$FD$1111)+SUMIF('Audit de l''eau'!$D$4:$D$1111,Évolution!$T177,'Audit de l''eau'!$GF$4:$GF$1111)+SUMIF('Audit de l''eau'!$D$4:$D$1111,Évolution!$T177,'Audit de l''eau'!$HH$4:$HH$1111)+SUMIF('Audit de l''eau'!$D$4:$D$1111,Évolution!$T177,'Audit de l''eau'!$IJ$4:$IJ$1111))/(SUMIF('Audit de l''eau'!$D$4:$D$1111,Évolution!$T177,'Audit de l''eau'!$I$4:$I$1111)) -> 85.4891589 | AM177: =(SUMIF('Audit de l''eau'!$D$4:$D$1111,Évolution!$T177,'Audit de l''eau'!$J$4:$J$1111)*1000000/365)/SUMIF('Audit de l''eau'!$D$4:$D$1111,Évolution!$T177,'Audit de l''eau'!$H$4:$H$1111) -> 379.4198315 | AN177: =SUMIFS('Audit de l''eau'!$E$4:$E$1111,'Audit de l''eau'!$D$4:$D$1111,Évolution!T177) -> 20 | AO177: =SUMIFS('Audit de l''eau'!$F$4:$F$1111,'Audit de l''eau'!$D$4:$D$1111,Évolution!T177) -> 136939 | BS177: 46112 | BT177: FARNHAM | BU177: 16 | BV177: non | BW177: non | BX177: non | BY177: non | BZ177: non | CA177: non | CB177: non | CC177: non | CD177: oui | CE177: oui | CF177: oui | CG177: oui | CH177: oui | CI177: oui | CJ177: oui | CK177: oui | CL177: 583.472872 | CM177: 551.8197744 | CN177: 630.858328 | CO177: 443.9810831 | CP177: 446.2187266 | CQ177: 362.4916462 | CR177: 356.0560672 | CS177: =IF(VLOOKUP(BS177,Indicateurs!$B$4:$E$1111,4,FALSE)="","",VLOOKUP(BS177,Indicateurs!$B$4:$E$1111,4,FALSE)) -> 351 | CT177: ND | CU177: 0.3 | CV177: 0.3 | CW177: 0.3 | CX177: 0.3 | CY177: 0.3 | CZ177: 0.3 | DA177: =IFERROR(SUM(VLOOKUP($BS177,'État & Plan d''action'!$B$4:$AA$1111,18,FALSE),VLOOKUP($BS177,'État & Plan d''action'!$B$4:$AA$1111,20,FALSE))/(VLOOKUP($BS177,'Audit de l''eau'!$B$3:$I$1111,8,FALSE)),"") -> 1 | DB177: =IFERROR(SUM(VLOOKUP($BS177,'État & Plan d''action'!$B$4:$AA$1111,19,FALSE),VLOOKUP($BS177,'État & Plan d''action'!$B$4:$AA$1111,21,FALSE))/(VLOOKUP($BS177,'Audit de l''eau'!$B$3:$I$1111,8,FALSE)),"") -> 1 | DC177: ND | DD177: 8 | DE177: 14 | DF177: 12 | DG177: 16 | DH177: 7 | DI177: 7 | DJ177: =IF(VLOOKUP($BS177,'État & Plan d''action'!$B$4:$AR$1111,36,FALSE)="","",VLOOKUP($BS177,'État & Plan d''action'!$B$4:$AR$1111,36,FALSE)) -> 9 | DK177: =IF(VLOOKUP($BS177,'État & Plan d''action'!$B$4:$AR$1111,38,FALSE)="","",VLOOKUP($BS177,'État & Plan d''action'!$B$4:$AR$1111,38,FALSE)) -> 1 | DL177: =IF(VLOOKUP($BS177,'État & Plan d''action'!$B$4:$AR$1111,37,FALSE)="","",VLOOKUP($BS177,'État & Plan d''action'!$B$4:$AR$1111,37,FALSE)) -> 0
